Workbook

Sheet ParamValues
A1: case | B1: category | C1: process | D1: label | E1: type | F1: name | G1: index | H1: phase | I1: min_index | J1: max_index | K1: parameter_scale | L1: min_arith | M1: max_arith | N1: init_arith_value | O1: final_arith_value | P1: min_param | Q1: max_param | R1: init_param_value | S1: final_param_value | T1: stdv | U1: CV
A2: B0 | B2: population processes | C2: recruitment | D2: historical recruitment period | E2: param_init_bounded_number | F2: pLnR[1] | G2: 1 | H2: 1 | I2: 1 | J2: 1 | K2: ARITHMETIC | L2: 0 | M2: 10 | N2: 5.622222135 | O2: 5.622237507 | P2: 0 | Q2: 10 | R2: 5.622222135 | S2: 5.622237507 | T2: 0.39982 | U2: =IF(ISNUMBER(T2),ABS(T2/S2),"--") -> 0.07111403592
A3: B0 | B3: population processes | C3: recruitment | D3: current recruitment period | E3: param_init_bounded_number | F3: pLnR[2] | G3: 1 | H3: 1 | I3: 1 | J3: 1 | K3: ARITHMETIC | L3: 0 | M3: 10 | N3: 5.115191967 | O3: 5.115184573 | P3: 0 | Q3: 10 | R3: 5.115191967 | S3: 5.115184573 | T3: 0.07185 | U3: =IF(ISNUMBER(T3),ABS(T3/S3),"--") -> 0.01404641396
A4: B0 | B4: population processes | C4: recruitment | D4: full model period | E4: param_init_bounded_number | F4: pRCV[1] | G4: 1 | H4: -1 | I4: 1 | J4: 1 | K4: LOG | L4: 0.135335283 | M4: 7.389056099 | N4: 0.5 | O4: 0.5 | P4: -2.000000002 | Q4: 2 | R4: -0.6931471806 | S4: -0.6931471806 | T4: NA | U4: --
A5: B0 | B5: population processes | C5: recruitment | D5: full model period | E5: param_init_bounded_number | F5: pRX[1] | G5: 1 | H5: -1 | I5: 1 | J5: 1 | K5: LOGIT | L5: 0.268941421 | M5: 0.731058579 | N5: 0.5 | O5: 0.5 | P5: -25 | Q5: 25 | R5: 0 | S5: 0 | T5: NA | U5: --
A6: B0 | B6: population processes | C6: recruitment | D6: fixed value | E6: param_init_bounded_number | F6: pRa[1] | G6: 1 | H6: -1 | I6: 1 | J6: 1 | K6: LOG | L6: 2.718281828 | M6: 54.59815003 | N6: 11.5 | O6: 11.5 | P6: 0.9999999998 | Q6: 4 | R6: 2.442347035 | S6: 2.442347035 | T6: NA | U6: --
A7: B0 | B7: population processes | C7: recruitment | D7: fixed value | E7: param_init_bounded_number | F7: pRb[1] | G7: 1 | H7: -1 | I7: 1 | J7: 1 | K7: LOG | L7: 1 | M7: 54.59815003 | N7: 4 | O7: 4 | P7: 0 | Q7: 4 | R7: 1.386294361 | S7: 1.386294361 | T7: NA | U7: --
A8: B0 | B8: population processes | C8: recruitment | D8: historical recruitment period | E8: param_init_bounded_vector | F8: pDevsLnR[1] | G8: 1 | H8: 1 | I8: 1 | J8: 26 | K8: ARITHMETIC | L8: -10 | M8: 10 | N8: -1.423635652 | O8: -1.423607404 | P8: -10 | Q8: 10 | R8: -1.423635652 | S8: -1.423607404 | T8: 1.4755 | U8: 1.03645148
A9: B0 | B9: population processes | C9: recruitment | D9: historical recruitment period | E9: param_init_bounded_vector | F9: pDevsLnR[1] | G9: 2 | H9: 1 | I9: 1 | J9: 26 | K9: ARITHMETIC | L9: -10 | M9: 10 | N9: -1.423888742 | O9: -1.423861334 | P9: -10 | Q9: 10 | R9: -1.423888742 | S9: -1.423861334 | T9: 1.326 | U9: 0.9312704601
A10: B0 | B10: population processes | C10: recruitment | D10: historical recruitment period | E10: param_init_bounded_vector | F10: pDevsLnR[1] | G10: 3 | H10: 1 | I10: 1 | J10: 26 | K10: ARITHMETIC | L10: -10 | M10: 10 | N10: -1.422985207 | O10: -1.422960358 | P10: -10 | Q10: 10 | R10: -1.422985207 | S10: -1.422960358 | T10: 1.1903 | U10: 0.8364955449
A11: B0 | B11: population processes | C11: recruitment | D11: historical recruitment period | E11: param_init_bounded_vector | F11: pDevsLnR[1] | G11: 4 | H11: 1 | I11: 1 | J11: 26 | K11: ARITHMETIC | L11: -10 | M11: 10 | N11: -1.418998965 | O11: -1.418977322 | P11: -10 | Q11: 10 | R11: -1.418998965 | S11: -1.418977322 | T11: 1.0711 | U11: 0.7548394069
A12: B0 | B12: population processes | C12: recruitment | D12: historical recruitment period | E12: param_init_bounded_vector | F12: pDevsLnR[1] | G12: 5 | H12: 1 | I12: 1 | J12: 26 | K12: ARITHMETIC | L12: -10 | M12: 10 | N12: -1.409275123 | O12: -1.409258374 | P12: -10 | Q12: 10 | R12: -1.409275123 | S12: -1.409258374 | T12: 0.97023 | U12: 0.6884685008
A13: B0 | B13: population processes | C13: recruitment | D13: historical recruitment period | E13: param_init_bounded_vector | F13: pDevsLnR[1] | G13: 6 | H13: 1 | I13: 1 | J13: 26 | K13: ARITHMETIC | L13: -10 | M13: 10 | N13: -1.390109768 | O13: -1.390098424 | P13: -10 | Q13: 10 | R13: -1.390109768 | S13: -1.390098424 | T13: 0.88851 | U13: 0.6391705687
A14: B0 | B14: population processes | C14: recruitment | D14: historical recruitment period | E14: param_init_bounded_vector | F14: pDevsLnR[1] | G14: 7 | H14: 1 | I14: 1 | J14: 26 | K14: ARITHMETIC | L14: -10 | M14: 10 | N14: -1.356234942 | O14: -1.356229861 | P14: -10 | Q14: 10 | R14: -1.356234942 | S14: -1.356229861 | T14: 0.82514 | U14: 0.6084071911
A15: B0 | B15: population processes | C15: recruitment | D15: historical recruitment period | E15: param_init_bounded_vector | F15: pDevsLnR[1] | G15: 8 | H15: 1 | I15: 1 | J15: 26 | K15: ARITHMETIC | L15: -10 | M15: 10 | N15: -1.299948697 | O15: -1.299950398 | P15: -10 | Q15: 10 | R15: -1.299948697 | S15: -1.299950398 | T15: 0.77741 | U15: 0.5980305102
A16: B0 | B16: population processes | C16: recruitment | D16: historical recruitment period | E16: param_init_bounded_vector | F16: pDevsLnR[1] | G16: 9 | H16: 1 | I16: 1 | J16: 26 | K16: ARITHMETIC | L16: -10 | M16: 10 | N16: -1.209522389 | O16: -1.209530933 | P16: -10 | Q16: 10 | R16: -1.209522389 | S16: -1.209530933 | T16: 0.74118 | U16: 0.612783005
A17: B0 | B17: population processes | C17: recruitment | D17: historical recruitment period | E17: param_init_bounded_vector | F17: pDevsLnR[1] | G17: 10 | H17: 1 | I17: 1 | J17: 26 | K17: ARITHMETIC | L17: -10 | M17: 10 | N17: -1.066018876 | O17: -1.066035159 | P17: -10 | Q17: 10 | R17: -1.066018876 | S17: -1.066035159 | T17: 0.71204 | U17: 0.6679329419
A18: B0 | B18: population processes | C18: recruitment | D18: historical recruitment period | E18: param_init_bounded_vector | F18: pDevsLnR[1] | G18: 11 | H18: 1 | I18: 1 | J18: 26 | K18: ARITHMETIC | L18: -10 | M18: 10 | N18: -0.8362936661 | O18: -0.8363171972 | P18: -10 | Q18: 10 | R18: -0.8362936661 | S18: -0.8363171972 | T18: 0.6877 | U18: 0.822295658
A19: B0 | B19: population processes | C19: recruitment | D19: historical recruitment period | E19: param_init_bounded_vector | F19: pDevsLnR[1] | G19: 12 | H19: 1 | I19: 1 | J19: 26 | K19: ARITHMETIC | L19: -10 | M19: 10 | N19: -0.4588101582 | O19: -0.458841957 | P19: -10 | Q19: 10 | R19: -0.4588101582 | S19: -0.458841957 | T19: 0.6719 | U19: 1.464338624
A20: B0 | B20: population processes | C20: recruitment | D20: historical recruitment period | E20: param_init_bounded_vector | F20: pDevsLnR[1] | G20: 13 | H20: 1 | I20: 1 | J20: 26 | K20: ARITHMETIC | L20: -10 | M20: 10 | N20: 0.1484236432 | O20: 0.148385696 | P20: -10 | Q20: 10 | R20: 0.1484236432 | S20: 0.148385696 | T20: 0.66594 | U20: 4.487898889
A21: B0 | B21: population processes | C21: recruitment | D21: historical recruitment period | E21: param_init_bounded_vector | F21: pDevsLnR[1] | G21: 14 | H21: 1 | I21: 1 | J21: 26 | K21: ARITHMETIC | L21: -10 | M21: 10 | N21: 0.9560676658 | O21: 0.9560287861 | P21: -10 | Q21: 10 | R21: 0.9560676658 | S21: 0.9560287861 | T21: 0.65066 | U21: 0.6805862015
A22: B0 | B22: population processes | C22: recruitment | D22: historical recruitment period | E22: param_init_bounded_vector | F22: pDevsLnR[1] | G22: 15 | H22: 1 | I22: 1 | J22: 26 | K22: ARITHMETIC | L22: -10 | M22: 10 | N22: 1.620122261 | O22: 1.620095947 | P22: -10 | Q22: 10 | R22: 1.620122261 | S22: 1.620095947 | T22: 0.62275 | U22: 0.384390814
A23: B0 | B23: population processes | C23: recruitment | D23: historical recruitment period | E23: param_init_bounded_vector | F23: pDevsLnR[1] | G23: 16 | H23: 1 | I23: 1 | J23: 26 | K23: ARITHMETIC | L23: -10 | M23: 10 | N23: 1.795686798 | O23: 1.795673287 | P23: -10 | Q23: 10 | R23: 1.795686798 | S23: 1.795673287 | T23: 0.6026 | U23: 0.3355844319
A24: B0 | B24: population processes | C24: recruitment | D24: historical recruitment period | E24: param_init_bounded_vector | F24: pDevsLnR[1] | G24: 17 | H24: 1 | I24: 1 | J24: 26 | K24: ARITHMETIC | L24: -10 | M24: 10 | N24: 1.620622872 | O24: 1.620615637 | P24: -10 | Q24: 10 | R24: 1.620622872 | S24: 1.620615637 | T24: 0.61031 | U24: 0.3765914547
A25: B0 | B25: population processes | C25: recruitment | D25: historical recruitment period | E25: param_init_bounded_vector | F25: pDevsLnR[1] | G25: 18 | H25: 1 | I25: 1 | J25: 26 | K25: ARITHMETIC | L25: -10 | M25: 10 | N25: 1.377000437 | O25: 1.376995545 | P25: -10 | Q25: 10 | R25: 1.377000437 | S25: 1.376995545 | T25: 0.61736 | U25: 0.448338415
A26: B0 | B26: population processes | C26: recruitment | D26: historical recruitment period | E26: param_init_bounded_vector | F26: pDevsLnR[1] | G26: 19 | H26: 1 | I26: 1 | J26: 26 | K26: ARITHMETIC | L26: -10 | M26: 10 | N26: 1.227621671 | O26: 1.2276177 | P26: -10 | Q26: 10 | R26: 1.227621671 | S26: 1.2276177 | T26: 0.60795 | U26: 0.4952274639
A27: B0 | B27: population processes | C27: recruitment | D27: historical recruitment period | E27: param_init_bounded_vector | F27: pDevsLnR[1] | G27: 20 | H27: 1 | I27: 1 | J27: 26 | K27: ARITHMETIC | L27: -10 | M27: 10 | N27: 1.220558452 | O27: 1.220555428 | P27: -10 | Q27: 10 | R27: 1.220558452 | S27: 1.220555428 | T27: 0.58679 | U27: 0.4807565364
A28: B0 | B28: population processes | C28: recruitment | D28: historical recruitment period | E28: param_init_bounded_vector | F28: pDevsLnR[1] | G28: 21 | H28: 1 | I28: 1 | J28: 26 | K28: ARITHMETIC | L28: -10 | M28: 10 | N28: 1.299541009 | O28: 1.299539019 | P28: -10 | Q28: 10 | R28: 1.299541009 | S28: 1.299539019 | T28: 0.56812 | U28: 0.4371704057
A29: B0 | B29: population processes | C29: recruitment | D29: historical recruitment period | E29: param_init_bounded_vector | F29: pDevsLnR[1] | G29: 22 | H29: 1 | I29: 1 | J29: 26 | K29: ARITHMETIC | L29: -10 | M29: 10 | N29: 1.26862883 | O29: 1.268635834 | P29: -10 | Q29: 10 | R29: 1.26862883 | S29: 1.268635834 | T29: 0.53857 | U29: 0.42452687
A30: B0 | B30: population processes | C30: recruitment | D30: historical recruitment period | E30: param_init_bounded_vector | F30: pDevsLnR[1] | G30: 23 | H30: 1 | I30: 1 | J30: 26 | K30: ARITHMETIC | L30: -10 | M30: 10 | N30: 1.105098556 | O30: 1.10510435 | P30: -10 | Q30: 10 | R30: 1.105098556 | S30: 1.10510435 | T30: 0.48227 | U30: 0.4364022275
A31: B0 | B31: population processes | C31: recruitment | D31: historical recruitment period | E31: param_init_bounded_vector | F31: pDevsLnR[1] | G31: 24 | H31: 1 | I31: 1 | J31: 26 | K31: ARITHMETIC | L31: -10 | M31: 10 | N31: 0.695499189 | O31: 0.6955087783 | P31: -10 | Q31: 10 | R31: 0.695499189 | S31: 0.6955087783 | T31: 0.48386 | U31: 0.6956921539
A32: B0 | B32: population processes | C32: recruitment | D32: historical recruitment period | E32: param_init_bounded_vector | F32: pDevsLnR[1] | G32: 25 | H32: 1 | I32: 1 | J32: 26 | K32: ARITHMETIC | L32: -10 | M32: 10 | N32: 0.2716685561 | O32: 0.2716924117 | P32: -10 | Q32: 10 | R32: 0.2716685561 | S32: 0.2716924117 | T32: 0.49816 | U32: 1.833544032
A33: B0 | B33: population processes | C33: recruitment | D33: historical recruitment period | E33: param_init_bounded_vector | F33: pDevsLnR[1] | G33: 26 | H33: 1 | I33: 1 | J33: 26 | K33: ARITHMETIC | L33: -10 | M33: 10 | N33: 0.1091822438 | O33: 0.1092198825 | P33: -10 | Q33: 10 | R33: 0.1091822438 | S33: 0.1092198825 | T33: 0.44669 | U33: 4.089823116
A34: B0 | B34: population processes | C34: recruitment | D34: current recruitment period | E34: param_init_bounded_vector | F34: pDevsLnR[2] | G34: 1 | H34: 1 | I34: 1 | J34: 43 | K34: ARITHMETIC | L34: -10 | M34: 10 | N34: 1.334035207 | O34: 1.334027953 | P34: -10 | Q34: 10 | R34: 1.334035207 | S34: 1.334027953 | T34: 0.21838 | U34: 0.1636997182
A35: B0 | B35: population processes | C35: recruitment | D35: current recruitment period | E35: param_init_bounded_vector | F35: pDevsLnR[2] | G35: 2 | H35: 1 | I35: 1 | J35: 43 | K35: ARITHMETIC | L35: -10 | M35: 10 | N35: 2.00728031 | O35: 2.007291918 | P35: -10 | Q35: 10 | R35: 2.00728031 | S35: 2.007291918 | T35: 0.14206 | U35: 0.0707719683
A36: B0 | B36: population processes | C36: recruitment | D36: current recruitment period | E36: param_init_bounded_vector | F36: pDevsLnR[2] | G36: 3 | H36: 1 | I36: 1 | J36: 43 | K36: ARITHMETIC | L36: -10 | M36: 10 | N36: 1.74907324 | O36: 1.749064469 | P36: -10 | Q36: 10 | R36: 1.74907324 | S36: 1.749064469 | T36: 0.1565 | U36: 0.08947640453
A37: B0 | B37: population processes | C37: recruitment | D37: current recruitment period | E37: param_init_bounded_vector | F37: pDevsLnR[2] | G37: 4 | H37: 1 | I37: 1 | J37: 43 | K37: ARITHMETIC | L37: -10 | M37: 10 | N37: 0.9266054634 | O37: 0.926597114 | P37: -10 | Q37: 10 | R37: 0.9266054634 | S37: 0.926597114 | T37: 0.2569 | U37: 0.2772510254
A38: B0 | B38: population processes | C38: recruitment | D38: current recruitment period | E38: param_init_bounded_vector | F38: pDevsLnR[2] | G38: 5 | H38: 1 | I38: 1 | J38: 43 | K38: ARITHMETIC | L38: -10 | M38: 10 | N38: 0.06410893452 | O38: 0.06409125485 | P38: -10 | Q38: 10 | R38: 0.06410893452 | S38: 0.06409125485 | T38: 0.39806 | U38: 6.210831741
A39: B0 | B39: population processes | C39: recruitment | D39: current recruitment period | E39: param_init_bounded_vector | F39: pDevsLnR[2] | G39: 6 | H39: 1 | I39: 1 | J39: 43 | K39: ARITHMETIC | L39: -10 | M39: 10 | N39: -0.4259093486 | O39: -0.4259391467 | P39: -10 | Q39: 10 | R39: -0.4259093486 | S39: -0.4259391467 | T39: 0.47944 | U39: 1.1256068
A40: B0 | B40: population processes | C40: recruitment | D40: current recruitment period | E40: param_init_bounded_vector | F40: pDevsLnR[2] | G40: 7 | H40: 1 | I40: 1 | J40: 43 | K40: ARITHMETIC | L40: -10 | M40: 10 | N40: 0.06570143043 | O40: 0.06569395132 | P40: -10 | Q40: 10 | R40: 0.06570143043 | S40: 0.06569395132 | T40: 0.25122 | U40: 3.824096358
A41: B0 | B41: population processes | C41: recruitment | D41: current recruitment period | E41: param_init_bounded_vector | F41: pDevsLnR[2] | G41: 8 | H41: 1 | I41: 1 | J41: 43 | K41: ARITHMETIC | L41: -10 | M41: 10 | N41: -0.5037444179 | O41: -0.5037502536 | P41: -10 | Q41: 10 | R41: -0.5037444179 | S41: -0.5037502536 | T41: 0.33574 | U41: 0.6664810541
A42: B0 | B42: population processes | C42: recruitment | D42: current recruitment period | E42: param_init_bounded_vector | F42: pDevsLnR[2] | G42: 9 | H42: 1 | I42: 1 | J42: 43 | K42: ARITHMETIC | L42: -10 | M42: 10 | N42: 1.076674678 | O42: 1.07667815 | P42: -10 | Q42: 10 | R42: 1.076674678 | S42: 1.07667815 | T42: 0.10875 | U42: 0.1010051146
A43: B0 | B43: population processes | C43: recruitment | D43: current recruitment period | E43: param_init_bounded_vector | F43: pDevsLnR[2] | G43: 10 | H43: 1 | I43: 1 | J43: 43 | K43: ARITHMETIC | L43: -10 | M43: 10 | N43: 0.8826046463 | O43: 0.8826088625 | P43: -10 | Q43: 10 | R43: 0.8826046463 | S43: 0.8826088625 | T43: 0.14299 | U43: 0.1620083438
A44: B0 | B44: population processes | C44: recruitment | D44: current recruitment period | E44: param_init_bounded_vector | F44: pDevsLnR[2] | G44: 11 | H44: 1 | I44: 1 | J44: 43 | K44: ARITHMETIC | L44: -10 | M44: 10 | N44: 1.179582289 | O44: 1.179593137 | P44: -10 | Q44: 10 | R44: 1.179582289 | S44: 1.179593137 | T44: 0.13054 | U44: 0.1106652759
A45: B0 | B45: population processes | C45: recruitment | D45: current recruitment period | E45: param_init_bounded_vector | F45: pDevsLnR[2] | G45: 12 | H45: 1 | I45: 1 | J45: 43 | K45: ARITHMETIC | L45: -10 | M45: 10 | N45: 1.145044096 | O45: 1.145047313 | P45: -10 | Q45: 10 | R45: 1.145044096 | S45: 1.145047313 | T45: 0.13535 | U45: 0.1182047226
A46: B0 | B46: population processes | C46: recruitment | D46: current recruitment period | E46: param_init_bounded_vector | F46: pDevsLnR[2] | G46: 13 | H46: 1 | I46: 1 | J46: 43 | K46: ARITHMETIC | L46: -10 | M46: 10 | N46: 1.137258297 | O46: 1.137267474 | P46: -10 | Q46: 10 | R46: 1.137258297 | S46: 1.137267474 | T46: 0.13121 | U46: 0.1153730349
A47: B0 | B47: population processes | C47: recruitment | D47: current recruitment period | E47: param_init_bounded_vector | F47: pDevsLnR[2] | G47: 14 | H47: 1 | I47: 1 | J47: 43 | K47: ARITHMETIC | L47: -10 | M47: 10 | N47: 0.7577281727 | O47: 0.7577432033 | P47: -10 | Q47: 10 | R47: 0.7577281727 | S47: 0.7577432033 | T47: 0.15468 | U47: 0.2041324809
A48: B0 | B48: population processes | C48: recruitment | D48: current recruitment period | E48: param_init_bounded_vector | F48: pDevsLnR[2] | G48: 15 | H48: 1 | I48: 1 | J48: 43 | K48: ARITHMETIC | L48: -10 | M48: 10 | N48: 0.02501315251 | O48: 0.0250161845 | P48: -10 | Q48: 10 | R48: 0.02501315251 | S48: 0.0250161845 | T48: 0.18592 | U48: 7.431988679
A49: B0 | B49: population processes | C49: recruitment | D49: current recruitment period | E49: param_init_bounded_vector | F49: pDevsLnR[2] | G49: 16 | H49: 1 | I49: 1 | J49: 43 | K49: ARITHMETIC | L49: -10 | M49: 10 | N49: -1.158156447 | O49: -1.158151169 | P49: -10 | Q49: 10 | R49: -1.158156447 | S49: -1.158151169 | T49: 0.38182 | U49: 0.3296806238
A50: B0 | B50: population processes | C50: recruitment | D50: current recruitment period | E50: param_init_bounded_vector | F50: pDevsLnR[2] | G50: 17 | H50: 1 | I50: 1 | J50: 43 | K50: ARITHMETIC | L50: -10 | M50: 10 | N50: -1.382540157 | O50: -1.382534943 | P50: -10 | Q50: 10 | R50: -1.382540157 | S50: -1.382534943 | T50: 0.33292 | U50: 0.2408040402
A51: B0 | B51: population processes | C51: recruitment | D51: current recruitment period | E51: param_init_bounded_vector | F51: pDevsLnR[2] | G51: 18 | H51: 1 | I51: 1 | J51: 43 | K51: ARITHMETIC | L51: -10 | M51: 10 | N51: -1.504433948 | O51: -1.50442986 | P51: -10 | Q51: 10 | R51: -1.504433948 | S51: -1.50442986 | T51: 0.29398 | U51: 0.1954095753
A52: B0 | B52: population processes | C52: recruitment | D52: current recruitment period | E52: param_init_bounded_vector | F52: pDevsLnR[2] | G52: 19 | H52: 1 | I52: 1 | J52: 43 | K52: ARITHMETIC | L52: -10 | M52: 10 | N52: -1.502305493 | O52: -1.502307357 | P52: -10 | Q52: 10 | R52: -1.502305493 | S52: -1.502307357 | T52: 0.27314 | U52: 0.1818136607
A53: B0 | B53: population processes | C53: recruitment | D53: current recruitment period | E53: param_init_bounded_vector | F53: pDevsLnR[2] | G53: 20 | H53: 1 | I53: 1 | J53: 43 | K53: ARITHMETIC | L53: -10 | M53: 10 | N53: -1.226887792 | O53: -1.226889297 | P53: -10 | Q53: 10 | R53: -1.226887792 | S53: -1.226889297 | T53: 0.22293 | U53: 0.1817034353
A54: B0 | B54: population processes | C54: recruitment | D54: current recruitment period | E54: param_init_bounded_vector | F54: pDevsLnR[2] | G54: 21 | H54: 1 | I54: 1 | J54: 43 | K54: ARITHMETIC | L54: -10 | M54: 10 | N54: -0.9794753936 | O54: -0.9794772694 | P54: -10 | Q54: 10 | R54: -0.9794753936 | S54: -0.9794772694 | T54: 0.19222 | U54: 0.1962475353
A55: B0 | B55: population processes | C55: recruitment | D55: current recruitment period | E55: param_init_bounded_vector | F55: pDevsLnR[2] | G55: 22 | H55: 1 | I55: 1 | J55: 43 | K55: ARITHMETIC | L55: -10 | M55: 10 | N55: -1.063045322 | O55: -1.063046877 | P55: -10 | Q55: 10 | R55: -1.063045322 | S55: -1.063046877 | T55: 0.22326 | U55: 0.2100189605
A56: B0 | B56: population processes | C56: recruitment | D56: current recruitment period | E56: param_init_bounded_vector | F56: pDevsLnR[2] | G56: 23 | H56: 1 | I56: 1 | J56: 43 | K56: ARITHMETIC | L56: -10 | M56: 10 | N56: 0.005583909998 | O56: 0.005586912292 | P56: -10 | Q56: 10 | R56: 0.005583909998 | S56: 0.005586912292 | T56: 0.10706 | U56: 19.16264197
A57: B0 | B57: population processes | C57: recruitment | D57: current recruitment period | E57: param_init_bounded_vector | F57: pDevsLnR[2] | G57: 24 | H57: 1 | I57: 1 | J57: 43 | K57: ARITHMETIC | L57: -10 | M57: 10 | N57: -0.9092672891 | O57: -0.909267503 | P57: -10 | Q57: 10 | R57: -0.9092672891 | S57: -0.909267503 | T57: 0.20131 | U57: 0.2213979927
A58: B0 | B58: population processes | C58: recruitment | D58: current recruitment period | E58: param_init_bounded_vector | F58: pDevsLnR[2] | G58: 25 | H58: 1 | I58: 1 | J58: 43 | K58: ARITHMETIC | L58: -10 | M58: 10 | N58: 0.2987115377 | O58: 0.2987120133 | P58: -10 | Q58: 10 | R58: 0.2987115377 | S58: 0.2987120133 | T58: 0.1059 | U58: 0.3545220657
A59: B0 | B59: population processes | C59: recruitment | D59: current recruitment period | E59: param_init_bounded_vector | F59: pDevsLnR[2] | G59: 26 | H59: 1 | I59: 1 | J59: 43 | K59: ARITHMETIC | L59: -10 | M59: 10 | N59: -0.3537110298 | O59: -0.3537132813 | P59: -10 | Q59: 10 | R59: -0.3537110298 | S59: -0.3537132813 | T59: 0.20065 | U59: 0.5672673621
A60: B0 | B60: population processes | C60: recruitment | D60: current recruitment period | E60: param_init_bounded_vector | F60: pDevsLnR[2] | G60: 27 | H60: 1 | I60: 1 | J60: 43 | K60: ARITHMETIC | L60: -10 | M60: 10 | N60: 0.8306043695 | O60: 0.8306070836 | P60: -10 | Q60: 10 | R60: 0.8306043695 | S60: 0.8306070836 | T60: 0.096678 | U60: 0.1163943842
A61: B0 | B61: population processes | C61: recruitment | D61: current recruitment period | E61: param_init_bounded_vector | F61: pDevsLnR[2] | G61: 28 | H61: 1 | I61: 1 | J61: 43 | K61: ARITHMETIC | L61: -10 | M61: 10 | N61: -0.3031599782 | O61: -0.3031592743 | P61: -10 | Q61: 10 | R61: -0.3031599782 | S61: -0.3031592743 | T61: 0.23672 | U61: 0.7808436688
A62: B0 | B62: population processes | C62: recruitment | D62: current recruitment period | E62: param_init_bounded_vector | F62: pDevsLnR[2] | G62: 29 | H62: 1 | I62: 1 | J62: 43 | K62: ARITHMETIC | L62: -10 | M62: 10 | N62: 0.7959951039 | O62: 0.7959938552 | P62: -10 | Q62: 10 | R62: 0.7959951039 | S62: 0.7959938552 | T62: 0.11266 | U62: 0.1415337559
A63: B0 | B63: population processes | C63: recruitment | D63: current recruitment period | E63: param_init_bounded_vector | F63: pDevsLnR[2] | G63: 30 | H63: 1 | I63: 1 | J63: 43 | K63: ARITHMETIC | L63: -10 | M63: 10 | N63: 0.7699586826 | O63: 0.7699650843 | P63: -10 | Q63: 10 | R63: 0.7699586826 | S63: 0.7699650843 | T63: 0.10833 | U63: 0.1406946915
A64: B0 | B64: population processes | C64: recruitment | D64: current recruitment period | E64: param_init_bounded_vector | F64: pDevsLnR[2] | G64: 31 | H64: 1 | I64: 1 | J64: 43 | K64: ARITHMETIC | L64: -10 | M64: 10 | N64: -0.5326224017 | O64: -0.5326262315 | P64: -10 | Q64: 10 | R64: -0.5326224017 | S64: -0.5326262315 | T64: 0.24515 | U64: 0.4602664786
A65: B0 | B65: population processes | C65: recruitment | D65: current recruitment period | E65: param_init_bounded_vector | F65: pDevsLnR[2] | G65: 32 | H65: 1 | I65: 1 | J65: 43 | K65: ARITHMETIC | L65: -10 | M65: 10 | N65: -0.7985534896 | O65: -0.7985501176 | P65: -10 | Q65: 10 | R65: -0.7985534896 | S65: -0.7985501176 | T65: 0.27171 | U65: 0.3402541607
A66: B0 | B66: population processes | C66: recruitment | D66: current recruitment period | E66: param_init_bounded_vector | F66: pDevsLnR[2] | G66: 33 | H66: 1 | I66: 1 | J66: 43 | K66: ARITHMETIC | L66: -10 | M66: 10 | N66: -1.056372513 | O66: -1.056372509 | P66: -10 | Q66: 10 | R66: -1.056372513 | S66: -1.056372509 | T66: 0.31611 | U66: 0.2992410322
A67: B0 | B67: population processes | C67: recruitment | D67: current recruitment period | E67: param_init_bounded_vector | F67: pDevsLnR[2] | G67: 34 | H67: 1 | I67: 1 | J67: 43 | K67: ARITHMETIC | L67: -10 | M67: 10 | N67: -0.6250290295 | O67: -0.6250380174 | P67: -10 | Q67: 10 | R67: -0.6250290295 | S67: -0.6250380174 | T67: 0.26323 | U67: =IF(ISNUMBER(T67),ABS(T67/S67),"--") -> 0.4211423828
A68: B0 | B68: population processes | C68: recruitment | D68: current recruitment period | E68: param_init_bounded_vector | F68: pDevsLnR[2] | G68: 35 | H68: 1 | I68: 1 | J68: 43 | K68: ARITHMETIC | L68: -10 | M68: 10 | N68: 1.249304035 | O68: 1.249302067 | P68: -10 | Q68: 10 | R68: 1.249304035 | S68: 1.249302067 | T68: 0.10139 | U68: 0.08115731391
A69: B0 | B69: population processes | C69: recruitment | D69: current recruitment period | E69: param_init_bounded_vector | F69: pDevsLnR[2] | G69: 36 | H69: 1 | I69: 1 | J69: 43 | K69: ARITHMETIC | L69: -10 | M69: 10 | N69: 1.127759721 | O69: 1.127765062 | P69: -10 | Q69: 10 | R69: 1.127759721 | S69: 1.127765062 | T69: 0.10845 | U69: 0.09616364579
A70: B0 | B70: population processes | C70: recruitment | D70: current recruitment period | E70: param_init_bounded_vector | F70: pDevsLnR[2] | G70: 37 | H70: 1 | I70: 1 | J70: 43 | K70: ARITHMETIC | L70: -10 | M70: 10 | N70: 0.2336462767 | O70: 0.2336523024 | P70: -10 | Q70: 10 | R70: 0.2336462767 | S70: 0.2336523024 | T70: 0.17774 | U70: 0.7607029683
A71: B0 | B71: population processes | C71: recruitment | D71: current recruitment period | E71: param_init_bounded_vector | F71: pDevsLnR[2] | G71: 38 | H71: 1 | I71: 1 | J71: 43 | K71: ARITHMETIC | L71: -10 | M71: 10 | N71: -1.402503985 | O71: -1.402509009 | P71: -10 | Q71: 10 | R71: -1.402503985 | S71: -1.402509009 | T71: 0.47121 | U71: 0.3359764515
A72: B0 | B72: population processes | C72: recruitment | D72: current recruitment period | E72: param_init_bounded_vector | F72: pDevsLnR[2] | G72: 39 | H72: 1 | I72: 1 | J72: 43 | K72: ARITHMETIC | L72: -10 | M72: 10 | N72: -0.3939552945 | O72: -0.3939525931 | P72: -10 | Q72: 10 | R72: -0.3939552945 | S72: -0.3939525931 | T72: 0.18624 | U72: 0.4727472373
A73: B0 | B73: population processes | C73: recruitment | D73: current recruitment period | E73: param_init_bounded_vector | F73: pDevsLnR[2] | G73: 40 | H73: 1 | I73: 1 | J73: 43 | K73: ARITHMETIC | L73: -10 | M73: 10 | N73: -0.6826521026 | O73: -0.6826487347 | P73: -10 | Q73: 10 | R73: -0.6826521026 | S73: -0.6826487347 | T73: 0.21243 | U73: 0.3111849319
A74: B0 | B74: population processes | C74: recruitment | D74: current recruitment period | E74: param_init_bounded_vector | F74: pDevsLnR[2] | G74: 41 | H74: 1 | I74: 1 | J74: 43 | K74: ARITHMETIC | L74: -10 | M74: 10 | N74: -1.104832025 | O74: -1.104830813 | P74: -10 | Q74: 10 | R74: -1.104832025 | S74: -1.104830813 | T74: 0.27584 | U74: 0.249667186
A75: B0 | B75: population processes | C75: recruitment | D75: current recruitment period | E75: param_init_bounded_vector | F75: pDevsLnR[2] | G75: 42 | H75: 1 | I75: 1 | J75: 43 | K75: ARITHMETIC | L75: -10 | M75: 10 | N75: -0.7646292104 | O75: -0.7646265026 | P75: -10 | Q75: 10 | R75: -0.7646292104 | S75: -0.7646265026 | T75: 0.24794 | U75: 0.3242628906
A76: B0 | B76: population processes | C76: recruitment | D76: current recruitment period | E76: param_init_bounded_vector | F76: pDevsLnR[2] | G76: 43 | H76: 1 | I76: 1 | J76: 43 | K76: ARITHMETIC | L76: -10 | M76: 10 | N76: 1.011513114 | O76: 1.011515393 | P76: -10 | Q76: 10 | R76: 1.011513114 | S76: 1.011515393 | T76: 0.1701 | U76: 0.1681635308
A77: B0 | B77: population processes | C77: natural mortality | D77: base ln-scale M | E77: param_init_bounded_number | F77: pM[1] | G77: 1 | H77: -1 | I77: 1 | J77: 1 | K77: LOG | L77: 0.135335283 | M77: 2.718281828 | N77: 0.2299999931 | O77: 0.2299999931 | P77: -2.000000002 | Q77: 0.9999999998 | R77: -1.469676 | S77: -1.469676 | T77: NA | U77: --
A78: B0 | B78: population processes | C78: natural mortality | D78: multiplier for immature crab | E78: param_init_bounded_number | F78: pDM1[1] | G78: 1 | H78: 4 | I78: 1 | J78: 1 | K78: ARITHMETIC | L78: 0.2 | M78: 2 | N78: 1.000387249 | O78: 1.000390497 | P78: 0.2 | Q78: 2 | R78: 1.000387249 | S78: 1.000390497 | T78: 0.050646 | U78: 0.05062623061
A79: B0 | B79: population processes | C79: natural mortality | D79: multiplier for mature males | E79: param_init_bounded_number | F79: pDM1[2] | G79: 1 | H79: 4 | I79: 1 | J79: 1 | K79: ARITHMETIC | L79: 0.1 | M79: 1.9 | N79: 1.149809751 | O79: 1.149796978 | P79: 0.1 | Q79: 1.9 | R79: 1.149809751 | S79: 1.149796978 | T79: 0.039957 | U79: 0.03475135242
A80: B0 | B80: population processes | C80: natural mortality | D80: multiplier for mature females | E80: param_init_bounded_number | F80: pDM1[3] | G80: 1 | H80: 4 | I80: 1 | J80: 1 | K80: ARITHMETIC | L80: 0.1 | M80: 1.9 | N80: 1.374017482 | O80: 1.374020001 | P80: 0.1 | Q80: 1.9 | R80: 1.374017482 | S80: 1.374020001 | T80: 0.035723 | U80: 0.02599889374
A81: B0 | B81: population processes | C81: natural mortality | D81: 1980-1984 multiplier for mature males | E81: param_init_bounded_number | F81: pDM2[1] | G81: 1 | H81: 4 | I81: 1 | J81: 1 | K81: ARITHMETIC | L81: 0.1 | M81: 10 | N81: 2.601263309 | O81: 2.601202928 | P81: 0.1 | Q81: 10 | R81: 2.601263309 | S81: 2.601202928 | T81: 0.24313 | U81: 0.09346829399
A82: B0 | B82: population processes | C82: natural mortality | D82: 1980-1984 multiplier for mature females | E82: param_init_bounded_number | F82: pDM2[2] | G82: 1 | H82: 4 | I82: 1 | J82: 1 | K82: ARITHMETIC | L82: 0.1 | M82: 10 | N82: 1.323121394 | O82: 1.323116185 | P82: 0.1 | Q82: 10 | R82: 1.323121394 | S82: 1.323116185 | T82: 0.10091 | U82: 0.07626692286
A83: B0 | B83: population processes | C83: growth | D83: males | E83: param_init_bounded_number | F83: pGrA[1] | G83: 1 | H83: 4 | I83: 1 | J83: 1 | K83: ARITHMETIC | L83: 25 | M83: 40 | N83: 33.13629467 | O83: 33.13630255 | P83: 25 | Q83: 40 | R83: 33.13629467 | S83: 33.13630255 | T83: 0.36029 | U83: 0.01087296929
A84: B0 | B84: population processes | C84: growth | D84: females | E84: param_init_bounded_number | F84: pGrA[2] | G84: 1 | H84: 4 | I84: 1 | J84: 1 | K84: ARITHMETIC | L84: 25 | M84: 40 | N84: 34.42406591 | O84: 34.42408317 | P84: 25 | Q84: 40 | R84: 34.42406591 | S84: 34.42408317 | T84: 0.43527 | U84: 0.01264434547
A85: B0 | B85: population processes | C85: growth | D85: males | E85: param_init_bounded_number | F85: pGrB[1] | G85: 1 | H85: 4 | I85: 1 | J85: 1 | K85: ARITHMETIC | L85: 130 | M85: 180 | N85: 166.7849142 | O85: 166.7852272 | P85: 130 | Q85: 180 | R85: 166.7849142 | S85: 166.7852272 | T85: 1.1232 | U85: 0.006734409389
A86: B0 | B86: population processes | C86: growth | D86: females | E86: param_init_bounded_number | F86: pGrB[2] | G86: 1 | H86: 4 | I86: 1 | J86: 1 | K86: ARITHMETIC | L86: 110 | M86: 150 | N86: 115.1411304 | O86: 115.1411022 | P86: 110 | Q86: 150 | R86: 115.1411304 | S86: 115.1411022 | T86: 0.85318 | U86: 0.007409864797
A87: B0 | B87: population processes | C87: growth | D87: both sexes | E87: param_init_bounded_number | F87: pGrBeta[1] | G87: 1 | H87: 5 | I87: 1 | J87: 1 | K87: ARITHMETIC | L87: 0.5 | M87: 1 | N87: 0.8198340596 | O87: 0.8198585641 | P87: 0.5 | Q87: 1 | R87: 0.8198340596 | S87: 0.8198585641 | T87: 0.12915 | U87: 0.1575271707
A88: B0 | B88: population processes | C88: maturity | D88: males (entire model period) | E88: param_init_bounded_vector | F88: pLgtPrM2M[1] | G88: 1 | H88: 4 | I88: 1 | J88: 32 | K88: ARITHMETIC | L88: -15 | M88: 15 | N88: -12.08652272 | O88: -12.08656763 | P88: -15 | Q88: 15 | R88: -12.08652272 | S88: -12.08656763 | T88: 7.4406 | U88: 0.6156090155
A89: B0 | B89: population processes | C89: maturity | D89: males (entire model period) | E89: param_init_bounded_vector | F89: pLgtPrM2M[1] | G89: 2 | H89: 4 | I89: 1 | J89: 32 | K89: ARITHMETIC | L89: -15 | M89: 15 | N89: -10.89173883 | O89: -10.89178009 | P89: -15 | Q89: 15 | R89: -10.89173883 | S89: -10.89178009 | T89: 5.6122 | U89: 0.5152693092
A90: B0 | B90: population processes | C90: maturity | D90: males (entire model period) | E90: param_init_bounded_vector | F90: pLgtPrM2M[1] | G90: 3 | H90: 4 | I90: 1 | J90: 32 | K90: ARITHMETIC | L90: -15 | M90: 15 | N90: -9.696955499 | O90: -9.696992938 | P90: -15 | Q90: 15 | R90: -9.696955499 | S90: -9.696992938 | T90: 4.0135 | U90: 0.4138911955
A91: B0 | B91: population processes | C91: maturity | D91: males (entire model period) | E91: param_init_bounded_vector | F91: pLgtPrM2M[1] | G91: 4 | H91: 4 | I91: 1 | J91: 32 | K91: ARITHMETIC | L91: -15 | M91: 15 | N91: -8.503158845 | O91: -8.503192531 | P91: -15 | Q91: 15 | R91: -8.503158845 | S91: -8.503192531 | T91: 2.678 | U91: 0.3149405344
A92: B0 | B92: population processes | C92: maturity | D92: males (entire model period) | E92: param_init_bounded_vector | F92: pLgtPrM2M[1] | G92: 5 | H92: 4 | I92: 1 | J92: 32 | K92: ARITHMETIC | L92: -15 | M92: 15 | N92: -7.320528973 | O92: -7.320558891 | P92: -15 | Q92: 15 | R92: -7.320528973 | S92: -7.320558891 | T92: 1.6241 | U92: 0.2218546458
A93: B0 | B93: population processes | C93: maturity | D93: males (entire model period) | E93: param_init_bounded_vector | F93: pLgtPrM2M[1] | G93: 6 | H93: 4 | I93: 1 | J93: 32 | K93: ARITHMETIC | L93: -15 | M93: 15 | N93: -6.162290961 | O93: -6.16231724 | P93: -15 | Q93: 15 | R93: -6.162290961 | S93: -6.16231724 | T93: 0.90908 | U93: 0.1475224278
A94: B0 | B94: population processes | C94: maturity | D94: males (entire model period) | E94: param_init_bounded_vector | F94: pLgtPrM2M[1] | G94: 7 | H94: 4 | I94: 1 | J94: 32 | K94: ARITHMETIC | L94: -15 | M94: 15 | N94: -5.104222285 | O94: -5.10424414 | P94: -15 | Q94: 15 | R94: -5.104222285 | S94: -5.10424414 | T94: 0.54113 | U94: 0.106015697
A95: B0 | B95: population processes | C95: maturity | D95: males (entire model period) | E95: param_init_bounded_vector | F95: pLgtPrM2M[1] | G95: 8 | H95: 4 | I95: 1 | J95: 32 | K95: ARITHMETIC | L95: -15 | M95: 15 | N95: -4.477289188 | O95: -4.477305155 | P95: -15 | Q95: 15 | R95: -4.477289188 | S95: -4.477305155 | T95: 0.3642 | U95: 0.08134357329
A96: B0 | B96: population processes | C96: maturity | D96: males (entire model period) | E96: param_init_bounded_vector | F96: pLgtPrM2M[1] | G96: 9 | H96: 4 | I96: 1 | J96: 32 | K96: ARITHMETIC | L96: -15 | M96: 15 | N96: -4.089613046 | O96: -4.08962775 | P96: -15 | Q96: 15 | R96: -4.089613046 | S96: -4.08962775 | T96: 0.29024 | U96: 0.07096978447
A97: B0 | B97: population processes | C97: maturity | D97: males (entire model period) | E97: param_init_bounded_vector | F97: pLgtPrM2M[1] | G97: 10 | H97: 4 | I97: 1 | J97: 32 | K97: ARITHMETIC | L97: -15 | M97: 15 | N97: -3.448281763 | O97: -3.448299308 | P97: -15 | Q97: 15 | R97: -3.448281763 | S97: -3.448299308 | T97: 0.22394 | U97: 0.06494215843
A98: B0 | B98: population processes | C98: maturity | D98: males (entire model period) | E98: param_init_bounded_vector | F98: pLgtPrM2M[1] | G98: 11 | H98: 4 | I98: 1 | J98: 32 | K98: ARITHMETIC | L98: -15 | M98: 15 | N98: -2.91340656 | O98: -2.913423556 | P98: -15 | Q98: 15 | R98: -2.91340656 | S98: -2.913423556 | T98: 0.17497 | U98: 0.06005649252
A99: B0 | B99: population processes | C99: maturity | D99: males (entire model period) | E99: param_init_bounded_vector | F99: pLgtPrM2M[1] | G99: 12 | H99: 4 | I99: 1 | J99: 32 | K99: ARITHMETIC | L99: -15 | M99: 15 | N99: -2.487324661 | O99: -2.48733516 | P99: -15 | Q99: 15 | R99: -2.487324661 | S99: -2.48733516 | T99: 0.14394 | U99: 0.05786916148
A100: B0 | B100: population processes | C100: maturity | D100: males (entire model period) | E100: param_init_bounded_vector | F100: pLgtPrM2M[1] | G100: 13 | H100: 4 | I100: 1 | J100: 32 | K100: ARITHMETIC | L100: -15 | M100: 15 | N100: -2.020776397 | O100: -2.020784521 | P100: -15 | Q100: 15 | R100: -2.020776397 | S100: -2.020784521 | T100: 0.12474 | U100: 0.06172850132
A101: B0 | B101: population processes | C101: maturity | D101: males (entire model period) | E101: param_init_bounded_vector | F101: pLgtPrM2M[1] | G101: 14 | H101: 4 | I101: 1 | J101: 32 | K101: ARITHMETIC | L101: -15 | M101: 15 | N101: -1.43010365 | O101: -1.430112614 | P101: -15 | Q101: 15 | R101: -1.43010365 | S101: -1.430112614 | T101: 0.10925 | U101: 0.07639258539
A102: B0 | B102: population processes | C102: maturity | D102: males (entire model period) | E102: param_init_bounded_vector | F102: pLgtPrM2M[1] | G102: 15 | H102: 4 | I102: 1 | J102: 32 | K102: ARITHMETIC | L102: -15 | M102: 15 | N102: -0.9369741592 | O102: -0.9369876154 | P102: -15 | Q102: 15 | R102: -0.9369741592 | S102: -0.9369876154 | T102: 0.095419 | U102: 0.1018359244
A103: B0 | B103: population processes | C103: maturity | D103: males (entire model period) | E103: param_init_bounded_vector | F103: pLgtPrM2M[1] | G103: 16 | H103: 4 | I103: 1 | J103: 32 | K103: ARITHMETIC | L103: -15 | M103: 15 | N103: -0.6678839123 | O103: -0.667894102 | P103: -15 | Q103: 15 | R103: -0.6678839123 | S103: -0.667894102 | T103: 0.092157 | U103: 0.137981455
A104: B0 | B104: population processes | C104: maturity | D104: males (entire model period) | E104: param_init_bounded_vector | F104: pLgtPrM2M[1] | G104: 17 | H104: 4 | I104: 1 | J104: 32 | K104: ARITHMETIC | L104: -15 | M104: 15 | N104: -0.536306845 | O104: -0.5362994059 | P104: -15 | Q104: 15 | R104: -0.536306845 | S104: -0.5362994059 | T104: 0.088752 | U104: 0.1654896482
A105: B0 | B105: population processes | C105: maturity | D105: males (entire model period) | E105: param_init_bounded_vector | F105: pLgtPrM2M[1] | G105: 18 | H105: 4 | I105: 1 | J105: 32 | K105: ARITHMETIC | L105: -15 | M105: 15 | N105: -0.09285446921 | O105: -0.09283489724 | P105: -15 | Q105: 15 | R105: -0.09285446921 | S105: -0.09283489724 | T105: 0.10016 | U105: 1.078904625
A106: B0 | B106: population processes | C106: maturity | D106: males (entire model period) | E106: param_init_bounded_vector | F106: pLgtPrM2M[1] | G106: 19 | H106: 4 | I106: 1 | J106: 32 | K106: ARITHMETIC | L106: -15 | M106: 15 | N106: 0.5123215523 | O106: 0.5123513023 | P106: -15 | Q106: 15 | R106: 0.5123215523 | S106: 0.5123513023 | T106: 0.13013 | U106: 0.2539858871
A107: B0 | B107: population processes | C107: maturity | D107: males (entire model period) | E107: param_init_bounded_vector | F107: pLgtPrM2M[1] | G107: 20 | H107: 4 | I107: 1 | J107: 32 | K107: ARITHMETIC | L107: -15 | M107: 15 | N107: 1.361867982 | O107: 1.361919889 | P107: -15 | Q107: 15 | R107: 1.361867982 | S107: 1.361919889 | T107: 0.20154 | U107: 0.1479822724
A108: B0 | B108: population processes | C108: maturity | D108: males (entire model period) | E108: param_init_bounded_vector | F108: pLgtPrM2M[1] | G108: 21 | H108: 4 | I108: 1 | J108: 32 | K108: ARITHMETIC | L108: -15 | M108: 15 | N108: 2.707587774 | O108: 2.70767588 | P108: -15 | Q108: 15 | R108: 2.707587774 | S108: 2.70767588 | T108: 0.36562 | U108: 0.1350309329
A109: B0 | B109: population processes | C109: maturity | D109: males (entire model period) | E109: param_init_bounded_vector | F109: pLgtPrM2M[1] | G109: 22 | H109: 4 | I109: 1 | J109: 32 | K109: ARITHMETIC | L109: -15 | M109: 15 | N109: 4.956892723 | O109: 4.956969539 | P109: -15 | Q109: 15 | R109: 4.956892723 | S109: 4.956969539 | T109: 0.59116 | U109: 0.1192583483
A110: B0 | B110: population processes | C110: maturity | D110: males (entire model period) | E110: param_init_bounded_vector | F110: pLgtPrM2M[1] | G110: 23 | H110: 4 | I110: 1 | J110: 32 | K110: ARITHMETIC | L110: -15 | M110: 15 | N110: 7.095815846 | O110: 7.095871314 | P110: -15 | Q110: 15 | R110: 7.095815846 | S110: 7.095871314 | T110: 1.0479 | U110: 0.1476774245
A111: B0 | B111: population processes | C111: maturity | D111: males (entire model period) | E111: param_init_bounded_vector | F111: pLgtPrM2M[1] | G111: 24 | H111: 4 | I111: 1 | J111: 32 | K111: ARITHMETIC | L111: -15 | M111: 15 | N111: 8.917076634 | O111: 8.91711375 | P111: -15 | Q111: 15 | R111: 8.917076634 | S111: 8.91711375 | T111: 1.6672 | U111: 0.1869663264
A112: B0 | B112: population processes | C112: maturity | D112: males (entire model period) | E112: param_init_bounded_vector | F112: pLgtPrM2M[1] | G112: 25 | H112: 4 | I112: 1 | J112: 32 | K112: ARITHMETIC | L112: -15 | M112: 15 | N112: 10.41243155 | O112: 10.41245452 | P112: -15 | Q112: 15 | R112: 10.41243155 | S112: 10.41245452 | T112: 2.3051 | U112: 0.2213791182
A113: B0 | B113: population processes | C113: maturity | D113: males (entire model period) | E113: param_init_bounded_vector | F113: pLgtPrM2M[1] | G113: 26 | H113: 4 | I113: 1 | J113: 32 | K113: ARITHMETIC | L113: -15 | M113: 15 | N113: 11.61525159 | O113: 11.61526374 | P113: -15 | Q113: 15 | R113: 11.61525159 | S113: 11.61526374 | T113: 2.8381 | U113: 0.2443422779
A114: B0 | B114: population processes | C114: maturity | D114: males (entire model period) | E114: param_init_bounded_vector | F114: pLgtPrM2M[1] | G114: 27 | H114: 4 | I114: 1 | J114: 32 | K114: ARITHMETIC | L114: -15 | M114: 15 | N114: 12.56574844 | O114: 12.56575298 | P114: -15 | Q114: 15 | R114: 12.56574844 | S114: 12.56575298 | T114: 3.175 | U114: 0.2526708909
A115: B0 | B115: population processes | C115: maturity | D115: males (entire model period) | E115: param_init_bounded_vector | F115: pLgtPrM2M[1] | G115: 28 | H115: 4 | I115: 1 | J115: 32 | K115: ARITHMETIC | L115: -15 | M115: 15 | N115: 13.30558061 | O115: 13.3055805 | P115: -15 | Q115: 15 | R115: 13.30558061 | S115: 13.3055805 | T115: 3.2484 | U115: 0.2441381645
A116: B0 | B116: population processes | C116: maturity | D116: males (entire model period) | E116: param_init_bounded_vector | F116: pLgtPrM2M[1] | G116: 29 | H116: 4 | I116: 1 | J116: 32 | K116: ARITHMETIC | L116: -15 | M116: 15 | N116: 13.8767754 | O116: 13.87677328 | P116: -15 | Q116: 15 | R116: 13.8767754 | S116: 13.87677328 | T116: 3.007 | U116: 0.2166930265
A117: B0 | B117: population processes | C117: maturity | D117: males (entire model period) | E117: param_init_bounded_vector | F117: pLgtPrM2M[1] | G117: 30 | H117: 4 | I117: 1 | J117: 32 | K117: ARITHMETIC | L117: -15 | M117: 15 | N117: 14.32146668 | O117: 14.32146509 | P117: -15 | Q117: 15 | R117: 14.32146668 | S117: 14.32146509 | T117: 2.4119 | U117: 0.1684115407
A118: B0 | B118: population processes | C118: maturity | D118: males (entire model period) | E118: param_init_bounded_vector | F118: pLgtPrM2M[1] | G118: 31 | H118: 4 | I118: 1 | J118: 32 | K118: ARITHMETIC | L118: -15 | M118: 15 | N118: 14.68181805 | O118: 14.68181784 | P118: -15 | Q118: 15 | R118: 14.68181805 | S118: 14.68181784 | T118: 1.4337 | U118: 0.09765139546
A119: B0 | B119: population processes | C119: maturity | D119: males (entire model period) | E119: param_init_bounded_vector | F119: pLgtPrM2M[1] | G119: 32 | H119: 4 | I119: 1 | J119: 32 | K119: ARITHMETIC | L119: -15 | M119: 15 | N119: 14.99999921 | O119: 14.99999921 | P119: -15 | Q119: 15 | R119: 14.99999921 | S119: 14.99999921 | T119: 0.0043295 | U119: 0.0002886333485
A120: B0 | B120: population processes | C120: maturity | D120: females (entire model period) | E120: param_init_bounded_vector | F120: pLgtPrM2M[2] | G120: 1 | H120: 4 | I120: 1 | J120: 16 | K120: ARITHMETIC | L120: -15 | M120: 15 | N120: -14.99999969 | O120: -14.99999969 | P120: -15 | Q120: 15 | R120: -14.99999969 | S120: -14.99999969 | T120: 0.0016915 | U120: 0.000112766669
A121: B0 | B121: population processes | C121: maturity | D121: females (entire model period) | E121: param_init_bounded_vector | F121: pLgtPrM2M[2] | G121: 2 | H121: 4 | I121: 1 | J121: 16 | K121: ARITHMETIC | L121: -15 | M121: 15 | N121: -13.7642649 | O121: -13.76426363 | P121: -15 | Q121: 15 | R121: -13.7642649 | S121: -13.76426363 | T121: 0.78389 | U121: 0.05695110332
A122: B0 | B122: population processes | C122: maturity | D122: females (entire model period) | E122: param_init_bounded_vector | F122: pLgtPrM2M[2] | G122: 3 | H122: 4 | I122: 1 | J122: 16 | K122: ARITHMETIC | L122: -15 | M122: 15 | N122: -12.47456067 | O122: -12.4745577 | P122: -15 | Q122: 15 | R122: -12.47456067 | S122: -12.4745577 | T122: 1.1855 | U122: 0.09503342949
A123: B0 | B123: population processes | C123: maturity | D123: females (entire model period) | E123: param_init_bounded_vector | F123: pLgtPrM2M[2] | G123: 4 | H123: 4 | I123: 1 | J123: 16 | K123: ARITHMETIC | L123: -15 | M123: 15 | N123: -11.07694861 | O123: -11.07694317 | P123: -15 | Q123: 15 | R123: -11.07694861 | S123: -11.07694317 | T123: 1.288 | U123: 0.1162775669
A124: B0 | B124: population processes | C124: maturity | D124: females (entire model period) | E124: param_init_bounded_vector | F124: pLgtPrM2M[2] | G124: 5 | H124: 4 | I124: 1 | J124: 16 | K124: ARITHMETIC | L124: -15 | M124: 15 | N124: -9.517970835 | O124: -9.517963739 | P124: -15 | Q124: 15 | R124: -9.517970835 | S124: -9.517963739 | T124: 1.1519 | U124: 0.1210237853
A125: B0 | B125: population processes | C125: maturity | D125: females (entire model period) | E125: param_init_bounded_vector | F125: pLgtPrM2M[2] | G125: 6 | H125: 4 | I125: 1 | J125: 16 | K125: ARITHMETIC | L125: -15 | M125: 15 | N125: -7.748399503 | O125: -7.748392308 | P125: -15 | Q125: 15 | R125: -7.748399503 | S125: -7.748392308 | T125: 0.86282 | U125: 0.1113547128
A126: B0 | B126: population processes | C126: maturity | D126: females (entire model period) | E126: param_init_bounded_vector | F126: pLgtPrM2M[2] | G126: 7 | H126: 4 | I126: 1 | J126: 16 | K126: ARITHMETIC | L126: -15 | M126: 15 | N126: -5.74331529 | O126: -5.743309055 | P126: -15 | Q126: 15 | R126: -5.74331529 | S126: -5.743309055 | T126: 0.52528 | U126: 0.09145946961
A127: B0 | B127: population processes | C127: maturity | D127: females (entire model period) | E127: param_init_bounded_vector | F127: pLgtPrM2M[2] | G127: 8 | H127: 4 | I127: 1 | J127: 16 | K127: ARITHMETIC | L127: -15 | M127: 15 | N127: -3.5839355 | O127: -3.583930944 | P127: -15 | Q127: 15 | R127: -3.5839355 | S127: -3.583930944 | T127: 0.24314 | U127: 0.06784170896
A128: B0 | B128: population processes | C128: maturity | D128: females (entire model period) | E128: param_init_bounded_vector | F128: pLgtPrM2M[2] | G128: 9 | H128: 4 | I128: 1 | J128: 16 | K128: ARITHMETIC | L128: -15 | M128: 15 | N128: -1.78015459 | O128: -1.780153236 | P128: -15 | Q128: 15 | R128: -1.78015459 | S128: -1.780153236 | T128: 0.11011 | U128: 0.06185422569
A129: B0 | B129: population processes | C129: maturity | D129: females (entire model period) | E129: param_init_bounded_vector | F129: pLgtPrM2M[2] | G129: 10 | H129: 4 | I129: 1 | J129: 16 | K129: ARITHMETIC | L129: -15 | M129: 15 | N129: -0.43296131 | O129: -0.4329605592 | P129: -15 | Q129: 15 | R129: -0.43296131 | S129: -0.4329605592 | T129: 0.087217 | U129: 0.2014432912
A130: B0 | B130: population processes | C130: maturity | D130: females (entire model period) | E130: param_init_bounded_vector | F130: pLgtPrM2M[2] | G130: 11 | H130: 4 | I130: 1 | J130: 16 | K130: ARITHMETIC | L130: -15 | M130: 15 | N130: 0.3017172502 | O130: 0.3017187033 | P130: -15 | Q130: 15 | R130: 0.3017172502 | S130: 0.3017187033 | T130: 0.092381 | U130: 0.3061825435
A131: B0 | B131: population processes | C131: maturity | D131: females (entire model period) | E131: param_init_bounded_vector | F131: pLgtPrM2M[2] | G131: 12 | H131: 4 | I131: 1 | J131: 16 | K131: ARITHMETIC | L131: -15 | M131: 15 | N131: 0.5862470063 | O131: 0.5862464668 | P131: -15 | Q131: 15 | R131: 0.5862470063 | S131: 0.5862464668 | T131: 0.10334 | U131: =IF(ISNUMBER(T131),ABS(T131/S131),"--") -> 0.1762739835
A132: B0 | B132: population processes | C132: maturity | D132: females (entire model period) | E132: param_init_bounded_vector | F132: pLgtPrM2M[2] | G132: 13 | H132: 4 | I132: 1 | J132: 16 | K132: ARITHMETIC | L132: -15 | M132: 15 | N132: 1.273966717 | O132: 1.273966871 | P132: -15 | Q132: 15 | R132: 1.273966717 | S132: 1.273966871 | T132: 0.16531 | U132: 0.1297600461
A133: B0 | B133: population processes | C133: maturity | D133: females (entire model period) | E133: param_init_bounded_vector | F133: pLgtPrM2M[2] | G133: 14 | H133: 4 | I133: 1 | J133: 16 | K133: ARITHMETIC | L133: -15 | M133: 15 | N133: 2.574943045 | O133: 2.574953193 | P133: -15 | Q133: 15 | R133: 2.574943045 | S133: 2.574953193 | T133: 0.34742 | U133: 0.1349228409
A134: B0 | B134: population processes | C134: maturity | D134: females (entire model period) | E134: param_init_bounded_vector | F134: pLgtPrM2M[2] | G134: 15 | H134: 4 | I134: 1 | J134: 16 | K134: ARITHMETIC | L134: -15 | M134: 15 | N134: 4.024967149 | O134: 4.024992345 | P134: -15 | Q134: 15 | R134: 4.024967149 | S134: 4.024992345 | T134: 0.6699 | U134: 0.1664350992
A135: B0 | B135: population processes | C135: maturity | D135: females (entire model period) | E135: param_init_bounded_vector | F135: pLgtPrM2M[2] | G135: 16 | H135: 4 | I135: 1 | J135: 16 | K135: ARITHMETIC | L135: -15 | M135: 15 | N135: 5.51166246 | O135: 5.511702476 | P135: -15 | Q135: 15 | R135: 5.51166246 | S135: 5.511702476 | T135: 1.2796 | U135: 0.2321605721
A136: B0 | B136: selectivity | C136: selectivity | D136: z50 for NMFS survey selectivity (males, pre-1982) | E136: param_init_bounded_number | F136: pS1[1] | G136: 1 | H136: 1 | I136: 1 | J136: 1 | K136: ARITHMETIC | L136: 0 | M136: 90 | N136: 52.30608075 | O136: 52.30599736 | P136: 0 | Q136: 90 | R136: 52.30608075 | S136: 52.30599736 | T136: 2.1146 | U136: 0.04042748646
A137: B0 | B137: selectivity | C137: selectivity | D137: z50 for NMFS survey selectivity (males, 1982+) | E137: param_init_bounded_number | F137: pS1[2] | G137: 1 | H137: 1 | I137: 1 | J137: 1 | K137: ARITHMETIC | L137: 0 | M137: 69 | N137: 34.91840181 | O137: 34.91791102 | P137: 0 | Q137: 69 | R137: 34.91840181 | S137: 34.91791102 | T137: 4.1483 | U137: 0.1188014941
A138: B0 | B138: selectivity | C138: selectivity | D138: z50 for NMFS survey selectivity (females, pre-1982) | E138: param_init_bounded_number | F138: pS1[3] | G138: 1 | H138: 1 | I138: 1 | J138: 1 | K138: ARITHMETIC | L138: -200 | M138: 100 | N138: 56.29232742 | O138: 56.29254643 | P138: -200 | Q138: 100 | R138: 56.29232742 | S138: 56.29254643 | T138: 2.8555 | U138: 0.05072607621
A139: B0 | B139: selectivity | C139: selectivity | D139: z50 for NMFS survey selectivity (females, 1982+) | E139: param_init_bounded_number | F139: pS1[4] | G139: 1 | H139: 1 | I139: 1 | J139: 1 | K139: ARITHMETIC | L139: -50 | M139: 69 | N139: -29.13583747 | O139: -29.13471512 | P139: -50 | Q139: 69 | R139: -29.13583747 | S139: -29.13471512 | T139: 26.96 | U139: 0.9253565683
A140: B0 | B140: selectivity | C140: selectivity | D140: z50 for TCF retention (pre-1991) | E140: param_init_bounded_number | F140: pS1[5] | G140: 1 | H140: 1 | I140: 1 | J140: 1 | K140: ARITHMETIC | L140: 85 | M140: 160 | N140: 137.9854318 | O140: 137.9857703 | P140: 85 | Q140: 160 | R140: 137.9854318 | S140: 137.9857703 | T140: 0.41573 | U140: 0.003012846899
A141: B0 | B141: selectivity | C141: selectivity | D141: z50 for TCF retention (1991-1996) | E141: param_init_bounded_number | F141: pS1[6] | G141: 1 | H141: 1 | I141: 1 | J141: 1 | K141: ARITHMETIC | L141: 85 | M141: 160 | N141: 137.4976521 | O141: 137.4976606 | P141: 85 | Q141: 160 | R141: 137.4976521 | S141: 137.4976606 | T141: 0.24893 | U141: 0.001810430803
A142: B0 | B142: selectivity | C142: selectivity | D142: DUMMY VALUE | E142: param_init_bounded_number | F142: pS1[7] | G142: 1 | H142: -1 | I142: 1 | J142: 1 | K142: ARITHMETIC | L142: 4 | M142: 5 | N142: 4.883938112 | O142: 4.883938112 | P142: 4 | Q142: 5 | R142: 4.883938112 | S142: 4.883938112 | T142: NA | U142: --
A143: B0 | B143: selectivity | C143: selectivity | D143: ln(z50) for TCF selectivity (males) | E143: param_init_bounded_number | F143: pS1[8] | G143: 1 | H143: 1 | I143: 1 | J143: 1 | K143: ARITHMETIC | L143: 4 | M143: 5 | N143: 4.865130105 | O143: 4.865089327 | P143: 4 | Q143: 5 | R143: 4.865130105 | S143: 4.865089327 | T143: 0.0084097 | U143: 0.0017285808
A144: B0 | B144: selectivity | C144: selectivity | D144: z50 for TCF selectivity (females) | E144: param_init_bounded_number | F144: pS1[9] | G144: 1 | H144: 1 | I144: 1 | J144: 1 | K144: ARITHMETIC | L144: 80 | M144: 150 | N144: 96.5806509 | O144: 96.58065112 | P144: 80 | Q144: 150 | R144: 96.5806509 | S144: 96.58065112 | T144: 2.6224 | U144: 0.02715243653
A145: B0 | B145: selectivity | C145: selectivity | D145: ascending z50 for SCF selectivity (males, pre-1997) | E145: param_init_bounded_number | F145: pS1[10] | G145: 1 | H145: 2 | I145: 1 | J145: 1 | K145: ARITHMETIC | L145: 40 | M145: 140 | N145: 87.70366759 | O145: 87.70356849 | P145: 40 | Q145: 140 | R145: 87.70366759 | S145: 87.70356849 | T145: 1.5638 | U145: 0.01783051735
A146: B0 | B146: selectivity | C146: selectivity | D146: ascending z50 for SCF selectivity (males, 1997-2004) | E146: param_init_bounded_number | F146: pS1[11] | G146: 1 | H146: 2 | I146: 1 | J146: 1 | K146: ARITHMETIC | L146: 40 | M146: 140 | N146: 95.6977258 | O146: 95.69752486 | P146: 40 | Q146: 140 | R146: 95.6977258 | S146: 95.69752486 | T146: 3.7539 | U146: 0.03922671987
A147: B0 | B147: selectivity | C147: selectivity | D147: ascending z50 for SCF selectivity (males, 2005+) | E147: param_init_bounded_number | F147: pS1[12] | G147: 1 | H147: 2 | I147: 1 | J147: 1 | K147: ARITHMETIC | L147: 40 | M147: 140 | N147: 105.6061099 | O147: 105.6059159 | P147: 40 | Q147: 140 | R147: 105.6061099 | S147: 105.6059159 | T147: 1.4191 | U147: 0.01343769417
A148: B0 | B148: selectivity | C148: selectivity | D148: ascending z50 for SCF selectivity (females, pre-1997) | E148: param_init_bounded_number | F148: pS1[13] | G148: 1 | H148: 2 | I148: 1 | J148: 1 | K148: ARITHMETIC | L148: 50 | M148: 150 | N148: 70.26449419 | O148: 70.26452916 | P148: 50 | Q148: 150 | R148: 70.26449419 | S148: 70.26452916 | T148: 5.0298 | U148: 0.0715837715
A149: B0 | B149: selectivity | C149: selectivity | D149: ascending z50 for SCF selectivity (females, 1997-2004) | E149: param_init_bounded_number | F149: pS1[14] | G149: 1 | H149: 2 | I149: 1 | J149: 1 | K149: ARITHMETIC | L149: 50 | M149: 120 | N149: 76.29497458 | O149: 76.29495248 | P149: 50 | Q149: 120 | R149: 76.29497458 | S149: 76.29495248 | T149: 4.5244 | U149: 0.05930143283
A150: B0 | B150: selectivity | C150: selectivity | D150: ascending z50 for SCF selectivity (females, 2005+) | E150: param_init_bounded_number | F150: pS1[15] | G150: 1 | H150: 2 | I150: 1 | J150: 1 | K150: ARITHMETIC | L150: 50 | M150: 120 | N150: 85.21827438 | O150: 85.21804352 | P150: 50 | Q150: 120 | R150: 85.21827438 | S150: 85.21804352 | T150: 5.6442 | U150: 0.06623245227
A151: B0 | B151: selectivity | C151: selectivity | D151: z50 for GF.AllGear selectivity (males, pre-1987) | E151: param_init_bounded_number | F151: pS1[16] | G151: 1 | H151: 2 | I151: 1 | J151: 1 | K151: ARITHMETIC | L151: 40 | M151: 120 | N151: 55.02297341 | O151: 55.02282706 | P151: 40 | Q151: 120 | R151: 55.02297341 | S151: 55.02282706 | T151: 1.8585 | U151: 0.03377689041
A152: B0 | B152: selectivity | C152: selectivity | D152: z50 for GF.AllGear selectivity (males, 1987-1996) | E152: param_init_bounded_number | F152: pS1[17] | G152: 1 | H152: 2 | I152: 1 | J152: 1 | K152: ARITHMETIC | L152: 40 | M152: 120 | N152: 59.07337697 | O152: 59.07318609 | P152: 40 | Q152: 120 | R152: 59.07337697 | S152: 59.07318609 | T152: 4.849 | U152: 0.08208461946
A153: B0 | B153: selectivity | C153: selectivity | D153: z50 for GF.AllGear selectivity (males, 1997+) | E153: param_init_bounded_number | F153: pS1[18] | G153: 1 | H153: 2 | I153: 1 | J153: 1 | K153: ARITHMETIC | L153: 40 | M153: 120 | N153: 80.8412564 | O153: 80.84071883 | P153: 40 | Q153: 120 | R153: 80.8412564 | S153: 80.84071883 | T153: 2.1748 | U153: 0.02690228429
A154: B0 | B154: selectivity | C154: selectivity | D154: z50 for GF.AllGear selectivity (males, pre-1987) | E154: param_init_bounded_number | F154: pS1[19] | G154: 1 | H154: 2 | I154: 1 | J154: 1 | K154: ARITHMETIC | L154: 40 | M154: 120 | N154: 41.20052994 | O154: 41.2004528 | P154: 40 | Q154: 120 | R154: 41.20052994 | S154: 41.2004528 | T154: 1.6602 | U154: 0.04029567364
A155: B0 | B155: selectivity | C155: selectivity | D155: z50 for GF.AllGear selectivity (males, 1987-1996) | E155: param_init_bounded_number | F155: pS1[20] | G155: 1 | H155: 2 | I155: 1 | J155: 1 | K155: ARITHMETIC | L155: 40 | M155: 250 | N155: 40 | O155: 40 | P155: 40 | Q155: 250 | R155: 40 | S155: 40 | T155: 5.48E-05 | U155: 1.37055e-06
A156: B0 | B156: selectivity | C156: selectivity | D156: z50 for GF.AllGear selectivity (males, 1997+) | E156: param_init_bounded_number | F156: pS1[21] | G156: 1 | H156: 2 | I156: 1 | J156: 1 | K156: ARITHMETIC | L156: 40 | M156: 150 | N156: 76.11396521 | O156: 76.11346841 | P156: 40 | Q156: 150 | R156: 76.11396521 | S156: 76.11346841 | T156: 2.5308 | U156: 0.03325035704
A157: B0 | B157: selectivity | C157: selectivity | D157: z95 for RKF selectivity (males, pre-1997) | E157: param_init_bounded_number | F157: pS1[22] | G157: 1 | H157: 3 | I157: 1 | J157: 1 | K157: ARITHMETIC | L157: 95 | M157: 180 | N157: 158.2100763 | O157: 158.2099545 | P157: 95 | Q157: 180 | R157: 158.2100763 | S157: 158.2099545 | T157: 6.5516 | U157: 0.04141079505
A158: B0 | B158: selectivity | C158: selectivity | D158: z95 for RKF selectivity (males, 1997-2004) | E158: param_init_bounded_number | F158: pS1[23] | G158: 1 | H158: 3 | I158: 1 | J158: 1 | K158: ARITHMETIC | L158: 95 | M158: 180 | N158: 179.9999995 | O158: 179.9999995 | P158: 95 | Q158: 180 | R158: 179.9999995 | S158: 179.9999995 | T158: 0.0047656 | U158: 2.647555563e-05
A159: B0 | B159: selectivity | C159: selectivity | D159: z95 for RKF selectivity (males, 2005+) | E159: param_init_bounded_number | F159: pS1[24] | G159: 1 | H159: 3 | I159: 1 | J159: 1 | K159: ARITHMETIC | L159: 95 | M159: 180 | N159: 180 | O159: 180 | P159: 95 | Q159: 180 | R159: 180 | S159: 180 | T159: 0.00030861 | U159: 1.7145e-06
A160: B0 | B160: selectivity | C160: selectivity | D160: z95 for RKF selectivity (females, pre-1997) | E160: param_init_bounded_number | F160: pS1[25] | G160: 1 | H160: 3 | I160: 1 | J160: 1 | K160: ARITHMETIC | L160: 100 | M160: 140 | N160: 121.5723793 | O160: 121.5720818 | P160: 100 | Q160: 140 | R160: 121.5723793 | S160: 121.5720818 | T160: 37.669 | U160: 0.3098490989
A161: B0 | B161: selectivity | C161: selectivity | D161: z95 for RKF selectivity (females, 1997-2004) | E161: param_init_bounded_number | F161: pS1[26] | G161: 1 | H161: 3 | I161: 1 | J161: 1 | K161: ARITHMETIC | L161: 100 | M161: 140 | N161: 121.2151822 | O161: 121.2152513 | P161: 100 | Q161: 140 | R161: 121.2151822 | S161: 121.2152513 | T161: 53.48 | U161: 0.4411986068
A162: B0 | B162: selectivity | C162: selectivity | D162: z95 for RKF selectivity (females, 2005+) | E162: param_init_bounded_number | F162: pS1[27] | G162: 1 | H162: 3 | I162: 1 | J162: 1 | K162: ARITHMETIC | L162: 100 | M162: 140 | N162: 139.9999946 | O162: 139.9999946 | P162: 100 | Q162: 140 | R162: 139.9999946 | S162: 139.9999946 | T162: 0.034333 | U162: 0.0002452357238
A163: B0 | B163: selectivity | C163: selectivity | D163: z50 for TCF retention (2005-2009) | E163: param_init_bounded_number | F163: pS1[28] | G163: 1 | H163: 1 | I163: 1 | J163: 1 | K163: ARITHMETIC | L163: 85 | M163: 160 | N163: 138.717107 | O163: 138.7170995 | P163: 85 | Q163: 160 | R163: 138.717107 | S163: 138.7170995 | T163: 1.632 | U163: 0.01176495188
A164: B0 | B164: selectivity | C164: selectivity | D164: z50 for TCF retention (2013-2015) | E164: param_init_bounded_number | F164: pS1[29] | G164: 1 | H164: 1 | I164: 1 | J164: 1 | K164: ARITHMETIC | L164: 85 | M164: 160 | N164: 125.0367478 | O164: 125.0367503 | P164: 85 | Q164: 160 | R164: 125.0367478 | S164: 125.0367503 | T164: 0.75788 | U164: 0.006061257976
A165: B0 | B165: selectivity | C165: selectivity | D165: z95-z50 for NMFS survey selectivity (males, pre-1982) | E165: param_init_bounded_number | F165: pS2[1] | G165: 1 | H165: 1 | I165: 1 | J165: 1 | K165: ARITHMETIC | L165: 0 | M165: 100 | N165: 23.49570027 | O165: 23.49577508 | P165: 0 | Q165: 100 | R165: 23.49570027 | S165: 23.49577508 | T165: 3.492 | U165: 0.1486224646
A166: B0 | B166: selectivity | C166: selectivity | D166: z95-z50 for NMFS survey selectivity (males, 1982+) | E166: param_init_bounded_number | F166: pS2[2] | G166: 1 | H166: 1 | I166: 1 | J166: 1 | K166: ARITHMETIC | L166: 0 | M166: 100 | N166: 75.07419187 | O166: 75.07284042 | P166: 0 | Q166: 100 | R166: 75.07419187 | S166: 75.07284042 | T166: 10.254 | U166: 0.1365873456
A167: B0 | B167: selectivity | C167: selectivity | D167: z95-z50 for NMFS survey selectivity (females, pre-1982) | E167: param_init_bounded_number | F167: pS2[3] | G167: 1 | H167: 1 | I167: 1 | J167: 1 | K167: ARITHMETIC | L167: 0 | M167: 100 | N167: 39.98035555 | O167: 39.98151992 | P167: 0 | Q167: 100 | R167: 39.98035555 | S167: 39.98151992 | T167: 5.8712 | U167: 0.146847844
A168: B0 | B168: selectivity | C168: selectivity | D168: z95-z50 for NMFS survey selectivity (females, 1982+) | E168: param_init_bounded_number | F168: pS2[4] | G168: 1 | H168: 1 | I168: 1 | J168: 1 | K168: ARITHMETIC | L168: 0 | M168: 100 | N168: 99.99999983 | O168: 99.99999983 | P168: 0 | Q168: 100 | R168: 99.99999983 | S168: 99.99999983 | T168: 0.0017129 | U168: 1.712900003e-05
A169: B0 | B169: selectivity | C169: selectivity | D169: slope for TCF retention (pre-1991) | E169: param_init_bounded_number | F169: pS2[5] | G169: 1 | H169: 1 | I169: 1 | J169: 1 | K169: ARITHMETIC | L169: 0.2 | M169: 1 | N169: 0.6904786202 | O169: 0.6904698262 | P169: 0.2 | Q169: 1 | R169: 0.6904786202 | S169: 0.6904698262 | T169: 0.12568 | U169: 0.1820209881
A170: B0 | B170: selectivity | C170: selectivity | D170: slope for TCF retention (1997+) | E170: param_init_bounded_number | F170: pS2[6] | G170: 1 | H170: 1 | I170: 1 | J170: 1 | K170: ARITHMETIC | L170: 0.2 | M170: 2 | N170: 0.9563356356 | O170: 0.9563366714 | P170: 0.2 | Q170: 2 | R170: 0.9563356356 | S170: 0.9563366714 | T170: 0.19235 | U170: 0.2011320968
A171: B0 | B171: selectivity | C171: selectivity | D171: slope for TCF selectivity (males, pre-1997) | E171: param_init_bounded_number | F171: pS2[7] | G171: 1 | H171: 1 | I171: 1 | J171: 1 | K171: ARITHMETIC | L171: 0.05 | M171: 0.75 | N171: 0.1177705389 | O171: 0.1177717056 | P171: 0.05 | Q171: 0.75 | R171: 0.1177705389 | S171: 0.1177717056 | T171: 0.0064714 | U171: 0.05494868202
A172: B0 | B172: selectivity | C172: selectivity | D172: slope for TCF selectivity (males, 1997+) | E172: param_init_bounded_number | F172: pS2[8] | G172: 1 | H172: 1 | I172: 1 | J172: 1 | K172: ARITHMETIC | L172: 0.1 | M172: 0.4 | N172: 0.1550696924 | O172: 0.1550685864 | P172: 0.1 | Q172: 0.4 | R172: 0.1550696924 | S172: 0.1550685864 | T172: 0.0084913 | U172: 0.05475835047
A173: B0 | B173: selectivity | C173: selectivity | D173: slope for TCF selectivity (females) | E173: param_init_bounded_number | F173: pS2[9] | G173: 1 | H173: 1 | I173: 1 | J173: 1 | K173: ARITHMETIC | L173: 0.05 | M173: 0.75 | N173: 0.1865523601 | O173: 0.186552384 | P173: 0.05 | Q173: 0.75 | R173: 0.1865523601 | S173: 0.186552384 | T173: 0.019146 | U173: 0.1026306906
A174: B0 | B174: selectivity | C174: selectivity | D174: ascending slope for SCF selectivity (males, pre-1997) | E174: param_init_bounded_number | F174: pS2[10] | G174: 1 | H174: 2 | I174: 1 | J174: 1 | K174: ARITHMETIC | L174: 0.1 | M174: 0.5 | N174: 0.3738211929 | O174: 0.3738258374 | P174: 0.1 | Q174: 0.5 | R174: 0.3738211929 | S174: 0.3738258374 | T174: 0.12926 | U174: 0.3457759926
A175: B0 | B175: selectivity | C175: selectivity | D175: ascending slope for SCF selectivity (males, 1997-2004) | E175: param_init_bounded_number | F175: pS2[11] | G175: 1 | H175: 2 | I175: 1 | J175: 1 | K175: ARITHMETIC | L175: 0.1 | M175: 0.5 | N175: 0.2083679122 | O175: 0.2083697646 | P175: 0.1 | Q175: 0.5 | R175: 0.2083679122 | S175: 0.2083697646 | T175: 0.063355 | U175: 0.3040508306
A176: B0 | B176: selectivity | C176: selectivity | D176: ascending slope for SCF selectivity (males, 2005+) | E176: param_init_bounded_number | F176: pS2[12] | G176: 1 | H176: 2 | I176: 1 | J176: 1 | K176: ARITHMETIC | L176: 0.1 | M176: 0.5 | N176: 0.1748511461 | O176: 0.1748516494 | P176: 0.1 | Q176: 0.5 | R176: 0.1748511461 | S176: 0.1748516494 | T176: 0.014765 | U176: 0.08444301239
A177: B0 | B177: selectivity | C177: selectivity | D177: slope for SCF selectivity (females, pre-1997) | E177: param_init_bounded_number | F177: pS2[13] | G177: 1 | H177: 2 | I177: 1 | J177: 1 | K177: ARITHMETIC | L177: 0.05 | M177: 0.5 | N177: 0.2200998396 | O177: 0.2200988856 | P177: 0.05 | Q177: 0.5 | R177: 0.2200998396 | S177: 0.2200988856 | T177: 0.12757 | U177: 0.5796031164
A178: B0 | B178: selectivity | C178: selectivity | D178: slope for SCF selectivity (females, 1997-2004) | E178: param_init_bounded_number | F178: pS2[14] | G178: 1 | H178: 2 | I178: 1 | J178: 1 | K178: ARITHMETIC | L178: 0.05 | M178: 0.5 | N178: 0.2637717729 | O178: 0.2637720704 | P178: 0.05 | Q178: 0.5 | R178: 0.2637717729 | S178: 0.2637720704 | T178: 0.12914 | U178: 0.4895893633
A179: B0 | B179: selectivity | C179: selectivity | D179: slope for SCF selectivity (females, 2005+) | E179: param_init_bounded_number | F179: pS2[15] | G179: 1 | H179: 2 | I179: 1 | J179: 1 | K179: ARITHMETIC | L179: 0.05 | M179: 0.5 | N179: 0.1555131017 | O179: 0.1555147811 | P179: 0.05 | Q179: 0.5 | R179: 0.1555131017 | S179: 0.1555147811 | T179: 0.049411 | U179: 0.3177254255
A180: B0 | B180: selectivity | C180: selectivity | D180: slope for GF.AllGear selectivity (males, pre-1987) | E180: param_init_bounded_number | F180: pS2[16] | G180: 1 | H180: 2 | I180: 1 | J180: 1 | K180: ARITHMETIC | L180: 0.01 | M180: 0.5 | N180: 0.1041361482 | O180: 0.1041365751 | P180: 0.01 | Q180: 0.5 | R180: 0.1041361482 | S180: 0.1041365751 | T180: 0.0095802 | U180: 0.09199649583
A181: B0 | B181: selectivity | C181: selectivity | D181: slope for GF.AllGear selectivity (males, 1987-1996) | E181: param_init_bounded_number | F181: pS2[17] | G181: 1 | H181: 2 | I181: 1 | J181: 1 | K181: ARITHMETIC | L181: 0.01 | M181: 0.5 | N181: 0.05694505866 | O181: 0.05694549502 | P181: 0.01 | Q181: 0.5 | R181: 0.05694505866 | S181: 0.05694549502 | T181: 0.011947 | U181: 0.209797105
A182: B0 | B182: selectivity | C182: selectivity | D182: slope for GF.AllGear selectivity (males, 1997+) | E182: param_init_bounded_number | F182: pS2[18] | G182: 1 | H182: 2 | I182: 1 | J182: 1 | K182: ARITHMETIC | L182: 0.01 | M182: 0.5 | N182: 0.07402585115 | O182: 0.07402646823 | P182: 0.01 | Q182: 0.5 | R182: 0.07402585115 | S182: 0.07402646823 | T182: 0.0041167 | U182: 0.05561119014
A183: B0 | B183: selectivity | C183: selectivity | D183: slope for GF.AllGear selectivity (females, pre-1987) | E183: param_init_bounded_number | F183: pS2[19] | G183: 1 | H183: 2 | I183: 1 | J183: 1 | K183: ARITHMETIC | L183: 0.01 | M183: 0.5 | N183: 0.1370889726 | O183: 0.1370896461 | P183: 0.01 | Q183: 0.5 | R183: 0.1370889726 | S183: 0.1370896461 | T183: 0.022 | U183: 0.160478932
A184: B0 | B184: selectivity | C184: selectivity | D184: slope for GF.AllGear selectivity (females, 1987-1996) | E184: param_init_bounded_number | F184: pS2[20] | G184: 1 | H184: 2 | I184: 1 | J184: 1 | K184: ARITHMETIC | L184: 0.01 | M184: 0.5 | N184: 0.1850053803 | O184: 0.1850055201 | P184: 0.01 | Q184: 0.5 | R184: 0.1850053803 | S184: 0.1850055201 | T184: 0.038081 | U184: 0.2058371014
A185: B0 | B185: selectivity | C185: selectivity | D185: slope for GF.AllGear selectivity (females, 1997+) | E185: param_init_bounded_number | F185: pS2[21] | G185: 1 | H185: 2 | I185: 1 | J185: 1 | K185: ARITHMETIC | L185: 0.01 | M185: 0.5 | N185: 0.07228472029 | O185: 0.07228541104 | P185: 0.01 | Q185: 0.5 | R185: 0.07228472029 | S185: 0.07228541104 | T185: 0.0055433 | U185: 0.07668629009
A186: B0 | B186: selectivity | C186: selectivity | D186: ln(z95-z50) for RKF selectivity (males, pre-1997) | E186: param_init_bounded_number | F186: pS2[22] | G186: 1 | H186: 3 | I186: 1 | J186: 1 | K186: ARITHMETIC | L186: 2.5 | M186: 4 | N186: 3.077379041 | O186: 3.077374947 | P186: 2.5 | Q186: 4 | R186: 3.077379041 | S186: 3.077374947 | T186: 0.16223 | U186: 0.0527170081
A187: B0 | B187: selectivity | C187: selectivity | D187: ln(z95-z50) for RKF selectivity (males, 1997-2004) | E187: param_init_bounded_number | F187: pS2[23] | G187: 1 | H187: 3 | I187: 1 | J187: 1 | K187: ARITHMETIC | L187: 2.5 | M187: 4 | N187: 3.55166448 | O187: 3.551664331 | P187: 2.5 | Q187: 4 | R187: 3.55166448 | S187: 3.551664331 | T187: 0.085402 | U187: 0.0240456282
A188: B0 | B188: selectivity | C188: selectivity | D188: ln(z95-z50) for RKF selectivity (males, 2005+) | E188: param_init_bounded_number | F188: pS2[24] | G188: 1 | H188: 3 | I188: 1 | J188: 1 | K188: ARITHMETIC | L188: 2.5 | M188: 4 | N188: 3.487433162 | O188: 3.487433691 | P188: 2.5 | Q188: 4 | R188: 3.487433162 | S188: 3.487433691 | T188: 0.043971 | U188: 0.01260841177
A189: B0 | B189: selectivity | C189: selectivity | D189: ln(z95-z50) for RKF selectivity (males, pre-1997) | E189: param_init_bounded_number | F189: pS2[25] | G189: 1 | H189: 3 | I189: 1 | J189: 1 | K189: ARITHMETIC | L189: 2.5 | M189: 4 | N189: 2.785229519 | O189: 2.78522433 | P189: 2.5 | Q189: 4 | R189: 2.785229519 | S189: 2.78522433 | T189: 0.68382 | U189: 0.2455170281
A190: B0 | B190: selectivity | C190: selectivity | D190: ln(z95-z50) for RKF selectivity (males, 1997-2004) | E190: param_init_bounded_number | F190: pS2[26] | G190: 1 | H190: 3 | I190: 1 | J190: 1 | K190: ARITHMETIC | L190: 2.5 | M190: 4 | N190: 2.849050997 | O190: 2.849052073 | P190: 2.5 | Q190: 4 | R190: 2.849050997 | S190: 2.849052073 | T190: 0.90333 | U190: 0.3170633519
A191: B0 | B191: selectivity | C191: selectivity | D191: ln(z95-z50) for RKF selectivity (males, 2005+) | E191: param_init_bounded_number | F191: pS2[27] | G191: 1 | H191: 3 | I191: 1 | J191: 1 | K191: ARITHMETIC | L191: 2.5 | M191: 4 | N191: 2.991081602 | O191: 2.991081935 | P191: 2.5 | Q191: 4 | R191: 2.991081602 | S191: 2.991081935 | T191: 0.22044 | U191: 0.0736990844
A192: B0 | B192: selectivity | C192: selectivity | D192: slope for TCF retention (2005-2009) | E192: param_init_bounded_number | F192: pS2[28] | G192: 1 | H192: 1 | I192: 1 | J192: 1 | K192: ARITHMETIC | L192: 0.2 | M192: 2 | N192: 0.8940534251 | O192: 0.8940565828 | P192: 0.2 | Q192: 2 | R192: 0.8940534251 | S192: 0.8940565828 | T192: 0.72501 | U192: 0.8109218297
A193: B0 | B193: selectivity | C193: selectivity | D193: slope for TCF retention (2013-2015) | E193: param_init_bounded_number | F193: pS2[29] | G193: 1 | H193: 1 | I193: 1 | J193: 1 | K193: ARITHMETIC | L193: 0.2 | M193: 2 | N193: 0.5764727206 | O193: 0.5764726115 | P193: 0.2 | Q193: 2 | R193: 0.5764727206 | S193: 0.5764726115 | T193: 0.12608 | U193: 0.2187094365
A194: B0 | B194: selectivity | C194: selectivity | D194: ln(dz50-az50) for SCF selectivity (males, pre-1997) | E194: param_init_bounded_number | F194: pS3[1] | G194: 1 | H194: 2 | I194: 1 | J194: 1 | K194: ARITHMETIC | L194: 2 | M194: 4.5 | N194: 3.956241587 | O194: 3.956244081 | P194: 2 | Q194: 4.5 | R194: 3.956241587 | S194: 3.956244081 | T194: 0.040371 | U194: 0.01020437546
A195: B0 | B195: selectivity | C195: selectivity | D195: ln(dz50-az50) for SCF selectivity (males, 1997-2004) | E195: param_init_bounded_number | F195: pS3[2] | G195: 1 | H195: 2 | I195: 1 | J195: 1 | K195: ARITHMETIC | L195: 2 | M195: 4.5 | N195: 3.729749092 | O195: 3.729756638 | P195: 2 | Q195: 4.5 | R195: 3.729749092 | S195: 3.729756638 | T195: 0.2098 | U195: =IF(ISNUMBER(T195),ABS(T195/S195),"--") -> 0.05625031881
A196: B0 | B196: selectivity | C196: selectivity | D196: ln(dz50-az50) for SCF selectivity (males, 2005+) | E196: param_init_bounded_number | F196: pS3[3] | G196: 1 | H196: 2 | I196: 1 | J196: 1 | K196: ARITHMETIC | L196: 2 | M196: 4.5 | N196: 3.445890592 | O196: 3.445899468 | P196: 2 | Q196: 4.5 | R196: 3.445890592 | S196: 3.445899468 | T196: 0.08186 | U196: 0.02375577139
A197: B0 | B197: selectivity | C197: selectivity | D197: descending slope for SCF selectivity (males, pre-1997) | E197: param_init_bounded_number | F197: pS4[1] | G197: 1 | H197: 2 | I197: 1 | J197: 1 | K197: ARITHMETIC | L197: 0.1 | M197: 0.5 | N197: 0.4999988394 | O197: 0.4999988393 | P197: 0.1 | Q197: 0.5 | R197: 0.4999988394 | S197: 0.4999988393 | T197: 0.00073408 | U197: 0.001468163408
A198: B0 | B198: selectivity | C198: selectivity | D198: descending slope for SCF selectivity (males, 1997-2004) | E198: param_init_bounded_number | F198: pS4[2] | G198: 1 | H198: 2 | I198: 1 | J198: 1 | K198: ARITHMETIC | L198: 0.1 | M198: 0.5 | N198: 0.1300140167 | O198: 0.1300143224 | P198: 0.1 | Q198: 0.5 | R198: 0.1300140167 | S198: 0.1300143224 | T198: 0.080854 | U198: 0.6218853316
A199: B0 | B199: selectivity | C199: selectivity | D199: descending slope for SCF selectivity (males, 2005+) | E199: param_init_bounded_number | F199: pS4[3] | G199: 1 | H199: 2 | I199: 1 | J199: 1 | K199: ARITHMETIC | L199: 0.1 | M199: 0.5 | N199: 0.1846911809 | O199: 0.1846915646 | P199: 0.1 | Q199: 0.5 | R199: 0.1846911809 | S199: 0.1846915646 | T199: 0.024394 | U199: 0.1320796651
A200: B0 | B200: selectivity | C200: selectivity | D200: ln(z50 devs) for TCF selectivity (males, 1991+) | E200: param_init_bounded_vector | F200: pDevsS1[1] | G200: 1 | H200: 2 | I200: 1 | J200: 14 | K200: ARITHMETIC | L200: -0.5 | M200: 0.5 | N200: 0.02910390207 | O200: 0.02914236475 | P200: -0.5 | Q200: 0.5 | R200: 0.02910390207 | S200: 0.02914236475 | T200: 0.017505 | U200: 0.6006719136
... 4300 more rows

Sheet pvtAll
G3: case | H3: Values
G4: B0 | I4: B0-Fr | K4: B0-McI | M4: B0a | O4: B0b | Q4: B0c | S4: B0q | U4: B1 | W4: B1b | Y4: B1c | AA4: C0 | AC4: C0a | AE4: C0b | AG4: C0c | AI4: C1 | AK4: C1b | AM4: C1c | AO4: D0 | AQ4: D0a | AS4: D0b | AU4: D0c | AW4: D1 | AY4: D1b | BA4: D1c | BC4: E0 | BE4: E0a | BG4: E0b | BI4: E0c | BK4: E1 | BM4: E1b | BO4: E1c | BQ4: F0 | BS4: F0a | BU4: F0c | BW4: G0 | BY4: G0a | CA4: G0b | CC4: G0bd | CE4: G0bde | CG4: G0bde-Fr | CI4: G0bde-McI
A5: category | B5: process | C5: name | D5: label | E5: index | F5: parameter_scale | G5: Sum of final_param_value | H5: Sum of stdv | I5: Sum of final_param_value | J5: Sum of stdv | K5: Sum of final_param_value | L5: Sum of stdv | M5: Sum of final_param_value | N5: Sum of stdv | O5: Sum of final_param_value | P5: Sum of stdv | Q5: Sum of final_param_value | R5: Sum of stdv | S5: Sum of final_param_value | T5: Sum of stdv | U5: Sum of final_param_value | V5: Sum of stdv | W5: Sum of final_param_value | X5: Sum of stdv | Y5: Sum of final_param_value | Z5: Sum of stdv | AA5: Sum of final_param_value | AB5: Sum of stdv | AC5: Sum of final_param_value | AD5: Sum of stdv | AE5: Sum of final_param_value | AF5: Sum of stdv | AG5: Sum of final_param_value | AH5: Sum of stdv | AI5: Sum of final_param_value | AJ5: Sum of stdv | AK5: Sum of final_param_value | AL5: Sum of stdv | AM5: Sum of final_param_value | AN5: Sum of stdv | AO5: Sum of final_param_value | AP5: Sum of stdv | AQ5: Sum of final_param_value | AR5: Sum of stdv | AS5: Sum of final_param_value | AT5: Sum of stdv | AU5: Sum of final_param_value | AV5: Sum of stdv | AW5: Sum of final_param_value | AX5: Sum of stdv | AY5: Sum of final_param_value | AZ5: Sum of stdv | BA5: Sum of final_param_value | BB5: Sum of stdv | BC5: Sum of final_param_value | BD5: Sum of stdv | BE5: Sum of final_param_value | BF5: Sum of stdv | BG5: Sum of final_param_value | BH5: Sum of stdv | BI5: Sum of final_param_value | BJ5: Sum of stdv | BK5: Sum of final_param_value | BL5: Sum of stdv | BM5: Sum of final_param_value | BN5: Sum of stdv | BO5: Sum of final_param_value | BP5: Sum of stdv | BQ5: Sum of final_param_value | BR5: Sum of stdv | BS5: Sum of final_param_value | BT5: Sum of stdv | BU5: Sum of final_param_value | BV5: Sum of stdv | BW5: Sum of final_param_value | BX5: Sum of stdv | BY5: Sum of final_param_value | BZ5: Sum of stdv | CA5: Sum of final_param_value | CB5: Sum of stdv | CC5: Sum of final_param_value | CD5: Sum of stdv | CE5: Sum of final_param_value | CF5: Sum of stdv | CG5: Sum of final_param_value | CH5: Sum of stdv | CI5: Sum of final_param_value | CJ5: Sum of stdv
A6: fisheries | B6: fisheries | C6: pDC2[1] | D6: TCF: female offset | E6: 1 | F6: ARITHMETIC | G6: -2.323465668 | H6: 0.30372 | I6: -1.192662323 | J6: 0.58032 | K6: -2.109991127 | L6: 0.22968 | M6: -2.306541244 | N6: 0 | O6: -3.585214054 | P6: 0.49236 | Q6: -3.592466186 | R6: 0.49259 | S6: -2.028563522 | T6: 0.29197 | U6: -2.445013501 | V6: 0.31957 | W6: -3.686849452 | X6: 0.53139 | Y6: -3.652641541 | Z6: 0 | AA6: -2.772654228 | AB6: 0.32942 | AC6: -2.774281697 | AD6: 0.3316 | AE6: -4.361985727 | AF6: 0.574 | AG6: -4.025576124 | AH6: 0 | AI6: -2.723014011 | AJ6: 0.32822 | AK6: -4.821877408 | AL6: 0.53892 | AM6: -4.227917431 | AN6: 0.74306 | AO6: -3.09910006 | AP6: 0.27699 | AQ6: -3.096955078 | AR6: 0.27732 | AS6: -4.67853559 | AT6: 0.28368 | AU6: -4.591947517 | AV6: 0 | AW6: -3.048824589 | AX6: 0.27524 | AY6: -4.618651703 | AZ6: 0.28072 | BA6: -4.560952353 | BB6: 0.27419 | BC6: -2.818057 | BD6: 0 | BE6: -2.814375429 | BF6: 0.26019 | BG6: -3.180563 | BH6: 0 | BI6: -4.270916892 | BJ6: 0.26572 | BK6: -2.749672767 | BL6: 0.25603 | BM6: -4.162936323 | BN6: 0.26704 | BO6: -4.207969156 | BP6: 0.26393 | BQ6: -3.069106388 | BR6: 0.26689 | BS6: -3.072267545 | BT6: 0.26733 | BU6: -4.585036345 | BV6: 0.27721 | BW6: -2.537997668 | BX6: 0.17319 | BY6: -2.354768441 | BZ6: 0.16378 | CA6: -2.82125369 | CB6: 0.17553 | CC6: -2.837852695 | CD6: 0.17483 | CE6: -2.812512306 | CF6: 0.17689 | CG6: -3.997215914 | CH6: 0.10717 | CI6: -2.627131259 | CJ6: 0.12735
C7: pDC2[2] | D7: SCF: female offset | E7: 1 | F7: ARITHMETIC | G7: -1.759402786 | H7: 0.15084 | I7: -1.843031518 | J7: 0.30125 | K7: -1.940249918 | L7: 0.11633 | M7: -1.734227413 | N7: 0 | O7: -1.721385038 | P7: 0.15212 | Q7: -1.721682277 | R7: 0.15133 | S7: -1.498572235 | T7: 0.15637 | U7: -1.773191258 | V7: 0.15511 | W7: -1.71617565 | X7: 0.15283 | Y7: -1.711737234 | Z7: 0 | AA7: -1.906754485 | AB7: 0.15875 | AC7: -1.909698763 | AD7: 0.15962 | AE7: -1.907351866 | AF7: 0.15626 | AG7: -1.864354407 | AH7: 0 | AI7: -1.899730291 | AJ7: 0.15973 | AK7: -2.292771123 | AL7: 0.23877 | AM7: -1.854760779 | AN7: 0.15353 | AO7: -2.251701768 | AP7: 0.18835 | AQ7: -2.250664723 | AR7: 0.18888 | AS7: -2.438880374 | AT7: 0.26695 | AU7: -2.443763759 | AV7: 0 | AW7: -2.235409628 | AX7: 0.19043 | AY7: -2.391149242 | AZ7: 0.24511 | BA7: -2.391071814 | BB7: 0.23911 | BC7: -2.265653149 | BD7: 0 | BE7: -2.264964584 | BF7: 0.17172 | BG7: -2.375200862 | BH7: 0 | BI7: -2.353982187 | BJ7: 0.17703 | BK7: -2.251632055 | BL7: 0.17261 | BM7: -2.384778943 | BN7: 0.1996 | BO7: -2.365611456 | BP7: 0.17899 | BQ7: -2.40385909 | BR7: 0.18826 | BS7: -2.405521114 | BT7: 0.18877 | BU7: -2.583033695 | BV7: 0.23242 | BW7: -1.993651072 | BX7: 0.15668 | BY7: -1.762772228 | BZ7: 0.14916 | CA7: -1.601794411 | CB7: 0.12277 | CC7: -2.506209642 | CD7: 0.22362 | CE7: -2.536469051 | CF7: 0.21957 | CG7: -4.110554096 | CH7: 0.63643 | CI7: -3.049946922 | CJ7: 0.0959
C8: pDC2[3] | D8: GTF: female offset | E8: 1 | F8: ARITHMETIC | G8: -0.9557930288 | H8: 0.071668 | I8: -0.4467426634 | J8: 0.34118 | K8: -0.8814529649 | L8: 0.060382 | M8: -0.8898889057 | N8: 0 | O8: -0.9310408707 | P8: 0.073129 | Q8: -0.931173274 | R8: 0.070226 | S8: -0.7043320784 | T8: 0.061412 | U8: -1.024586192 | V8: 0.080904 | W8: -0.9261038467 | X8: 0.073874 | Y8: -0.9218297717 | Z8: 0 | AA8: -1.279493403 | AB8: 0.08746 | AC8: -1.276368712 | AD8: 0.088726 | AE8: -1.247419811 | AF8: 0.089818 | AG8: -1.111433831 | AH8: 0 | AI8: -1.269164777 | AJ8: 0.083876 | AK8: -1.266476289 | AL8: 0.092046 | AM8: -1.111560369 | AN8: 0.074743 | AO8: -1.094309421 | AP8: 0.071908 | AQ8: -1.088620712 | AR8: 0.071605 | AS8: -1.057491687 | AT8: 0.073622 | AU8: -0.9037446946 | AV8: 0 | AW8: -1.077224281 | AX8: 0.07197 | AY8: -1.064715301 | AZ8: 0.07463 | BA8: -0.9804512015 | BB8: 0.069414 | BC8: -1.171711675 | BD8: 0 | BE8: -1.169303542 | BF8: 0.064408 | BG8: -1.167707319 | BH8: 0 | BI8: -1.02081366 | BJ8: 0.058616 | BK8: -1.17040187 | BL8: 0.064659 | BM8: -1.143995557 | BN8: 0.064575 | BO8: -1.085681177 | BP8: 0.060761 | BQ8: -1.351899634 | BR8: 0.076351 | BS8: -1.350007314 | BT8: 0.076249 | BU8: -1.177821479 | BV8: 0.064862 | BW8: -1.360455578 | BX8: 0.07504 | BY8: -1.43732973 | BZ8: 0.093986 | CA8: -1.367424322 | CB8: 0.099206 | CC8: -1.230735386 | CD8: 0.09668 | CE8: -1.17346101 | CF8: 0.094592 | CG8: -0.3500648256 | CH8: 0.38994 | CI8: -1.192424057 | CJ8: 0.091529
C9: pDC2[4] | D9: RKF: female offset | E9: 1 | F9: ARITHMETIC | G9: -0.8346834456 | H9: 2.8636 | I9: 4.083682168 | J9: 3.4379 | K9: -1.57470597 | L9: 1.0378 | M9: -0.7788736742 | N9: 0 | O9: -2.85392809 | P9: 2.3039 | Q9: -2.857031512 | R9: 2.3095 | S9: -0.4140034904 | T9: 4.6257 | U9: -0.9580932488 | V9: 2.7284 | W9: -2.866236081 | X9: 2.3234 | Y9: -2.854770197 | Z9: 0 | AA9: -1.245311267 | AB9: 2.7698 | AC9: -1.2464902 | AD9: 2.7901 | AE9: -3.475501206 | AF9: 2.4392 | AG9: -3.251638501 | AH9: 0 | AI9: -1.232067419 | AJ9: 2.769 | AK9: -3.543082978 | AL9: 2.4485 | AM9: -3.31506907 | AN9: 2.327 | AO9: -1.841864815 | AP9: 2.0062 | AQ9: -1.838314745 | AR9: 2.0118 | AS9: -3.659127182 | AT9: 1.7632 | AU9: -3.552590793 | AV9: 0 | AW9: -1.812834745 | AX9: 2.0134 | AY9: -3.616906628 | AZ9: 1.7737 | BA9: -3.560773044 | BB9: 1.6981 | BC9: -1.65336583 | BD9: 0 | BE9: -1.652185177 | BF9: 2.0198 | BG9: -2.642155537 | BH9: 0 | BI9: -3.24474981 | BJ9: 1.6783 | BK9: -1.633413739 | BL9: 2.0026 | BM9: -3.199638341 | BN9: 1.7437 | BO9: -3.237429146 | BP9: 1.674 | BQ9: -1.858493411 | BR9: 2.0017 | BS9: -1.859709981 | BT9: 2.0058 | BU9: -3.493868409 | BV9: 1.7333 | BW9: -1.889043654 | BX9: 0.46093 | BY9: -1.457564785 | BZ9: 0.5933 | CA9: -2.091237566 | CB9: 1.1261 | CC9: -2.277299185 | CD9: 1.0337 | CE9: -2.263267545 | CF9: 1.0184 | CG9: -2.870191771 | CH9: 0.37738 | CI9: -1.727660428 | CJ9: 0.29005
C10: pHM[1] | D10: handling mortality for pot fisheries | E10: 1 | F10: ARITHMETIC | G10: 0.321 | H10: 0 | I10: 0.321 | J10: 0 | K10: 0.321 | L10: 0 | M10: 0.321 | N10: 0 | O10: 0.321 | P10: 0 | Q10: 0.321 | R10: 0 | S10: 0.321 | T10: 0 | U10: 0.321 | V10: 0 | W10: 0.321 | X10: 0 | Y10: 0.321 | Z10: 0 | AA10: 0.321 | AB10: 0 | AC10: 0.321 | AD10: 0 | AE10: 0.321 | AF10: 0 | AG10: 0.321 | AH10: 0 | AI10: 0.321 | AJ10: 0 | AK10: 0.321 | AL10: 0 | AM10: 0.321 | AN10: 0 | AO10: 0.321 | AP10: 0 | AQ10: 0.321 | AR10: 0 | AS10: 0.321 | AT10: 0 | AU10: 0.321 | AV10: 0 | AW10: 0.321 | AX10: 0 | AY10: 0.321 | AZ10: 0 | BA10: 0.321 | BB10: 0 | BC10: 0.321 | BD10: 0 | BE10: 0.321 | BF10: 0 | BG10: 0.321 | BH10: 0 | BI10: 0.321 | BJ10: 0 | BK10: 0.321 | BL10: 0 | BM10: 0.321 | BN10: 0 | BO10: 0.321 | BP10: 0 | BQ10: 0.321 | BR10: 0 | BS10: 0.321 | BT10: 0 | BU10: 0.321 | BV10: 0 | BW10: 0.321 | BX10: 0 | BY10: 0.5 | BZ10: 0 | CA10: 0.5 | CB10: 0 | CC10: 0.5 | CD10: 0 | CE10: 0.5 | CF10: 0 | CG10: 0.5 | CH10: 0 | CI10: 0.5 | CJ10: 0
C11: pHM[2] | D11: handling mortality for groundfish trawl fisheries | E11: 1 | F11: ARITHMETIC | G11: 0.8 | H11: 0 | I11: 0.8 | J11: 0 | K11: 0.8 | L11: 0 | M11: 0.8 | N11: 0 | O11: 0.8 | P11: 0 | Q11: 0.8 | R11: 0 | S11: 0.8 | T11: 0 | U11: 0.8 | V11: 0 | W11: 0.8 | X11: 0 | Y11: 0.8 | Z11: 0 | AA11: 0.8 | AB11: 0 | AC11: 0.8 | AD11: 0 | AE11: 0.8 | AF11: 0 | AG11: 0.8 | AH11: 0 | AI11: 0.8 | AJ11: 0 | AK11: 0.8 | AL11: 0 | AM11: 0.8 | AN11: 0 | AO11: 0.8 | AP11: 0 | AQ11: 0.8 | AR11: 0 | AS11: 0.8 | AT11: 0 | AU11: 0.8 | AV11: 0 | AW11: 0.8 | AX11: 0 | AY11: 0.8 | AZ11: 0 | BA11: 0.8 | BB11: 0 | BC11: 0.8 | BD11: 0 | BE11: 0.8 | BF11: 0 | BG11: 0.8 | BH11: 0 | BI11: 0.8 | BJ11: 0 | BK11: 0.8 | BL11: 0 | BM11: 0.8 | BN11: 0 | BO11: 0.8 | BP11: 0 | BQ11: 0.8 | BR11: 0 | BS11: 0.8 | BT11: 0 | BU11: 0.8 | BV11: 0 | BW11: 0.8 | BX11: 0 | BY11: 0.5 | BZ11: 0 | CA11: 0.5 | CB11: 0 | CC11: 0.5 | CD11: 0 | CE11: 0.5 | CF11: 0 | CG11: 0.5 | CH11: 0 | CI11: 0.5 | CJ11: 0
C12: pLgtRet[1] | D12: TCF: logit-scale max retention (pre-1997) | E12: 1 | F12: ARITHMETIC | G12: 14.99941852 | H12: 2.2514 | I12: 14.98585621 | J12: 54.419 | K12: 14.99957357 | L12: 1.6499 | M12: 14.99941964 | N12: 0 | O12: 14.99936532 | P12: 2.4573 | Q12: 14.99936602 | R12: 2.4546 | S12: 14.99940466 | T12: 2.3087 | U12: 14.99940115 | V12: 2.3186 | W12: 14.99937162 | X12: 2.433 | Y12: 14.99936799 | Z12: 0 | AA12: 14.9994203 | AB12: 2.2445 | AC12: 14.99941083 | AD12: 2.2716 | AE12: 14.99935327 | AF12: 2.5025 | AG12: 14.99939378 | AH12: 0 | AI12: 14.99943176 | AJ12: 2.2032 | AK12: 14.99937906 | AL12: 2.4043 | AM12: 14.99939909 | AN12: 2.3272 | AO12: 14.9994528 | AP12: 2.1187 | AQ12: 14.99945359 | AR12: 2.1157 | AS12: 14.99936597 | AT12: 2.4554 | AU12: 14.99945227 | AV12: 0 | AW12: 14.99951061 | AX12: 1.94 | AY12: 14.9993521 | AZ12: 2.4964 | BA12: 14.99941405 | BB12: 2.2687 | BC12: 14.99880468 | BD12: 0 | BE12: 14.99948877 | BF12: 1.9816 | BG12: 14.99946232 | BH12: 0 | BI12: 14.99947191 | BJ12: 2.0448 | BK12: 14.99951083 | BL12: 1.9149 | BM12: 14.99938415 | BN12: 2.3843 | BO12: 14.99945165 | BP12: 2.1235 | BQ12: 14.99952951 | BR12: 1.8237 | BS12: 14.99952827 | BT12: 1.8267 | BU12: 14.99951623 | BV12: 1.8742 | BW12: 14.9991978 | BX12: 3.1062 | BY12: 14.99884596 | BZ12: 4.0156 | CA12: 14.91047397 | CB12: 78.048 | CC12: 14.99671063 | CD12: 12.709 | CE12: 14.99711782 | CF12: 10.912 | CG12: 0.5348295634 | CH12: 0.060342 | CI12: 14.99383517 | CJ12: 24.084
C13: pLgtRet[2] | D13: TCF: logit-scale max retention (2005-2009) | E13: 1 | F13: ARITHMETIC | G13: 2.010576027 | H13: 1.1973 | I13: 14.14677837 | J13: 3419.7 | K13: 1.959115083 | L13: 1.104 | M13: 2.01653366 | N13: 0 | O13: 2.695233342 | P13: 2.3171 | Q13: 2.697083509 | R13: 2.3202 | S13: 1.965768793 | T13: 1.178 | U13: 1.981803638 | V13: 1.1934 | W13: 2.660395076 | X13: 2.2522 | Y13: 2.659393511 | Z13: 0 | AA13: 1.956160056 | AB13: 1.1762 | AC13: 1.955815156 | AD13: 1.1774 | AE13: 2.823234743 | AF13: 2.6871 | AG13: 2.457321661 | AH13: 0 | AI13: 1.903863871 | AJ13: 1.1249 | AK13: 2.895471027 | AL13: 2.8946 | AM13: 2.852353932 | AN13: 2.7255 | AO13: 2.289481334 | AP13: 1.5584 | AQ13: 2.285339719 | AR13: 1.5527 | AS13: 4.285982737 | AT13: 10.871 | AU13: 3.493845899 | AV13: 0 | AW13: 2.222196632 | AX13: 1.4648 | AY13: 4.232048071 | AZ13: 10.357 | BA13: 3.543289766 | BB13: 5.1693 | BC13: 1.967395574 | BD13: 0 | BE13: 1.961931736 | BF13: 1.1169 | BG13: 2.703365578 | BH13: 0 | BI13: 2.863736003 | BJ13: 2.5086 | BK13: 1.916275596 | BL13: 1.0775 | BM13: 3.210225886 | BN13: 3.6947 | BO13: 2.822594237 | BP13: 2.4544 | BQ13: 1.836884596 | BR13: 0.97758 | BS13: 1.83710794 | BT13: 0.97798 | BU13: 2.422769796 | BV13: 1.6345 | BW13: 14.8751101 | BX13: 251.92 | BY13: 14.40163094 | BZ13: 262.45 | CA13: 14.79449742 | CB13: 185.54 | CC13: 14.98828814 | CD13: 44.906 | CE13: 14.9889159 | CF13: 40.662 | CG13: 14.99343047 | CH13: 25.414 | CI13: 14.99342348 | CJ13: 24.84
C14: pLgtRet[3] | D14: TCF: logit-scale max retention (2013-2015) | E14: 1 | F14: ARITHMETIC | G14: 4.159002743 | H14: 2.554 | I14: 14.40697123 | J14: 3367.8 | K14: 5.076128756 | L14: 5.5203 | M14: 4.003082519 | N14: 0 | O14: 4.485136544 | P14: 3.5469 | Q14: 4.474084945 | R14: 3.5064 | S14: 4.218780525 | T14: 2.7351 | U14: 4.886719189 | V14: 5.4101 | W14: 4.388190067 | X14: 3.2272 | Y14: 4.388542005 | Z14: 0 | AA14: 14.92537592 | AB14: 278.86 | AC14: 14.19902341 | AD14: 541.77 | AE14: 14.97092008 | AF14: 114.32 | AG14: 4.746263587 | AH14: 0 | AI14: 14.89680961 | AJ14: 380.77 | AK14: 14.97260977 | AL14: 104.66 | AM14: 4.816115753 | AN14: 5.3027 | AO14: 14.92256309 | AP14: 387.37 | AQ14: 14.20318854 | AR14: 1683.8 | AS14: 14.9609997 | AT14: 148.07 | AU14: 4.84600898 | AV14: 0 | AW14: 7.932346167 | AX14: 117.57 | AY14: 14.965164 | AZ14: 133.18 | BA14: 5.69288091 | BB14: 12.271 | BC14: 5.706562668 | BD14: 0 | BE14: 4.126845699 | BF14: 2.5057 | BG14: 4.500998203 | BH14: 0 | BI14: 3.64594555 | BJ14: 1.5163 | BK14: 4.102143066 | BL14: 2.445 | BM14: 5.05876436 | BN14: 6.4401 | BO14: 3.794026068 | BP14: 1.7708 | BQ14: 4.12145154 | BR14: 2.5243 | BS14: 4.117393054 | BT14: 2.5144 | BU14: 3.608456836 | BV14: 1.4815 | BW14: 14.99895304 | BX14: 5.2899 | BY14: 14.99788866 | BZ14: 9.8851 | CA14: 14.61887101 | CB14: 179.56 | CC14: 14.99288485 | CD14: 27.186 | CE14: 14.99310774 | CF14: 26.173 | CG14: 1.37215853 | CH14: 0.18446 | CI14: 14.99301536 | CJ14: 27.164
C15: pLnC[1] | D15: TCF: base capture rate, pre-1965 (=0.05) | E15: 1 | F15: ARITHMETIC | G15: -2.995732274 | H15: 0 | I15: -2.995732274 | J15: 0 | K15: -2.995732274 | L15: 0 | M15: -2.995732274 | N15: 0 | O15: -2.995732274 | P15: 0 | Q15: -2.995732274 | R15: 0 | S15: -2.995732274 | T15: 0 | U15: -2.995732274 | V15: 0 | W15: -2.995732274 | X15: 0 | Y15: -2.995732274 | Z15: 0 | AA15: -2.995732274 | AB15: 0 | AC15: -2.995732274 | AD15: 0 | AE15: -2.995732274 | AF15: 0 | AG15: -2.995732274 | AH15: 0 | AI15: -2.995732274 | AJ15: 0 | AK15: -2.995732274 | AL15: 0 | AM15: -2.995732274 | AN15: 0 | AO15: -2.995732274 | AP15: 0 | AQ15: -2.995732274 | AR15: 0 | AS15: -2.995732274 | AT15: 0 | AU15: -2.995732274 | AV15: 0 | AW15: -2.995732274 | AX15: 0 | AY15: -2.995732274 | AZ15: 0 | BA15: -2.995732274 | BB15: 0 | BC15: -2.995732274 | BD15: 0 | BE15: -2.995732274 | BF15: 0 | BG15: -2.995732274 | BH15: 0 | BI15: -2.995732274 | BJ15: 0 | BK15: -2.995732274 | BL15: 0 | BM15: -2.995732274 | BN15: 0 | BO15: -2.995732274 | BP15: 0 | BQ15: -2.995732274 | BR15: 0 | BS15: -2.995732274 | BT15: 0 | BU15: -2.995732274 | BV15: 0 | BW15: -2.995732274 | BX15: 0 | BY15: 0 | BZ15: 0 | CA15: 0 | CB15: 0 | CC15: 0 | CD15: 0 | CE15: 0 | CF15: 0 | CG15: 0 | CH15: 0 | CI15: 0 | CJ15: 0
C16: pLnC[2] | D16: TCF: base capture rate, 1965+ | E16: 1 | F16: ARITHMETIC | G16: -1.355487113 | H16: 0.085275 | I16: -1.036419818 | J16: 0.18464 | K16: -1.41563186 | L16: 0.081261 | M16: -1.375359571 | N16: 0 | O16: -0.7643993993 | P16: 0.13119 | Q16: -0.6860545239 | R16: 0.14444 | S16: -1.565242429 | T16: 0.088726 | U16: -1.388588986 | V16: 0.085905 | W16: -0.7823543818 | X16: 0.1034 | Y16: -0.7741187751 | Z16: 0 | AA16: -1.494790296 | AB16: 0.085787 | AC16: -1.511236039 | AD16: 0.08617 | AE16: -1.038921924 | AF16: 0.23148 | AG16: -0.9509302608 | AH16: 0 | AI16: -1.438767312 | AJ16: 0.077382 | AK16: -0.734451991 | AL16: 0.15617 | AM16: -0.8311765542 | AN16: 0.12539 | AO16: -1.557100001 | AP16: 0.073542 | AQ16: -1.559701343 | AR16: 0.073524 | AS16: -0.779734191 | AT16: 0.14546 | AU16: -0.7444601711 | AV16: 0 | AW16: -1.486628724 | AX16: 0.069359 | AY16: -0.7636865115 | AZ16: 0.096205 | BA16: -0.7761213093 | BB16: 0.08674 | BC16: -1.432798641 | BD16: 0 | BE16: -1.437292425 | BF16: 0.073409 | BG16: -1.176896456 | BH16: 0 | BI16: -0.5535418212 | BJ16: 0.12941 | BK16: -1.429976584 | BL16: 0.072664 | BM16: -0.6323549399 | BN16: 0.082801 | BO16: -0.6113347239 | BP16: 0.15912 | BQ16: -1.397316064 | BR16: 0.067488 | BS16: -1.397763629 | BT16: 0.067529 | BU16: -0.6990644755 | BV16: 0.16548 | BW16: -1.449209222 | BX16: 0.06225 | BY16: -1.753695283 | BZ16: 0.0732 | CA16: -1.811555016 | CB16: 0.07904 | CC16: -0.9032956604 | CD16: 0.18533 | CE16: -0.887645787 | CF16: 0.18331 | CG16: -0.4621329463 | CH16: 0.183 | CI16: -0.8600455486 | CJ16: 0.20292
C17: pLnC[3] | D17: SCF: base capture rate, pre-1978 (=0.01) | E17: 1 | F17: ARITHMETIC | G17: -4.605170186 | H17: 0 | I17: -4.605170186 | J17: 0 | K17: -4.605170186 | L17: 0 | M17: -4.605170186 | N17: 0 | O17: -4.605170186 | P17: 0 | Q17: -4.605170186 | R17: 0 | S17: -4.605170186 | T17: 0 | U17: -4.605170186 | V17: 0 | W17: -4.605170186 | X17: 0 | Y17: -4.605170186 | Z17: 0 | AA17: -4.605170186 | AB17: 0 | AC17: -4.605170186 | AD17: 0 | AE17: -4.605170186 | AF17: 0 | AG17: -4.605170186 | AH17: 0 | AI17: -4.605170186 | AJ17: 0 | AK17: -4.605170186 | AL17: 0 | AM17: -4.605170186 | AN17: 0 | AO17: -4.605170186 | AP17: 0 | AQ17: -4.605170186 | AR17: 0 | AS17: -4.605170186 | AT17: 0 | AU17: -4.605170186 | AV17: 0 | AW17: -4.605170186 | AX17: 0 | AY17: -4.605170186 | AZ17: 0 | BA17: -4.605170186 | BB17: 0 | BC17: -4.605170186 | BD17: 0 | BE17: -4.605170186 | BF17: 0 | BG17: -4.605170186 | BH17: 0 | BI17: -4.605170186 | BJ17: 0 | BK17: -4.605170186 | BL17: 0 | BM17: -4.605170186 | BN17: 0 | BO17: -4.605170186 | BP17: 0 | BQ17: -4.605170186 | BR17: 0 | BS17: -4.605170186 | BT17: 0 | BU17: -4.605170186 | BV17: 0 | BW17: -4.605170186 | BX17: 0 | BY17: 0 | BZ17: 0 | CA17: 0 | CB17: 0 | CC17: 0 | CD17: 0 | CE17: 0 | CF17: 0 | CG17: 0 | CH17: 0 | CI17: 0 | CJ17: 0
C18: pLnC[4] | D18: SCF: base capture rate, 1992+ | E18: 1 | F18: ARITHMETIC | G18: -2.833999697 | H18: 0.102 | I18: -1.199632654 | J18: 0.23262 | K18: -2.910427768 | L18: 0.086917 | M18: -2.828844739 | N18: 0 | O18: -3.081667188 | P18: 0.18927 | Q18: -3.075875981 | R18: 0.18926 | S18: -3.120927341 | T18: 0.13508 | U18: -3.035236954 | V18: 0.12254 | W18: -3.14414163 | X18: 0.18622 | Y18: -3.15006391 | Z18: 0 | AA18: -3.121566142 | AB18: 0.11378 | AC18: -3.150208775 | AD18: 0.11633 | AE18: -3.307622961 | AF18: 0.18761 | AG18: -3.129440598 | AH18: 0 | AI18: -3.198640985 | AJ18: 0.11461 | AK18: -3.316026704 | AL18: 0.18729 | AM18: -3.207299707 | AN18: 0.18352 | AO18: -3.10024218 | AP18: 0.15356 | AQ18: -3.104773295 | AR18: 0.15391 | AS18: -3.187905636 | AT18: 0.20403 | AU18: -2.981887906 | AV18: 0 | AW18: -3.111927683 | AX18: 0.16836 | AY18: -3.267072573 | AZ18: 0.19896 | BA18: -3.116529992 | BB18: 0.1988 | BC18: -2.955451401 | BD18: 0 | BE18: -2.963992876 | BF18: 0.11475 | BG18: -3.125987578 | BH18: 0 | BI18: -2.857952589 | BJ18: 0.21098 | BK18: -3.008300183 | BL18: 0.13028 | BM18: -3.088937172 | BN18: 0.19628 | BO18: -2.927012592 | BP18: 0.19956 | BQ18: -2.935003778 | BR18: 0.10135 | BS18: -2.93611787 | BT18: 0.10146 | BU18: -2.869623936 | BV18: 0.24145 | BW18: -3.074484 | BX18: 0.096478 | BY18: -3.257880915 | BZ18: 0.085955 | CA18: -3.345090662 | CB18: 0.077586 | CC18: -2.818690016 | CD18: 0.1025 | CE18: -2.831549294 | CF18: 0.10652 | CG18: -0.8804393145 | CH18: 0.23774 | CI18: -2.755839178 | CJ18: 0.058898
C19: pLnC[5] | D19: DUMMY CAPTURE RATE | E19: 1 | F19: ARITHMETIC | G19: -4.180723944 | H19: 0 | I19: -4.180723944 | J19: 0 | K19: -4.180723944 | L19: 0 | M19: -4.180723944 | N19: 0 | O19: -4.180723944 | P19: 0 | Q19: -4.180723944 | R19: 0 | S19: -4.180723944 | T19: 0 | U19: -4.180723944 | V19: 0 | W19: -4.180723944 | X19: 0 | Y19: -4.180723944 | Z19: 0 | AA19: -4.180723944 | AB19: 0 | AC19: -4.180723944 | AD19: 0 | AE19: -4.180723944 | AF19: 0 | AG19: -4.180723944 | AH19: 0 | AI19: -4.180723944 | AJ19: 0 | AK19: -4.180723944 | AL19: 0 | AM19: -4.180723944 | AN19: 0 | AO19: -4.180723944 | AP19: 0 | AQ19: -4.180723944 | AR19: 0 | AS19: -4.180723944 | AT19: 0 | AU19: -4.180723944 | AV19: 0 | AW19: -4.180723944 | AX19: 0 | AY19: -4.180723944 | AZ19: 0 | BA19: -4.180723944 | BB19: 0 | BC19: -4.180723944 | BD19: 0 | BE19: -4.180723944 | BF19: 0 | BG19: -4.180723944 | BH19: 0 | BI19: -4.180723944 | BJ19: 0 | BK19: -4.180723944 | BL19: 0 | BM19: -4.180723944 | BN19: 0 | BO19: -4.180723944 | BP19: 0 | BQ19: -4.180723944 | BR19: 0 | BS19: -4.180723944 | BT19: 0 | BU19: -4.180723944 | BV19: 0 | BW19: -4.180723944 | BX19: 0 | BY19: 0 | BZ19: 0 | CA19: 0 | CB19: 0 | CC19: 0 | CD19: 0 | CE19: 0 | CF19: 0 | CG19: 0 | CH19: 0 | CI19: 0 | CJ19: 0
C20: pLnC[6] | D20: GTF: base capture rate, ALL YEARS | E20: 1 | F20: ARITHMETIC | G20: -4.331359273 | H20: 0.065338 | I20: -3.597467884 | J20: 0.10828 | K20: -4.460645377 | L20: 0.064687 | M20: -4.332548632 | N20: 0 | O20: -4.411705991 | P20: 0.075154 | Q20: -4.407661067 | R20: 0.075135 | S20: -4.615756953 | T20: 0.071613 | U20: -4.503845356 | V20: 0.072029 | W20: -4.469265786 | X20: 0.076979 | Y20: -4.470849214 | Z20: 0 | AA20: -4.508196751 | AB20: 0.074511 | AC20: -4.53088054 | AD20: 0.0753 | AE20: -4.531092327 | AF20: 0.08107 | AG20: -4.417330335 | AH20: 0 | AI20: -4.57313323 | AJ20: 0.067139 | AK20: -4.6180352 | AL20: 0.078466 | AM20: -4.479976723 | AN20: 0.078791 | AO20: -4.603884893 | AP20: 0.0592 | AQ20: -4.607494666 | AR20: 0.05911 | AS20: -4.573392453 | AT20: 0.074618 | AU20: -4.419495902 | AV20: 0 | AW20: -4.62067477 | AX20: 0.059237 | AY20: -4.628508127 | AZ20: 0.077105 | BA20: -4.518699694 | BB20: 0.073531 | BC20: -4.396445184 | BD20: 0 | BE20: -4.404367461 | BF20: 0.062567 | BG20: -4.448973178 | BH20: 0 | BI20: -4.174138855 | BJ20: 0.066142 | BK20: -4.451296376 | BL20: 0.064781 | BM20: -4.406012754 | BN20: 0.072536 | BO20: -4.243409651 | BP20: 0.068251 | BQ20: -4.333353581 | BR20: 0.057045 | BS20: -4.334149389 | BT20: 0.057023 | BU20: -4.183288771 | BV20: 0.06718 | BW20: -4.358112818 | BX20: 0.045374 | BY20: -4.388468425 | BZ20: 0.057319 | CA20: -4.36966326 | CB20: 0.049065 | CC20: -4.295802613 | CD20: 0.047213 | CE20: -4.340360059 | CF20: 0.047497 | CG20: -3.029580215 | CH20: 0.096305 | CI20: -4.363611153 | CJ20: 0.048905
C21: pLnC[7] | D21: RKF: base capture rate, pre-1953 (=0.02) | E21: 1 | F21: ARITHMETIC | G21: -3.912023005 | H21: 0 | I21: -3.912023005 | J21: 0 | K21: -3.912023005 | L21: 0 | M21: -3.912023005 | N21: 0 | O21: -3.912023005 | P21: 0 | Q21: -3.912023005 | R21: 0 | S21: -3.912023005 | T21: 0 | U21: -3.912023005 | V21: 0 | W21: -3.912023005 | X21: 0 | Y21: -3.912023005 | Z21: 0 | AA21: -3.912023005 | AB21: 0 | AC21: -3.912023005 | AD21: 0 | AE21: -3.912023005 | AF21: 0 | AG21: -3.912023005 | AH21: 0 | AI21: -3.912023005 | AJ21: 0 | AK21: -3.912023005 | AL21: 0 | AM21: -3.912023005 | AN21: 0 | AO21: -3.912023005 | AP21: 0 | AQ21: -3.912023005 | AR21: 0 | AS21: -3.912023005 | AT21: 0 | AU21: -3.912023005 | AV21: 0 | AW21: -3.912023005 | AX21: 0 | AY21: -3.912023005 | AZ21: 0 | BA21: -3.912023005 | BB21: 0 | BC21: -3.912023005 | BD21: 0 | BE21: -3.912023005 | BF21: 0 | BG21: -3.912023005 | BH21: 0 | BI21: -3.912023005 | BJ21: 0 | BK21: -3.912023005 | BL21: 0 | BM21: -3.912023005 | BN21: 0 | BO21: -3.912023005 | BP21: 0 | BQ21: -3.912023005 | BR21: 0 | BS21: -3.912023005 | BT21: 0 | BU21: -3.912023005 | BV21: 0 | BW21: -3.912023005 | BX21: 0 | BY21: 0 | BZ21: 0 | CA21: 0 | CB21: 0 | CC21: 0 | CD21: 0 | CE21: 0 | CF21: 0 | CG21: 0 | CH21: 0 | CI21: 0 | CJ21: 0
C22: pLnC[8] | D22: RKF: base capture rate, 1992+ | E22: 1 | F22: ARITHMETIC | G22: -3.958394723 | H22: 0.16229 | I22: -3.325620026 | J22: 0.48609 | K22: -3.934738735 | L22: 0.1487 | M22: -3.968311553 | N22: 0 | O22: -5.260932138 | P22: 2.8803 | Q22: -5.267428675 | R22: 32.962 | S22: -4.247679992 | T22: 0.16648 | U22: -4.059513673 | V22: 0.16512 | W22: -5.362434385 | X22: 140.07 | Y22: -5.34127741 | Z22: 0 | AA22: -4.036851686 | AB22: 0.16899 | AC22: -4.056752689 | AD22: 0.16928 | AE22: -5.375282068 | AF22: 21.687 | AG22: -5.438611083 | AH22: 0 | AI22: -4.119960837 | AJ22: 0.16242 | AK22: -5.410236975 | AL22: 79.171 | AM22: -5.366921978 | AN22: 1.2244 | AO22: -4.11421731 | AP22: 0.16357 | AQ22: -4.11856714 | AR22: 0.16342 | AS22: -5.468354233 | AT22: 23.119 | AU22: -5.652826877 | AV22: 0 | AW22: -4.149720087 | AX22: 0.16343 | AY22: -5.559597124 | AZ22: 103.42 | BA22: -5.909330691 | BB22: 25.466 | BC22: -4.181319357 | BD22: 0 | BE22: -4.189491259 | BF22: 0.16694 | BG22: -5.666550357 | BH22: 0 | BI22: -5.912636223 | BJ22: 4.0973 | BK22: -4.254178536 | BL22: 0.16852 | BM22: -5.377863608 | BN22: 9.8379 | BO22: -5.913399899 | BP22: 44.754 | BQ22: -4.172992385 | BR22: 0.18502 | BS22: -4.172440263 | BT22: 0.18506 | BU22: -6.816461071 | BV22: 21.705 | BW22: -5.197551437 | BX22: 0.091782 | BY22: -5.286303511 | BZ22: 0.095335 | CA22: -5.148570318 | CB22: 0.14169 | CC22: -5.098662945 | CD22: 0.13835 | CE22: -5.095445266 | CF22: 0.14472 | CG22: -5.186933083 | CH22: 0.4189 | CI22: -5.057180013 | CJ22: 0.092974
A23: population processes | B23: growth | C23: pGrA[1] | D23: males | E23: 1 | F23: ARITHMETIC | G23: 33.13630255 | H23: 0.36029 | I23: 32.03542871 | J23: 0.3717 | K23: 32.94302314 | L23: 0.33407 | M23: 33.5056589 | N23: 0 | O23: 33.14857516 | P23: 0.36471 | Q23: 33.18689836 | R23: 0.35415 | S23: 33.03305899 | T23: 0.35999 | U23: 32.81741752 | V23: 0.31695 | W23: 33.08183127 | X23: 0.36126 | Y23: 33.06915641 | Z23: 0 | AA23: 33.90987597 | AB23: 0.31369 | AC23: 33.8859143 | AD23: 0.44687 | AE23: 34.09574526 | AF23: 0.32176 | AG23: 34.3486551 | AH23: 0 | AI23: 33.97297297 | AJ23: 0.40211 | AK23: 33.95492912 | AL23: 0.41603 | AM23: 34.28531668 | AN23: 0.32296 | AO23: 35.13750671 | AP23: 0.29333 | AQ23: 35.17631449 | AR23: 0.29329 | AS23: 35.32031487 | AT23: 0.29867 | AU23: 35.78271617 | AV23: 0 | AW23: 35.15289249 | AX23: 0.30051 | AY23: 35.22318841 | AZ23: 0.29267 | BA23: 35.4834457 | BB23: 0.30954 | BC23: 35.65567585 | BD23: 0 | BE23: 35.68682724 | BF23: 0.29793 | BG23: 35.70061875 | BH23: 0 | BI23: 36.34776264 | BJ23: 0.31565 | BK23: 35.68674973 | BL23: 0.29559 | BM23: 36.09744194 | BN23: 0.29666 | BO23: 36.19428395 | BP23: 0.32045 | BQ23: 32.92649335 | BR23: 0.16939 | BS23: 32.94470769 | BT23: 0.16974 | BU23: 33.11763718 | BV23: 0.17524 | BW23: 33.07142079 | BX23: 0.16816 | BY23: 33.22560521 | BZ23: 0.17706 | CA23: 33.66652342 | CB23: 0.175 | CC23: 33.48845315 | CD23: 0.17444 | CE23: 34.50221559 | CF23: 0.18837 | CG23: 32.21933188 | CH23: 0.16328 | CI23: 33.85583569 | CJ23: 0.28499
C24: pGrA[2] | D24: females | E24: 1 | F24: ARITHMETIC | G24: 34.42408317 | H24: 0.43527 | I24: 33.25245501 | J24: 0.39605 | K24: 34.21990309 | L24: 0.42193 | M24: 34.82326154 | N24: 0 | O24: 34.32315574 | P24: 0.4338 | Q24: 34.38237906 | R24: 0.42726 | S24: 33.26843511 | T24: 0.37435 | U24: 33.99638285 | V24: 0.39964 | W24: 34.24176939 | X24: 0.43637 | Y24: 34.17781123 | Z24: 0 | AA24: 34.77803621 | AB24: 0.36324 | AC24: 34.76068543 | AD24: 0.4439 | AE24: 34.65465271 | AF24: 0.36172 | AG24: 34.79232009 | AH24: 0 | AI24: 34.82605351 | AJ24: 0.4273 | AK24: 34.50478773 | AL24: 0.42542 | AM24: 34.63524818 | AN24: 0.38369 | AO24: 35.63885661 | AP24: 0.34364 | AQ24: 35.67022397 | AR24: 0.34455 | AS24: 35.53646145 | AT24: 0.34282 | AU24: 35.85980895 | AV24: 0 | AW24: 35.64562704 | AX24: 0.34545 | AY24: 35.46661581 | AZ24: 0.33845 | BA24: 35.35825432 | BB24: 0.33466 | BC24: 36.31325862 | BD24: 0 | BE24: 36.34115875 | BF24: 0.3208 | BG24: 36.33182763 | BH24: 0 | BI24: 36.53731301 | BJ24: 0.32796 | BK24: 36.37597055 | BL24: 0.32171 | BM24: 36.35102029 | BN24: 0.32456 | BO24: 36.33532798 | BP24: 0.32753 | BQ24: 34.171998 | BR24: 0.20272 | BS24: 34.19892261 | BT24: 0.20265 | BU24: 34.17437995 | BV24: 0.20268 | BW24: 34.16410615 | BX24: 0.20279 | BY24: 34.02643603 | BZ24: 0.2114 | CA24: 34.09582712 | CB24: 0.21181 | CC24: 34.10686413 | CD24: 0.2122 | CE24: 34.40827267 | CF24: 0.2138 | CG24: 33.5951953 | CH24: 0.17831 | CI24: 33.81492971 | CJ24: 0.23918
C25: pGrB[1] | D25: males | E25: 1 | F25: ARITHMETIC | G25: 166.7852272 | H25: 1.1232 | I25: 161.8120568 | J25: 1.3121 | K25: 167.9429754 | L25: 0.98967 | M25: 166.3116102 | N25: 0 | O25: 166.9072572 | P25: 1.1197 | Q25: 166.9335684 | R25: 1.1178 | S25: 164.3780124 | T25: 1.2612 | U25: 164.1426824 | V25: 1.2499 | W25: 166.50221 | X25: 1.151 | Y25: 166.4815711 | Z25: 0 | AA25: 161.1306611 | AB25: 0.76124 | AC25: 160.9969423 | AD25: 0.75154 | AE25: 160.5946339 | AF25: 0.73776 | AG25: 162.9042767 | AH25: 0 | AI25: 160.8575666 | AJ25: 0.71494 | AK25: 160.0121159 | AL25: 0.68443 | AM25: 162.5328504 | AN25: 0.80944 | AO25: 160.0731774 | AP25: 0.63316 | AQ25: 160.0265191 | AR25: 0.63166 | AS25: 159.7485607 | AT25: 0.65079 | AU25: 161.2005064 | AV25: 0 | AW25: 160.0448464 | AX25: 0.63764 | AY25: 159.3896823 | AZ25: 0.64937 | BA25: 160.7271507 | BB25: 0.68801 | BC25: 163.9893048 | BD25: 0 | BE25: 163.8957854 | BF25: 0.73192 | BG25: 163.7109128 | BH25: 0 | BI25: 165.2876253 | BJ25: 0.73685 | BK25: 163.7307523 | BL25: 0.73125 | BM25: 162.726643 | BN25: 0.69241 | BO25: 164.997869 | BP25: 0.73991 | BQ25: 164.1386463 | BR25: 0.52539 | BS25: 164.1096513 | BT25: 0.52512 | BU25: 165.3326148 | BV25: 0.56782 | BW25: 163.6303388 | BX25: 0.49443 | BY25: 163.7471874 | BZ25: 0.55165 | CA25: 161.1157293 | CB25: 0.49693 | CC25: 162.1224973 | CD25: 0.49924 | CE25: 160.9940841 | CF25: 0.43518 | CG25: 160.0900548 | CH25: 0.61923 | CI25: 160.4335308 | CJ25: 0.43983
C26: pGrB[2] | D26: females | E26: 1 | F26: ARITHMETIC | G26: 115.1411022 | H26: 0.85318 | I26: 114.2925543 | J26: 1.0046 | K26: 116.2065566 | L26: 0.8228 | M26: 114.9659929 | N26: 0 | O26: 115.0204484 | P26: 0.85356 | Q26: 114.9935296 | R26: 0.83882 | S26: 116.4278478 | T26: 0.78448 | U26: 115.0764439 | V26: 0.80181 | W26: 115.0275535 | X26: 0.85164 | Y26: 115.0135883 | Z26: 0 | AA26: 114.0936425 | AB26: 0.82166 | AC26: 114.0348833 | AD26: 0.84603 | AE26: 114.0796325 | AF26: 0.82018 | AG26: 114.4982885 | AH26: 0 | AI26: 113.9753212 | AJ26: 0.84966 | AK26: 114.1436322 | AL26: 0.849 | AM26: 114.4523703 | AN26: 0.82901 | AO26: 116.2058884 | AP26: 0.59185 | AQ26: 116.1428523 | AR26: 0.59134 | AS26: 116.1327944 | AT26: 0.59755 | AU26: 116.6729434 | AV26: 0 | AW26: 116.1797407 | AX26: 0.59094 | AY26: 116.0605273 | AZ26: 0.5974 | BA26: 116.8096746 | BB26: 0.59693 | BC26: 116.8593092 | BD26: 0 | BE26: 116.7922643 | BF26: 0.58857 | BG26: 116.781127 | BH26: 0 | BI26: 117.268089 | BJ26: 0.6004 | BK26: 116.7472332 | BL26: 0.58926 | BM26: 116.698562 | BN26: 0.5897 | BO26: 117.2618485 | BP26: 0.59776 | BQ26: 117.0525325 | BR26: 0.45266 | BS26: 117.0038374 | BT26: 0.45232 | BU26: 117.2953693 | BV26: 0.45787 | BW26: 116.9904309 | BX26: 0.45244 | BY26: 117.9151747 | BZ26: 0.45811 | CA26: 118.017687 | CB26: 0.45854 | CC26: 117.9880096 | CD26: 0.45732 | CE26: 117.7691598 | CF26: 0.45686 | CG26: 114.2345269 | CH26: 0.45736 | CI26: 117.3770037 | CJ26: 0.45267
C27: pGrBeta[1] | D27: both sexes | E27: 1 | F27: ARITHMETIC | G27: 0.8198585641 | H27: 0.12915 | I27: 0.500000104 | J27: 7.3563e-05 | K27: 0.8689812776 | L27: 0.11988 | M27: 0.8824487166 | N27: 0 | O27: 0.8199666182 | P27: 0.13223 | Q27: 0.8281351535 | R27: 0.1316 | S27: 0.6702356028 | T27: 0.11452 | U27: 0.5977733772 | V27: 0.099841 | W27: 0.7811355428 | X27: 0.12833 | Y27: 0.7737587171 | Z27: 0 | AA27: 0.9999922949 | AB27: 0.0054457 | AC27: 0.9676989877 | AD27: 0.17126 | AE27: 0.999957512 | AF27: 0.029628 | AG27: 0.9999998959 | AH27: 0 | AI27: 0.9869747304 | AJ27: 0.15592 | AK27: 0.905669951 | AL27: 0.14667 | AM27: 0.9999996629 | AN27: 0.00017935 | AO27: 0.9999999482 | AP27: 3.6667e-05 | AQ27: 0.9999999469 | AR27: 3.7572e-05 | AS27: 0.9999999478 | AT27: 3.6902e-05 | AU27: 0.9999998191 | AV27: 0 | AW27: 0.999999947 | AX27: 3.7522e-05 | AY27: 0.9999999389 | AZ27: 4.3186e-05 | BA27: 0.9999999586 | BB27: 2.9298e-05 | BC27: 0.9999997814 | BD27: 0 | BE27: 0.9999999793 | BF27: 1.4649e-05 | BG27: 0.999999979 | BH27: 0 | BI27: 0.9999999853 | BJ27: 1.0362e-05 | BK27: 0.9999999792 | BL27: 1.4685e-05 | BM27: 0.99999998 | BN27: 1.414e-05 | BO27: 0.9999999842 | BP27: 1.1177e-05 | BQ27: 0.9999999447 | BR27: 3.9128e-05 | BS27: 0.9999999434 | BT27: 3.9974e-05 | BU27: 0.9999999733 | BV27: 1.8892e-05 | BW27: 0.9999999504 | BX27: 3.5056e-05 | BY27: 0.9999999725 | BZ27: 1.9464e-05 | CA27: 0.9999999672 | CB27: 2.3163e-05 | CC27: 0.9999999668 | CD27: 2.3457e-05 | CE27: 0.9999998504 | CF27: 0.00010582 | CG27: 0.5000000148 | CH27: 1.0483e-05 | CI27: 0.7504419427 | CJ27: 0.09154
B28: maturity | C28: pLgtPrM2M[1] | D28: males (entire model period) | E28: 1 | F28: ARITHMETIC | G28: -12.08656763 | H28: 7.4406 | I28: 4.719430449 | J28: 3.1749 | K28: -11.66787186 | L28: 7.3761 | M28: -12.50013886 | N28: 0 | O28: -12.19631647 | P28: 7.4748 | Q28: -12.19673948 | R28: 7.475 | S28: -12.86395541 | T28: 7.6688 | U28: -12.13768439 | V28: 7.4047 | W28: -12.16081144 | X28: 7.4687 | Y28: -12.21043665 | Z28: 0 | AA28: 1.386694584 | AB28: 0.85389 | AC28: 1.437507187 | AD28: 0.86064 | AE28: 1.490252733 | AF28: 0.86889 | AG28: 1.603183755 | AH28: 0 | AI28: 1.482068665 | AJ28: 0.86663 | AK28: 1.517946577 | AL28: 0.87235 | AM28: 1.599192788 | AN28: 0.88696 | AO28: 1.868952969 | AP28: 0.92146 | AQ28: 1.9136782 | AR28: 0.92933 | AS28: 2.001114683 | AT28: 0.9468 | AU28: 2.293027708 | AV28: 0 | AW28: 1.889768859 | AX28: 0.92601 | AY28: 1.939892553 | AZ28: 0.93371 | BA28: 2.103562098 | BB28: 0.96929 | BC28: 2.238893394 | BD28: 0 | BE28: 2.28351581 | BF28: 1.0006 | BG28: 2.281848812 | BH28: 0 | BI28: 2.913251075 | BJ28: 1.1414 | BK28: 2.299486339 | BL28: 1.003 | BM28: 2.682246371 | BN28: 1.0845 | BO28: 2.857588331 | BP28: 1.1324 | BQ28: 2.346362965 | BR28: 0.63789 | BS28: 2.38220593 | BT28: 0.64312 | BU28: 2.385733255 | BV28: 0.64312 | BW28: 2.384475713 | BX28: 0.64348 | BY28: 2.527299316 | BZ28: 0.66753 | CA28: 2.657904458 | CB28: 0.69149 | CC28: 2.63232776 | CD28: 0.68691 | CE28: -3.624992193 | CF28: 0.12723 | CG28: -3.313712884 | CH28: 0.13502 | CI28: -3.566898708 | CJ28: 0.12841
E29: 2 | F29: ARITHMETIC | G29: -10.89178009 | H29: 5.6122 | I29: 3.362090181 | J29: 1.8986 | K29: -10.51472742 | L29: 5.5562 | M29: -11.25750888 | N29: 0 | O29: -10.99216492 | P29: 5.6419 | Q29: -10.99254621 | R29: 5.642 | S29: -11.57023249 | T29: 5.8074 | U29: -10.90357621 | V29: 5.5792 | W29: -10.95935706 | X29: 5.6366 | Y29: -11.00302677 | Z29: 0 | AA29: -1.018471639 | AB29: 0.278 | AC29: -0.9710518086 | AD29: 0.28342 | AE29: -0.933047003 | AF29: 0.28746 | AG29: -0.8401855943 | AH29: 0 | AI29: -0.9279715274 | AJ29: 0.2847 | AK29: -0.9093911189 | AL29: 0.29217 | AM29: -0.8395803504 | AN29: 0.30007 | AO29: -0.7585939001 | AP29: 0.30933 | AQ29: -0.7199587761 | AR29: 0.3131 | AS29: -0.6515748844 | AT29: 0.32418 | AU29: -0.452854648 | AV29: 0 | AW29: -0.7437754065 | AX29: 0.31314 | AY29: -0.6999493266 | AZ29: 0.31479 | BA29: -0.5793793065 | BB29: 0.33998 | BC29: -0.4958940264 | BD29: 0 | BE29: -0.4597255192 | BF29: 0.34951 | BG29: -0.4652282774 | BH29: 0 | BI29: -0.0496329467 | BJ29: 0.43011 | BK29: -0.4453716205 | BL29: 0.34981 | BM29: -0.1739429157 | BN29: 0.3946 | BO29: -0.0573478681 | BP29: 0.42695 | BQ29: -0.7988310978 | BR29: 0.15003 | BS29: -0.7493699927 | BT29: 0.15076 | BU29: -0.7642962682 | BV29: 0.15298 | BW29: -0.7460622081 | BX29: 0.15451 | BY29: -0.4786942067 | BZ29: 0.16948 | CA29: -0.3254568708 | CB29: 0.18531 | CC29: -0.3243379797 | CD29: 0.18283 | CE29: -4.392704224 | CF29: 0.14421 | CG29: -4.451528934 | CH29: 0.16003 | CI29: -4.39837427 | CJ29: 0.1472
E30: 3 | F30: ARITHMETIC | G30: -9.696992938 | H30: 4.0135 | I30: 2.004756932 | J30: 1.0088 | K30: -9.361584266 | L30: 3.9673 | M30: -10.01487929 | N30: 0 | O30: -9.788013866 | P30: 4.0382 | Q30: -9.788353453 | R30: 4.0381 | S30: -10.27650966 | T30: 4.1712 | U30: -9.669468141 | V30: 3.9835 | W30: -9.757903099 | X30: 4.0337 | Y30: -9.795617235 | Z30: 0 | AA30: -2.645789035 | AB30: 0.21468 | AC30: -2.628963085 | AD30: 0.21518 | AE30: -2.636473821 | AF30: 0.21482 | AG30: -2.623514987 | AH30: 0 | AI30: -2.613888023 | AJ30: 0.21507 | AK30: -2.627203774 | AL30: 0.21543 | AM30: -2.615759146 | AN30: 0.21482 | AO30: -2.850010089 | AP30: 0.20279 | AQ30: -2.83793883 | AR30: 0.2028 | AS30: -2.826900056 | AT30: 0.20342 | AU30: -2.831495462 | AV30: 0 | AW30: -2.850805477 | AX30: 0.20301 | AY30: -2.835879881 | AZ30: 0.20291 | BA30: -2.826518121 | BB30: 0.20441 | BC30: -2.844042587 | BD30: 0 | BE30: -2.832653179 | BF30: 0.20196 | BG30: -2.841437804 | BH30: 0 | BI30: -2.806448773 | BJ30: 0.20474 | BK30: -2.825229595 | BL30: 0.20184 | BM30: -2.773893248 | BN30: 0.20332 | BO30: -2.755026043 | BP30: 0.20533 | BQ30: -2.254936991 | BR30: 0.11277 | BS30: -2.239580537 | BT30: 0.11276 | BU30: -2.270888797 | BV30: 0.11258 | BW30: -2.234298663 | BX30: 0.11311 | BY30: -2.027991377 | BZ30: 0.11592 | CA30: -2.009838821 | CB30: 0.11622 | CC30: -1.952880522 | CD30: 0.11679 | CE30: -3.478328182 | CF30: 0.090358 | CG30: -3.444966759 | CH30: 0.097118 | CI30: -3.445662668 | CJ30: 0.091667
E31: 4 | F31: ARITHMETIC | G31: -8.503192531 | H31: 2.678 | I31: 0.709158032 | J31: 0.57051 | K31: -8.209611107 | L31: 2.6422 | M31: -8.772919091 | N31: 0 | O31: -8.584779831 | P31: 2.6973 | Q31: -8.585070239 | R31: 2.6971 | S31: -8.983379654 | T31: 2.795 | U31: -8.436373337 | V31: 2.6506 | W31: -8.557384538 | X31: 2.6935 | Y31: -8.589111305 | Z31: 0 | AA31: -3.414087828 | AB31: 0.18726 | AC31: -3.411348626 | AD31: 0.18766 | AE31: -3.425728975 | AF31: 0.18741 | AG31: -3.449074812 | AH31: 0 | AI31: -3.406564329 | AJ31: 0.18773 | AK31: -3.424099418 | AL31: 0.18783 | AM31: -3.43998805 | AN31: 0.18737 | AO31: -3.595374014 | AP31: 0.17553 | AQ31: -3.591330164 | AR31: 0.17557 | AS31: -3.593178331 | AT31: 0.17598 | AU31: -3.642426433 | AV31: 0 | AW31: -3.598730837 | AX31: 0.17556 | AY31: -3.591837334 | AZ31: 0.17578 | BA31: -3.608285824 | BB31: 0.17649 | BC31: -3.6520411 | BD31: 0 | BE31: -3.647430778 | BF31: 0.17611 | BG31: -3.655447143 | BH31: 0 | BI31: -3.700808035 | BJ31: 0.17753 | BK31: -3.642426989 | BL31: 0.17606 | BM31: -3.638454366 | BN31: 0.17678 | BO31: -3.644865191 | BP31: 0.17762 | BQ31: -3.060987989 | BR31: 0.093215 | BS31: -3.056717597 | BT31: 0.093228 | BU31: -3.093014425 | BV31: 0.093224 | BW31: -3.057406176 | BX31: 0.093238 | BY31: -2.900539701 | BZ31: 0.094634 | CA31: -2.901728405 | CB31: 0.094793 | CC31: -2.848627243 | CD31: 0.094723 | CE31: -3.302475652 | CF31: 0.085941 | CG31: -3.280365865 | CH31: 0.092828 | CI31: -3.283073702 | CJ31: 0.087267
E32: 5 | F32: ARITHMETIC | G32: -7.320558891 | H32: 1.6241 | I32: -0.2026534183 | J32: 0.42171 | K32: -7.070383685 | L32: 1.5952 | M32: -7.539449433 | N32: 0 | O32: -7.392160583 | P32: 1.6392 | Q32: -7.392356265 | R32: 1.639 | S32: -7.69779721 | T32: 1.7093 | U32: -7.214809609 | V32: 1.5972 | W32: -7.367667217 | X32: 1.6355 | Y32: -7.39311566 | Z32: 0 | AA32: -3.752732651 | AB32: 0.20994 | AC32: -3.750749541 | AD32: 0.21002 | AE32: -3.769222875 | AF32: 0.20984 | AG32: -3.818595569 | AH32: 0 | AI32: -3.749494946 | AJ32: 0.20983 | AK32: -3.761140121 | AL32: 0.20973 | AM32: -3.809421589 | AN32: 0.20958 | AO32: -4.091009519 | AP32: 0.19846 | AQ32: -4.089916762 | AR32: 0.19846 | AS32: -4.098035326 | AT32: 0.19866 | AU32: -4.184142585 | AV32: 0 | AW32: -4.095813649 | AX32: 0.19844 | AY32: -4.091993275 | AZ32: 0.19865 | BA32: -4.132581256 | BB32: 0.19868 | BC32: -4.185468723 | BD32: 0 | BE32: -4.183106188 | BF32: 0.19828 | BG32: -4.19198063 | BH32: 0 | BI32: -4.298198654 | BJ32: 0.19816 | BK32: -4.178326431 | BL32: 0.19826 | BM32: -4.193610871 | BN32: 0.19835 | BO32: -4.229928852 | BP32: 0.19886 | BQ32: -3.382004135 | BR32: 0.10705 | BS32: -3.380208825 | BT32: 0.10706 | BU32: -3.433965557 | BV32: 0.107 | BW32: -3.379567026 | BX32: 0.10702 | BY32: -3.257623911 | BZ32: 0.1078 | CA32: -3.265224407 | CB32: 0.10788 | CC32: -3.199778884 | CD32: 0.10782 | CE32: -2.809332112 | CF32: 0.061424 | CG32: -2.84307467 | CH32: 0.066061 | CI32: -2.812592831 | CJ32: 0.062274
E33: 6 | F33: ARITHMETIC | G33: -6.16231724 | H33: 0.90908 | I33: -0.1842720529 | J33: 0.38195 | K33: -5.953541664 | L33: 0.8962 | M33: -6.329368454 | N33: 0 | O33: -6.223993039 | P33: 0.91901 | Q33: -6.224178961 | R33: 0.91873 | S33: -6.43446541 | T33: 0.96964 | U33: -6.018732901 | V33: 0.87896 | W33: -6.202117653 | X33: 0.91614 | Y33: -6.221094975 | Z33: 0 | AA33: -4.039661478 | AB33: 0.23753 | AC33: -4.038671274 | AD33: 0.23756 | AE33: -4.053348247 | AF33: 0.23728 | AG33: -4.112447788 | AH33: 0 | AI33: -4.038243388 | AJ33: 0.23749 | AK33: -4.047302826 | AL33: 0.2371 | AM33: -4.10561227 | AN33: 0.23698 | AO33: -4.431864167 | AP33: 0.22131 | AQ33: -4.431310763 | AR33: 0.22134 | AS33: -4.437310949 | AT33: 0.22147 | AU33: -4.538022131 | AV33: 0 | AW33: -4.436990544 | AX33: 0.22133 | AY33: -4.432257317 | AZ33: 0.22146 | BA33: -4.485827064 | BB33: 0.22115 | BC33: -4.539032765 | BD33: 0 | BE33: -4.536839529 | BF33: 0.22147 | BG33: -4.546138039 | BH33: 0 | BI33: -4.69807613 | BJ33: 0.22084 | BK33: -4.532434299 | BL33: 0.22146 | BM33: -4.551102923 | BN33: 0.22154 | BO33: -4.629013569 | BP33: 0.22143 | BQ33: -3.754155403 | BR33: 0.12292 | BS33: -3.753100217 | BT33: 0.12292 | BU33: -3.817211109 | BV33: 0.12278 | BW33: -3.753847916 | BX33: 0.12284 | BY33: -3.67219976 | BZ33: 0.12329 | CA33: -3.680709229 | CB33: 0.12339 | CC33: -3.606428051 | CD33: 0.12336 | CE33: -2.435879467 | CF33: 0.048435 | CG33: -2.492066032 | CH33: 0.051971 | CI33: -2.429652576 | CJ33: 0.049078
E34: 7 | F34: ARITHMETIC | G34: -5.10424414 | H34: 0.54113 | I34: -0.2665842574 | J34: 0.33537 | K34: -4.935475285 | L34: 0.55476 | M34: -5.220585336 | N34: 0 | O34: -5.155015431 | P34: 0.54614 | Q34: -5.155317861 | R34: 0.54537 | S34: -5.270311133 | T34: 0.58732 | U34: -4.918086997 | V34: 0.52105 | W34: -5.135456669 | X34: 0.54569 | Y34: -5.147963254 | Z34: 0 | AA34: -4.322538519 | AB34: 0.24569 | AC34: -4.321784028 | AD34: 0.24568 | AE34: -4.331799175 | AF34: 0.24531 | AG34: -4.394260593 | AH34: 0 | AI34: -4.323076687 | AJ34: 0.24567 | AK34: -4.326691234 | AL34: 0.24505 | AM34: -4.388502304 | AN34: 0.24492 | AO34: -4.468794968 | AP34: 0.21431 | AQ34: -4.468558369 | AR34: 0.21437 | AS34: -4.474945642 | AT34: 0.21447 | AU34: -4.574919334 | AV34: 0 | AW34: -4.473764507 | AX34: 0.21439 | AY34: -4.471257878 | AZ34: 0.2144 | BA34: -4.532257171 | BB34: 0.21382 | BC34: -4.573504406 | BD34: 0 | BE34: -4.571521789 | BF34: 0.21494 | BG34: -4.578767449 | BH34: 0 | BI34: -4.733243814 | BJ34: 0.21494 | BK34: -4.568034007 | BL34: 0.21491 | BM34: -4.585603111 | BN34: 0.21517 | BO34: -4.680349177 | BP34: 0.21498 | BQ34: -4.470511896 | BR34: 0.14298 | BS34: -4.470265429 | BT34: 0.143 | BU34: -4.529437444 | BV34: 0.14263 | BW34: -4.472933474 | BX34: 0.14291 | BY34: -4.414045389 | BZ34: 0.1427 | CA34: -4.420076137 | CB34: 0.14274 | CC34: -4.364008058 | CD34: 0.14312 | CE34: -1.640075229 | CF34: 0.035498 | CG34: -1.690478595 | CH34: 0.038372 | CI34: -1.621600775 | CJ34: 0.036152
E35: 8 | F35: ARITHMETIC | G35: -4.477305155 | H35: 0.3642 | I35: -0.4491718451 | J35: 0.31067 | K35: -4.371801805 | L35: 0.38806 | M35: -4.546669698 | N35: 0 | O35: -4.514542026 | P35: 0.36633 | Q35: -4.513722251 | R35: 0.36563 | S35: -4.571235075 | T35: 0.3856 | U35: -4.281032526 | V35: 0.36207 | W35: -4.501473015 | X35: 0.36706 | Y35: -4.510302701 | Z35: 0 | AA35: -3.631996597 | AB35: 0.17766 | AC35: -3.630296037 | AD35: 0.17784 | AE35: -3.642184947 | AF35: 0.17732 | AG35: -3.718585031 | AH35: 0 | AI35: -3.631274733 | AJ35: 0.17755 | AK35: -3.633228578 | AL35: 0.17717 | AM35: -3.713797681 | AN35: 0.17653 | AO35: -3.853814549 | AP35: 0.16084 | AQ35: -3.853794752 | AR35: 0.16085 | AS35: -3.865076006 | AT35: 0.16093 | AU35: -3.978077919 | AV35: 0 | AW35: -3.858337933 | AX35: 0.16085 | AY35: -3.860407694 | AZ35: 0.16095 | BA35: -3.941447024 | BB35: 0.16055 | BC35: -3.9509548 | BD35: 0 | BE35: -3.949454217 | BF35: 0.16079 | BG35: -3.955884533 | BH35: 0 | BI35: -4.101206125 | BJ35: 0.16048 | BK35: -3.946708611 | BL35: 0.16079 | BM35: -3.962626709 | BN35: 0.16081 | BO35: -4.062420542 | BP35: 0.16074 | BQ35: -3.536174287 | BR35: 0.090081 | BS35: -3.535869303 | BT35: 0.090082 | BU35: -3.600603037 | BV35: 0.090008 | BW35: -3.536866597 | BX35: 0.090019 | BY35: -3.506052638 | BZ35: 0.090476 | CA35: -3.511843704 | CB35: 0.090553 | CC35: -3.451866013 | CD35: 0.090484 | CE35: -0.9150833616 | CF35: 0.029723 | CG35: -0.9378146003 | CH35: 0.032384 | CI35: -0.9055060138 | CJ35: 0.030161
E36: 9 | F36: ARITHMETIC | G36: -4.08962775 | H36: 0.29024 | I36: -0.6003742323 | J36: 0.3129 | K36: -4.086552902 | L36: 0.30709 | M36: -4.129092767 | N36: 0 | O36: -4.123588946 | P36: 0.29124 | Q36: -4.122025281 | R36: 0.29086 | S36: -4.193092086 | T36: 0.29661 | U36: -3.96427219 | V36: 0.29101 | W36: -4.116926846 | X36: 0.29202 | Y36: -4.123705956 | Z36: 0 | AA36: -3.398158705 | AB36: 0.16238 | AC36: -3.398433762 | AD36: 0.16243 | AE36: -3.406680936 | AF36: 0.16211 | AG36: -3.473282838 | AH36: 0 | AI36: -3.397063817 | AJ36: 0.16237 | AK36: -3.401961624 | AL36: 0.162 | AM36: -3.471156267 | AN36: 0.16122 | AO36: -3.618850925 | AP36: 0.14671 | AQ36: -3.619106522 | AR36: 0.14671 | AS36: -3.628005542 | AT36: 0.14667 | AU36: -3.732022414 | AV36: 0 | AW36: -3.622917559 | AX36: 0.1467 | AY36: -3.623814479 | AZ36: 0.14667 | BA36: -3.704705501 | BB36: 0.14566 | BC36: -3.690636788 | BD36: 0 | BE36: -3.689429575 | BF36: 0.14657 | BG36: -3.69654043 | BH36: 0 | BI36: -3.837456473 | BJ36: 0.1454 | BK36: -3.6868388 | BL36: 0.14654 | BM36: -3.700318448 | BN36: 0.14641 | BO36: -3.806678255 | BP36: 0.14563 | BQ36: -3.34876619 | BR36: 0.085638 | BS36: -3.348531477 | BT36: 0.085639 | BU36: -3.405632839 | BV36: 0.085451 | BW36: -3.349310483 | BX36: 0.085575 | BY36: -3.341062853 | BZ36: 0.086061 | CA36: -3.346447141 | CB36: 0.086118 | CC36: -3.276672469 | CD36: 0.086107 | CE36: -0.5201426906 | CF36: 0.026427 | CG36: -0.5694055284 | CH36: 0.029103 | CI36: -0.5355409444 | CJ36: 0.02675
E37: 10 | F37: ARITHMETIC | G37: -3.448299308 | H37: 0.22394 | I37: -0.7362574418 | J37: 0.30984 | K37: -3.437191628 | L37: 0.2372 | M37: -3.46571972 | N37: 0 | O37: -3.489459346 | P37: 0.22462 | Q37: -3.489430678 | R37: 0.22449 | S37: -3.522248031 | T37: 0.22662 | U37: -3.340169051 | V37: 0.22588 | W37: -3.479954922 | X37: 0.22509 | Y37: -3.482475133 | Z37: 0 | AA37: -2.899379929 | AB37: 0.12036 | AC37: -2.900937838 | AD37: 0.1205 | AE37: -2.908157373 | AF37: 0.12016 | AG37: -2.949573724 | AH37: 0 | AI37: -2.899735671 | AJ37: 0.12052 | AK37: -2.908566483 | AL37: 0.1203 | AM37: -2.949295537 | AN37: 0.11965 | AO37: -3.060659985 | AP37: 0.10916 | AQ37: -3.060827076 | AR37: 0.10916 | AS37: -3.066703929 | AT37: 0.1092 | AU37: -3.149864599 | AV37: 0 | AW37: -3.064022598 | AX37: 0.10916 | AY37: -3.066457447 | AZ37: 0.10921 | BA37: -3.135386534 | BB37: 0.109 | BC37: -3.113622068 | BD37: 0 | BE37: -3.112440524 | BF37: 0.1093 | BG37: -3.120778148 | BH37: 0 | BI37: -3.262794547 | BJ37: 0.10898 | BK37: -3.110564711 | BL37: 0.10931 | BM37: -3.12540688 | BN37: 0.10934 | BO37: -3.240452491 | BP37: 0.10914 | BQ37: -2.841421434 | BR37: 0.061067 | BS37: -2.841237061 | BT37: 0.061067 | BU37: -2.885642843 | BV37: 0.061088 | BW37: -2.845424844 | BX37: 0.061014 | BY37: -2.850753334 | BZ37: 0.06177 | CA37: -2.851443505 | CB37: 0.061859 | CC37: -2.786728485 | CD37: 0.06163 | CE37: -0.2473653037 | CF37: 0.026116 | CG37: -0.324747702 | CH37: 0.028864 | CI37: -0.2680484518 | CJ37: 0.026373
E38: 11 | F38: ARITHMETIC | G38: -2.913423556 | H38: 0.17497 | I38: -0.9315857947 | J38: 0.31555 | K38: -2.873167484 | L38: 0.18269 | M38: -2.917400904 | N38: 0 | O38: -2.950434536 | P38: 0.17478 | Q38: -2.951863164 | R38: 0.17474 | S38: -2.894556909 | T38: 0.17037 | U38: -2.712176798 | V38: 0.17263 | W38: -2.933469875 | X38: 0.17492 | Y38: -2.933218118 | Z38: 0 | AA38: -2.467446424 | AB38: 0.094319 | AC38: -2.466482422 | AD38: 0.094465 | AE38: -2.478194796 | AF38: 0.094164 | AG38: -2.526541643 | AH38: 0 | AI38: -2.467003531 | AJ38: 0.094364 | AK38: -2.473316205 | AL38: 0.094196 | AM38: -2.524696433 | AN38: 0.093848 | AO38: -2.617201711 | AP38: 0.087467 | AQ38: -2.617277599 | AR38: 0.087469 | AS38: -2.627247108 | AT38: 0.087476 | AU38: -2.70380706 | AV38: 0 | AW38: -2.620290151 | AX38: 0.087459 | AY38: -2.627195349 | AZ38: 0.087484 | BA38: -2.691750683 | BB38: 0.087326 | BC38: -2.678189006 | BD38: 0 | BE38: -2.676920181 | BF38: 0.087732 | BG38: -2.683954088 | BH38: 0 | BI38: -2.819619791 | BJ38: 0.087408 | BK38: -2.674842791 | BL38: 0.087735 | BM38: -2.693673297 | BN38: 0.087783 | BO38: -2.802931198 | BP38: 0.087543 | BQ38: -2.462116165 | BR38: 0.048043 | BS38: -2.461919205 | BT38: 0.048043 | BU38: -2.505573335 | BV38: 0.048092 | BW38: -2.465894456 | BX38: 0.047991 | BY38: -2.472141891 | BZ38: 0.048901 | CA38: -2.465581794 | CB38: 0.048929 | CC38: -2.41499713 | CD38: 0.048767 | CE38: -0.2243194382 | CF38: 0.026538 | CG38: -0.3222160265 | CH38: 0.029485 | CI38: -0.2316993933 | CJ38: 0.027124
E39: 12 | F39: ARITHMETIC | G39: -2.48733516 | H39: 0.14394 | I39: -1.146783111 | J39: 0.32166 | K39: -2.485135565 | L39: 0.14858 | M39: -2.488521286 | N39: 0 | O39: -2.505776564 | P39: 0.14369 | Q39: -2.506384916 | R39: 0.1437 | S39: -2.461307825 | T39: 0.14011 | U39: -2.29173152 | V39: 0.14512 | W39: -2.493173708 | X39: 0.14377 | Y39: -2.493209899 | Z39: 0 | AA39: -1.774894887 | AB39: 0.070615 | AC39: -1.772155071 | AD39: 0.071077 | AE39: -1.785499422 | AF39: 0.070476 | AG39: -1.846409171 | AH39: 0 | AI39: -1.772423782 | AJ39: 0.070535 | AK39: -1.777145936 | AL39: 0.070453 | AM39: -1.843727033 | AN39: 0.070206 | AO39: -1.847593864 | AP39: 0.064729 | AQ39: -1.847707354 | AR39: 0.06473 | AS39: -1.864653767 | AT39: 0.064876 | AU39: -1.94423927 | AV39: 0 | AW39: -1.850832042 | AX39: 0.064718 | AY39: -1.86243955 | AZ39: 0.064886 | BA39: -1.930206173 | BB39: 0.064683 | BC39: -1.909981869 | BD39: 0 | BE39: -1.908987268 | BF39: 0.065065 | BG39: -1.914887688 | BH39: 0 | BI39: -2.027938388 | BJ39: 0.064735 | BK39: -1.90676823 | BL39: 0.065072 | BM39: -1.927099606 | BN39: 0.065089 | BO39: -2.015456069 | BP39: 0.064852 | BQ39: -1.669667571 | BR39: 0.034968 | BS39: -1.669481289 | BT39: 0.034968 | BU39: -1.709384194 | BV39: 0.034964 | BW39: -1.670397911 | BX39: 0.034924 | BY39: -1.666518597 | BZ39: 0.036138 | CA39: -1.658246028 | CB39: 0.036064 | CC39: -1.620798355 | CD39: 0.036009 | CE39: 0.1946754138 | CF39: 0.029821 | CG39: 0.1385330995 | CH39: 0.032934 | CI39: 0.1951262106 | CJ39: 0.030323
E40: 13 | F40: ARITHMETIC | G40: -2.020784521 | H40: 0.12474 | I40: -1.320950757 | J40: 0.32197 | K40: -2.085180205 | L40: 0.12468 | M40: -2.024918667 | N40: 0 | O40: -2.028861995 | P40: 0.12445 | Q40: -2.028058703 | R40: 0.12451 | S40: -2.056895112 | T40: 0.12012 | U40: -1.927214512 | V40: 0.12285 | W40: -2.025663211 | X40: 0.12452 | Y40: -2.026989999 | Z40: 0 | AA40: -1.15742193 | AB40: 0.058608 | AC40: -1.156556079 | AD40: 0.058621 | AE40: -1.164968538 | AF40: 0.058514 | AG40: -1.210675856 | AH40: 0 | AI40: -1.155206053 | AJ40: 0.05852 | AK40: -1.163427608 | AL40: 0.058365 | AM40: -1.210355908 | AN40: 0.058278 | AO40: -1.212528145 | AP40: 0.054021 | AQ40: -1.212749836 | AR40: 0.054019 | AS40: -1.22849122 | AT40: 0.054233 | AU40: -1.295181598 | AV40: 0 | AW40: -1.215699997 | AX40: 0.054006 | AY40: -1.226711776 | AZ40: 0.054252 | BA40: -1.28490824 | BB40: 0.054046 | BC40: -1.242359289 | BD40: 0 | BE40: -1.241888865 | BF40: 0.054632 | BG40: -1.249921775 | BH40: 0 | BI40: -1.318803485 | BJ40: 0.05498 | BK40: -1.240753341 | BL40: 0.054619 | BM40: -1.255357047 | BN40: 0.054723 | BO40: -1.312613899 | BP40: 0.054928 | BQ40: -0.9462052403 | BR40: 0.029086 | BS40: -0.9460775656 | BT40: 0.029086 | BU40: -0.9717006744 | BV40: 0.02911 | BW40: -0.9462380658 | BX40: 0.029058 | BY40: -0.9279162621 | BZ40: 0.030395 | CA40: -0.9269256178 | CB40: 0.0304 | CC40: -0.8967168169 | CD40: 0.030313 | CE40: 0.5011825502 | CF40: 0.030782 | CG40: 0.4482084369 | CH40: 0.033979 | CI40: 0.5015020687 | CJ40: 0.030991
E41: 14 | F41: ARITHMETIC | G41: -1.430112614 | H41: 0.10925 | I41: -1.391022052 | J41: 0.30439 | K41: -1.476765668 | L41: 0.10092 | M41: -1.432312454 | N41: 0 | O41: -1.44807283 | P41: 0.10771 | Q41: -1.446148898 | R41: 0.10769 | S41: -1.521700321 | T41: 0.10943 | U41: -1.430384326 | V41: 0.10931 | W41: -1.453598698 | X41: 0.10852 | Y41: -1.456312834 | Z41: 0 | AA41: -0.7616557207 | AB41: 0.051949 | AC41: -0.7635162272 | AD41: 0.052782 | AE41: -0.7690810299 | AF41: 0.051877 | AG41: -0.7811691726 | AH41: 0 | AI41: -0.7623981765 | AJ41: 0.052662 | AK41: -0.7755356206 | AL41: 0.0523 | AM41: -0.7846500243 | AN41: 0.05207 | AO41: -0.7740487929 | AP41: 0.048334 | AQ41: -0.774421518 | AR41: 0.048328 | AS41: -0.7812951836 | AT41: 0.04849 | AU41: -0.812595864 | AV41: 0 | AW41: -0.7767666421 | AX41: 0.048346 | AY41: -0.7840384893 | AZ41: 0.048389 | BA41: -0.8135732014 | BB41: 0.048673 | BC41: -0.7580585571 | BD41: 0 | BE41: -0.7579374844 | BF41: 0.049001 | BG41: -0.7688289322 | BH41: 0 | BI41: -0.8011871786 | BJ41: 0.04885 | BK41: -0.7587720295 | BL41: 0.048985 | BM41: -0.7668923521 | BN41: 0.049088 | BO41: -0.8005715682 | BP41: 0.048878 | BQ41: -0.5430989604 | BR41: 0.025824 | BS41: -0.5430134017 | BT41: 0.025824 | BU41: -0.5522968457 | BV41: 0.025854 | BW41: -0.5467165488 | BX41: 0.025783 | BY41: -0.5283185192 | BZ41: 0.027119 | CA41: -0.5303772934 | CB41: 0.027147 | CC41: -0.5020892735 | CD41: 0.027005 | CE41: 0.8513522253 | CF41: 0.034382 | CG41: 0.7888894422 | CH41: 0.037389 | CI41: 0.8466223197 | CJ41: 0.034214
E42: 15 | F42: ARITHMETIC | G42: -0.9369876154 | H42: 0.095419 | I42: -1.345518612 | J42: 0.29397 | K42: -0.9470197451 | L42: 0.084778 | M42: -0.938562717 | N42: 0 | O42: -0.9674051534 | P42: 0.094355 | Q42: -0.9662138937 | R42: 0.094365 | S42: -1.00796643 | T42: 0.10185 | U42: -0.9207740962 | V42: 0.10496 | W42: -0.9677776715 | X42: 0.094741 | Y42: -0.9703408556 | Z42: 0 | AA42: -0.4484631929 | AB42: 0.051627 | AC42: -0.4501621982 | AD42: 0.051783 | AE42: -0.461003211 | AF42: 0.051395 | AG42: -0.4636190405 | AH42: 0 | AI42: -0.4506896534 | AJ42: 0.05169 | AK42: -0.4660937372 | AL42: 0.051414 | AM42: -0.4683192888 | AN42: 0.051135 | AO42: -0.4307185878 | AP42: 0.048192 | AQ42: -0.4312903431 | AR42: 0.048191 | AS42: -0.4346430264 | AT42: 0.048152 | AU42: -0.4480789375 | AV42: 0 | AW42: -0.4335935677 | AX42: 0.048231 | AY42: -0.441041935 | AZ42: 0.048058 | BA42: -0.4550807279 | BB42: 0.048078 | BC42: -0.4073299596 | BD42: 0 | BE42: -0.4071781969 | BF42: 0.04783 | BG42: -0.4189632724 | BH42: 0 | BI42: -0.462090987 | BJ42: 0.047278 | BK42: -0.408824682 | BL42: 0.047844 | BM42: -0.4187583538 | BN42: 0.047784 | BO42: -0.4600659912 | BP42: 0.047325 | BQ42: -0.2628673757 | BR42: 0.025495 | BS42: -0.2627740248 | BT42: 0.025495 | BU42: -0.2730241698 | BV42: 0.025457 | BW42: -0.2697824254 | BX42: 0.025452 | BY42: -0.2531745734 | BZ42: 0.026786 | CA42: -0.2538395659 | CB42: 0.02685 | CC42: -0.228311714 | CD42: 0.026731 | CE42: 1.342936658 | CF42: 0.039474 | CG42: 1.22554095 | CH42: 0.041581 | CI42: 1.325348136 | CJ42: 0.038941
E43: 16 | F43: ARITHMETIC | G43: -0.667894102 | H43: 0.092157 | I43: -1.217923941 | J43: 0.27404 | K43: -0.6593892326 | L43: 0.080112 | M43: -0.6675111711 | N43: 0 | O43: -0.6925285688 | P43: 0.090585 | Q43: -0.6919466646 | R43: 0.090589 | S43: -0.6490602317 | T43: 0.088472 | U43: -0.53253355 | V43: 0.091764 | W43: -0.6851555483 | X43: 0.090578 | Y43: -0.6877838822 | Z43: 0 | AA43: -0.3338687715 | AB43: 0.051536 | AC43: -0.3326552152 | AD43: 0.05198 | AE43: -0.3487713274 | AF43: 0.05142 | AG43: -0.3741292577 | AH43: 0 | AI43: -0.3342649383 | AJ43: 0.051899 | AK43: -0.3447328595 | AL43: 0.051787 | AM43: -0.3769029247 | AN43: 0.05109 | AO43: -0.3144114943 | AP43: 0.048356 | AQ43: -0.3150173725 | AR43: 0.048365 | AS43: -0.3246787464 | AT43: 0.048147 | AU43: -0.3487730333 | AV43: 0 | AW43: -0.3178325318 | AX43: 0.048348 | AY43: -0.3297933987 | AZ43: 0.048139 | BA43: -0.3505379435 | BB43: 0.04779 | BC43: -0.3317950757 | BD43: 0 | BE43: -0.3314181905 | BF43: 0.047982 | BG43: -0.3406047988 | BH43: 0 | BI43: -0.4181421791 | BJ43: 0.047428 | BK43: -0.3326161155 | BL43: 0.04798 | BM43: -0.3511516568 | BN43: 0.047874 | BO43: -0.411041014 | BP43: 0.047499 | BQ43: -0.2420846172 | BR43: 0.025961 | BS43: -0.2419586659 | BT43: 0.025961 | BU43: -0.2658812373 | BV43: 0.025935 | BW43: -0.2477264148 | BX43: 0.025916 | BY43: -0.2270715075 | BZ43: 0.027199 | CA43: -0.2234037621 | CB43: 0.027235 | CC43: -0.2064945381 | CD43: 0.027249 | CE43: 1.707139561 | CF43: 0.047773 | CG43: 1.49811491 | CH43: 0.048897 | CI43: 1.670002916 | CJ43: 0.047036
E44: 17 | F44: ARITHMETIC | G44: -0.5362994059 | H44: 0.088752 | I44: -0.9696001133 | J44: 0.25996 | K44: -0.5220025212 | L44: 0.076457 | M44: -0.5382573318 | N44: 0 | O44: -0.5283910168 | P44: 0.088739 | Q44: -0.5266399012 | R44: 0.088799 | S44: -0.5067097837 | T44: 0.085919 | U44: -0.4091736115 | V44: 0.090541 | W44: -0.5273780698 | X44: 0.088389 | Y44: -0.5304347069 | Z44: 0 | AA44: 0.01971000174 | AB44: 0.056574 | AC44: 0.02306829578 | AD44: 0.056916 | AE44: 0.005461984213 | AF44: 0.056287 | AG44: -0.05491400926 | AH44: 0 | AI44: 0.02296458018 | AJ44: 0.056342 | AK44: 0.01327836212 | AL44: 0.056 | AM44: -0.055272995 | AN44: 0.055805 | AO44: 0.03049748063 | AP44: 0.052903 | AQ44: 0.02996104422 | AR44: 0.052909 | AS44: 0.003704787369 | AT44: 0.052703 | AU44: -0.05360211791 | AV44: 0 | AW44: 0.02523880215 | AX44: 0.052871 | AY44: 0.002400708377 | AZ44: 0.052674 | BA44: -0.04227084321 | BB44: 0.052251 | BC44: -0.02984841323 | BD44: 0 | BE44: -0.02928291898 | BF44: 0.052744 | BG44: -0.03339381686 | BH44: 0 | BI44: -0.1434284 | BJ44: 0.051604 | BK44: -0.02934354008 | BL44: 0.052758 | BM44: -0.06344296374 | BN44: 0.052376 | BO44: -0.129893174 | BP44: 0.051793 | BQ44: 0.1609883598 | BR44: 0.029225 | BS44: 0.1610798971 | BT44: 0.029226 | BU44: 0.1217593302 | BV44: 0.029079 | BW44: 0.163319181 | BX44: 0.029209 | BY44: 0.2019131786 | BZ44: 0.030408 | CA44: 0.2038346849 | CB44: 0.030478 | CC44: 0.2106577755 | CD44: 0.030521 | CE44: 1.915341404 | CF44: 0.053018 | CG44: 1.54987413 | CH44: 0.053791 | CI44: 1.889203627 | CJ44: 0.052951
E45: 18 | F45: ARITHMETIC | G45: -0.09283489724 | H45: 0.10016 | I45: -0.3838086262 | J45: 0.27591 | K45: 0.01679778546 | L45: 0.088871 | M45: -0.1148251923 | N45: 0 | O45: -0.04553713726 | P45: 0.10322 | Q45: -0.04305507072 | R45: 0.10325 | S45: -0.1302968782 | T45: 0.095876 | U45: -0.06040294815 | V45: 0.097263 | W45: -0.05141215234 | X45: 0.10342 | Y45: -0.0549963357 | Z45: 0 | AA45: 0.2742082559 | AB45: 0.057449 | AC45: 0.2755508129 | AD45: 0.057534 | AE45: 0.2698472029 | AF45: 0.057252 | AG45: 0.2328637127 | AH45: 0 | AI45: 0.2774296928 | AJ45: 0.0575 | AK45: 0.2648513784 | AL45: 0.057151 | AM45: 0.2320974808 | AN45: 0.057313 | AO45: 0.3180426421 | AP45: 0.054673 | AQ45: 0.3173292499 | AR45: 0.054669 | AS45: 0.2891682639 | AT45: 0.054586 | AU45: 0.2340359934 | AV45: 0 | AW45: 0.3126955045 | AX45: 0.054639 | AY45: 0.2895518127 | AZ45: 0.054548 | BA45: 0.2498744512 | BB45: 0.0544 | BC45: 0.2974444401 | BD45: 0 | BE45: 0.2967987101 | BF45: 0.056019 | BG45: 0.2984388645 | BH45: 0 | BI45: 0.231418237 | BJ45: 0.056896 | BK45: 0.2961848476 | BL45: 0.055973 | BM45: 0.2664062329 | BN45: 0.055773 | BO45: 0.2444752581 | BP45: 0.056974 | BQ45: 0.4619778381 | BR45: 0.030308 | BS45: 0.4618921577 | BT45: 0.030307 | BU45: 0.4405934151 | BV45: 0.030425 | BW45: 0.4692359257 | BX45: 0.030293 | BY45: 0.5176729388 | BZ45: 0.031207 | CA45: 0.5106142475 | CB45: 0.031192 | CC45: 0.5183856549 | CD45: 0.031248 | CE45: 2.797676329 | CF45: 0.080844 | CG45: 2.291734227 | CH45: 0.08173 | CI45: 2.796935368 | CJ45: 0.081218
E46: 19 | F46: ARITHMETIC | G46: 0.5123513023 | H46: 0.13013 | I46: 0.4723456602 | J46: 0.3148 | K46: 0.6924553833 | L46: 0.11809 | M46: 0.4787529897 | N46: 0 | O46: 0.5875677232 | P46: 0.13421 | Q46: 0.5913267708 | R46: 0.13455 | S46: 0.3998716031 | T46: 0.11909 | U46: 0.4508794507 | V46: 0.11693 | W46: 0.5710424312 | X46: 0.13323 | Y46: 0.5662803657 | Z46: 0 | AA46: 0.6080568126 | AB46: 0.064623 | AC46: 0.6062302309 | AD46: 0.065166 | AE46: 0.6184982753 | AF46: 0.064738 | AG46: 0.6297224437 | AH46: 0 | AI46: 0.6082649833 | AJ46: 0.065056 | AK46: 0.6067918578 | AL46: 0.064362 | AM46: 0.6265131217 | AN46: 0.066667 | AO46: 0.6419019279 | AP46: 0.062078 | AQ46: 0.640481704 | AR46: 0.062042 | AS46: 0.6335015446 | AT46: 0.062663 | AU46: 0.6041488158 | AV46: 0 | AW46: 0.6372298129 | AX46: 0.062087 | AY46: 0.6308997928 | AZ46: 0.062408 | BA46: 0.6169882474 | BB46: 0.063556 | BC46: 0.7075450876 | BD46: 0 | BE46: 0.7047589157 | BF46: 0.066742 | BG46: 0.7077936156 | BH46: 0 | BI46: 0.7093976022 | BJ46: 0.069641 | BK46: 0.7011655858 | BL46: 0.066519 | BM46: 0.693638685 | BN46: 0.066839 | BO46: 0.7211908242 | BP46: 0.06965 | BQ46: 0.8234886078 | BR46: 0.034336 | BS46: 0.8231614247 | BT46: 0.034332 | BU46: 0.8276593744 | BV46: 0.034768 | BW46: 0.8272116516 | BX46: 0.034176 | BY46: 0.8766151334 | BZ46: 0.034786 | CA46: 0.861260738 | CB46: 0.034563 | CC46: 0.8753477838 | CD46: 0.034716 | CE46: 3.52645538 | CF46: 0.12472 | CG46: 2.977790429 | CH46: 0.12563 | CI46: 3.548238406 | CJ46: 0.12485
E47: 20 | F47: ARITHMETIC | G47: 1.361919889 | H47: 0.20154 | I47: 1.332228573 | J47: 0.37779 | K47: 1.626682011 | L47: 0.17308 | M47: 1.30956214 | N47: 0 | O47: 1.455028817 | P47: 0.2058 | Q47: 1.46102001 | R47: 0.20607 | S47: 1.100541365 | T47: 0.17415 | U47: 1.118767382 | V47: 0.16442 | W47: 1.411977174 | X47: 0.20601 | Y47: 1.405225353 | Z47: 0 | AA47: 1.152546147 | AB47: 0.079877 | AC47: 1.146013804 | AD47: 0.081388 | AE47: 1.170125633 | AF47: 0.079171 | AG47: 1.235103114 | AH47: 0 | AI47: 1.146944911 | AJ47: 0.080047 | AK47: 1.153048138 | AL47: 0.077997 | AM47: 1.227197603 | AN47: 0.082856 | AO47: 1.171280458 | AP47: 0.07713 | AQ47: 1.168842822 | AR47: 0.077034 | AS47: 1.190333369 | AT47: 0.077907 | AU47: 1.196802186 | AV47: 0 | AW47: 1.167124617 | AX47: 0.07718 | AY47: 1.182275221 | AZ47: 0.077297 | BA47: 1.201749605 | BB47: 0.080124 | BC47: 1.339410631 | BD47: 0 | BE47: 1.334299859 | BF47: 0.084282 | BG47: 1.335092141 | BH47: 0 | BI47: 1.400360202 | BJ47: 0.086037 | BK47: 1.327362491 | BL47: 0.084053 | BM47: 1.341019012 | BN47: 0.083976 | BO47: 1.410909405 | BP47: 0.086188 | BQ47: 1.331820076 | BR47: 0.039602 | BS47: 1.331314403 | BT47: 0.0396 | BU47: 1.355446808 | BV47: 0.039873 | BW47: 1.330281614 | BX47: 0.039436 | BY47: 1.370999155 | BZ47: 0.039868 | CA47: 1.351066724 | CB47: 0.039599 | CC47: 1.376851037 | CD47: 0.039755 | CE47: 5.635049322 | CF47: 0.35439 | CG47: 5.087822039 | CH47: 0.35575 | CI47: 5.664770805 | CJ47: 0.35447
E48: 21 | F48: ARITHMETIC | G48: 2.70767588 | H48: 0.36562 | I48: 2.493696801 | J48: 0.57761 | K48: 2.933838375 | L48: 0.28658 | M48: 2.603870217 | N48: 0 | O48: 2.850175383 | P48: 0.37026 | Q48: 2.858711097 | R48: 0.3691 | S48: 2.075780258 | T48: 0.38933 | U48: 2.033089922 | V48: 0.36962 | W48: 2.768705402 | X48: 0.38533 | Y48: 2.758327799 | Z48: 0 | AA48: 1.632264484 | AB48: 0.10489 | AC48: 1.622358758 | AD48: 0.10549 | AE48: 1.650957026 | AF48: 0.10334 | AG48: 1.762631308 | AH48: 0 | AI48: 1.619600909 | AJ48: 0.10372 | AK48: 1.629022055 | AL48: 0.10116 | AM48: 1.751761171 | AN48: 0.10578 | AO48: 1.608383576 | AP48: 0.10226 | AQ48: 1.603835204 | AR48: 0.10211 | AS48: 1.651168354 | AT48: 0.10264 | AU48: 1.68730083 | AV48: 0 | AW48: 1.60285538 | AX48: 0.10238 | AY48: 1.635743558 | AZ48: 0.10188 | BA48: 1.68777839 | BB48: 0.10525 | BC48: 1.875639381 | BD48: 0 | BE48: 1.86870895 | BF48: 0.10573 | BG48: 1.868947863 | BH48: 0 | BI48: 1.968379341 | BJ48: 0.10426 | BK48: 1.859735472 | BL48: 0.10579 | BM48: 1.897563069 | BN48: 0.10574 | BO48: 1.984204783 | BP48: 0.10464 | BQ48: 1.698027343 | BR48: 0.047505 | BS48: 1.697362599 | BT48: 0.047508 | BU48: 1.731791086 | BV48: 0.047472 | BW48: 1.695789974 | BX48: 0.04743 | BY48: 1.731595415 | BZ48: 0.047813 | CA48: 1.716480082 | CB48: 0.047918 | CC48: 1.754166843 | CD48: 0.047903 | CE48: 8.040202947 | CF48: 0.74709 | CG48: 7.553256573 | CH48: 0.75354 | CI48: 8.07014211 | CJ48: 0.74693
E49: 22 | F49: ARITHMETIC | G49: 4.956969539 | H49: 0.59116 | I49: 4.002564951 | J49: 0.90946 | K49: 5.358924168 | L49: 0.51227 | M49: 4.853139061 | N49: 0 | O49: 5.114120484 | P49: 0.60009 | Q49: 5.120565134 | R49: 0.59996 | S49: 4.325933605 | T49: 0.62794 | U49: 4.225930543 | V49: 0.64186 | W49: 5.049316193 | X49: 0.60193 | Y49: 5.040921216 | Z49: 0 | AA49: 2.100160133 | AB49: 0.11904 | AC49: 2.091642802 | AD49: 0.119 | AE49: 2.123543777 | AF49: 0.11817 | AG49: 2.228813583 | AH49: 0 | AI49: 2.087554872 | AJ49: 0.1184 | AK49: 2.111042273 | AL49: 0.11749 | AM49: 2.224374574 | AN49: 0.11715 | AO49: 2.104983376 | AP49: 0.11865 | AQ49: 2.099371016 | AR49: 0.11863 | AS49: 2.163195682 | AT49: 0.11847 | AU49: 2.1953803 | AV49: 0 | AW49: 2.099451675 | AX49: 0.1189 | AY49: 2.149926657 | AZ49: 0.11838 | BA49: 2.202269491 | BB49: 0.11914 | BC49: 2.357969665 | BD49: 0 | BE49: 2.352302329 | BF49: 0.1155 | BG49: 2.355129313 | BH49: 0 | BI49: 2.459006276 | BJ49: 0.11334 | BK49: 2.346140806 | BL49: 0.11569 | BM49: 2.418228174 | BN49: 0.11565 | BO49: 2.480750133 | BP49: 0.11359 | BQ49: 1.883121847 | BR49: 0.052263 | BS49: 1.882520831 | BT49: 0.052267 | BU49: 1.922464021 | BV49: 0.052244 | BW49: 1.884477862 | BX49: 0.052228 | BY49: 1.912311822 | BZ49: 0.052666 | CA49: 1.925040447 | CB49: 0.053173 | CC49: 1.966545062 | CD49: 0.052961 | CE49: 10.39945247 | CF49: 0.98648 | CG49: 10.03724094 | CH49: 0.99336 | CI49: 10.42312785 | CJ49: 0.98627
E50: 23 | F50: ARITHMETIC | G50: 7.095871314 | H50: 1.0479 | I50: 5.551491882 | J50: 1.3792 | K50: 7.6084939 | L50: 0.99366 | M50: 7.007537985 | N50: 0 | O50: 7.247661124 | P50: 1.0676 | Q50: 7.25150121 | R50: 1.0685 | S50: 6.587846097 | T50: 0.9823 | U50: 6.47944411 | V50: 0.9765 | W50: 7.208841679 | X50: 1.0548 | Y50: 7.202784781 | Z50: 0 | AA50: 3.130745022 | AB50: 0.16808 | AC50: 3.126739409 | AD50: 0.16832 | AE50: 3.167235189 | AF50: 0.16799 | AG50: 3.230601941 | AH50: 0 | AI50: 3.128274092 | AJ50: 0.16842 | AK50: 3.181579726 | AL50: 0.16843 | AM50: 3.240238464 | AN50: 0.16667 | AO50: 3.160266839 | AP50: 0.16913 | AQ50: 3.155256446 | AR50: 0.16917 | AS50: 3.235700667 | AT50: 0.16885 | AU50: 3.254658359 | AV50: 0 | AW50: 3.15933585 | AX50: 0.16926 | AY50: 3.235350449 | AZ50: 0.16906 | BA50: 3.271582019 | BB50: 0.16825 | BC50: 3.346591873 | BD50: 0 | BE50: 3.343218396 | BF50: 0.1658 | BG50: 3.345398532 | BH50: 0 | BI50: 3.446898856 | BJ50: 0.16488 | BK50: 3.344684935 | BL50: 0.16586 | BM50: 3.464181796 | BN50: 0.16573 | BO50: 3.474893754 | BP50: 0.16503 | BQ50: 2.720972143 | BR50: 0.080366 | BS50: 2.720645147 | BT50: 0.080367 | BU50: 2.763648281 | BV50: 0.080391 | BW50: 2.725618121 | BX50: 0.080264 | BY50: 2.743961377 | BZ50: 0.080693 | CA50: 2.804091249 | CB50: 0.080984 | CC50: 2.839799153 | CD50: 0.080847 | CE50: 12.71179939 | CF50: 0.81145 | CG50: 12.51933178 | CH50: 0.81806 | CI50: 12.72475818 | CJ50: 0.81134
E51: 24 | F51: ARITHMETIC | G51: 8.91711375 | H51: 1.6672 | I51: 6.993515456 | J51: 1.9619 | K51: 9.488796227 | L51: 1.6368 | M51: 8.845416414 | N51: 0 | O51: 9.055756212 | P51: 1.696 | Q51: 9.057549532 | R51: 1.6972 | S51: 8.532106066 | T51: 1.5401 | U51: 8.428261352 | V51: 1.5137 | W51: 9.038081934 | X51: 1.6778 | Y51: 9.033927943 | Z51: 0 | AA51: 4.166334604 | AB51: 0.26154 | AC51: 4.165398673 | AD51: 0.26157 | AE51: 4.190849842 | AF51: 0.2617 | AG51: 4.200064268 | AH51: 0 | AI51: 4.17160428 | AJ51: 0.26159 | AK51: 4.221088688 | AL51: 0.26156 | AM51: 4.214983846 | AN51: 0.26234 | AO51: 4.216380152 | AP51: 0.26162 | AQ51: 4.21323047 | AR51: 0.26162 | AS51: 4.283060459 | AT51: 0.26167 | AU51: 4.266226489 | AV51: 0 | AW51: 4.217409314 | AX51: 0.26167 | AY51: 4.29291193 | AZ51: 0.26171 | BA51: 4.290714411 | BB51: 0.26207 | BC51: 4.285953446 | BD51: 0 | BE51: 4.2848728 | BF51: 0.26265 | BG51: 4.27906743 | BH51: 0 | BI51: 4.331724021 | BJ51: 0.26348 | BK51: 4.290594826 | BL51: 0.26264 | BM51: 4.413074488 | BN51: 0.26302 | BO51: 4.366088288 | BP51: 0.26354 | BQ51: 3.434164619 | BR51: 0.12475 | BS51: 3.434030213 | BT51: 0.12475 | BU51: 3.44870458 | BV51: 0.12495 | BW51: 3.428859991 | BX51: 0.12469 | BY51: 3.442519898 | BZ51: 0.12496 | CA51: 3.532359345 | CB51: 0.12499 | CC51: 3.55292212 | CD51: 0.12502 | CE51: 14.99999864 | CF51: 0.0074751 | CG51: 14.99997837 | CH51: 0.11844 | CI51: 14.99999874 | CJ51: 0.0068808
E52: 25 | F52: ARITHMETIC | G52: 10.41245452 | H52: 2.3051 | I52: 8.303479739 | J52: 2.5537 | K52: 11.00139852 | L52: 2.2899 | M52: 10.35539448 | N52: 0 | O52: 10.53555273 | P52: 2.3379 | Q52: 10.53587214 | R52: 2.3392 | S52: 10.1294022 | T52: 2.1614 | U52: 10.03379004 | V52: 2.1269 | W52: 10.53320091 | X52: 2.3195 | Y52: 10.53051245 | Z52: 0 | AA52: 5.924119636 | AB52: 0.56793 | AC52: 5.92467569 | AD52: 0.56795 | AE52: 5.920874453 | AF52: 0.57059 | AG52: 5.901532357 | AH52: 0 | AI52: 5.934284107 | AJ52: 0.56785 | AK52: 5.957819844 | AL52: 0.57063 | AM52: 5.917621652 | AN52: 0.57034 | AO52: 5.996848818 | AP52: 0.56605 | AQ52: 5.995086985 | AR52: 0.56603 | AS52: 6.040253197 | AT52: 0.56818 | AU52: 5.999651463 | AV52: 0 | AW52: 5.998853027 | AX52: 0.56609 | AY52: 6.057289034 | AZ52: 0.56804 | BA52: 6.028439175 | BB52: 0.56855 | BC52: 6.001756198 | BD52: 0 | BE52: 6.001888572 | BF52: 0.56482 | BG52: 5.988647429 | BH52: 0 | BI52: 6.002023642 | BJ52: 0.56611 | BK52: 6.009964591 | BL52: 0.56483 | BM52: 6.11439833 | BN52: 0.56717 | BO52: 6.038868869 | BP52: 0.56624 | BQ52: 5.515611397 | BR52: 0.35112 | BS52: 5.51553391 | BT52: 0.35113 | BU52: 5.508589684 | BV52: 0.35125 | BW52: 5.506749955 | BX52: 0.351 | BY52: 5.519896639 | BZ52: 0.35099 | CA52: 5.6166341 | CB52: 0.35127 | CC52: 5.631342763 | CD52: 0.35115
E53: 26 | F53: ARITHMETIC | G53: 11.61526374 | H53: 2.8381 | I53: 9.490871781 | J53: 3.0415 | K53: 12.18582583 | L53: 2.8316 | M53: 11.57064652 | N53: 0 | O53: 11.7218026 | P53: 2.8705 | Q53: 11.72114865 | R53: 2.8716 | S53: 11.41303888 | T53: 2.7018 | U53: 11.3277063 | V53: 2.6672 | W53: 11.72953642 | X53: 2.8539 | Y53: 11.72793571 | Z53: 0 | AA53: 7.674052159 | AB53: 1.0578 | AC53: 7.67542378 | AD53: 1.0579 | AE53: 7.645871745 | AF53: 1.0654 | AG53: 7.612790344 | AH53: 0 | AI53: 7.686824191 | AJ53: 1.0578 | AK53: 7.683951841 | AL53: 1.0666 | AM53: 7.628063564 | AN53: 1.0627 | AO53: 7.758815362 | AP53: 1.0555 | AQ53: 7.757989616 | AR53: 1.0555 | AS53: 7.778322261 | AT53: 1.0623 | AU53: 7.724338343 | AV53: 0 | AW53: 7.761300816 | AX53: 1.0555 | AY53: 7.79905218 | AZ53: 1.0623 | BA53: 7.755376582 | BB53: 1.0619 | BC53: 7.728302511 | BD53: 0 | BE53: 7.729209434 | BF53: 1.0492 | BG53: 7.710764842 | BH53: 0 | BI53: 7.695247884 | BJ53: 1.0529 | BK53: 7.738396091 | BL53: 1.0492 | BM53: 7.818956665 | BN53: 1.0563 | BO53: 7.731664996 | BP53: 1.0532 | BQ53: 7.691925191 | BR53: 0.80162 | BS53: 7.691854584 | BT53: 0.80163 | BU53: 7.667818326 | BV53: 0.80303 | BW53: 7.682099906 | BX53: 0.80119 | BY53: 7.69509669 | BZ53: 0.80086 | CA53: 7.787331381 | CB53: 0.80267 | CC53: 7.799295751 | CD53: 0.80187
E54: 27 | F54: ARITHMETIC | G54: 12.56575298 | H54: 3.175 | I54: 10.57195154 | J54: 3.3356 | K54: 13.0875673 | L54: 3.1731 | M54: 12.53161425 | N54: 0 | O54: 12.65517961 | P54: 3.2039 | Q54: 12.65398068 | R54: 3.2048 | S54: 12.42578764 | T54: 3.0582 | U54: 12.35231939 | V54: 3.0277 | W54: 12.66849806 | X54: 3.1901 | Y54: 12.66766089 | Z54: 0 | AA54: 9.235788458 | AB54: 1.5799 | AC54: 9.237535072 | AD54: 1.5801 | AE54: 9.193006655 | AF54: 1.59 | AG54: 9.154633847 | AH54: 0 | AI54: 9.249252485 | AJ54: 1.58 | AK54: 9.228846333 | AL54: 1.592 | AM54: 9.167755067 | AN54: 1.5859 | AO54: 9.322085071 | AP54: 1.5781 | AQ54: 9.321863485 | AR54: 1.5781 | AS54: 9.324286648 | AT54: 1.5878 | AU54: 9.263865612 | AV54: 0 | AW54: 9.324644606 | AX54: 1.5781 | AY54: 9.345781802 | AZ54: 1.588 | BA54: 9.296335119 | BB54: 1.5868 | BC54: 9.27389093 | BD54: 0 | BE54: 9.274975909 | BF54: 1.5689 | BG54: 9.254402817 | BH54: 0 | BI54: 9.221663401 | BJ54: 1.5744 | BK54: 9.28420735 | BL54: 1.569 | BM54: 9.343291443 | BN54: 1.5791 | BO54: 9.255293989 | BP54: 1.5748 | BQ54: 9.529311927 | BR54: 1.3336 | BS54: 9.529244367 | BT54: 1.3337 | BU54: 9.495875723 | BV54: 1.3359 | BW54: 9.519732281 | BX54: 1.333 | BY54: 9.531850003 | BZ54: 1.3325 | CA54: 9.614342395 | CB54: 1.3356 | CC54: 9.624384025 | CD54: 1.3341
E55: 28 | F55: ARITHMETIC | G55: 13.3055805 | H55: 3.2484 | I55: 11.56421087 | J55: 3.3688 | K55: 13.75337203 | L55: 3.2486 | M55: 13.28026443 | N55: 0 | O55: 13.37752518 | P55: 3.2718 | Q55: 13.37613806 | R55: 3.2724 | S55: 13.21231236 | T55: 3.1563 | U55: 13.15199928 | V55: 3.1319 | W55: 13.39267828 | X55: 3.2611 | Y55: 13.39233381 | Z55: 0 | AA55: 10.61465485 | AB55: 1.9639 | AC55: 10.61644024 | AD55: 1.964 | AE55: 10.56759307 | AF55: 1.9736 | AG55: 10.52994861 | AH55: 0 | AI55: 10.62726206 | AJ55: 1.964 | AK55: 10.59887969 | AL55: 1.9757 | AM55: 10.54074727 | AN55: 1.9695 | AO55: 10.69394312 | AP55: 1.9626 | AQ55: 10.69406749 | AR55: 1.9626 | AS55: 10.68624169 | AT55: 1.9722 | AU55: 10.62632743 | AV55: 0 | AW55: 10.69624217 | AX55: 1.9625 | AY55: 10.70617338 | AZ55: 1.9725 | BA55: 10.65812864 | BB55: 1.9712 | BC55: 10.64108878 | BD55: 0 | BE55: 10.64183325 | BF55: 1.9534 | BG55: 10.62193788 | BH55: 0 | BI55: 10.58263133 | BJ55: 1.9589 | BK55: 10.65024485 | BL55: 1.9535 | BM55: 10.69194015 | BN55: 1.9636 | BO55: 10.61165744 | BP55: 1.9594 | BQ55: 11.03439101 | BR55: 1.7588 | BS55: 11.03432991 | BT55: 1.7588 | BU55: 10.99881346 | BV55: 1.7611 | BW55: 11.0258388 | BX55: 1.7582 | BY55: 11.03638468 | BZ55: 1.7578 | CA55: 11.10598256 | CB55: 1.7608 | CC55: 11.11418939 | CD55: 1.7592
E56: 29 | F56: ARITHMETIC | G56: 13.87677328 | H56: 3.007 | I56: 12.48537405 | J56: 3.0905 | K56: 14.23031851 | L56: 3.0079 | M56: 13.85895054 | N56: 0 | O56: 13.93096378 | P56: 3.024 | Q56: 13.9296738 | R56: 3.0245 | S56: 13.81773474 | T56: 2.9412 | U56: 13.77160343 | V56: 2.9236 | W56: 13.94495247 | X56: 3.0165 | Y56: 13.94488388 | Z56: 0 | AA56: 11.84333214 | AB56: 2.0811 | AC56: 11.84489581 | AD56: 2.0812 | AE56: 11.80052894 | AF56: 2.0887 | AG56: 11.76826194 | AH56: 0 | AI56: 11.85385514 | AJ56: 2.0812 | AK56: 11.82550732 | AL56: 2.0905 | AM56: 11.77641262 | AN56: 2.0854 | AO56: 11.90877642 | AP56: 2.0802 | AQ56: 11.90904484 | AR56: 2.0803 | AS56: 11.89745058 | AT56: 2.0879 | AU56: 11.84255311 | AV56: 0 | AW56: 11.91056289 | AX56: 2.0802 | AY56: 11.91398826 | AZ56: 2.0882 | BA56: 11.87301523 | BB56: 2.0871 | BC56: 11.86111473 | BD56: 0 | BE56: 11.86133029 | BF56: 2.0728 | BG56: 11.84440145 | BH56: 0 | BI56: 11.80725443 | BJ56: 2.0773 | BK56: 11.86823575 | BL56: 2.0729 | BM56: 11.89621587 | BN56: 2.0811 | BO56: 11.83025464 | BP56: 2.0777 | BQ56: 12.26666109 | BR56: 1.931 | BS56: 12.2666108 | BT56: 1.931 | BU56: 12.23482803 | BV56: 1.9328 | BW56: 12.25973146 | BX56: 1.9305 | BY56: 12.26814084 | BZ56: 1.9301 | CA56: 12.3224261 | CB56: 1.9326 | CC56: 12.32872487 | CD56: 1.9311
E57: 30 | F57: ARITHMETIC | G57: 14.32146509 | H57: 2.4119 | I57: 13.35320928 | J57: 2.4626 | K57: 14.56559114 | L57: 2.4128 | M57: 14.31013712 | N57: 0 | O57: 14.35770139 | P57: 2.4226 | Q57: 14.35672253 | R57: 2.4229 | S57: 14.28730202 | T57: 2.3713 | U57: 14.25612096 | V57: 2.3604 | W57: 14.36827663 | X57: 2.418 | Y57: 14.36832129 | Z57: 0 | AA57: 12.95862389 | AB57: 1.8413 | AC57: 12.959773 | AD57: 1.8414 | AE57: 12.92651148 | AF57: 1.8462 | AG57: 12.90308113 | AH57: 0 | AI57: 12.96614713 | AJ57: 1.8413 | AK57: 12.9438832 | AL57: 1.8473 | AM57: 12.90842227 | AN57: 1.844 | AO57: 13.00510031 | AP57: 1.8408 | AQ57: 13.00536256 | AR57: 1.8408 | AS57: 12.9949042 | AT57: 1.8458 | AU57: 12.95441685 | AV57: 0 | AW57: 13.00625785 | AX57: 1.8407 | AY57: 13.0066852 | AZ57: 1.846 | BA57: 12.97701894 | BB57: 1.8452 | BC57: 12.96946179 | BD57: 0 | BE57: 12.9694941 | BF57: 1.836 | BG57: 12.95725183 | BH57: 0 | BI57: 12.92883431 | BJ57: 1.8389 | BK57: 12.97438166 | BL57: 1.836 | BM57: 12.99146389 | BN57: 1.8413 | BO57: 12.94475331 | BP57: 1.8392 | BQ57: 13.29260938 | BR57: 1.7487 | BS57: 13.29257353 | BT57: 1.7487 | BU57: 13.26893434 | BV57: 1.7499 | BW57: 13.28774373 | BX57: 1.7484 | BY57: 13.29358912 | BZ57: 1.7482 | CA57: 13.33077157 | CB57: 1.7497 | CC57: 13.3350499 | CD57: 1.7488
E58: 31 | F58: ARITHMETIC | G58: 14.68181784 | H58: 1.4337 | I58: 14.18549187 | J58: 1.4562 | K58: 14.80640897 | L58: 1.4341 | M58: 14.67631944 | N58: 0 | O58: 14.69996813 | P58: 1.4385 | Q58: 14.69944303 | R58: 1.4386 | S58: 14.66629449 | T58: 1.4155 | U58: 14.6505759 | V58: 1.4106 | W58: 14.70563058 | X58: 1.4364 | Y58: 14.70568004 | Z58: 0 | AA58: 13.99823366 | AB58: 1.1812 | AC58: 13.99884022 | AD58: 1.1813 | AE58: 13.98110416 | AF58: 1.1834 | AG58: 13.96881333 | AH58: 0 | AI58: 14.00214763 | AJ58: 1.1813 | AK58: 13.99000575 | AL58: 1.1839 | AM58: 13.97156344 | AN58: 1.1827 | AO58: 14.02232619 | AP58: 1.181 | AQ58: 14.02248232 | AR58: 1.1811 | AS58: 14.01643424 | AT58: 1.1833 | AU58: 13.99795636 | AV58: 0 | AW58: 14.02278085 | AX58: 1.1809 | AY58: 14.02255146 | AZ58: 1.1834 | BA58: 14.00701309 | BB58: 1.183 | BC58: 14.00348741 | BD58: 0 | BE58: 14.00333123 | BF58: 1.1789 | BG58: 13.99692297 | BH58: 0 | BI58: 13.98161819 | BJ58: 1.1802 | BK58: 14.00585999 | BL58: 1.1789 | BM58: 14.01392955 | BN58: 1.1813 | BO58: 13.98975337 | BP58: 1.1803 | BQ58: 14.18075884 | BR58: 1.1409 | BS58: 14.18074003 | BT58: 1.1409 | BU58: 14.16818502 | BV58: 1.1414 | BW58: 14.17825192 | BX58: 1.1407 | BY58: 14.18124651 | BZ58: 1.1406 | CA58: 14.20013494 | CB58: 1.1413 | CC58: 14.20229953 | CD58: 1.1409
E59: 32 | F59: ARITHMETIC | G59: 14.99999921 | H59: 0.0043295 | I59: 14.99999812 | J59: 0.010271 | K59: 14.99999929 | L59: 0.003866 | M59: 14.99999921 | N59: 0 | O59: 14.99999921 | P59: 0.0043227 | Q59: 14.99999921 | R59: 0.0043323 | S59: 14.99999926 | T59: 0.004028 | U59: 14.99999926 | V59: 0.0040541 | W59: 14.99999922 | X59: 0.0042474 | Y59: 14.99999923 | Z59: 0 | AA59: 14.99999912 | AB59: 0.0048288 | AC59: 14.99999912 | AD59: 0.0048213 | AE59: 14.99999906 | AF59: 0.0051198 | AG59: 14.99999904 | AH59: 0 | AI59: 14.99999913 | AJ59: 0.0047861 | AK59: 14.99999908 | AL59: 0.0050549 | AM59: 14.99998284 | AN59: 0.03059 | AO59: 14.99999916 | AP59: 0.004611 | AQ59: 14.99999916 | AR59: 0.004603 | AS59: 14.99999912 | AT59: 0.0048088 | AU59: 14.99977061 | AV59: 0 | AW59: 14.99999947 | AX59: 0.0032333 | AY59: 14.99999913 | AZ59: 0.0047571 | BA59: 14.9999991 | BB59: 0.0049331 | BC59: 14.99998075 | BD59: 0 | BE59: 14.9999991 | BF59: 0.0049255 | BG59: 14.99999909 | BH59: 0 | BI59: 14.99999903 | BJ59: 0.0053065 | BK59: 14.99999911 | BL59: 0.0048897 | BM59: 14.99999908 | BN59: 0.005017 | BO59: 14.99999904 | BP59: 0.0052515 | BQ59: 14.99999952 | BR59: 0.0026442 | BS59: 14.99999952 | BT59: 0.0026544 | BU59: 14.99999951 | BV59: 0.002709 | BW59: 14.99999952 | BX59: 0.0026546 | BY59: 14.99999952 | BZ59: 0.0026421 | CA59: 14.99999941 | CB59: 0.0030471 | CC59: 14.99999952 | CD59: 0.0026251
C60: pLgtPrM2M[2] | D60: females (entire model period) | E60: 1 | F60: ARITHMETIC | G60: -14.99999969 | H60: 0.0016915 | I60: 4.477751684 | J60: 2.8357 | K60: -14.99999964 | L60: 0.0019856 | M60: -14.99999969 | N60: 0 | O60: -14.99999969 | P60: 0.0016948 | Q60: -14.99999969 | R60: 0.0016935 | S60: -14.99999967 | T60: 0.0018189 | U60: -14.9999997 | V60: 0.0016535 | W60: -14.99999969 | X60: 0.0016884 | Y60: -14.99999969 | Z60: 0 | AA60: -14.9999997 | AB60: 0.0016633 | AC60: -14.9999997 | AD60: 0.0016646 | AE60: -14.99999969 | AF60: 0.0016694 | AG60: -14.99999969 | AH60: 0 | AI60: -14.9999997 | AJ60: 0.0016662 | AK60: -14.9999997 | AL60: 0.001655 | AM60: -14.9999995 | AN60: 0.00242 | AO60: -14.99999969 | AP60: 0.0017195 | AQ60: -14.99999969 | AR60: 0.0017165 | AS60: -14.99999969 | AT60: 0.0017004 | AU60: -14.99999606 | AV60: 0 | AW60: -14.99998814 | AX60: 0.014752 | AY60: -14.99999969 | AZ60: 0.0017087 | BA60: -14.99999969 | BB60: 0.0017089 | BC60: -14.99999964 | BD60: 0 | BE60: -14.9999997 | BF60: 0.0016254 | BG60: -14.9999997 | BH60: 0 | BI60: -14.99999968 | BJ60: 0.0017299 | BK60: -14.9999997 | BL60: 0.0016325 | BM60: -14.9999997 | BN60: 0.0016563 | BO60: -14.9999997 | BP60: 0.0016471 | BQ60: -14.99999972 | BR60: 0.0015385 | BS60: -14.99999972 | BT60: 0.0015463 | BU60: -14.9999997 | BV60: 0.0016382 | BW60: -14.99999972 | BX60: 0.0015306 | BY60: -14.99999966 | BZ60: 0.0018533 | CA60: -14.99999966 | CB60: 0.0018435 | CC60: -14.99999966 | CD60: 0.001853 | CE60: -11.75622838 | CF60: 2.3231 | CG60: -10.39424617 | CH60: 4.8032 | CI60: -11.71492121 | CJ60: 2.5147
E61: 2 | F61: ARITHMETIC | G61: -13.76426363 | H61: 0.78389 | I61: 3.479799552 | J61: 1.8639 | K61: -13.67473936 | L61: 0.7843 | M61: -13.75536945 | N61: 0 | O61: -13.76282176 | P61: 0.78349 | Q61: -13.76346733 | R61: 0.78368 | S61: -13.72819022 | T61: 0.78489 | U61: -13.77753323 | V61: 0.78394 | W61: -13.76545897 | X61: 0.78356 | Y61: -13.76130567 | Z61: 0 | AA61: -13.76909165 | AB61: 0.78449 | AC61: -13.76959467 | AD61: 0.78427 | AE61: -13.76999754 | AF61: 0.78433 | AG61: -13.75238244 | AH61: 0 | AI61: -13.77007231 | AJ61: 0.78441 | AK61: -13.77415793 | AL61: 0.78414 | AM61: -13.749912 | AN61: 0.78388 | AO61: -13.66126545 | AP61: 0.72398 | AQ61: -13.65959555 | AR61: 0.72398 | AS61: -13.66026066 | AT61: 0.72335 | AU61: -13.63252321 | AV61: 0 | AW61: -13.65689331 | AX61: 0.7241 | AY61: -13.66122363 | AZ61: 0.72319 | BA61: -13.65532408 | BB61: 0.7236 | BC61: -13.6843238 | BD61: 0 | BE61: -13.68308864 | BF61: 0.72603 | BG61: -13.68263961 | BH61: 0 | BI61: -13.65112492 | BJ61: 0.72561 | BK61: -13.68245659 | BL61: 0.72608 | BM61: -13.68006777 | BN61: 0.72569 | BO61: -13.67327727 | BP61: 0.72588 | BQ61: -13.70855405 | BR61: 0.72274 | BS61: -13.70715187 | BT61: 0.72276 | BU61: -13.6742677 | BV61: 0.72178 | BW61: -13.71345814 | BX61: 0.72266 | BY61: -13.62980315 | BZ61: 0.72729 | CA61: -13.63229729 | CB61: 0.72727 | CC61: -13.6255287 | CD61: 0.7268 | CE61: -9.566989726 | CF61: 1.4254 | CG61: -8.698965873 | CH61: 3.5685 | CI61: -9.5663736 | CJ61: 1.5744
E62: 3 | F62: ARITHMETIC | G62: -12.4745577 | H62: 1.1855 | I62: 2.481847526 | J62: 1.1391 | K62: -12.30341127 | L62: 1.1866 | M62: -12.45767321 | N62: 0 | O62: -12.4717793 | P62: 1.1847 | Q62: -12.47303809 | R62: 1.1851 | S62: -12.40619803 | T62: 1.1877 | U62: -12.499856 | V62: 1.1857 | W62: -12.47685045 | X62: 1.1848 | Y62: -12.46881455 | Z62: 0 | AA62: -12.48339343 | AB62: 1.1869 | AC62: -12.4843456 | AD62: 1.1864 | AE62: -12.4852156 | AF62: 1.1866 | AG62: -12.45160931 | AH62: 0 | AI62: -12.48526861 | AJ62: 1.1867 | AK62: -12.49316333 | AL62: 1.1861 | AM62: -12.44774152 | AN62: 1.1858 | AO62: -12.26909703 | AP62: 1.0493 | AQ62: -12.26594426 | AR62: 1.0493 | AS62: -12.26716093 | AT62: 1.0479 | AU62: -12.21366702 | AV62: 0 | AW62: -12.26071366 | AX62: 1.0494 | AY62: -12.26902215 | AZ62: 1.0475 | BA62: -12.25722855 | BB62: 1.0484 | BC62: -12.31226381 | BD62: 0 | BE62: -12.31004455 | BF62: 1.0539 | BG62: -12.30917945 | BH62: 0 | BI62: -12.24948143 | BJ62: 1.0528 | BK62: -12.30886792 | BL62: 1.054 | BM62: -12.30429127 | BN62: 1.0531 | BO62: -12.29107293 | BP62: 1.0535 | BQ62: -12.35783885 | BR62: 1.0469 | BS62: -12.35519959 | BT62: 1.0469 | BU62: -12.29275324 | BV62: 1.0446 | BW62: -12.36726454 | BX62: 1.0467 | BY62: -12.2103307 | BZ62: 1.0568 | CA62: -12.21501679 | CB62: 1.0568 | CC62: -12.20177403 | CD62: 1.0557 | CE62: -7.384090767 | CF62: 0.75848 | CG62: -7.004040387 | CH62: 2.5029 | CI62: -7.422204303 | CJ62: 0.85662
E63: 4 | F63: ARITHMETIC | G63: -11.07694317 | H63: 1.288 | I63: 1.511412187 | J63: 0.69459 | K63: -10.83997681 | L63: 1.29 | M63: -11.05386987 | N63: 0 | O63: -11.07304012 | P63: 1.2866 | Q63: -11.07484693 | R63: 1.2873 | S63: -10.98387502 | T63: 1.2912 | U63: -11.1117892 | V63: 1.2884 | W63: -11.08013875 | X63: 1.2869 | Y63: -11.06876226 | Z63: 0 | AA63: -11.08814611 | AB63: 1.2901 | AC63: -11.08943931 | AD63: 1.2893 | AE63: -11.0909072 | AF63: 1.2896 | AG63: -11.04455335 | AH63: 0 | AI63: -11.09074272 | AJ63: 1.2898 | AK63: -11.10189647 | AL63: 1.289 | AM63: -11.03932127 | AN63: 1.2885 | AO63: -10.77015385 | AP63: 1.0766 | AQ63: -10.76589051 | AR63: 1.0766 | AS63: -10.76743867 | AT63: 1.0745 | AU63: -10.69301141 | AV63: 0 | AW63: -10.75869804 | AX63: 1.0766 | AY63: -10.77007222 | AZ63: 1.074 | BA63: -10.75239701 | BB63: 1.0753 | BC63: -10.82749946 | BD63: 0 | BE63: -10.82480233 | BF63: 1.0834 | BG63: -10.82358719 | BH63: 0 | BI63: -10.74235862 | BJ63: 1.0815 | BK63: -10.82325471 | BL63: 1.0835 | BM63: -10.81689297 | BN63: 1.0821 | BO63: -10.79797098 | BP63: 1.0826 | BQ63: -10.88878154 | BR63: 1.0741 | BS63: -10.88523225 | BT63: 1.0741 | BU63: -10.79986065 | BV63: 1.0703 | BW63: -10.9019665 | BX63: 1.0738 | BY63: -10.69245422 | BZ63: 1.0879 | CA63: -10.69872838 | CB63: 1.0878 | CC63: -10.67960117 | CD63: 1.0862 | CE63: -5.27361584 | CF63: 0.31049 | CG63: -5.312306924 | CH63: 1.6261 | CI63: -5.326142747 | CJ63: 0.36907
E64: 5 | F64: ARITHMETIC | G64: -9.517963739 | H64: 1.1519 | I64: 0.7308655766 | J64: 0.46118 | K64: -9.238849064 | L64: 1.1555 | M64: -9.491323577 | N64: 0 | O64: -9.513264222 | P64: 1.1504 | Q64: -9.515517218 | R64: 1.1512 | S64: -9.411516244 | T64: 1.1553 | U64: -9.558657329 | V64: 1.1527 | W64: -9.521782669 | X64: 1.1507 | Y64: -9.507884944 | Z64: 0 | AA64: -9.529066645 | AB64: 1.1545 | AC64: -9.530541995 | AD64: 1.1536 | AE64: -9.532816559 | AF64: 1.1541 | AG64: -9.478543633 | AH64: 0 | AI64: -9.532122961 | AJ64: 1.1541 | AK64: -9.545739363 | AL64: 1.1534 | AM64: -9.472105633 | AN64: 1.1525 | AO64: -9.113156517 | AP64: 0.89156 | AQ64: -9.108324796 | AR64: 0.89148 | AS64: -9.109946551 | AT64: 0.88918 | AU64: -9.024402104 | AV64: 0 | AW64: -9.100023812 | AX64: 0.89152 | AY64: -9.113192555 | AZ64: 0.88865 | BA64: -9.089618551 | BB64: 0.89001 | BC64: -9.175857682 | BD64: 0 | BE64: -9.173148147 | BF64: 0.89913 | BG64: -9.171685086 | BH64: 0 | BI64: -9.078798968 | BJ64: 0.89632 | BK64: -9.171473923 | BL64: 0.89919 | BM64: -9.163946246 | BN64: 0.89753 | BO64: -9.140370957 | BP64: 0.89798 | BQ64: -9.245049617 | BR64: 0.89042 | BS64: -9.241061088 | BT64: 0.89041 | BU64: -9.142677583 | BV64: 0.88556 | BW64: -9.260879054 | BX64: 0.89 | BY64: -9.029191465 | BZ64: 0.90371 | CA64: -9.036161684 | CB64: 0.90381 | CC64: -9.012052721 | CD64: 0.90191 | CE64: -3.273564978 | CF64: 0.11681 | CG64: -3.636572092 | CH64: 0.94887 | CI64: -3.324300678 | CJ64: 0.14273
E65: 6 | F65: ARITHMETIC | G65: -7.748392308 | H65: 0.86282 | I65: 0.3822731237 | J65: 0.34927 | K65: -7.458581563 | L65: 0.86897 | M65: -7.721479279 | N65: 0 | O65: -7.743410054 | P65: 0.86145 | Q65: -7.745944864 | R65: 0.86221 | S65: -7.643355179 | T65: 0.86518 | U65: -7.790130164 | V65: 0.86405 | W65: -7.752538554 | X65: 0.86177 | Y65: -7.737283925 | Z65: 0 | AA65: -7.756006905 | AB65: 0.86535 | AC65: -7.75749266 | AD65: 0.8646 | AE65: -7.760882977 | AF65: 0.86524 | AG65: -7.704973845 | AH65: 0 | AI65: -7.75917798 | AJ65: 0.86499 | AK65: -7.774325812 | AL65: 0.86468 | AM65: -7.697419886 | AN65: 0.86324 | AO65: -7.266600783 | AP65: 0.60263 | AQ65: -7.26187451 | AR65: 0.6025 | AS65: -7.26365013 | AT65: 0.60063 | AU65: -7.178382573 | AV65: 0 | AW65: -7.253632463 | AX65: 0.60249 | AY65: -7.267445055 | AZ65: 0.60018 | BA65: -7.237528748 | BB65: 0.6014 | BC65: -7.321951442 | BD65: 0 | BE65: -7.319486115 | BF65: 0.60906 | BG65: -7.317940417 | BH65: 0 | BI65: -7.226340565 | BJ65: 0.60571 | BK65: -7.317919337 | BL65: 0.60905 | BM65: -7.310206558 | BN65: 0.60757 | BO65: -7.283093846 | BP65: 0.60785 | BQ65: -7.391981011 | BR65: 0.60314 | BS65: -7.388132393 | BT65: 0.60307 | BU65: -7.290168938 | BV65: 0.59816 | BW65: -7.408964114 | BX65: 0.6027 | BY65: -7.191737222 | BZ65: 0.61064 | CA65: -7.198286993 | CB65: 0.61091 | CC65: -7.170537274 | CD65: 0.6094 | CE65: -1.719469385 | CF65: 0.067944 | CG65: -2.014147266 | CH65: 0.48242 | CI65: -1.772099347 | CJ65: 0.080173
E66: 7 | F66: ARITHMETIC | G66: -5.743309055 | H66: 0.52528 | I66: 0.2501120793 | J66: 0.30208 | K66: -5.483204957 | L66: 0.53336 | M66: -5.722193252 | N66: 0 | O66: -5.739019514 | P66: 0.52457 | Q66: -5.741494009 | R66: 0.52503 | S66: -5.656961468 | T66: 0.52535 | U66: -5.779881276 | V66: 0.52734 | W66: -5.747615679 | X66: 0.52496 | Y66: -5.732926364 | Z66: 0 | AA66: -5.742655162 | AB66: 0.52747 | AC66: -5.744124239 | AD66: 0.52713 | AE66: -5.749027643 | AF66: 0.52776 | AG66: -5.699105444 | AH66: 0 | AI66: -5.745547282 | AJ66: 0.5273 | AK66: -5.761326697 | AL66: 0.52771 | AM66: -5.691289432 | AN66: 0.52543 | AO66: -5.309973278 | AP66: 0.29456 | AQ66: -5.306230644 | AR66: 0.29441 | AS66: -5.309611916 | AT66: 0.29355 | AU66: -5.238723314 | AV66: 0 | AW66: -5.299460076 | AX66: 0.29428 | AY66: -5.314194551 | AZ66: 0.29327 | BA66: -5.276523687 | BB66: 0.2944 | BC66: -5.336629056 | BD66: 0 | BE66: -5.3350064 | BF66: 0.29905 | BG66: -5.333792601 | BH66: 0 | BI66: -5.260616909 | BJ66: 0.29542 | BK66: -5.333744911 | BL66: 0.29903 | BM66: -5.327959528 | BN66: 0.29818 | BO66: -5.298283923 | BP66: 0.29841 | BQ66: -5.404793787 | BR66: 0.29703 | BS66: -5.401788381 | BT66: 0.29691 | BU66: -5.323524755 | BV66: 0.29275 | BW66: -5.421053844 | BX66: 0.29692 | BY66: -5.252165933 | BZ66: 0.29741 | CA66: -5.257066671 | CB66: 0.29776 | CC66: -5.228592645 | CD66: 0.2971 | CE66: -0.3553531993 | CF66: 0.056829 | CG66: -0.4934023621 | CH66: 0.28692 | CI66: -0.4256641278 | CJ66: 0.063924
E67: 8 | F67: ARITHMETIC | G67: -3.583930944 | H67: 0.24314 | I67: 0.03280395706 | J67: 0.29271 | K67: -3.401592806 | L67: 0.24959 | M67: -3.579044155 | N67: 0 | O67: -3.582991393 | P67: 0.24285 | Q67: -3.584189407 | R67: 0.24313 | S67: -3.534629661 | T67: 0.23947 | U67: -3.608792993 | V67: 0.24538 | W67: -3.589690625 | X67: 0.24332 | Y67: -3.58008006 | Z67: 0 | AA67: -3.567335176 | AB67: 0.24583 | AC67: -3.569590962 | AD67: 0.24589 | AE67: -3.576272526 | AF67: 0.24615 | AG67: -3.540031806 | AH67: 0 | AI67: -3.569843874 | AJ67: 0.2459 | AK67: -3.586348435 | AL67: 0.24647 | AM67: -3.53487726 | AN67: 0.24304 | AO67: -3.317187853 | AP67: 0.11696 | AQ67: -3.315283013 | AR67: 0.11695 | AS67: -3.323225883 | AT67: 0.11718 | AU67: -3.274402215 | AV67: 0 | AW67: -3.310288613 | AX67: 0.11698 | AY67: -3.328494866 | AZ67: 0.11715 | BA67: -3.284403129 | BB67: 0.11707 | BC67: -3.31161691 | BD67: 0 | BE67: -3.311373292 | BF67: 0.11685 | BG67: -3.311227333 | BH67: 0 | BI67: -3.268182917 | BJ67: 0.11633 | BK67: -3.310899546 | BL67: 0.11685 | BM67: -3.311275562 | BN67: 0.11681 | BO67: -3.281084172 | BP67: 0.11668 | BQ67: -3.377378843 | BR67: 0.11643 | BS67: -3.375828969 | BT67: 0.11642 | BU67: -3.332797281 | BV67: 0.11587 | BW67: -3.393736111 | BX67: 0.1164 | BY67: -3.279426504 | BZ67: 0.11676 | CA67: -3.283913643 | CB67: 0.11692 | CC67: -3.259213044 | CD67: 0.11694 | CE67: 0.4400909225 | CF67: 0.060997 | CG67: 0.7539803641 | CH67: 0.27736 | CI67: 0.3649315371 | CJ67: 0.064882
E68: 9 | F68: ARITHMETIC | G68: -1.780153236 | H68: 0.11011 | I68: -0.02518286027 | J68: 0.31497 | K68: -1.673179532 | L68: 0.11003 | M68: -1.783655934 | N68: 0 | O68: -1.786544685 | P68: 0.11002 | Q68: -1.784195786 | R68: 0.11007 | S68: -1.7529458 | T68: 0.11005 | U68: -1.789143174 | V68: 0.11021 | W68: -1.790671901 | X68: 0.11008 | Y68: -1.792710615 | Z68: 0 | AA68: -1.74966605 | AB68: 0.11084 | AC68: -1.754773611 | AD68: 0.11118 | AE68: -1.760370382 | AF68: 0.11089 | AG68: -1.733098758 | AH68: 0 | AI68: -1.753319666 | AJ68: 0.11046 | AK68: -1.769021994 | AL68: 0.11036 | AM68: -1.739458799 | AN68: 0.1104 | AO68: -1.760872493 | AP68: 0.069003 | AQ68: -1.760238397 | AR68: 0.069018 | AS68: -1.770584617 | AT68: 0.069642 | AU68: -1.720611901 | AV68: 0 | AW68: -1.755453132 | AX68: 0.069137 | AY68: -1.778243982 | AZ68: 0.069572 | BA68: -1.726883548 | BB68: 0.069385 | BC68: -1.724444431 | BD68: 0 | BE68: -1.725417046 | BF68: 0.068372 | BG68: -1.725624353 | BH68: 0 | BI68: -1.687888948 | BJ68: 0.068291 | BK68: -1.725771808 | BL68: 0.068369 | BM68: -1.727319169 | BN68: 0.068383 | BO68: -1.695278283 | BP68: 0.068273 | BQ68: -1.809995203 | BR68: 0.066778 | BS68: -1.809374776 | BT68: 0.066786 | BU68: -1.779497297 | BV68: 0.0668 | BW68: -1.826747388 | BX68: 0.066561 | BY68: -1.722900911 | BZ68: 0.067997 | CA68: -1.720943536 | CB68: 0.068304 | CC68: -1.703431284 | CD68: 0.068219 | CE68: 0.8388240477 | CF68: 0.073909 | CG68: 1.624440253 | CH68: 0.31189 | CI68: 0.8669697866 | CJ68: 0.073846
E69: 10 | F69: ARITHMETIC | G69: -0.4329605592 | H69: 0.087217 | I69: 0.1544560874 | J69: 0.32168 | K69: -0.3848518497 | L69: 0.086412 | M69: -0.4299248312 | N69: 0 | O69: -0.4436113894 | P69: 0.087083 | Q69: -0.4399790065 | R69: 0.08707 | S69: -0.4062380677 | T69: 0.086752 | U69: -0.4455275562 | V69: 0.085816 | W69: -0.4485800817 | X69: 0.086892 | Y69: -0.4553905341 | Z69: 0 | AA69: -0.3997754002 | AB69: 0.088506 | AC69: -0.4075519484 | AD69: 0.088951 | AE69: -0.4106290523 | AF69: 0.088308 | AG69: -0.3818242875 | AH69: 0 | AI69: -0.4061123134 | AJ69: 0.087448 | AK69: -0.4221607682 | AL69: 0.086841 | AM69: -0.3951673436 | AN69: 0.088004 | AO69: -0.4087644508 | AP69: 0.058683 | AQ69: -0.4091091785 | AR69: 0.058712 | AS69: -0.4206479102 | AT69: 0.059664 | AU69: -0.3696039601 | AV69: 0 | AW69: -0.4040804839 | AX69: 0.05888 | AY69: -0.4301817263 | AZ69: 0.059576 | BA69: -0.3741311181 | BB69: 0.059094 | BC69: -0.3532635518 | BD69: 0 | BE69: -0.3550318837 | BF69: 0.058057 | BG69: -0.3554718942 | BH69: 0 | BI69: -0.3218379997 | BJ69: 0.057885 | BK69: -0.3558379675 | BL69: 0.05806 | BM69: -0.3574187715 | BN69: 0.058087 | BO69: -0.3280539267 | BP69: 0.057811 | BQ69: -0.4407393671 | BR69: 0.05527 | BS69: -0.4408931585 | BT69: 0.055283 | BU69: -0.4187767344 | BV69: 0.055332 | BW69: -0.4589426033 | BX69: 0.054901 | BY69: -0.3560612013 | BZ69: 0.05688 | CA69: -0.3532125159 | CB69: 0.057158 | CC69: -0.3365695384 | CD69: 0.057267 | CE69: 1.688190579 | CF69: 0.12105 | CG69: 2.419900893 | CH69: 0.44013 | CI69: 1.850209867 | CJ69: 0.14056
E70: 11 | F70: ARITHMETIC | G70: 0.3017187033 | H70: 0.092381 | I70: 0.4631848657 | J70: 0.3185 | K70: 0.3055813763 | L70: 0.082815 | M70: 0.3116748674 | N70: 0 | O70: 0.2900297631 | P70: 0.092379 | Q70: 0.2935797625 | R70: 0.092363 | S70: 0.3174959514 | T70: 0.0901 | U70: 0.2755693818 | V70: 0.090004 | W70: 0.2831500997 | X70: 0.092099 | Y70: 0.2756456527 | Z70: 0 | AA70: 0.3379950822 | AB70: 0.094588 | AC70: 0.3286480316 | AD70: 0.095607 | AE70: 0.3280078871 | AF70: 0.094441 | AG70: 0.353083962 | AH70: 0 | AI70: 0.3293408268 | AJ70: 0.094006 | AK70: 0.3113147656 | AL70: 0.093091 | AM70: 0.3388692707 | AN70: 0.093823 | AO70: 0.3870256534 | AP70: 0.062755 | AQ70: 0.385940754 | AR70: 0.062771 | AS70: 0.3747115517 | AT70: 0.063492 | AU70: 0.4186874131 | AV70: 0 | AW70: 0.3905006008 | AX70: 0.062902 | AY70: 0.3653670376 | AZ70: 0.063366 | BA70: 0.4156324211 | BB70: 0.062978 | BC70: 0.4503933181 | BD70: 0 | BE70: 0.4480683646 | BF70: 0.063235 | BG70: 0.4471168866 | BH70: 0 | BI70: 0.473795408 | BJ70: 0.063312 | BK70: 0.4470937029 | BL70: 0.063258 | BM70: 0.4451307429 | BN70: 0.063271 | BO70: 0.4677611936 | BP70: 0.063123 | BQ70: 0.3712877498 | BR70: 0.059379 | BS70: 0.3705434104 | BT70: 0.05939 | BU70: 0.3819533381 | BV70: 0.059372 | BW70: 0.3551506791 | BX70: 0.059023 | BY70: 0.4383134937 | BZ70: 0.060851 | CA70: 0.4376020398 | CB70: 0.060991 | CC70: 0.4552475166 | CD70: 0.061218 | CE70: 3.259008592 | CF70: 0.25291 | CG70: 3.31705961 | CH70: 0.8008 | CI70: 3.125532115 | CJ70: 0.21192
E71: 12 | F71: ARITHMETIC | G71: 0.5862464668 | H71: 0.10334 | I71: 0.6702220316 | J71: 0.3185 | K71: 0.8118700323 | L71: 0.093211 | M71: 0.5912261412 | N71: 0 | O71: 0.5755561354 | P71: 0.10331 | Q71: 0.5780205683 | R71: 0.10331 | S71: 0.6237229502 | T71: 0.10076 | U71: 0.5846384618 | V71: 0.10078 | W71: 0.5726330212 | X71: 0.10299 | Y71: 0.5657936481 | Z71: 0 | AA71: 0.6145286796 | AB71: 0.10649 | AC71: 0.6067668011 | AD71: 0.10621 | AE71: 0.6066447879 | AF71: 0.1063 | AG71: 0.6258578223 | AH71: 0 | AI71: 0.6052763236 | AJ71: 0.10561 | AK71: 0.5938528311 | AL71: 0.10484 | AM71: 0.612612258 | AN71: 0.10574 | AO71: 0.7494751783 | AP71: 0.075281 | AQ71: 0.7467151992 | AR71: 0.075231 | AS71: 0.7354080349 | AT71: 0.075967 | AU71: 0.7837096077 | AV71: 0 | AW71: 0.7515521847 | AX71: 0.075388 | AY71: 0.7244609667 | AZ71: 0.075717 | BA71: 0.7817634967 | BB71: 0.075825 | BC71: 0.8333234738 | BD71: 0 | BE71: 0.8290531641 | BF71: 0.077301 | BG71: 0.8276746735 | BH71: 0 | BI71: 0.8574419988 | BJ71: 0.077799 | BK71: 0.8263982956 | BL71: 0.077258 | BM71: 0.8237127637 | BN71: 0.07722 | BO71: 0.8498594172 | BP71: 0.07748 | BQ71: 0.7631614034 | BR71: 0.071336 | BS71: 0.7609865323 | BT71: 0.071303 | BU71: 0.7689955906 | BV71: 0.071299 | BW71: 0.7478041612 | BX71: 0.070873 | BY71: 0.8411626791 | BZ71: 0.073696 | CA71: 0.8409123883 | CB71: 0.074044 | CC71: 0.8591693208 | CD71: 0.074284 | CE71: 5.040390233 | CF71: 0.62403 | CG71: 4.284389876 | CH71: 1.4127 | CI71: 3.834730339 | CJ71: 0.27969
E72: 13 | F72: ARITHMETIC | G72: 1.273966871 | H72: 0.16531 | I72: 1.025337801 | J72: 0.33464 | K72: 1.740795668 | L72: 0.2034 | M72: 1.280350457 | N72: 0 | O72: 1.254435507 | P72: 0.16361 | Q72: 1.257420057 | R72: 0.1633 | S72: 1.356019918 | T72: 0.16692 | U72: 1.24037799 | V72: 0.15369 | W72: 1.246699289 | X72: 0.16196 | Y72: 1.235730448 | Z72: 0 | AA72: 1.276447233 | AB72: 0.16647 | AC72: 1.261687979 | AD72: 0.16407 | AE72: 1.265767944 | AF72: 0.16546 | AG72: 1.311123747 | AH72: 0 | AI72: 1.258144472 | AJ72: 0.16305 | AK72: 1.243070551 | AL72: 0.16037 | AM72: 1.289203017 | AN72: 0.16838 | AO72: 1.483621822 | AP72: 0.11931 | AQ72: 1.476896596 | AR72: 0.11896 | AS72: 1.462383815 | AT72: 0.11996 | AU72: 1.541813049 | AV72: 0 | AW72: 1.484402969 | AX72: 0.11934 | AY72: 1.444824721 | AZ72: 0.11917 | BA72: 1.542603711 | BB72: 0.12235 | BC72: 1.62973901 | BD72: 0 | BE72: 1.620458402 | BF72: 0.12602 | BG72: 1.618233097 | BH72: 0 | BI72: 1.672235415 | BJ72: 0.12873 | BK72: 1.612967761 | BL72: 0.12571 | BM72: 1.608330968 | BN72: 0.12543 | BO72: 1.659120844 | BP72: 0.12779 | BQ72: 1.557097952 | BR72: 0.11398 | BS72: 1.551577611 | BT72: 0.11373 | BU72: 1.565673998 | BV72: 0.11463 | BW72: 1.535949575 | BX72: 0.113 | BY72: 1.696248884 | BZ72: 0.12101 | CA72: 1.705452068 | CB72: 0.12203 | CC72: 1.726456464 | CD72: 0.12222 | CE72: 6.894761202 | CF72: 1.267 | CG72: 5.266340114 | CH72: 2.2645 | CI72: 4.40503316 | CJ72: 0.5002
E73: 14 | F73: ARITHMETIC | G73: 2.574953193 | H73: 0.34742 | I73: 1.629337945 | J73: 0.4273 | K73: 3.087503894 | L73: 0.27585 | M73: 2.603527963 | N73: 0 | O73: 2.530568567 | P73: 0.34216 | Q73: 2.536226248 | R73: 0.34127 | S73: 2.733769062 | T73: 0.34903 | U73: 2.391023159 | V73: 0.29976 | W73: 2.497300611 | X73: 0.33464 | Y73: 2.477222793 | Z73: 0 | AA73: 2.530408617 | AB73: 0.34883 | AC73: 2.486133241 | AD73: 0.34664 | AE73: 2.510214003 | AF73: 0.34638 | AG73: 2.633759466 | AH73: 0 | AI73: 2.483933821 | AJ73: 0.34263 | AK73: 2.435132267 | AL73: 0.32898 | AM73: 2.594179014 | AN73: 0.35791 | AO73: 2.873150146 | AP73: 0.23455 | AQ73: 2.859716178 | AR73: 0.23342 | AS73: 2.83793599 | AT73: 0.23365 | AU73: 3.000432475 | AV73: 0 | AW73: 2.870856878 | AX73: 0.23428 | AY73: 2.809614343 | AZ73: 0.23159 | BA73: 2.986983273 | BB73: 0.24524 | BC73: 3.115117596 | BD73: 0 | BE73: 3.098647218 | BF73: 0.25206 | BG73: 3.094062518 | BH73: 0 | BI73: 3.217370995 | BJ73: 0.26706 | BK73: 3.08584043 | BL73: 0.25148 | BM73: 3.070427551 | BN73: 0.24957 | BO73: 3.181480168 | BP73: 0.26117 | BQ73: 3.029989841 | BR73: 0.23025 | BS73: 3.019351304 | BT73: 0.2294 | BU73: 3.072045518 | BV73: 0.23809 | BW73: 3.008377944 | BX73: 0.22903 | BY73: 3.272238103 | BZ73: 0.25291 | CA73: 3.295518673 | CB73: 0.25514 | CC73: 3.310056889 | CD73: 0.25525
E74: 15 | F74: ARITHMETIC | G74: 4.024992345 | H74: 0.6699 | I74: 2.40345213 | J74: 0.71597 | K74: 3.754797514 | L74: 0.30984 | M74: 4.082471062 | N74: 0 | O74: 3.957835815 | P74: 0.65461 | Q74: 3.966564299 | R74: 0.65515 | S74: 4.25985809 | T74: 0.67569 | U74: 3.661838059 | V74: 0.53428 | W74: 3.893194876 | X74: 0.63178 | Y74: 3.865332942 | Z74: 0 | AA74: 3.960269939 | AB74: 0.66603 | AC74: 3.88028139 | AD74: 0.6644 | AE74: 3.933053887 | AF74: 0.65914 | AG74: 4.130696756 | AH74: 0 | AI74: 3.884025785 | AJ74: 0.65857 | AK74: 3.788800806 | AL74: 0.6179 | AM74: 4.078657037 | AN74: 0.69271 | AO74: 4.351471387 | AP74: 0.54468 | AQ74: 4.326639076 | AR74: 0.54063 | AS74: 4.293110561 | AT74: 0.53695 | AU74: 4.61465161 | AV74: 0 | AW74: 4.346654226 | AX74: 0.54354 | AY74: 4.248809315 | AZ74: 0.52963 | BA74: 4.567147643 | BB74: 0.57846 | BC74: 4.733728699 | BD74: 0 | BE74: 4.705984685 | BF74: 0.60303 | BG74: 4.698974173 | BH74: 0 | BI74: 4.947397426 | BJ74: 0.64784 | BK74: 4.688679979 | BL74: 0.60155 | BM74: 4.653472222 | BN74: 0.59531 | BO74: 4.867820102 | BP74: 0.63066 | BQ74: 4.664602295 | BR74: 0.55963 | BS74: 4.646273672 | BT74: 0.55688 | BU74: 4.782118055 | BV74: 0.58683 | BW74: 4.648591775 | BX74: 0.55762 | BY74: 5.069197221 | BZ74: 0.62247 | CA74: 5.107521201 | CB74: 0.62864 | CC74: 5.116454828 | CD74: 0.62832
E75: 16 | F75: ARITHMETIC | G75: 5.511702476 | H75: 1.2796 | I75: 3.227403869 | J75: 1.313 | K75: 4.080401757 | L75: 0.47957 | M75: 5.596009677 | N75: 0 | O75: 5.424730277 | P75: 1.252 | Q75: 5.436064127 | R75: 1.2551 | S75: 5.821801024 | T75: 1.2943 | U75: 4.982848205 | V75: 1.0454 | W75: 5.330497182 | X75: 1.2129 | Y75: 5.296252107 | Z75: 0 | AA75: 5.431250217 | AB75: 1.2712 | AC75: 5.317194742 | AD75: 1.2616 | AE75: 5.398663284 | AF75: 1.2587 | AG75: 5.663707197 | AH75: 0 | AI75: 5.32721909 | AJ75: 1.2574 | AK75: 5.188328292 | AL75: 1.1891 | AM75: 5.601456843 | AN75: 1.3167 | AO75: 5.921929047 | AP75: 1.1259 | AQ75: 5.88649887 | AR75: 1.119 | AS75: 5.843801047 | AT75: 1.11 | AU75: 6.310518295 | AV75: 0 | AW75: 5.915514544 | AX75: 1.1234 | AY75: 5.786168965 | AZ75: 1.0968 | BA75: 6.234296168 | BB75: 1.181 | BC75: 6.426715118 | BD75: 0 | BE75: 6.388223745 | BF75: 1.227 | BG75: 6.379233943 | BH75: 0 | BI75: 6.742173526 | BJ75: 1.3 | BK75: 6.366748478 | BL75: 1.2246 | BM75: 6.313239488 | BN75: 1.2139 | BO75: 6.623470632 | BP75: 1.2718 | BQ75: 6.391914123 | BR75: 1.161 | BS75: 6.366779236 | BT75: 1.1564 | BU75: 6.577238536 | BV75: 1.2056 | BW75: 6.384486453 | BX75: 1.1568 | BY75: 6.94064782 | BZ75: 1.2633 | CA75: 6.991734525 | CB75: 1.2739 | CC75: 6.995584127 | CD75: 1.2728
B76: natural mortality | C76: pDM1[1] | D76: multiplier for immature crab | E76: 1 | F76: ARITHMETIC | G76: 1.000390497 | H76: 0.050646 | I76: 0.9947322169 | J76: 0.049936 | K76: 1.004262675 | L76: 0.050214 | M76: 0.9511130094 | N76: 0 | O76: 1.010444849 | P76: 0.050785 | Q76: 1.006321044 | R76: 0.049449 | S76: 1.061862482 | T76: 0.051659 | U76: 0.9998098892 | V76: 0.050934 | W76: 1.010302721 | X76: 0.050836 | Y76: 1.015924072 | Z76: 0 | AA76: 0.9675367367 | AB76: 0.044219 | AC76: 0.9673858302 | AD76: 0.044346 | AE76: 0.9666151006 | AF76: 0.044163 | AG76: 0.9309989984 | AH76: 0 | AI76: 0.9631327647 | AJ76: 0.043374 | AK76: 0.9614705767 | AL76: 0.043099 | AM76: 0.9498158586 | AN76: 0.050089 | AO76: 0.8745396656 | AP76: 0.042658 | AQ76: 0.8709972938 | AR76: 0.042659 | AS76: 0.8754401778 | AT76: 0.043781 | AU76: 0.7355750156 | AV76: 0 | AW76: 0.8543598951 | AX76: 0.042853 | AY76: 0.868408842 | AZ76: 0.043698 | BA76: 0.8278244919 | BB76: 0.044081 | BC76: 0.889350096 | BD76: 0 | BE76: 0.8889502995 | BF76: 0.042215 | BG76: 0.8871712497 | BH76: 0 | BI76: 0.783150712 | BJ76: 0.041206 | BK76: 0.8879415281 | BL76: 0.042175 | BM76: 0.8832889636 | BN76: 0.042323 | BO76: 0.8601782895 | BP76: 0.043003 | BQ76: 0.6836072279 | BR76: 0.038692 | BS76: 0.6813176157 | BT76: 0.038678 | BU76: 0.5489766486 | BV76: 0.038221 | BW76: 0.6999022118 | BX76: 0.037572 | BY76: 0.3939962198 | BZ76: 0.035477 | CA76: 0.3403353054 | CB76: 0.035778 | CC76: 0.2949909225 | CD76: 0.035556 | CE76: 0.3527678818 | CF76: 0.022542 | CG76: 0.8699085898 | CH76: 0.047386 | CI76: 0.3632279573 | CJ76: 0.034214
C77: pDM1[2] | D77: multiplier for mature males | E77: 1 | F77: ARITHMETIC | G77: 1.149796978 | H77: 0.039957 | I77: 1.02962654 | J77: 0.044018 | K77: 1.197326867 | L77: 0.038211 | M77: 1.130272905 | N77: 0 | O77: 1.106105193 | P77: 0.040062 | Q77: 1.103993098 | R77: 0.039072 | S77: 1.059047505 | T77: 0.038882 | U77: 1.201516562 | V77: 0.042138 | W77: 1.110453525 | X77: 0.040305 | Y77: 1.113445835 | Z77: 0 | AA77: 1.411243992 | AB77: 0.037773 | AC77: 1.416466262 | AD77: 0.037748 | AE77: 1.360050117 | AF77: 0.03712 | AG77: 1.30691539 | AH77: 0 | AI77: 1.409432975 | AJ77: 0.035957 | AK77: 1.363020163 | AL77: 0.035747 | AM77: 1.315665207 | AN77: 0.035137 | AO77: 1.649055573 | AP77: 0.031537 | AQ77: 1.648247829 | AR77: 0.031537 | AS77: 1.602118978 | AT77: 0.033472 | AU77: 1.53842976 | AV77: 0 | AW77: 1.636652056 | AX77: 0.03153 | AY77: 1.603445808 | AZ77: 0.033695 | BA77: 1.574050532 | BB77: 0.032652 | BC77: 1.845512656 | BD77: 0 | BE77: 1.847863745 | BF77: 0.030755 | BG77: 1.829626982 | BH77: 0 | BI77: 1.700582464 | BJ77: 0.029131 | BK77: 1.851889543 | BL77: 0.030893 | BM77: 1.795605039 | BN77: 0.031087 | BO77: 1.743255415 | BP77: 0.030451 | BQ77: 1.887358881 | BR77: 0.027188 | BS77: 1.887501863 | BT77: 0.027189 | BU77: 1.788196223 | BV77: 0.028457 | BW77: 1.869038884 | BX77: 0.027155 | BY77: 0.9419037129 | BZ77: 0.017155 | CA77: 0.9057959609 | CB77: 0.016659 | CC77: 0.9974190246 | CD77: 0.01655 | CE77: 0.97657588 | CF77: 0.016369 | CG77: 0.8554233512 | CH77: 0.022009 | CI77: 0.966957674 | CJ77: 0.016694
C78: pDM1[3] | D78: multiplier for mature females | E78: 1 | F78: ARITHMETIC | G78: 1.374020001 | H78: 0.035723 | I78: 1.080841476 | J78: 0.044252 | K78: 1.365684487 | L78: 0.035738 | M78: 1.396717213 | N78: 0 | O78: 1.362343804 | P78: 0.03642 | Q78: 1.362885187 | R78: 0.034832 | S78: 1.459790699 | T78: 0.033133 | U78: 1.326751611 | V78: 0.03777 | W78: 1.349358721 | X78: 0.036876 | Y78: 1.353035336 | Z78: 0 | AA78: 1.356206416 | AB78: 0.035046 | AC78: 1.351154406 | AD78: 0.037098 | AE78: 1.34199982 | AF78: 0.035159 | AG78: 1.40253009 | AH78: 0 | AI78: 1.345413513 | AJ78: 0.031754 | AK78: 1.318383466 | AL78: 0.031347 | AM78: 1.39182349 | AN78: 0.035006 | AO78: 1.475624316 | AP78: 0.032404 | AQ78: 1.476875332 | AR78: 0.032433 | AS78: 1.470568606 | AT78: 0.033402 | AU78: 1.53904337 | AV78: 0 | AW78: 1.477815317 | AX78: 0.032546 | AY78: 1.463055933 | AZ78: 0.033489 | BA78: 1.498365895 | BB78: 0.033356 | BC78: 1.62490805 | BD78: 0 | BE78: 1.624571649 | BF78: 0.029786 | BG78: 1.622272114 | BH78: 0 | BI78: 1.681136865 | BJ78: 0.029419 | BK78: 1.621148346 | BL78: 0.029847 | BM78: 1.614639933 | BN78: 0.029878 | BO78: 1.643871586 | BP78: 0.02982 | BQ78: 1.6078828 | BR78: 0.028792 | BS78: 1.608860794 | BT78: 0.028807 | BU78: 1.65649161 | BV78: 0.029016 | BW78: 1.594685876 | BX78: 0.027999 | BY78: 0.8972888784 | BZ78: 0.017409 | CA78: 0.9012128363 | CB78: 0.017334 | CC78: 0.8978301428 | CD78: 0.018004 | CE78: 0.8876847888 | CF78: 0.017893 | CG78: 0.9514966668 | CH78: 0.020196 | CI78: 0.8767130537 | CJ78: 0.017705
C79: pDM2[1] | D79: 1980-1984 multiplier for mature males | E79: 1 | F79: ARITHMETIC | G79: 2.601202928 | H79: 0.24313 | I79: 6.088505 | J79: 0.83966 | K79: 2.766151018 | L79: 0.23055 | M79: 2.178372095 | N79: 0 | O79: 2.506888373 | P79: 0.23359 | Q79: 2.573041131 | R79: 0.22482 | S79: 2.173841686 | T79: 0.23244 | U79: 2.823710143 | V79: 0.25911 | W79: 2.505301224 | X79: 0.23436 | Y79: 2.312286355 | Z79: 0 | AA79: 2.707053999 | AB79: 0.23396 | AC79: 2.612027011 | AD79: 0.21859 | AE79: 2.705326316 | AF79: 0.22609 | AG79: 2.497254824 | AH79: 0 | AI79: 2.618288525 | AJ79: 0.21553 | AK79: 2.687697474 | AL79: 0.22506 | AM79: 2.329052427 | AN79: 0.18958 | AO79: 2.460619321 | AP79: 0.13044 | AQ79: 2.4371273 | AR79: 0.1293 | AS79: 2.54441563 | AT79: 0.13977 | AU79: 2.243052859 | AV79: 0 | AW79: 2.449116752 | AX79: 0.13009 | AY79: 2.50574447 | AZ79: 0.14011 | BA79: 2.307546002 | BB79: 0.13295 | BC79: 2.318443435 | BD79: 0 | BE79: 2.301290689 | BF79: 0.090578 | BG79: 2.325353745 | BH79: 0 | BI79: 2.233183185 | BJ79: 0.088731 | BK79: 2.276937231 | BL79: 0.091124 | BM79: 2.401171705 | BN79: 0.094394 | BO79: 2.291415873 | BP79: 0.09203 | BQ79: 2.313440291 | BR79: 0.086212 | BS79: 2.304027264 | BT79: 0.08587 | BU79: 2.0215635 | BV79: 0.082945 | BW79: 2.320983536 | BX79: 0.086873 | BY79: 1.841472818 | BZ79: 0.07716 | CA79: 1.894029033 | CB79: 0.080023 | CC79: 1.701148547 | CD79: 0.071537 | CE79: 1.691037329 | CF79: 0.070931 | CG79: 1.966577313 | CH79: 0.093396 | CI79: 1.667552957 | CJ79: 0.073366
C80: pDM2[2] | D80: 1980-1984 multiplier for mature females | E80: 1 | F80: ARITHMETIC | G80: 1.323116185 | H80: 0.10091 | I80: 3.024433608 | J80: 0.28247 | K80: 1.693958413 | L80: 0.11092 | M80: 1.170225784 | N80: 0 | O80: 1.333892498 | P80: 0.098593 | Q80: 1.355982639 | R80: 0.095997 | S80: 1.224503414 | T80: 0.10156 | U80: 1.424362175 | V80: 0.1077 | W80: 1.336975124 | X80: 0.10046 | Y80: 1.269701039 | Z80: 0 | AA80: 1.432147554 | AB80: 0.1058 | AC80: 1.398363523 | AD80: 0.10039 | AE80: 1.468808338 | AF80: 0.10398 | AG80: 1.360820094 | AH80: 0 | AI80: 1.400184745 | AJ80: 0.099528 | AK80: 1.461667115 | AL80: 0.10546 | AM80: 1.299171364 | AN80: 0.092832 | AO80: 1.860572381 | AP80: 0.10731 | AQ80: 1.847708583 | AR80: 0.10684 | AS80: 1.922929549 | AT80: 0.11018 | AU80: 1.725303088 | AV80: 0 | AW80: 1.849662443 | AX80: 0.10721 | AY80: 1.89866275 | AZ80: 0.11084 | BA80: 1.775280645 | BB80: 0.10618 | BC80: 1.679758129 | BD80: 0 | BE80: 1.670170667 | BF80: 0.074742 | BG80: 1.685483008 | BH80: 0 | BI80: 1.587014632 | BJ80: 0.069229 | BK80: 1.651270664 | BL80: 0.075301 | BM80: 1.734353684 | BN80: 0.075946 | BO80: 1.641864515 | BP80: 0.072767 | BQ80: 1.652859463 | BR80: 0.074632 | BS80: 1.64713497 | BT80: 0.074483 | BU80: 1.456780791 | BV80: 0.068496 | BW80: 1.647058858 | BX80: 0.075115 | BY80: 1.146263015 | BZ80: 0.058949 | CA80: 1.153439263 | CB80: 0.059272 | CC80: 1.138150006 | CD80: 0.05972 | CE80: 1.130025034 | CF80: 0.059792 | CG80: 1.109084135 | CH80: 0.058531 | CI80: 1.191944847 | CJ80: 0.061037
C81: pM[1] | D81: base ln-scale M | E81: 1 | F81: LOG | G81: -1.469676 | H81: 0 | I81: -1.469676 | J81: 0 | K81: -1.469676 | L81: 0 | M81: -1.469676 | N81: 0 | O81: -1.469676 | P81: 0 | Q81: -1.469676 | R81: 0 | S81: -1.469676 | T81: 0 | U81: -1.469676 | V81: 0 | W81: -1.469676 | X81: 0 | Y81: -1.469676 | Z81: 0 | AA81: -1.469676 | AB81: 0 | AC81: -1.469676 | AD81: 0 | AE81: -1.469676 | AF81: 0 | AG81: -1.469676 | AH81: 0 | AI81: -1.469676 | AJ81: 0 | AK81: -1.469676 | AL81: 0 | AM81: -1.469676 | AN81: 0 | AO81: -1.469676 | AP81: 0 | AQ81: -1.469676 | AR81: 0 | AS81: -1.469676 | AT81: 0 | AU81: -1.469676 | AV81: 0 | AW81: -1.469676 | AX81: 0 | AY81: -1.469676 | AZ81: 0 | BA81: -1.469676 | BB81: 0 | BC81: -1.469676 | BD81: 0 | BE81: -1.469676 | BF81: 0 | BG81: -1.469676 | BH81: 0 | BI81: -1.469676 | BJ81: 0 | BK81: -1.469676 | BL81: 0 | BM81: -1.469676 | BN81: 0 | BO81: -1.469676 | BP81: 0 | BQ81: -1.469676 | BR81: 0 | BS81: -1.469676 | BT81: 0 | BU81: -1.469676 | BV81: 0 | BW81: -1.469676 | BX81: 0 | BY81: -0.6019864022 | BZ81: 0 | CA81: -0.6019864022 | CB81: 0 | CC81: -0.6019864022 | CD81: 0 | CE81: -0.6019864022 | CF81: 0 | CG81: -0.6019864022 | CH81: 0 | CI81: -0.6019864022 | CJ81: 0
B82: recruitment | C82: pLnR[1] | D82: historical recruitment period | E82: 1 | F82: ARITHMETIC | G82: 5.622237507 | H82: 0.39982 | I82: 6.492483972 | J82: 0.49241 | K82: 5.763704075 | L82: 0.39163 | M82: 5.73328544 | N82: 0 | O82: 6.230235043 | P82: 0.41828 | Q82: 5.632068855 | R82: 0.45621 | S82: 5.817447257 | T82: 0.38761 | U82: 5.39719802 | V82: 0.082899 | W82: 5.195733512 | X82: 0.074634 | Y82: 5.104685374 | Z82: 0 | AA82: 6.2658661 | AB82: 0.40259 | AC82: 6.377163681 | AD82: 0.37682 | AE82: 6.761274538 | AF82: 0.5156 | AG82: 5.903445572 | AH82: 0 | AI82: 5.778579455 | AJ82: 0.039157 | AK82: 5.786757663 | AL82: 0.039708 | AM82: 5.388103524 | AN82: 0.076713 | AO82: 6.279792574 | AP82: 0.41267 | AQ82: 6.317121509 | AR82: 0.39448 | AS82: 6.59452379 | AT82: 0.48518 | AU82: 5.715984605 | AV82: 0 | AW82: 5.743308653 | AX82: 0.033443 | AY82: 5.715552368 | AZ82: 0.066952 | BA82: 5.394869689 | BB82: 0.063385 | BC82: 6.096892541 | BD82: 0 | BE82: 6.11935533 | BF82: 0.40608 | BG82: 6.517903749 | BH82: 0 | BI82: 5.364523323 | BJ82: 0.48455 | BK82: 5.674956702 | BL82: 0.05873 | BM82: 5.552487738 | BN82: 0.054885 | BO82: 5.226746194 | BP82: 0.050543 | BQ82: 6.132838143 | BR82: 0.40971 | BS82: 6.178624708 | BT82: 0.39108 | BU82: 5.476085365 | BV82: 0.4643 | BW82: 6.133397351 | BX82: 0.41106 | BY82: 7.198567829 | BZ82: 0.49013 | CA82: 8.566989301 | CB82: 0.51206 | CC82: 6.675138907 | CD82: 0.56854 | CE82: 6.710461348 | CF82: 0.56367 | CG82: 7.093252431 | CH82: 0.65967 | CI82: 6.804253405 | CJ82: 0.56189
C83: pLnR[2] | D83: current recruitment period | E83: 1 | F83: ARITHMETIC | G83: 5.115184573 | H83: 0.07185 | I83: 4.362669832 | J83: 1.2295 | K83: 5.271344984 | L83: 0.072444 | M83: 4.996453652 | N83: 0 | O83: 5.111860025 | P83: 0.071235 | Q83: 4.990709264 | R83: 0.071608 | S83: 5.370901996 | T83: 0.086177 | AA83: 5.706953805 | AB83: 0.077004 | AC83: 5.722734587 | AD83: 0.084765 | AE83: 5.654820788 | AF83: 0.073751 | AG83: 5.263144047 | AH83: 0 | AO83: 5.748641305 | AP83: 0.033876 | AQ83: 5.737405428 | AR83: 0.033474 | AS83: 5.639709261 | AT83: 0.063323 | AU83: 5.153192109 | AV83: 0 | BC83: 5.618128595 | BD83: 0 | BE83: 5.614742545 | BF83: 0.055655 | BG83: 5.59563969 | BH83: 0 | BI83: 5.05517565 | BJ83: 0.043594 | BQ83: 5.586078708 | BR83: 0.031437 | BS83: 5.575307057 | BT83: 0.030274 | BU83: 5.109697935 | BV83: 0.046852 | BW83: 5.596680283 | BX83: 0.030574 | BY83: 6.052197163 | BZ83: 0.08626 | CA83: 5.938143744 | CB83: 0.0854 | CC83: 5.836520048 | CD83: 0.084094 | CE83: 5.926298693 | CF83: 0.054733 | CG83: 6.167920294 | CH83: 0.10862 | CI83: 6.055439339 | CJ83: 0.079802
C84: pRa[1] | D84: fixed value | E84: 1 | F84: LOG | G84: 2.442347035 | H84: 0 | I84: 2.442347035 | J84: 0 | K84: 2.442347035 | L84: 0 | S84: 2.442347035 | T84: 0 | AA84: 2.442347035 | AB84: 0 | AO84: 2.442347035 | AP84: 0 | BC84: 2.442347035 | BD84: 0 | BQ84: 2.442347035 | BR84: 0 | BW84: 2.442347035 | BX84: 0
D85: ln-scale gamma distribution location parameter for pr(size-at-recruitment) | E85: 1 | F85: LOGIT | M85: -0.2513144283 | N85: 0 | O85: -0.2513144283 | P85: 0 | Q85: -0.2513144283 | R85: 0 | U85: -0.2513144283 | V85: 0 | W85: -0.2513144283 | X85: 0 | Y85: -0.2513144283 | Z85: 0 | AC85: -0.2513144283 | AD85: 0 | AE85: -0.2513144283 | AF85: 0 | AG85: -0.2513144283 | AH85: 0 | AI85: -0.2513144283 | AJ85: 0 | AK85: -0.2513144283 | AL85: 0 | AM85: -0.2513144283 | AN85: 0 | AQ85: -0.2513144283 | AR85: 0 | AS85: -0.2513144283 | AT85: 0 | AU85: -0.2513144283 | AV85: 0 | AW85: -0.2513144283 | AX85: 0 | AY85: -0.2513144283 | AZ85: 0 | BA85: -0.2513144283 | BB85: 0 | BE85: -0.2513144283 | BF85: 0 | BG85: -0.2513144283 | BH85: 0 | BI85: -0.2513144283 | BJ85: 0 | BK85: -0.2513144283 | BL85: 0 | BM85: -0.2513144283 | BN85: 0 | BO85: -0.2513144283 | BP85: 0 | BS85: -0.2513144283 | BT85: 0 | BU85: -0.2513144283 | BV85: 0 | BY85: 0 | BZ85: 0 | CA85: 0 | CB85: 0 | CC85: 0 | CD85: 0 | CE85: 0 | CF85: 0 | CG85: 0 | CH85: 0 | CI85: 0 | CJ85: 0
C86: pRb[1] | D86: fixed value | E86: 1 | F86: LOG | G86: 1.386294361 | H86: 0 | I86: 1.386294361 | J86: 0 | K86: 1.386294361 | L86: 0 | S86: 1.386294361 | T86: 0 | AA86: 1.386294361 | AB86: 0 | AO86: 1.386294361 | AP86: 0 | BC86: 1.386294361 | BD86: 0 | BQ86: 1.386294361 | BR86: 0 | BW86: 1.386294361 | BX86: 0
D87: ln-scale gamma distribution scale parameter for pr(size-at-recruitment) | E87: 1 | F87: LOGIT | M87: -0.4307829161 | N87: 0 | O87: -0.4307829161 | P87: 0 | Q87: -0.4307829161 | R87: 0 | U87: -0.4307829161 | V87: 0 | W87: -0.4307829161 | X87: 0 | Y87: -0.4307829161 | Z87: 0 | AC87: -0.4307829161 | AD87: 0 | AE87: -0.4307829161 | AF87: 0 | AG87: -0.4307829161 | AH87: 0 | AI87: -0.4307829161 | AJ87: 0 | AK87: -0.4307829161 | AL87: 0 | AM87: -0.4307829161 | AN87: 0 | AQ87: -0.4307829161 | AR87: 0 | AS87: -0.4307829161 | AT87: 0 | AU87: -0.4307829161 | AV87: 0 | AW87: -0.4307829161 | AX87: 0 | AY87: -0.4307829161 | AZ87: 0 | BA87: -0.4307829161 | BB87: 0 | BE87: -0.4307829161 | BF87: 0 | BG87: -0.4307829161 | BH87: 0 | BI87: -0.4307829161 | BJ87: 0 | BK87: -0.4307829161 | BL87: 0 | BM87: -0.4307829161 | BN87: 0 | BO87: -0.4307829161 | BP87: 0 | BS87: -0.4307829161 | BT87: 0 | BU87: -0.4307829161 | BV87: 0 | BY87: 0 | BZ87: 0 | CA87: 0 | CB87: 0 | CC87: 0 | CD87: 0 | CE87: 0 | CF87: 0 | CG87: 0 | CH87: 0 | CI87: 0 | CJ87: 0
C88: pRCV[1] | D88: full model period | E88: 1 | F88: LOG | G88: -0.6931471806 | H88: 0 | I88: -0.6931471806 | J88: 0 | K88: -0.6931471806 | L88: 0 | S88: -0.6931471806 | T88: 0 | AA88: -0.6931471806 | AB88: 0 | AO88: -0.6931471806 | AP88: 0 | BC88: -0.6931471806 | BD88: 0 | BQ88: -0.6931471806 | BR88: 0 | BW88: -0.6931471806 | BX88: 0
D89: historical recruitment cv | E89: 1 | F89: LOG | M89: -0.6931471806 | N89: 0 | O89: -0.6931471806 | P89: 0 | Q89: -0.6931471806 | R89: 0 | U89: -0.4156082445 | V89: 0.10536 | W89: -0.4661742347 | X89: 0.10212 | Y89: -0.2698668509 | Z89: 0 | AC89: -0.6931471806 | AD89: 0 | AE89: -0.6931471806 | AF89: 0 | AG89: -0.6931471806 | AH89: 0 | AI89: -0.4654592382 | AJ89: 0.10396 | AK89: -0.5749803316 | AL89: 0.099274 | AM89: -0.2850799503 | AN89: 0.10382 | AQ89: -0.6931471806 | AR89: 0 | AS89: -0.6931471806 | AT89: 0 | AU89: -0.6931471806 | AV89: 0 | AW89: -0.4109804467 | AX89: 0.10646 | AY89: -0.4682766097 | AZ89: 0.10251 | BA89: -0.269987492 | BB89: 0.10303 | BE89: -0.6931471806 | BF89: 0 | BG89: -0.6931471806 | BH89: 0 | BI89: -0.6931471806 | BJ89: 0 | BK89: -0.5053751323 | BL89: 0.10396 | BM89: -0.508618694 | BN89: 0.10381 | BO89: -0.2501242139 | BP89: 0.10638 | BS89: -0.6931471806 | BT89: 0 | BU89: -0.6931471806 | BV89: 0 | BY89: -0.8047189562 | BZ89: 0 | CA89: -0.8047189562 | CB89: 0 | CC89: -0.8047189562 | CD89: 0 | CE89: -0.8047189562 | CF89: 0 | CG89: -0.8047189562 | CH89: 0 | CI89: -0.8047189562 | CJ89: 0
C90: pRCV[2] | D90: current recruitment cv | E90: 1 | F90: LOG | M90: 0.1594176867 | N90: 0 | O90: 0.1649883793 | P90: 0.16827 | Q90: 0.1028150604 | R90: 0.17824 | U90: 0.166390306 | V90: 0.16851 | W90: 0.1348297003 | X90: 0.16564 | Y90: 0.0676434769 | Z90: 0 | AC90: 0.1954118563 | AD90: 0.17159 | AE90: 0.1928781798 | AF90: 0.17108 | AG90: 0.1133061721 | AH90: 0 | AI90: 0.1666806161 | AJ90: 0.1683 | AK90: 0.1522453132 | AL90: 0.16717 | AM90: 0.0784487222 | AN90: 0.17636 | AQ90: 0.08798694736 | AR90: 0.16076 | AS90: 0.09067243482 | AT90: 0.16119 | AU90: 0.01881575699 | AV90: 0 | AW90: 0.07302858225 | AX90: 0.15949 | AY90: 0.06375572507 | AZ90: 0.15915 | BA90: -0.004261558177 | BB90: 0.16867 | BE90: 0.1149528517 | BF90: 0.16223 | BG90: 0.1135314443 | BH90: 0 | BI90: -0.006263351873 | BJ90: 0.16765 | BK90: 0.09485876077 | BL90: 0.16056 | BM90: 0.09817115236 | BN90: 0.16072 | BO90: -0.02076438773 | BP90: 0.16655 | BS90: 0.2082132651 | BT90: 0.17092 | BU90: 0.1157614552 | BV90: 0.17951 | BY90: 0.2105628683 | BZ90: 0.17102 | CA90: 0.1970397863 | CB90: 0.16977 | CC90: 0.1822585216 | CD90: 0.16848 | CE90: 0.09987116994 | CF90: 0.16117 | CG90: 0.5299037511 | CH90: 0.2221 | CI90: 0.08559028244 | CJ90: 0.16037
C91: pRX[1] | D91: fraction of males at recruitment | E91: 1 | F91: LOGIT | M91: 0 | N91: 0 | O91: 0 | P91: 0 | Q91: 0 | R91: 0 | U91: 0 | V91: 0 | W91: 0 | X91: 0 | Y91: 0 | Z91: 0 | AC91: 0 | AD91: 0 | AE91: 0 | AF91: 0 | AG91: 0 | AH91: 0 | AI91: 0 | AJ91: 0 | AK91: 0 | AL91: 0 | AM91: 0 | AN91: 0 | AQ91: 0 | AR91: 0 | AS91: 0 | AT91: 0 | AU91: 0 | AV91: 0 | AW91: 0 | AX91: 0 | AY91: 0 | AZ91: 0 | BA91: 0 | BB91: 0 | BE91: 0 | BF91: 0 | BG91: 0 | BH91: 0 | BI91: 0 | BJ91: 0 | BK91: 0 | BL91: 0 | BM91: 0 | BN91: 0 | BO91: 0 | BP91: 0 | BS91: 0 | BT91: 0 | BU91: 0 | BV91: 0 | BY91: 0 | BZ91: 0 | CA91: 0 | CB91: 0 | CC91: 0 | CD91: 0 | CE91: 0 | CF91: 0 | CG91: 0 | CH91: 0 | CI91: 0 | CJ91: 0
D92: full model period | E92: 1 | F92: LOGIT | G92: 0 | H92: 0 | I92: 0 | J92: 0 | K92: 0 | L92: 0 | S92: 0 | T92: 0 | AA92: 0 | AB92: 0 | AO92: 0 | AP92: 0 | BC92: 0 | BD92: 0 | BQ92: 0 | BR92: 0 | BW92: 0 | BX92: 0
A93: selectivity | B93: selectivity | C93: pDevsS1[1] | D93: ln(z50 devs) for TCF selectivity (males, 1991+) | E93: 1 | F93: ARITHMETIC | G93: 0.02914236475 | H93: 0.017505 | I93: 0.00227098266 | J93: 0.049853 | K93: 0.03576236218 | L93: 0.015056 | M93: 0.02967474187 | N93: 0 | O93: 0.03140300935 | P93: 0.021014 | Q93: 0.03101641761 | R93: 0.021008 | S93: 0.02746513932 | T93: 0.018238 | U93: 0.02984051405 | V93: 0.017428 | W93: 0.03074359804 | X93: 0.021349 | Y93: 0.03197122303 | Z93: 0 | AA93: 0.03856223899 | AB93: 0.015759 | AC93: 0.03874659525 | AD93: 0.015754 | AE93: 0.04141488631 | AF93: 0.019087 | AG93: 0.03977700621 | AH93: 0 | AI93: 0.03692802069 | AJ93: 0.015805 | AK93: 0.03419639934 | AL93: 0.030049 | AM93: 0.0388547672 | AN93: 0.019432 | AO93: 0.05366143957 | AP93: 0.016592 | AQ93: 0.05374235737 | AR93: 0.016591 | AS93: 0.06227878973 | AT93: 0.032396 | AU93: 0.06112235338 | AV93: 0 | AW93: 0.0522430715 | AX93: 0.016647 | AY93: 0.05946650466 | AZ93: 0.023868 | BA93: 0.05843580894 | BB93: 0.024287 | BC93: 0.068004065 | BD93: 0 | BE93: 0.06742431948 | BF93: 0.017088 | BG93: 0.08781219339 | BH93: 0 | BI93: 0.09146807881 | BJ93: 0.029407 | BK93: 0.06497629076 | BL93: 0.017071 | BM93: 0.1065094883 | BN93: 0.032202 | BO93: 0.09462796662 | BP93: 0.030136 | BQ93: 0.07627458095 | BR93: 0.016308 | BS93: 0.07627831321 | BT93: 0.016307 | BU93: 0.1043401037 | BV93: 0.034757 | BW93: 0.0841033821 | BX93: 0.015892 | BY93: 0.07232590247 | BZ93: 0.014934 | CA93: 0.4999999113 | CB93: 8.8911e-05 | CC93: 0.4999998721 | CD93: 0.00012791 | CE93: 0.4999998346 | CF93: 0.00016537 | CG93: -0.4999996028 | CH93: 0.0003972 | CI93: 0.4999997692 | CJ93: 0.00023076
E94: 2 | F94: ARITHMETIC | G94: 0.1158763978 | H94: 0.012252 | I94: -0.03033130742 | J94: 0.023597 | K94: 0.1190629452 | L94: 0.010682 | M94: 0.1161266051 | N94: 0 | O94: 0.1667792028 | P94: 0.024592 | Q94: 0.1668189457 | R94: 0.024662 | S94: 0.1183339843 | T94: 0.01257 | U94: 0.1161337631 | V94: 0.012328 | W94: 0.172829373 | X94: 0.026837 | Y94: 0.1718128845 | Z94: 0 | AA94: 0.1138724589 | AB94: 0.011516 | AC94: 0.1136896418 | AD94: 0.011493 | AE94: 0.1727274269 | AF94: 0.025278 | AG94: 0.1661538903 | AH94: 0 | AI94: 0.1121353416 | AJ94: 0.011441 | AK94: 0.1930367161 | AL94: 0.016505 | AM94: 0.1766167132 | AN94: 0.034879 | AO94: 0.1185023473 | AP94: 0.012076 | AQ94: 0.1186010606 | AR94: 0.012082 | AS94: 0.1830692466 | AT94: 0.024957 | AU94: 0.1855765732 | AV94: 0 | AW94: 0.1175023914 | AX94: 0.012055 | AY94: 0.1796640439 | AZ94: 0.016971 | BA94: 0.1829382726 | BB94: 0.017396 | BC94: 0.1185094099 | BD94: 0 | BE94: 0.117984755 | BF94: 0.011736 | BG94: 0.1428705354 | BH94: 0 | BI94: 0.1865376895 | BJ94: 0.017869 | BK94: 0.1156894651 | BL94: 0.011535 | BM94: 0.1808223396 | BN94: 0.017571 | BO94: 0.1847539209 | BP94: 0.017951 | BQ94: 0.1148454038 | BR94: 0.010969 | BS94: 0.1149316522 | BT94: 0.010982 | BU94: 0.1784152029 | BV94: 0.016501 | BW94: 0.08694800018 | BX94: 0.0095606 | BY94: 0.07348882217 | BZ94: 0.0093576 | CA94: 0.05866421211 | CB94: 0.013597 | CC94: 0.06218135782 | CD94: 0.014093 | CE94: 0.06232405221 | CF94: 0.01434 | CG94: 0.1310036608 | CH94: 0.032519 | CI94: 0.06317976195 | CJ94: 0.014846
E95: 3 | F95: ARITHMETIC | G95: 0.09734409028 | H95: 0.013578 | I95: -0.05781532556 | J95: 0.026146 | K95: 0.09972018216 | L95: 0.011913 | M95: 0.09674964605 | N95: 0 | O95: 0.181254605 | P95: 0.031227 | Q95: 0.181292615 | R95: 0.031336 | S95: 0.1004279624 | T95: 0.014367 | U95: 0.09604501112 | V95: 0.013606 | W95: 0.1900521808 | X95: 0.034945 | Y95: 0.1884973864 | Z95: 0 | AA95: 0.0857257144 | AB95: 0.011721 | AC95: 0.08541252263 | AD95: 0.011709 | AE95: 0.1898806422 | AF95: 0.034502 | AG95: 0.1786300344 | AH95: 0 | AI95: 0.08413195966 | AJ95: 0.011759 | AK95: 0.2228337714 | AL95: 0.027462 | AM95: 0.1938082844 | AN95: 0.047167 | AO95: 0.07592346599 | AP95: 0.011587 | AQ95: 0.07599133666 | AR95: 0.011588 | AS95: 0.2022832195 | AT95: 0.040211 | AU95: 0.2057255917 | AV95: 0 | AW95: 0.07552694406 | AX95: 0.011679 | AY95: 0.1983500936 | AZ95: 0.036462 | BA95: 0.2032676034 | BB95: 0.036676 | BC95: 0.06525590041 | BD95: 0 | BE95: 0.0647205205 | BF95: 0.011441 | BG95: 0.08242135299 | BH95: 0 | BI95: 0.1420204004 | BJ95: 0.037159 | BK95: 0.06318920964 | BL95: 0.011469 | BM95: 0.1408588017 | BN95: 0.031908 | BO95: 0.1443722248 | BP95: 0.03664 | BQ95: 0.06307409087 | BR95: 0.010332 | BS95: 0.06311146014 | BT95: 0.010332 | BU95: 0.137089203 | BV95: 0.033905 | BW95: 0.07246844406 | BX95: 0.010056 | BY95: 0.05737581674 | BZ95: 0.010004 | CA95: 0.06769971815 | CB95: 0.016391 | CC95: 0.06512181834 | CD95: 0.016692 | CE95: 0.06943659675 | CF95: 0.01712 | CG95: 0.2518027097 | CH95: 0.029613 | CI95: 0.07426711723 | CJ95: 0.018657
E96: 4 | F96: ARITHMETIC | G96: 0.07676969171 | H96: 0.020537 | I96: -0.04793547597 | J96: 0.029395 | K96: 0.08752559031 | L96: 0.01745 | M96: 0.07675088211 | N96: 0 | O96: 0.251979483 | P96: 0.044338 | Q96: 0.2520549618 | R96: 0.04435 | S96: 0.07461299988 | T96: 0.021069 | U96: 0.07068992786 | V96: 0.01995 | W96: 0.2672633459 | X96: 0.054185 | Y96: 0.2645710995 | Z96: 0 | AA96: 0.04995122592 | AB96: 0.016648 | AC96: 0.04937876035 | AD96: 0.016632 | AE96: 0.2661769757 | AF96: 0.053069 | AG96: 0.2493155037 | AH96: 0 | AI96: 0.04816164349 | AJ96: 0.016648 | AK96: 0.3817241968 | AL96: 0.29553 | AM96: 0.2730482661 | AN96: 0.07603 | AO96: 0.03187896231 | AP96: 0.017301 | AQ96: 0.03198597417 | AR96: 0.017299 | AS96: 0.4669210913 | AT96: 0.30152 | AU96: 0.4895096459 | AV96: 0 | AW96: 0.03160224955 | AX96: 0.017419 | AY96: 0.4999992019 | AZ96: 0.00079794 | BA96: 0.4999997913 | BB96: 0.00020866 | BC96: 0.01324691069 | BD96: 0 | BE96: 0.01270243 | BF96: 0.019096 | BG96: 0.02489015239 | BH96: 0 | BI96: 0.4999998813 | BJ96: 0.00011869 | BK96: 0.0105898542 | BL96: 0.019334 | BM96: 0.4999992812 | BN96: 0.00071885 | BO96: 0.4999998749 | BP96: 0.00012511 | BQ96: 0.008608713979 | BR96: 0.017059 | BS96: 0.008770962614 | BT96: 0.01704 | BU96: 0.499999952 | BV96: 4.8038e-05 | BW96: 0.03160599709 | BX96: 0.013209 | BY96: 0.01575237189 | BZ96: 0.013907 | CA96: 0.03845029976 | CB96: 0.023152 | CC96: 0.0261839812 | CD96: 0.02313 | CE96: 0.03657407298 | CF96: 0.024378 | CG96: 0.3807147032 | CH96: 0.038453 | CI96: 0.07238578361 | CJ96: 0.035665
E97: 5 | F97: ARITHMETIC | G97: -0.009686737472 | H97: 0.027305 | I97: -0.00276227343 | J97: 0.028689 | K97: -0.01209729782 | L97: 0.024916 | M97: -0.009215905065 | N97: 0 | O97: 0.02123410442 | P97: 0.03718 | Q97: 0.02224847435 | R97: 0.037422 | S97: -0.0242785913 | T97: 0.029025 | U97: -0.02275786771 | V97: 0.026696 | W97: 0.01265578411 | X97: 0.036624 | Y97: 0.01244731813 | Z97: 0 | AA97: -0.02785257176 | AB97: 0.023415 | AC97: -0.02825243472 | AD97: 0.023387 | AE97: -0.008744895974 | AF97: 0.029216 | AG97: 0.0121783272 | AH97: 0 | AI97: -0.0288475841 | AJ97: 0.023369 | AK97: -0.02782333451 | AL97: 0.041155 | AM97: 0.004454083162 | AN97: 0.033358 | AO97: -0.04591140542 | AP97: 0.024976 | AQ97: -0.04556972934 | AR97: 0.024935 | AS97: -0.06092191707 | AT97: 0.039434 | AU97: -0.05054145658 | AV97: 0 | AW97: -0.04548811497 | AX97: 0.025036 | AY97: -0.06584964022 | AZ97: 0.029984 | BA97: -0.05525509907 | BB97: 0.030703 | BC97: -0.05757352301 | BD97: 0 | BE97: -0.05788976753 | BF97: 0.027644 | BG97: -0.0528469858 | BH97: 0 | BI97: -0.0509477159 | BJ97: 0.032555 | BK97: -0.06000176758 | BL97: 0.027972 | BM97: -0.07412044852 | BN97: 0.03275 | BO97: -0.05583282396 | BP97: 0.032869 | BQ97: -0.05192596223 | BR97: 0.024525 | BS97: -0.05153126255 | BT97: 0.024467 | BU97: -0.05081723964 | BV97: 0.0288 | BW97: -0.05651550767 | BX97: 0.016498 | BY97: -0.07531079205 | BZ97: 0.017876 | CA97: 0.4999999201 | CB97: 7.9764e-05 | CC97: 0.4999998936 | CD97: 0.00010643 | CE97: 0.4999998649 | CF97: 0.00013505 | CG97: 0.4999999064 | CH97: 9.363e-05 | CI97: 0.4999998253 | CJ97: 0.00017475
E98: 6 | F98: ARITHMETIC | G98: 0.1197060357 | H98: 0.039994 | I98: -0.03027143942 | J98: 0.058962 | K98: 0.1237189194 | L98: 0.033646 | M98: 0.1195477457 | N98: 0 | O98: 0.1734081845 | P98: 0.057139 | Q98: 0.1742503768 | R98: 0.057452 | S98: 0.1223938263 | T98: 0.04296 | U98: 0.1187636558 | V98: 0.039479 | W98: 0.1788022234 | X98: 0.061273 | Y98: 0.1769095133 | Z98: 0 | AA98: 0.09124952012 | AB98: 0.036691 | AC98: 0.09131569451 | AD98: 0.036746 | AE98: 0.1129429186 | AF98: 0.040616 | AG98: 0.1266949386 | AH98: 0 | AI98: 0.09521786111 | AJ98: 0.036303 | AK98: 0.1069315172 | AL98: 0.051498 | AM98: 0.1267190292 | AN98: 0.043151 | AO98: 0.1012732289 | AP98: 0.036472 | AQ98: 0.1015703913 | AR98: 0.036452 | AS98: 0.1124464442 | AT98: 0.058082 | AU98: 0.126599629 | AV98: 0 | AW98: 0.1040634285 | AX98: 0.036342 | AY98: 0.1127577482 | AZ98: 0.049982 | BA98: 0.1260342507 | BB98: 0.052861 | BC98: 0.09334471868 | BD98: 0 | BE98: 0.09300299519 | BF98: 0.041742 | BG98: 0.0901572797 | BH98: 0 | BI98: 0.1447612913 | BJ98: 0.060104 | BK98: 0.09387592709 | BL98: 0.042103 | BM98: 0.1185340262 | BN98: 0.054217 | BO98: 0.1425478902 | BP98: 0.059474 | BQ98: 0.08604429686 | BR98: 0.036028 | BS98: 0.0863575794 | BT98: 0.035956 | BU98: 0.1042603359 | BV98: 0.042636 | BW98: 0.1232545618 | BX98: 0.013888 | BY98: 0.1241892413 | BZ98: 0.014992 | CA98: 0.08927041742 | CB98: 0.018493 | CC98: 0.0877338019 | CD98: 0.019021 | CE98: 0.08871086526 | CF98: 0.01882 | CG98: 0.07204883975 | CH98: 0.034663 | CI98: 0.08265628427 | CJ98: 0.019948
E99: 7 | F99: ARITHMETIC | G99: -0.08644715382 | H99: 0.017468 | I99: 0.02071192937 | J99: 0.064939 | K99: -0.08972014657 | L99: 0.013998 | M99: -0.08694422852 | N99: 0 | O99: -0.1359645942 | P99: 0.019932 | Q99: -0.1362230154 | R99: 0.019964 | S99: -0.08463640468 | T99: 0.017479 | U99: -0.08339892054 | V99: 0.016648 | W99: -0.1391195683 | X99: 0.020819 | Y99: -0.1383192191 | Z99: 0 | AA99: -0.07153136084 | AB99: 0.014725 | AC99: -0.07144804928 | AD99: 0.01471 | AE99: -0.1248963599 | AF99: 0.018012 | AG99: -0.1244310885 | AH99: 0 | AI99: -0.07104763097 | AJ99: 0.014731 | AK99: -0.1421531169 | AL99: 0.031985 | AM99: -0.1291797152 | AN99: 0.021361 | AO99: -0.06895996345 | AP99: 0.014785 | AQ99: -0.06919673659 | AR99: 0.014798 | AS99: -0.1494620046 | AT99: 0.027987 | AU99: -0.1563588658 | AV99: 0 | AW99: -0.06912475554 | AX99: 0.014835 | AY99: -0.1517298288 | AZ99: 0.015513 | BA99: -0.155440118 | BB99: 0.015874 | BC99: -0.0666898622 | BD99: 0 | BE99: -0.06688042608 | BF99: 0.015303 | BG99: -0.07720659958 | BH99: 0 | BI99: -0.1599586836 | BJ99: 0.017077 | BK99: -0.06555125466 | BL99: 0.015303 | BM99: -0.1531386424 | BN99: 0.016301 | BO99: -0.1588932025 | BP99: 0.016919 | BQ99: -0.0630859743 | BR99: 0.013859 | BS99: -0.063237417 | BT99: 0.013863 | BU99: -0.1483617942 | BV99: 0.014966 | BW99: -0.04667861147 | BX99: 0.010133 | BY99: -0.03616512647 | BZ99: 0.0097802 | CA99: -0.1572424348 | CB99: 0.0097951 | CC99: -0.1567810399 | CD99: 0.0098931 | CE99: -0.1571944443 | CF99: 0.0099482 | CG99: 0.03345471054 | CH99: 0.018224 | CI99: -0.1613356308 | CJ99: 0.010197
E100: 8 | F100: ARITHMETIC | G100: -0.09471765058 | H100: 0.017705 | I100: 0.01806081937 | J100: 0.055253 | K100: -0.09486818332 | L100: 0.014116 | M100: -0.09511140818 | N100: 0 | O100: -0.1437618129 | P100: 0.020175 | Q100: -0.1439866719 | R100: 0.020199 | S100: -0.09273627289 | T100: 0.017907 | U100: -0.08886831145 | V100: 0.017034 | W100: -0.1465741381 | X100: 0.021065 | Y100: -0.1458175385 | Z100: 0 | AA100: -0.07581856426 | AB100: 0.014809 | AC100: -0.07547167357 | AD100: 0.014805 | AE100: -0.1290601882 | AF100: 0.018076 | AG100: -0.130208154 | AH100: 0 | AI100: -0.07481160141 | AJ100: 0.014778 | AK100: -0.1454051435 | AL100: 0.032069 | AM100: -0.1351867599 | AN100: 0.021351 | AO100: -0.07295254319 | AP100: 0.014673 | AQ100: -0.07298148969 | AR100: 0.014674 | AS100: -0.1531694592 | AT100: 0.027995 | AU100: -0.1602795404 | AV100: 0 | AW100: -0.0727257082 | AX100: 0.01471 | AY100: -0.1550761234 | AZ100: 0.015421 | BA100: -0.1594115252 | BB100: 0.015667 | BC100: -0.07043993097 | BD100: 0 | BE100: -0.07045846129 | BF100: 0.014828 | BG100: -0.0806411053 | BH100: 0 | BI100: -0.1600629922 | BJ100: 0.016399 | BK100: -0.0691423464 | BL100: 0.014842 | BM100: -0.1556215887 | BN100: 0.015803 | BO100: -0.1595682269 | BP100: 0.016301 | BQ100: -0.06587553783 | BR100: 0.013846 | BS100: -0.06594849518 | BT100: 0.013843 | BU100: -0.1523142191 | BV100: 0.014963 | BW100: -0.06813245248 | BX100: 0.010702 | BY100: -0.05564758136 | BZ100: 0.010197 | CA100: -0.1762018932 | CB100: 0.010216 | CC100: -0.1758916579 | CD100: 0.010298 | CE100: -0.1803145145 | CF100: 0.010446 | CG100: 0.03060776774 | CH100: 0.017581 | CI100: -0.1799157503 | CJ100: 0.010621
E101: 9 | F101: ARITHMETIC | G101: -0.1314515518 | H101: 0.016183 | I101: -0.06164256725 | J101: 0.058931 | K101: -0.1356374839 | L101: 0.013242 | M101: -0.1313664729 | N101: 0 | O101: -0.1817880842 | P101: 0.018833 | Q101: -0.1819542249 | R101: 0.018855 | S101: -0.1317477461 | T101: 0.016327 | U101: -0.1291364276 | V101: 0.015573 | W101: -0.1854218014 | X101: 0.019819 | Y101: -0.1846713311 | Z101: 0 | AA101: -0.1115255658 | AB101: 0.013528 | AC101: -0.1115367609 | AD101: 0.013525 | AE101: -0.1651953185 | AF101: 0.017036 | AG101: -0.1636066846 | AH101: 0 | AI101: -0.1112529485 | AJ101: 0.013563 | AK101: -0.1831945554 | AL101: 0.031425 | AM101: -0.1696511437 | AN101: 0.020525 | AO101: -0.1079967931 | AP101: 0.01354 | AQ101: -0.1081824686 | AR101: 0.01355 | AS101: -0.1880315523 | AT101: 0.027183 | AU101: -0.1938930544 | AV101: 0 | AW101: -0.1082170417 | AX101: 0.013593 | AY101: -0.1907732149 | AZ101: 0.014283 | BA101: -0.1939630374 | BB101: 0.014583 | BC101: -0.1021582825 | BD101: 0 | BE101: -0.102369576 | BF101: 0.013781 | BG101: -0.1122029702 | BH101: 0 | BI101: -0.1930152275 | BJ101: 0.015475 | BK101: -0.1012785838 | BL101: 0.013794 | BM101: -0.1882891887 | BN101: 0.014807 | BO101: -0.1927419632 | BP101: 0.015374 | BQ101: -0.1013535229 | BR101: 0.012739 | BS101: -0.1014763048 | BT101: 0.012742 | BU101: -0.1861297168 | BV101: 0.013876 | BW101: -0.1187729715 | BX101: 0.010752 | BY101: -0.1053607464 | BZ101: 0.010254 | CA101: -0.2272525034 | CB101: 0.010302 | CC101: -0.2255643954 | CD101: 0.010352 | CE101: -0.2260463549 | CF101: 0.010348 | CG101: 0.005639864045 | CH101: 0.01803 | CI101: -0.2304131484 | CJ101: 0.010643
E102: 10 | F102: ARITHMETIC | G102: 0.009884353709 | H102: 0.01416 | I102: 0.1221411111 | J102: 0.055917 | K102: 0.004384563172 | L102: 0.011445 | M102: 0.01012253243 | N102: 0 | O102: -0.0388593029 | P102: 0.017081 | Q102: -0.03902939779 | R102: 0.017099 | S102: 0.01247300047 | T102: 0.014325 | U102: 0.01080660744 | V102: 0.013754 | W102: -0.04232830047 | X102: 0.018186 | Y102: -0.04157481492 | Z102: 0 | AA102: 0.01341322569 | AB102: 0.012295 | AC102: 0.01361351716 | AD102: 0.012284 | AE102: -0.03902072051 | AF102: 0.015998 | AG102: -0.03950661378 | AH102: 0 | AI102: 0.01410281479 | AJ102: 0.0123 | AK102: -0.05584001079 | AL102: 0.030728 | AM102: -0.04443462719 | AN102: 0.019546 | AO102: 0.01535842376 | AP102: 0.012421 | AQ102: 0.01528912169 | AR102: 0.012426 | AS102: -0.06326701472 | AT102: 0.0267 | AU102: -0.07044236783 | AV102: 0 | AW102: 0.01548813621 | AX102: 0.012462 | AY102: -0.06530952351 | AZ102: 0.013284 | BA102: -0.06970562233 | BB102: 0.013584 | BC102: 0.01698169515 | BD102: 0 | BE102: 0.01689372661 | BF102: 0.012748 | BG102: 0.007177566494 | BH102: 0 | BI102: -0.07298529786 | BJ102: 0.014485 | BK102: 0.01823343708 | BL102: 0.012762 | BM102: -0.0664234707 | BN102: 0.013889 | BO102: -0.07232788805 | BP102: 0.014396 | BQ102: 0.01476502658 | BR102: 0.011706 | BS102: 0.01466114149 | BT102: 0.011708 | BU102: -0.07081013557 | BV102: 0.012964 | BW102: 0.02480368389 | BX102: 0.0087432 | BY102: 0.03135913615 | BZ102: 0.0086041 | CA102: -0.09059095742 | CB102: 0.0087407 | CC102: -0.08947626794 | CD102: 0.008819 | CE102: -0.09095252673 | CF102: 0.0088987 | CG102: 0.09742953087 | CH102: 0.017105 | CI102: -0.09720739547 | CJ102: 0.0093572
E103: 11 | F103: ARITHMETIC | G103: 0.1797837876 | H103: 0.016418 | I103: 0.2401503596 | J103: 0.045076 | K103: 0.1756142623 | L103: 0.012966 | M103: 0.1804616662 | N103: 0 | O103: 0.1301374712 | P103: 0.019026 | Q103: 0.1300023335 | R103: 0.019053 | S103: 0.1831866607 | T103: 0.016359 | U103: 0.1793457937 | V103: 0.016131 | W103: 0.1277432234 | X103: 0.020025 | Y103: 0.1284527467 | Z103: 0 | AA103: 0.1499789614 | AB103: 0.012825 | AC103: 0.1502822329 | AD103: 0.012825 | AE103: 0.09774395547 | AF103: 0.01636 | AG103: 0.09870274924 | AH103: 0 | AI103: 0.1513526995 | AJ103: 0.012851 | AK103: 0.08216562464 | AL103: 0.03082 | AM103: 0.09435682659 | AN103: 0.019697 | AO103: 0.153926879 | AP103: 0.013123 | AQ103: 0.1539929688 | AR103: 0.01313 | AS103: 0.07682951011 | AT103: 0.027169 | AU103: 0.0710208964 | AV103: 0 | AW103: 0.1546547733 | AX103: 0.013158 | AY103: 0.07522085518 | AZ103: 0.013999 | BA103: 0.07169324601 | BB103: 0.014181 | BC103: 0.1567114109 | BD103: 0 | BE103: 0.1567117837 | BF103: 0.013294 | BG103: 0.1454171755 | BH103: 0 | BI103: 0.06957467694 | BJ103: 0.015036 | BK103: 0.1583412976 | BL103: 0.013295 | BM103: 0.07618278085 | BN103: 0.014431 | BO103: 0.07032998051 | BP103: 0.014935 | BQ103: 0.1394081023 | BR103: 0.01205 | BS103: 0.1393433179 | BT103: 0.012051 | BU103: 0.054916518 | BV103: 0.01334 | BW103: 0.1080620005 | BX103: 0.0095856 | BY103: 0.1123557357 | BZ103: 0.0095349 | CA103: -0.01180523543 | CB103: 0.0096157 | CC103: -0.01007199657 | CD103: 0.009706 | CE103: -0.01297080238 | CF103: 0.0097784 | CG103: 0.1240199893 | CH103: 0.017561 | CI103: -0.02040217646 | CJ103: 0.010122
E104: 12 | F104: ARITHMETIC | G104: -0.04800926593 | H104: 0.016606 | I104: 0.05350507113 | J104: 0.063592 | K104: -0.0486676044 | L104: 0.013184 | M104: -0.04802191163 | N104: 0 | O104: -0.09931072684 | P104: 0.019215 | Q104: -0.09946229359 | R104: 0.019236 | S104: -0.04815961175 | T104: 0.01677 | U104: -0.04783464643 | V104: 0.016057 | W104: -0.1029752621 | X104: 0.020193 | Y104: -0.102236521 | Z104: 0 | AA104: -0.03548851583 | AB104: 0.014236 | AC104: -0.03562973385 | AD104: 0.014237 | AE104: -0.09011157333 | AF104: 0.017602 | AG104: -0.08895803189 | AH104: 0 | AI104: -0.03532566969 | AJ104: 0.014288 | AK104: -0.1078805386 | AL104: 0.03176 | AM104: -0.09403352085 | AN104: 0.020949 | AO104: -0.02912693159 | AP104: 0.014313 | AQ104: -0.02944546812 | AR104: 0.014325 | AS104: -0.109900379 | AT104: 0.027728 | AU104: -0.1161660731 | AV104: 0 | AW104: -0.02952546552 | AX104: 0.014366 | AY104: -0.1124381225 | AZ104: 0.015038 | BA104: -0.1157750235 | BB104: 0.015308 | BC104: -0.02339391077 | BD104: 0 | BE104: -0.02329410016 | BF104: 0.014383 | BG104: -0.03376906188 | BH104: 0 | BI104: -0.1144662587 | BJ104: 0.015967 | BK104: -0.02209955494 | BL104: 0.014396 | BM104: -0.1088908227 | BN104: 0.015415 | BO104: -0.1139737486 | BP104: 0.015888 | BQ104: -0.02299152994 | BR104: 0.01323 | BS104: -0.02325866898 | BT104: 0.013238 | BU104: -0.1081068778 | BV104: 0.014311 | BW104: -0.03777742301 | BX104: 0.011321 | BY104: -0.02899409215 | BZ104: 0.011247 | CA104: -0.1527457773 | CB104: 0.011478 | CC104: -0.1500176777 | CD104: 0.011392 | CE104: -0.1527331734 | CF104: 0.011546 | CG104: -0.1298292151 | CH104: 0.047768 | CI104: -0.1582983929 | CJ104: 0.011822
E105: 13 | F105: ARITHMETIC | G105: -0.1086267915 | H105: 0.014143 | I105: -0.0959090302 | J105: 0.041195 | K105: -0.1085107867 | L105: 0.011558 | M105: -0.1085878453 | N105: 0 | O105: -0.1584777772 | P105: 0.017008 | Q105: -0.158738095 | R105: 0.017035 | S105: -0.1076768053 | T105: 0.014289 | U105: -0.1049335069 | V105: 0.013527 | W105: -0.162031398 | X105: 0.018093 | Y105: -0.1611969029 | Z105: 0 | AA105: -0.09321334713 | AB105: 0.011397 | AC105: -0.09296273557 | AD105: 0.011429 | AE105: -0.1456277379 | AF105: 0.015306 | AG105: -0.1461504481 | AH105: 0 | AI105: -0.093209022 | AJ105: 0.011397 | AK105: -0.162763555 | AL105: 0.030232 | AM105: -0.151398247 | AN105: 0.019407 | AO105: -0.0947844024 | AP105: 0.011492 | AQ105: -0.09487911052 | AR105: 0.011498 | AS105: -0.172338676 | AT105: 0.025906 | AU105: -0.178472691 | AV105: 0 | AW105: -0.09488760368 | AX105: 0.011963 | AY105: -0.1748064869 | AZ105: 0.012312 | BA105: -0.1789742807 | BB105: 0.013006 | BC105: -0.08650961619 | BD105: 0 | BE105: -0.08528161708 | BF105: 0.011982 | BG105: -0.09341004139 | BH105: 0 | BI105: -0.1728484814 | BJ105: 0.013719 | BK105: -0.08427243949 | BL105: 0.011996 | BM105: -0.1696715788 | BN105: 0.013075 | BO105: -0.1731560196 | BP105: 0.013637 | BQ105: -0.08157427659 | BR105: 0.011051 | BS105: -0.08169705405 | BT105: 0.011051 | BU105: -0.1652214011 | BV105: 0.012307 | BW105: -0.08438888132 | BX105: 0.010045 | BY105: -0.07683006073 | BZ105: 0.0098488 | CA105: -0.2020175586 | CB105: 0.010173 | CC105: -0.1991495707 | CD105: 0.01016 | CE105: -0.2001397868 | CF105: 0.010178 | CG105: -0.4967232003 | CH105: 0.10085 | CI105: -0.2046459696 | CJ105: 0.01058
E106: 14 | F106: ARITHMETIC | G106: -0.1489967746 | H106: 0.015893 | I106: -0.1300009535 | J106: 0.053571 | K106: -0.1556263357 | L106: 0.01323 | M106: -0.1496105734 | N106: 0 | O106: -0.1977516162 | P106: 0.018512 | Q106: -0.1980148233 | R106: 0.018543 | S106: -0.1489828825 | T106: 0.016008 | U106: -0.1441998821 | V106: 0.01499 | W106: -0.201467926 | X106: 0.019492 | Y106: -0.2006570745 | Z106: 0 | AA106: -0.1270124371 | AB106: 0.011617 | AC106: -0.1268275134 | AD106: 0.011614 | AE106: -0.1781104019 | AF106: 0.015471 | AG106: -0.1786335626 | AH106: 0 | AI106: -0.1272842232 | AJ106: 0.011611 | AK106: -0.1958307934 | AL106: 0.030261 | AM106: -0.184144534 | AN106: 0.020067 | AO106: -0.130855171 | AP106: 0.011788 | AQ106: -0.1309842729 | AR106: 0.011791 | AS106: -0.2067368424 | AT106: 0.025928 | AU106: -0.2135794659 | AV106: 0 | AW106: -0.1311950445 | AX106: 0.012861 | AY106: -0.2095375096 | AZ106: 0.012549 | BA106: -0.2140848682 | BB106: 0.013905 | BC106: -0.12522434 | BD106: 0 | BE106: -0.1232021604 | BF106: 0.013188 | BG106: -0.1307506394 | BH106: 0 | BI106: -0.2105162029 | BJ106: 0.014942 | BK106: -0.1224782774 | BL106: 0.013202 | BM106: -0.2068422087 | BN106: 0.01417 | BO106: -0.2105576376 | BP106: 0.014814 | BQ106: -0.1167278087 | BR106: 0.011838 | BS106: -0.1168254123 | BT106: 0.011837 | BU106: -0.1983211067 | BV106: 0.012999 | BW106: -0.1195003481 | BX106: 0.011127 | BY106: -0.1102471158 | BZ106: 0.010819 | CA106: -0.2368434086 | CB106: 0.011132 | CC106: -0.2347248842 | CD106: 0.01119 | CE106: -0.2370501956 | CF106: 0.011292 | CG106: -0.4999987921 | CH106: 0.0012079 | CI106: -0.2405350976 | CJ106: 0.011509
C107: pS1[1] | D107: z50 for NMFS survey selectivity (males, pre-1982) | E107: 1 | F107: ARITHMETIC | G107: 52.30599736 | H107: 2.1146 | I107: 89.99999994 | J107: 0.00061057 | K107: 56.03633617 | L107: 2.6901 | M107: 46.8504923 | N107: 0 | O107: 52.68944413 | P107: 2.1918 | Q107: 52.68944413 | R107: 0 | S107: 54.84860709 | T107: 2.4313 | U107: 89.99999913 | V107: 0.0082157 | W107: 53.33875981 | X107: 2.2916 | Y107: 52.67191354 | Z107: 0 | AA107: 89.99999999 | AB107: 0.00010749 | AC107: 89.99999999 | AD107: 0.00010832 | AE107: 89.99999999 | AF107: 0.00012859 | AG107: 52.68944413 | AH107: 0 | AI107: 89.99999999 | AJ107: 0.00010859 | AK107: 89.99999999 | AL107: 0.00011145 | AM107: 53.44353726 | AN107: 1.6301 | AO107: 90 | AP107: 2.9325e-05 | AQ107: 90 | AR107: 3.0182e-05 | AS107: 90 | AT107: 3.1251e-05 | AU107: 52.68944413 | AV107: 0 | AW107: 89.99999999 | AX107: 3.8616e-05 | AY107: 90 | AZ107: 3.0029e-05 | BA107: 57.11465708 | BB107: 1.4979 | BC107: 89.99999974 | BD107: 0 | BE107: 90 | BF107: 2.4169e-05 | BG107: 90 | BH107: 0 | BI107: 52.68944413 | BJ107: 0 | BK107: 90 | BL107: 2.3461e-05 | BM107: 90 | BN107: 2.5393e-05 | BO107: 56.85775774 | BP107: 1.4175 | BQ107: 90 | BR107: 1.6863e-05 | BS107: 90 | BT107: 1.7054e-05 | BU107: 52.68944413 | BV107: 0 | BW107: 90 | BX107: 1.7923e-05 | BY107: 90 | BZ107: 1.5529e-05 | CA107: 90 | CB107: 1.7298e-05 | CC107: 90 | CD107: 1.7781e-05 | CE107: 90 | CF107: 1.7913e-05 | CG107: 89.99999993 | CH107: 0.00063067 | CI107: 90 | CJ107: 1.8473e-05
C108: pS1[10] | D108: ascending z50 for SCF selectivity (males, pre-1997) | E108: 1 | F108: ARITHMETIC | G108: 87.70356849 | H108: 1.5638 | I108: 115.4313041 | J108: 4.1521 | K108: 87.31665178 | L108: 1.0038 | M108: 87.76629717 | N108: 0 | O108: 87.2817203 | P108: 1.6345 | Q108: 87.27307694 | R108: 1.6313 | S108: 87.53089241 | T108: 1.8092 | U108: 87.76989411 | V108: 1.7891 | W108: 87.09681113 | X108: 1.6915 | Y108: 87.14367514 | Z108: 0 | AA108: 88.05240554 | AB108: 1.8979 | AC108: 88.10443146 | AD108: 1.9197 | AE108: 87.95769015 | AF108: 1.9218 | AG108: 87.72459806 | AH108: 0 | AI108: 87.92576077 | AJ108: 1.946 | AK108: 91.052183 | AL108: 2.8949 | AM108: 87.59870221 | AN108: 1.7984 | AO108: 89.48071344 | AP108: 2.6315 | AQ108: 89.52686857 | AR108: 2.6384 | AS108: 91.24284941 | AT108: 3.9726 | AU108: 90.90689426 | AV108: 0 | AW108: 89.41497808 | AX108: 2.652 | AY108: 90.74484027 | AZ108: 3.6409 | BA108: 90.39183422 | BB108: 3.385 | BC108: 88.33048645 | BD108: 0 | BE108: 88.36132403 | BF108: 2.1431 | BG108: 89.6525912 | BH108: 0 | BI108: 87.38166128 | BJ108: 1.9623 | BK108: 88.25326239 | BL108: 2.1842 | BM108: 88.74715864 | BN108: 2.6399 | BO108: 87.4281412 | BP108: 2.093 | BQ108: 90.15982316 | BR108: 2.4332 | BS108: 90.20206514 | BT108: 2.4431 | BU108: 89.60547143 | BV108: 2.8763 | BW108: 89.45097338 | BX108: 2.4041 | BY108: 85.2218161 | BZ108: 1.1633 | CA108: 84.37486914 | CB108: 1.5543 | CC108: 105.0516266 | CD108: 2.6306 | CE108: 104.3116688 | CF108: 2.5951 | CG108: 140 | CH108: 0.00048558 | CI108: 106.7713138 | CJ108: 1.5024
C109: pS1[11] | D109: ascending z50 for SCF selectivity (males, 1997-2004) | E109: 1 | F109: ARITHMETIC | G109: 95.69752486 | H109: 3.7539 | I109: 103.6449811 | J109: 10.097 | K109: 94.75771573 | L109: 1.9677 | M109: 95.53023538 | N109: 0 | O109: 93.70517564 | P109: 3.0915 | Q109: 93.68207648 | R109: 3.0918 | S109: 96.81714196 | T109: 4.6532 | U109: 97.09652418 | V109: 4.4045 | W109: 93.88725165 | X109: 3.1699 | Y109: 93.87819169 | Z109: 0 | AA109: 99.67509163 | AB109: 4.1117 | AC109: 99.75372235 | AD109: 4.1513 | AE109: 97.30896231 | AF109: 3.1766 | AG109: 96.5768741 | AH109: 0 | AI109: 100.1502726 | AJ109: 4.4701 | AK109: 97.73636638 | AL109: 3.4512 | AM109: 96.79626029 | AN109: 3.1576 | AO109: 100.7985991 | AP109: 5.3853 | AQ109: 100.8096685 | AR109: 5.3929 | AS109: 97.31080842 | AT109: 3.3396 | AU109: 96.32326353 | AV109: 0 | AW109: 101.2702371 | AX109: 5.5592 | AY109: 97.49929641 | AZ109: 3.4301 | BA109: 96.86803604 | BB109: 3.2904 | BC109: 99.45501233 | BD109: 0 | BE109: 99.52296802 | BF109: 4.2732 | BG109: 97.1552757 | BH109: 0 | BI109: 95.77279065 | BJ109: 2.9373 | BK109: 100.1762525 | BL109: 4.8176 | BM109: 97.05459066 | BN109: 3.226 | BO109: 96.23646002 | BP109: 3.0377 | BQ109: 100.1850636 | BR109: 3.6654 | BS109: 100.1829953 | BT109: 3.6664 | BU109: 97.41652391 | BV109: 2.9591 | BW109: 100.3508742 | BX109: 3.3839 | BY109: 100.5835966 | BZ109: 3.1033 | CA109: 98.313955 | CB109: 2.7022 | CC109: 106.8933502 | CD109: 3.9446 | CE109: 108.2383245 | CF109: 3.9845 | CG109: 129.8553763 | CH109: 17.998 | CI109: 114.3017252 | CJ109: 1.5073
C110: pS1[12] | D110: ascending z50 for SCF selectivity (males, 2005+) | E110: 1 | F110: ARITHMETIC | G110: 105.6059159 | H110: 1.4191 | I110: 139.999999 | J110: 0.010229 | K110: 105.5285369 | L110: 0.83331 | M110: 105.5229956 | N110: 0 | O110: 105.1094733 | P110: 1.4134 | Q110: 105.0883317 | R110: 1.4134 | S110: 106.205567 | T110: 1.5175 | U110: 107.0691959 | V110: 1.5162 | W110: 105.3049683 | X110: 1.4407 | Y110: 105.3009222 | Z110: 0 | AA110: 109.8689915 | AB110: 1.4757 | AC110: 109.9014035 | AD110: 1.4798 | AE110: 109.5450336 | AF110: 1.4637 | AG110: 108.8505229 | AH110: 0 | AI110: 109.9925824 | AJ110: 1.5137 | AK110: 110.0161658 | AL110: 1.5753 | AM110: 109.0123948 | AN110: 1.4561 | AO110: 109.9102918 | AP110: 1.5068 | AQ110: 109.897987 | AR110: 1.5055 | AS110: 109.7397659 | AT110: 1.5382 | AU110: 109.0020597 | AV110: 0 | AW110: 109.9329187 | AX110: 1.5315 | AY110: 109.8331188 | AZ110: 1.553 | BA110: 109.3267176 | BB110: 1.5266 | BC110: 109.2324948 | BD110: 0 | BE110: 109.2557931 | BF110: 1.4335 | BG110: 109.183683 | BH110: 0 | BI110: 107.9081225 | BJ110: 1.3512 | BK110: 109.3858099 | BL110: 1.4697 | BM110: 109.0890107 | BN110: 1.4679 | BO110: 108.2495641 | BP110: 1.3935 | BQ110: 110.2775016 | BR110: 1.3246 | BS110: 110.2728266 | BT110: 1.3239 | BU110: 109.7982079 | BV110: 1.3421 | BW110: 110.4050194 | BX110: 1.3268 | BY110: 110.5396119 | BZ110: 1.2414 | CA110: 110.3133459 | CB110: 1.2008 | CC110: 111.0931694 | CD110: 1.3943 | CE110: 111.1193687 | CF110: 1.4391 | CG110: 139.9999999 | CH110: 0.00097732 | CI110: 110.5575761 | CJ110: 0.72987
C111: pS1[13] | D111: ascending z50 for SCF selectivity (females, pre-1997) | E111: 1 | F111: ARITHMETIC | G111: 70.26452916 | H111: 5.0298 | I111: 68.57109331 | J111: 6.3146 | K111: 72.12775437 | L111: 1.5059 | M111: 70.09782254 | N111: 0 | O111: 70.79754964 | P111: 4.7697 | Q111: 70.73890701 | R111: 4.792 | S111: 71.67758319 | T111: 4.4967 | U111: 70.97336284 | V111: 4.6926 | W111: 71.02692493 | X111: 4.6577 | Y111: 71.13074986 | Z111: 0 | AA111: 71.21053664 | AB111: 4.6932 | AC111: 71.30464137 | AD111: 4.6476 | AE111: 71.29886001 | AF111: 4.5622 | AG111: 70.96401974 | AH111: 0 | AI111: 71.35662384 | AJ111: 4.6047 | AK111: 72.10140302 | AL111: 4.4592 | AM111: 71.31380889 | AN111: 4.5153 | AO111: 68.33782704 | AP111: 5.0704 | AQ111: 68.38171281 | AR111: 5.0528 | AS111: 69.10559431 | AT111: 4.9739 | AU111: 68.2642795 | AV111: 0 | AW111: 68.38821504 | AX111: 5.0345 | AY111: 69.21166726 | AZ111: 4.8608 | BA111: 69.01202449 | BB111: 5.0196 | BC111: 68.61211678 | BD111: 0 | BE111: 68.64963052 | BF111: 4.9332 | BG111: 69.20645627 | BH111: 0 | BI111: 67.99226842 | BJ111: 5.4153 | BK111: 68.73543115 | BL111: 4.8595 | BM111: 69.31040821 | BN111: 4.8087 | BO111: 68.67802123 | BP111: 5.0843 | BQ111: 69.18090338 | BR111: 4.8638 | BS111: 69.19597544 | BT111: 4.8563 | BU111: 69.53248408 | BV111: 4.8632 | BW111: 67.35386383 | BX111: 4.6338 | BY111: 65.30777972 | BZ111: 2.7276 | CA111: 64.8103475 | CB111: 2.4259 | CC111: 74.49102568 | CD111: 5.3621 | CE111: 73.76086438 | CF111: 5.1833 | CG111: 99.15812164 | CH111: 21.345 | CI111: 71.33366823 | CJ111: 1.3574
C112: pS1[14] | D112: ascending z50 for SCF selectivity (females, 1997-2004) | E112: 1 | F112: ARITHMETIC | G112: 76.29495248 | H112: 4.5244 | I112: 84.46275774 | J112: 10.268 | K112: 76.81512359 | L112: 1.4843 | M112: 76.09262008 | N112: 0 | O112: 76.3394639 | P112: 4.5116 | Q112: 76.32257347 | R112: 4.5174 | S112: 76.76312785 | T112: 4.3765 | U112: 76.66441147 | V112: 4.5128 | W112: 76.39039514 | X112: 4.5039 | Y112: 76.41473112 | Z112: 0 | AA112: 76.90690008 | AB112: 4.5588 | AC112: 76.92182465 | AD112: 4.56 | AE112: 76.74350277 | AF112: 4.5325 | AG112: 76.5344756 | AH112: 0 | AI112: 76.96312495 | AJ112: 4.5725 | AK112: 76.55717203 | AL112: 4.5422 | AM112: 76.63245452 | AN112: 4.5007 | AO112: 75.57937919 | AP112: 4.6698 | AQ112: 75.57440005 | AR112: 4.6698 | AS112: 75.47296533 | AT112: 4.6631 | AU112: 75.23100305 | AV112: 0 | AW112: 75.62389305 | AX112: 4.6738 | AY112: 75.50018084 | AZ112: 4.6502 | BA112: 75.49388866 | BB112: 4.6453 | BC112: 75.31804373 | BD112: 0 | BE112: 75.32094332 | BF112: 4.6772 | BG112: 75.2313953 | BH112: 0 | BI112: 75.04211818 | BJ112: 4.6886 | BK112: 75.36412286 | BL112: 4.6779 | BM112: 75.26750293 | BN112: 4.6867 | BO112: 75.15974137 | BP112: 4.6802 | BQ112: 75.70781866 | BR112: 4.5326 | BS112: 75.7034932 | BT112: 4.5336 | BU112: 75.60566795 | BV112: 4.5248 | BW112: 77.04646027 | BX112: 3.7265 | BY112: 77.43499761 | BZ112: 3.2479 | CA112: 76.26852279 | CB112: 3.0087 | CC112: 72.01302614 | CD112: 3.6763 | CE112: 72.28895893 | CF112: 3.7619 | CG112: 50.00000034 | CH112: 0.0028237 | CI112: 76.46636401 | CJ112: 1.2896
C113: pS1[15] | D113: ascending z50 for SCF selectivity (females, 2005+) | E113: 1 | F113: ARITHMETIC | G113: 85.21804352 | H113: 5.6442 | I113: 110.6237633 | J113: 49.922 | K113: 81.5468554 | L113: 1.4833 | M113: 85.02546281 | N113: 0 | O113: 84.92506514 | P113: 5.4859 | Q113: 84.89993158 | R113: 5.4889 | S113: 86.16589767 | T113: 5.6013 | U113: 86.88434607 | V113: 6.2742 | W113: 85.20960084 | X113: 5.5949 | Y113: 85.2123293 | Z113: 0 | AA113: 90.2314228 | AB113: 7.785 | AC113: 90.35276644 | AD113: 7.8396 | AE113: 89.09436417 | AF113: 7.2385 | AG113: 87.58112156 | AH113: 0 | AI113: 90.61776732 | AJ113: 7.9935 | AK113: 84.8974773 | AL113: 5.5757 | AM113: 87.96015107 | AN113: 6.6851 | AO113: 84.11495216 | AP113: 5.7905 | AQ113: 84.08994147 | AR113: 5.7788 | AS113: 82.05358738 | AT113: 4.9786 | AU113: 80.77831801 | AV113: 0 | AW113: 84.18429805 | AX113: 5.8277 | AY113: 82.47369869 | AZ113: 5.1441 | BA113: 81.77443602 | BB113: 4.7468 | BC113: 83.29438438 | BD113: 0 | BE113: 83.33619434 | BF113: 5.3892 | BG113: 82.17847524 | BH113: 0 | BI113: 80.65511305 | BJ113: 4.3937 | BK113: 83.6250328 | BL113: 5.547 | BM113: 81.9054376 | BN113: 4.8491 | BO113: 81.1657158 | BP113: 4.5222 | BQ113: 83.75604536 | BR113: 5.3646 | BS113: 83.73296888 | BT113: 5.3567 | BU113: 81.14405377 | BV113: 4.4124 | BW113: 119.9999979 | BX113: 0.017712 | BY113: 118.3165981 | BZ113: 5.1114 | CA113: 119.9999994 | CB113: 0.0049989 | CC113: 106.8468384 | CD113: 5.7383 | CE113: 105.0579913 | CF113: 5.6564 | CG113: 86.02024335 | CH113: 8.5904 | CI113: 89.1851348 | CJ113: 2.3592
C114: pS1[16] | D114: z50 for GF.AllGear selectivity (males, pre-1987) | E114: 1 | F114: ARITHMETIC | G114: 55.02282706 | H114: 1.8585 | I114: 81.20254915 | J114: 4.0274 | K114: 56.4660389 | L114: 1.688 | M114: 52.16903131 | N114: 0 | O114: 54.24336529 | P114: 1.8617 | Q114: 54.34491455 | R114: 1.7762 | S114: 53.36078768 | T114: 1.801 | U114: 57.92805753 | V114: 2.1659 | W114: 54.50988065 | X114: 1.9017 | Y114: 53.89096746 | Z114: 0 | AA114: 63.0530484 | AB114: 3.0415 | AC114: 62.70824752 | AD114: 3.1117 | AE114: 62.37641085 | AF114: 3.1612 | AG114: 57.83006805 | AH114: 0 | AI114: 62.78749278 | AJ114: 3.0536 | AK114: 63.41094978 | AL114: 3.4736 | AM114: 57.65253219 | AN114: 2.3649 | AO114: 59.26292562 | AP114: 2.3559 | AQ114: 58.96664692 | AR114: 2.3306 | AS114: 58.23591733 | AT114: 2.3059 | AU114: 52.87132582 | AV114: 0 | AW114: 59.06520166 | AX114: 2.3526 | AY114: 58.75468204 | AZ114: 2.3741 | BA114: 55.38309408 | BB114: 1.9643 | BC114: 59.57740311 | BD114: 0 | BE114: 59.48735679 | BF114: 2.1867 | BG114: 59.52273741 | BH114: 0 | BI114: 54.5492461 | BJ114: 1.7551 | BK114: 59.73393501 | BL114: 2.2157 | BM114: 58.93589005 | BN114: 2.1986 | BO114: 56.375432 | BP114: 1.8943 | BQ114: 66.65640821 | BR114: 2.8951 | BS114: 66.53426312 | BT114: 2.8932 | BU114: 59.72196236 | BV114: 2.1979 | BW114: 66.98009801 | BX114: 2.8734 | BY114: 75.08406564 | BZ114: 3.5297 | CA114: 74.08534371 | CB114: 3.7924 | CC114: 68.68880875 | CD114: 3.5657 | CE114: 67.42264583 | CF114: 3.5279 | CG114: 97.56038893 | CH114: 10.758 | CI114: 72.10566751 | CJ114: 3.6075
C115: pS1[17] | D115: z50 for GF.AllGear selectivity (males, 1987-1996) | E115: 1 | F115: ARITHMETIC | G115: 59.07318609 | H115: 4.849 | I115: 107.5565206 | J115: 6.6684 | K115: 55.68868745 | L115: 3.1033 | M115: 56.26450168 | N115: 0 | O115: 56.84147127 | P115: 4.9549 | Q115: 56.77516339 | R115: 4.8883 | S115: 49.94935443 | T115: 3.3534 | U115: 63.3199957 | V115: 5.9348 | W115: 56.09402845 | X115: 4.8863 | Y115: 56.14043462 | Z115: 0 | AA115: 81.86058664 | AB115: 7.4363 | AC115: 81.48744336 | AD115: 7.4116 | AE115: 81.89192792 | AF115: 8.6859 | AG115: 72.49186063 | AH115: 0 | AI115: 80.96761823 | AJ115: 7.4044 | AK115: 82.78537833 | AL115: 9.369 | AM115: 72.11720427 | AN115: 6.7705 | AO115: 73.95145863 | AP115: 5.2722 | AQ115: 73.67209525 | AR115: 5.2544 | AS115: 72.00578393 | AT115: 5.7206 | AU115: 64.12031886 | AV115: 0 | AW115: 73.18290947 | AX115: 5.3021 | AY115: 72.46373574 | AZ115: 5.8773 | BA115: 67.48697922 | BB115: 5.2616 | BC115: 79.57201995 | BD115: 0 | BE115: 79.42510622 | BF115: 4.4763 | BG115: 79.25022201 | BH115: 0 | BI115: 73.01057649 | BJ115: 4.4344 | BK115: 79.15946192 | BL115: 4.4641 | BM115: 77.67447943 | BN115: 4.7341 | BO115: 75.03424641 | BP115: 4.4809 | BQ115: 89.2382084 | BR115: 5.2658 | BS115: 89.11725803 | BT115: 5.2643 | BU115: 81.97241323 | BV115: 5.2568 | BW115: 89.2374289 | BX115: 5.2732 | BY115: 115.3634079 | BZ115: 9.3099 | CA115: 119.9999998 | CB115: 0.0013866 | CC115: 119.9999999 | CD115: 0.00082497 | CE115: 119.9999999 | CF115: 0.00098488 | CG115: 119.9999999 | CH115: 0.00046823 | CI115: 119.9999999 | CJ115: 0.00045296
C116: pS1[18] | D116: z50 for GF.AllGear selectivity (males, 1997+) | E116: 1 | F116: ARITHMETIC | G116: 80.84071883 | H116: 2.1748 | I116: 94.01865552 | J116: 3.1124 | K116: 79.8343936 | L116: 1.7725 | M116: 79.70594096 | N116: 0 | O116: 79.83421733 | P116: 2.1885 | Q116: 79.69762672 | R116: 2.1668 | S116: 80.61174527 | T116: 2.2806 | U116: 85.64531952 | V116: 2.4648 | W116: 80.22890066 | X116: 2.205 | Y116: 80.33289324 | Z116: 0 | AA116: 100.1293722 | AB116: 2.626 | AC116: 100.3516628 | AD116: 2.7373 | AE116: 100.3695084 | AF116: 2.7327 | AG116: 95.07597945 | AH116: 0 | AI116: 100.1160098 | AJ116: 2.6011 | AK116: 101.1107334 | AL116: 2.6955 | AM116: 95.63663255 | AN116: 2.536 | AO116: 99.18326733 | AP116: 2.5565 | AQ116: 99.13736738 | AR116: 2.5611 | AS116: 99.16310876 | AT116: 2.6915 | AU116: 93.51683151 | AV116: 0 | AW116: 98.76884726 | AX116: 2.5639 | AY116: 99.59170557 | AZ116: 2.7069 | BA116: 95.66894425 | BB116: 2.5587 | BC116: 94.97576219 | BD116: 0 | BE116: 95.0280513 | BF116: 2.2261 | BG116: 94.65455504 | BH116: 0 | BI116: 89.6498726 | BJ116: 2.1624 | BK116: 95.011243 | BL116: 2.2243 | BM116: 95.08827494 | BN116: 2.3248 | BO116: 91.02968599 | BP116: 2.1671 | BQ116: 102.3362324 | BR116: 2.1449 | BS116: 102.3376687 | BT116: 2.1478 | BU116: 99.29848407 | BV116: 2.1763 | BW116: 102.6431284 | BX116: 2.1636 | BY116: 106.7301114 | BZ116: 2.0686 | CA116: 108.9082684 | CB116: 2.3303 | CC116: 108.6277932 | CD116: 2.2301 | CE116: 108.9703313 | CF116: 2.3396 | CG116: 119.9999999 | CH116: 0.00096945 | CI116: 111.336767 | CJ116: 2.0057
C117: pS1[19] | D117: z50 for GF.AllGear selectivity (males, pre-1987) | E117: 1 | F117: ARITHMETIC | G117: 41.2004528 | H117: 1.6602 | I117: 75.98285833 | J117: 7.2297 | K117: 43.19619704 | L117: 1.5943 | M117: 40.00000008 | N117: 0 | O117: 40.94168816 | P117: 1.6828 | Q117: 40.95734726 | R117: 1.6469 | S117: 44.80591751 | T117: 1.8767 | U117: 41.76487425 | V117: 1.8099 | W117: 41.15040411 | X117: 1.7219 | Y117: 40.828251 | Z117: 0 | AA117: 40.08737513 | AB117: 1.5619 | AC117: 40.00000018 | AD117: 0.0015674 | AE117: 40.00055066 | AF117: 1.4919 | AG117: 40.00000008 | AH117: 0 | AI117: 40.00000029 | AJ117: 0.0025651 | AK117: 40.03170277 | AL117: 1.5973 | AM117: 40.00000064 | AN117: 0.0027059 | AO117: 40.5233974 | AP117: 1.4468 | AQ117: 40.4141837 | AR117: 1.4452 | AS117: 40.5788283 | AT117: 1.455 | AU117: 40.00000116 | AV117: 0 | AW117: 40.55093718 | AX117: 1.4601 | AY117: 40.6319285 | AZ117: 1.47 | BA117: 40.27945025 | BB117: 1.4347 | BC117: 40.00000322 | BD117: 0 | BE117: 40.00000009 | BF117: 0.00083423 | BG117: 40.00000008 | BH117: 0 | BI117: 40.00000002 | BJ117: 0.00014934 | BK117: 40.00000012 | BL117: 0.001058 | BM117: 40.0000001 | BN117: 0.00091525 | BO117: 40.00000003 | BP117: 0.00030071 | BQ117: 40.85694456 | BR117: 1.4367 | BS117: 40.77142678 | BT117: 1.4372 | BU117: 40.00000003 | BV117: 0.0002938 | BW117: 41.07975062 | BX117: 1.4285 | BY117: 43.74415634 | BZ117: 1.7651 | CA117: 43.41076318 | CB117: 1.8035 | CC117: 43.00694967 | CD117: 1.7838 | CE117: 42.89447698 | CF117: 1.6889 | CG117: 119.9999994 | CH117: 0.0053917 | CI117: 45.06546071 | CJ117: 1.6411
C118: pS1[2] | D118: z50 for NMFS survey selectivity (males, 1982+) | E118: 1 | F118: ARITHMETIC | G118: 34.91791102 | H118: 4.1483 | I118: 57.47924389 | J118: 289.46 | K118: 35.07813967 | L118: 4.2531 | M118: 30.34834531 | N118: 0 | O118: 34.04139127 | P118: 4.0787 | Q118: 33.57180523 | R118: 3.9331 | S118: 36.99261359 | T118: 6.4026 | U118: 42.85282337 | V118: 5.9629 | W118: 34.97740015 | X118: 4.1905 | Y118: 35.47919322 | Z118: 0 | AA118: 57.72252203 | AB118: 4.6089 | AC118: 58.31618204 | AD118: 5.0124 | AE118: 55.76170203 | AF118: 4.6924 | AG118: 47.57379698 | AH118: 0 | AI118: 57.46280119 | AJ118: 4.2211 | AK118: 57.11220224 | AL118: 4.2439 | AM118: 50.25376066 | AN118: 5.0172 | AO118: 60.55863462 | AP118: 3.86 | AQ118: 60.32016653 | AR118: 3.866 | AS118: 59.99404739 | AT118: 4.0689 | AU118: 45.86432325 | AV118: 0 | AW118: 59.23262264 | AX118: 3.916 | AY118: 60.54603469 | AZ118: 4.0824 | BA118: 53.9545909 | BB118: 4.0996 | BC118: 47.89256981 | BD118: 0 | BE118: 47.89351109 | BF118: 2.8429 | BG118: 47.31512862 | BH118: 0 | BI118: 38.0343324 | BJ118: 2.4417 | BK118: 47.62156511 | BL118: 2.8321 | BM118: 46.76169907 | BN118: 3.0055 | BO118: 42.03880615 | BP118: 2.5273 | BQ118: 68.59580649 | BR118: 3.0723 | BS118: 68.59138779 | BT118: 3.0784 | BU118: 60.9355275 | BV118: 2.9717 | BW118: 68.99999989 | BX118: 0.00092118 | BY118: 68.99999999 | BZ118: 4.5129e-05 | CA118: 68.99999999 | CB118: 5.7108e-05 | CC118: 68.99999999 | CD118: 5.5446e-05 | CE118: 68.99999999 | CF118: 8.167e-05 | CG118: 68.99999999 | CH118: 0.00010184 | CI118: 68.99999999 | CJ118: 5.9853e-05
C119: pS1[20] | D119: z50 for GF.AllGear selectivity (males, 1987-1996) | E119: 1 | F119: ARITHMETIC | G119: 40 | H119: 5.4822e-05 | I119: 86.20226252 | J119: 7.6629 | K119: 40 | L119: 4.3219e-05 | M119: 40 | N119: 0 | O119: 40 | P119: 4.9957e-05 | Q119: 40 | R119: 4.8995e-05 | S119: 40.00000001 | T119: 9.6615e-05 | U119: 40 | V119: 4.9396e-05 | W119: 40 | X119: 4.7492e-05 | Y119: 40 | Z119: 0 | AA119: 40 | AB119: 5.8173e-05 | AC119: 40 | AD119: 5.7917e-05 | AE119: 40 | AF119: 4.9247e-05 | AG119: 40 | AH119: 0 | AI119: 40 | AJ119: 5.5488e-05 | AK119: 40 | AL119: 4.5312e-05 | AM119: 40.00000021 | AN119: 0.00059541 | AO119: 40.00000002 | AP119: 0.00036372 | AQ119: 40.00000002 | AR119: 0.00035771 | AS119: 40.00000001 | AT119: 0.00015019 | AU119: 40.00000092 | AV119: 0 | AW119: 40.00000006 | AX119: 0.0006146 | AY119: 40.00000001 | AZ119: 0.00013393 | BA119: 40.00000001 | BB119: 0.00021097 | BC119: 44.30744366 | BD119: 0 | BE119: 44.25807991 | BF119: 2.0706 | BG119: 44.01008742 | BH119: 0 | BI119: 43.48989805 | BJ119: 1.9874 | BK119: 44.05767908 | BL119: 2.0261 | BM119: 42.95442012 | BN119: 1.8738 | BO119: 43.51324217 | BP119: 1.9319 | BQ119: 45.28169687 | BR119: 3.0764 | BS119: 45.21738709 | BT119: 3.0662 | BU119: 43.69782434 | BV119: 2.821 | BW119: 44.16701061 | BX119: 2.6661 | BY119: 65.45683289 | BZ119: 8.9371 | CA119: 66.28289206 | CB119: 6.3238 | CC119: 76.78626562 | CD119: 7.4038 | CE119: 75.54780749 | CF119: 6.9232 | CG119: 115.253196 | CH119: 10.211 | CI119: 77.43310711 | CJ119: 5.8243
C120: pS1[21] | D120: z50 for GF.AllGear selectivity (males, 1997+) | E120: 1 | F120: ARITHMETIC | G120: 76.11346841 | H120: 2.5308 | I120: 84.82638458 | J120: 5.0734 | K120: 78.39835448 | L120: 2.0077 | M120: 76.62286944 | N120: 0 | O120: 75.55626309 | P120: 2.5002 | Q120: 75.45418114 | R120: 2.5124 | S120: 78.5744424 | T120: 2.2813 | U120: 78.02512444 | V120: 2.6791 | W120: 76.05561673 | X120: 2.5093 | Y120: 76.16367455 | Z120: 0 | AA120: 83.48682733 | AB120: 3.1427 | AC120: 83.90883449 | AD120: 3.1133 | AE120: 83.67240864 | AF120: 3.2301 | AG120: 81.9849077 | AH120: 0 | AI120: 83.7871565 | AJ120: 3.1078 | AK120: 84.02005143 | AL120: 3.3155 | AM120: 82.43573075 | AN120: 2.8847 | AO120: 89.51301515 | AP120: 3.5737 | AQ120: 89.59583842 | AR120: 3.5719 | AS120: 89.89347947 | AT120: 3.6463 | AU120: 88.22897456 | AV120: 0 | AW120: 89.3326705 | AX120: 3.5649 | AY120: 90.0082124 | AZ120: 3.6733 | BA120: 88.16957817 | BB120: 3.4139 | BC120: 83.32957982 | BD120: 0 | BE120: 83.47302466 | BF120: 3.0565 | BG120: 82.98387942 | BH120: 0 | BI120: 81.18735656 | BJ120: 2.9052 | BK120: 83.46990416 | BL120: 3.0671 | BM120: 83.51856976 | BN120: 3.1055 | BO120: 81.28282245 | BP120: 2.9078 | BQ120: 85.91296512 | BR120: 3.2513 | BS120: 85.96990918 | BT120: 3.2535 | BU120: 86.32130615 | BV120: 3.0614 | BW120: 85.79274693 | BX120: 3.2543 | BY120: 82.83365722 | BZ120: 2.9349 | CA120: 84.43929134 | CB120: 3.2066 | CC120: 90.51506114 | CD120: 3.4035 | CE120: 90.44846957 | CF120: 3.4039 | CG120: 109.9454976 | CH120: 6.6482 | CI120: 91.85475222 | CJ120: 2.9212
C121: pS1[22] | D121: z95 for RKF selectivity (males, pre-1997) | E121: 1 | F121: ARITHMETIC | G121: 158.2099545 | H121: 6.5516 | I121: 95.00000241 | J121: 0.022199 | K121: 178.7729394 | L121: 4.0654 | M121: 157.9250882 | N121: 0 | O121: 180 | P121: 0.00044715 | Q121: 180 | R121: 0.00044756 | S121: 158.4608782 | T121: 6.6347 | U121: 158.6156749 | V121: 6.234 | W121: 180 | X121: 0.00042517 | Y121: 180 | Z121: 0 | AA121: 159.6273836 | AB121: 5.9112 | AC121: 159.626743 | AD121: 5.9013 | AE121: 180 | AF121: 0.00038118 | AG121: 180 | AH121: 0 | AI121: 159.6431989 | AJ121: 5.9032 | AK121: 180 | AL121: 0.00032387 | AM121: 179.9999989 | AN121: 0.0027338 | AO121: 162.780021 | AP121: 6.3492 | AQ121: 162.747941 | AR121: 6.346 | AS121: 180 | AT121: 0.00033329 | AU121: 179.9999733 | AV121: 0 | AW121: 162.7032839 | AX121: 6.3545 | AY121: 180 | AZ121: 0.00033369 | BA121: 180 | BB121: 0.00034235 | BC121: 160.8831146 | BD121: 0 | BE121: 160.8874879 | BF121: 6.8618 | BG121: 179.9999999 | BH121: 0 | BI121: 180 | BJ121: 0.00040645 | BK121: 160.8845408 | BL121: 6.8959 | BM121: 180 | BN121: 0.00040451 | BO121: 180 | BP121: 0.00040292 | BQ121: 160.7341993 | BR121: 6.5025 | BS121: 160.7436455 | BT121: 6.5007 | BU121: 180 | BV121: 0.00045204 | BW121: 154.1029058 | BX121: 5.6105 | BY121: 155.0276187 | BZ121: 5.9361 | CA121: 180 | CB121: 0.00040727 | CC121: 179.9999999 | CD121: 0.00051255 | CE121: 179.9999999 | CF121: 0.00047842 | CG121: 137.2892523 | CH121: 43.713 | CI121: 179.9999999 | CJ121: 0.00099374
C122: pS1[23] | D122: z95 for RKF selectivity (males, 1997-2004) | E122: 1 | F122: ARITHMETIC | G122: 179.9999995 | H122: 0.0047656 | I122: 179.9999822 | J122: 0.16415 | K122: 179.9999998 | L122: 0.0020563 | M122: 179.9999995 | N122: 0 | O122: 179.9999971 | P122: 0.026514 | Q122: 179.9999973 | R122: 0.02533 | S122: 179.9999996 | T122: 0.0032957 | U122: 179.9999996 | V122: 0.0036656 | W122: 179.9999975 | X122: 0.02264 | Y122: 179.9999973 | Z122: 0 | AA122: 179.7377155 | AB122: 15.352 | AC122: 179.9836944 | AD122: 15.317 | AE122: 174.7696512 | AF122: 15.981 | AG122: 172.3228369 | AH122: 0 | AI122: 179.999992 | AJ122: 0.073422 | AK122: 176.7909754 | AL122: 16.52 | AM122: 172.8155789 | AN122: 16.242 | AO122: 179.9999967 | AP122: 0.030706 | AQ122: 179.9999971 | AR122: 0.026848 | AS122: 174.5667484 | AT122: 17.243 | AU122: 172.0953799 | AV122: 0 | AW122: 179.9999972 | AX122: 0.025622 | AY122: 174.9412888 | AZ122: 17.383 | BA122: 172.76477 | BB122: 17.435 | BC122: 175.6003046 | BD122: 0 | BE122: 175.6229081 | BF122: 16.163 | BG122: 164.0049629 | BH122: 0 | BI122: 165.9221257 | BJ122: 17.215 | BK122: 175.6676347 | BL122: 16.22 | BM122: 169.4529977 | BN122: 17.343 | BO122: 166.4323102 | BP122: 17.167 | BQ122: 169.0773947 | BR122: 13.75 | BS122: 169.1365063 | BT122: 13.762 | BU122: 161.6477651 | BV122: 14.504 | BW122: 155.1156769 | BX122: 9.169 | BY122: 155.6194982 | BZ122: 8.7134 | CA122: 159.9104294 | CB122: 12.532 | CC122: 158.9600565 | CD122: 12.556 | CE122: 160.417567 | CF122: 12.732 | CG122: 95.00000126 | CH122: 0.011623 | CI122: 166.5941905 | CJ122: 6.1093
C123: pS1[24] | D123: z95 for RKF selectivity (males, 2005+) | E123: 1 | F123: ARITHMETIC | G123: 180 | H123: 0.00030861 | I123: 179.99999 | J123: 0.092344 | K123: 180 | L123: 0.00015916 | M123: 180 | N123: 0 | O123: 179.9999998 | P123: 0.0015106 | Q123: 179.9999998 | R123: 0.001509 | S123: 180 | T123: 0.00028093 | U123: 180 | V123: 0.00027534 | W123: 179.9999998 | X123: 0.0014179 | Y123: 179.9999998 | Z123: 0 | AA123: 179.9999999 | AB123: 0.00046063 | AC123: 180 | AD123: 0.00045299 | AE123: 177.4941788 | AF123: 8.5863 | AG123: 174.7198299 | AH123: 0 | AI123: 180 | AJ123: 0.00044004 | AK123: 178.8589149 | AL123: 8.7181 | AM123: 175.4737695 | AN123: 8.8721 | AO123: 179.9999999 | AP123: 0.00047002 | AQ123: 179.9999999 | AR123: 0.000469 | AS123: 179.9999943 | AT123: 0.052437 | AU123: 177.4507721 | AV123: 0 | AW123: 180 | AX123: 0.00038715 | AY123: 179.9999988 | AZ123: 0.010804 | BA123: 178.6203303 | BB123: 9.1357 | BC123: 179.9998462 | BD123: 0 | BE123: 179.9999999 | BF123: 0.00076926 | BG123: 173.5377021 | BH123: 0 | BI123: 172.3231583 | BJ123: 9.1491 | BK123: 179.9999999 | BL123: 0.00075966 | BM123: 177.2497015 | BN123: 9.1838 | BO123: 173.4200436 | BP123: 9.1345 | BQ123: 177.9090033 | BR123: 7.7939 | BS123: 177.9480214 | BT123: 7.7998 | BU123: 164.9975745 | BV123: 6.956 | BW123: 179.9999999 | BX123: 0.00077433 | BY123: 179.9999999 | BZ123: 0.0010781 | CA123: 170.328566 | CB123: 6.6347 | CC123: 168.9536897 | CD123: 6.5674 | CE123: 170.8522844 | CF123: 6.7576 | CG123: 143.6173739 | CH123: 13.851 | CI123: 173.6717943 | CJ123: 3.1172
C124: pS1[25] | D124: z95 for RKF selectivity (females, pre-1997) | E124: 1 | F124: ARITHMETIC | G124: 121.5720818 | H124: 37.669 | I124: 136.5443352 | J124: 17.081 | K124: 118.6429652 | L124: 3.3028 | M124: 121.6711492 | N124: 0 | O124: 120.2303411 | P124: 29.441 | Q124: 120.2625609 | R124: 29.526 | S124: 123.4348986 | T124: 57.865 | U124: 121.5936372 | V124: 34.493 | W124: 120.2856537 | X124: 29.426 | Y124: 120.1925156 | Z124: 0 | AA124: 122.0598569 | AB124: 34.042 | AC124: 122.1425878 | AD124: 34.182 | AE124: 120.9638239 | AF124: 29.537 | AG124: 120.5313799 | AH124: 0 | AI124: 122.0748401 | AJ124: 33.856 | AK124: 120.952906 | AL124: 29.594 | AM124: 120.3600953 | AN124: 28.736 | AO124: 117.5842153 | AP124: 27.062 | AQ124: 117.6164463 | AR124: 27.109 | AS124: 116.1701015 | AT124: 23.315 | AU124: 115.3955449 | AV124: 0 | AW124: 117.5861519 | AX124: 27.051 | AY124: 116.209797 | AZ124: 23.335 | BA124: 115.2783266 | BB124: 22.148 | BC124: 117.1017642 | BD124: 0 | BE124: 117.1437255 | BF124: 26.979 | BG124: 115.7720478 | BH124: 0 | BI124: 114.7101865 | BJ124: 22.134 | BK124: 117.0394581 | BL124: 26.661 | BM124: 115.5683253 | BN124: 22.769 | BO124: 114.6635785 | BP124: 21.755 | BQ124: 117.2499668 | BR124: 26.03 | BS124: 117.2758089 | BT124: 26.079 | BU124: 115.3042455 | BV124: 22.322 | BW124: 108.8551968 | BX124: 4.2557 | BY124: 111.1756561 | BZ124: 11.067 | CA124: 120.9728257 | CB124: 16.115 | CC124: 119.2032905 | CD124: 15.417 | CE124: 119.4206228 | CF124: 15.251 | CG124: 100.0000009 | CH124: 0.0054875 | CI124: 123.0896421 | CJ124: 3.9657
C125: pS1[26] | D125: z95 for RKF selectivity (females, 1997-2004) | E125: 1 | F125: ARITHMETIC | G125: 121.2152513 | H125: 53.48 | I125: 133.7140889 | J125: 23.419 | K125: 125.8691539 | L125: 7.9362 | M125: 120.4089862 | N125: 0 | O125: 127.874728 | P125: 84.613 | Q125: 127.9348608 | R125: 85.011 | S125: 118.3163098 | T125: 44.733 | U125: 123.0356819 | V125: 57.607 | W125: 128.1177466 | X125: 85.594 | Y125: 127.9498795 | Z125: 0 | AA125: 124.8716755 | AB125: 62.571 | AC125: 125.0688512 | AD125: 63.175 | AE125: 130.0375571 | AF125: 93.327 | AG125: 129.0627334 | AH125: 0 | AI125: 125.1394703 | AJ125: 63.315 | AK125: 130.1505893 | AL125: 94.272 | AM125: 128.8514214 | AN125: 87.286 | AO125: 117.823271 | AP125: 46.948 | AQ125: 117.8620554 | AR125: 47.068 | AS125: 121.9193828 | AT125: 60.311 | AU125: 121.2217222 | AV125: 0 | AW125: 117.8151396 | AX125: 46.985 | AY125: 121.9805498 | AZ125: 60.449 | BA125: 120.7865498 | BB125: 57.138 | BC125: 116.8740254 | BD125: 0 | BE125: 116.8373751 | BF125: 44.695 | BG125: 120.1022093 | BH125: 0 | BI125: 119.5083137 | BJ125: 54.13 | BK125: 117.0118315 | BL125: 45.058 | BM125: 120.672078 | BN125: 56.656 | BO125: 119.5648988 | BP125: 53.89 | BQ125: 117.6649811 | BR125: 46.346 | BS125: 117.6903593 | BT125: 46.434 | BU125: 120.1184788 | BV125: 54.721 | BW125: 139.9999991 | BX125: 0.0059969 | BY125: 139.9999979 | BZ125: 0.013386 | CA125: 139.9999894 | CB125: 0.067578 | CC125: 139.9999933 | CD125: 0.042563 | CE125: 139.9999941 | CF125: 0.037533 | CG125: 100.0000008 | CH125: 0.0051437 | CI125: 119.0610426 | CJ125: 4.3634
C126: pS1[27] | D126: z95 for RKF selectivity (females, 2005+) | E126: 1 | F126: ARITHMETIC | G126: 139.9999946 | H126: 0.034333 | I126: 139.99999 | J126: 0.063247 | K126: 139.9999921 | L126: 0.050014 | M126: 139.9999944 | N126: 0 | O126: 139.9999951 | P126: 0.031092 | Q126: 139.9999951 | R126: 0.030997 | S126: 139.9999931 | T126: 0.043337 | U126: 139.9999947 | V126: 0.033597 | W126: 139.9999951 | X126: 0.031047 | Y126: 139.9999951 | Z126: 0 | AA126: 139.9999948 | AB126: 0.03312 | AC126: 139.9999948 | AD126: 0.032657 | AE126: 139.999995 | AF126: 0.03136 | AG126: 139.999995 | AH126: 0 | AI126: 139.9999948 | AJ126: 0.032914 | AK126: 139.9999951 | AL126: 0.031004 | AM126: 139.9999949 | AN126: 0.032135 | AO126: 139.9999857 | AP126: 0.090694 | AQ126: 139.9999859 | AR126: 0.089255 | AS126: 139.99999 | AT126: 0.063486 | AU126: 139.9999858 | AV126: 0 | AW126: 139.9999857 | AX126: 0.090675 | AY126: 139.99999 | AZ126: 0.063093 | BA126: 139.9999872 | BB126: 0.0811 | BC126: 139.999973 | BD126: 0 | BE126: 139.9999759 | BF126: 0.15226 | BG126: 139.9999877 | BH126: 0 | BI126: 139.9999843 | BJ126: 0.099266 | BK126: 139.9999771 | BL126: 0.14476 | BM126: 139.9999882 | BN126: 0.074555 | BO126: 139.9999835 | BP126: 0.1041 | BQ126: 139.9999794 | BR126: 0.13048 | BS126: 139.9999798 | BT126: 0.12776 | BU126: 139.9999857 | BV126: 0.090435 | BW126: 139.9999694 | BX126: 0.19305 | BY126: 139.999996 | BZ126: 0.025174 | CA126: 133.190792 | CB126: 23.794 | CC126: 130.8562253 | CD126: 22.91 | CE126: 129.0291835 | CF126: 21.302 | CG126: 119.2707687 | CH126: 27.186 | CI126: 128.7482276 | CJ126: 3.26
C127: pS1[28] | D127: z50 for TCF retention (2005-2009) | E127: 1 | F127: ARITHMETIC | G127: 138.7170995 | H127: 1.632 | I127: 141.9802345 | J127: 2.8591 | K127: 138.6205289 | L127: 1.2304 | M127: 138.7111543 | N127: 0 | O127: 138.8792451 | P127: 1.5233 | Q127: 138.8771176 | R127: 1.5248 | S127: 138.8678426 | T127: 1.5226 | U127: 138.8870942 | V127: 1.5142 | W127: 138.9125701 | X127: 1.5023 | Y127: 138.9128505 | Z127: 0 | AA127: 138.9351121 | AB127: 1.4845 | AC127: 138.9429795 | AD127: 1.4796 | AE127: 139.1438071 | AF127: 1.3835 | AG127: 138.8910335 | AH127: 0 | AI127: 138.9420641 | AJ127: 1.4777 | AK127: 139.2160883 | AL127: 1.352 | AM127: 139.2448541 | AN127: 1.2901 | AO127: 139.0820892 | AP127: 1.4071 | AQ127: 139.0814196 | AR127: 1.4073 | AS127: 139.3119683 | AT127: 1.3195 | AU127: 139.0493936 | AV127: 0 | AW127: 139.0637027 | AX127: 1.4146 | AY127: 139.3463759 | AZ127: 1.3058 | BA127: 139.1574606 | BB127: 1.3787 | BC127: 138.6647013 | BD127: 0 | BE127: 138.6737195 | BF127: 1.6619 | BG127: 138.7807136 | BH127: 0 | BI127: 138.596206 | BJ127: 1.7507 | BK127: 138.6818164 | BL127: 1.6518 | BM127: 139.0260089 | BN127: 1.4348 | BO127: 138.6881291 | BP127: 1.6539 | BQ127: 138.3720523 | BR127: 2.2413 | BS127: 138.3742236 | BT127: 2.2344 | BU127: 138.2651998 | BV127: 2.6804 | BW127: 140.7579624 | BX127: 0.53125 | BY127: 140.6460028 | BZ127: 0.53237 | CA127: 140.6409284 | CB127: 0.52381 | CC127: 140.6507422 | CD127: 0.52622 | CE127: 140.5666381 | CF127: 0.52403 | CG127: 139.5577106 | CH127: 1.7629 | CI127: 140.6053817 | CJ127: 0.5579
C128: pS1[29] | D128: z50 for TCF retention (2013-2015) | E128: 1 | F128: ARITHMETIC | G128: 125.0367503 | H128: 0.75788 | I128: 124.3040962 | J128: 2.4992 | K128: 125.0905033 | L128: 0.54271 | M128: 125.0059354 | N128: 0 | O128: 125.0752492 | P128: 0.75544 | Q128: 125.075065 | R128: 0.7554 | S128: 124.9960153 | T128: 0.76325 | U128: 125.0858446 | V128: 0.76245 | W128: 125.0511095 | X128: 0.75746 | Y128: 125.0499792 | Z128: 0 | AA128: 125.2591071 | AB128: 0.57469 | AC128: 125.2593963 | AD128: 0.57428 | AE128: 125.2606598 | AF128: 0.57269 | AG128: 125.1248268 | AH128: 0 | AI128: 125.253667 | AJ128: 0.57448 | AK128: 125.2606541 | AL128: 0.57066 | AM128: 125.1272398 | AN128: 0.77494 | AO128: 125.2568924 | AP128: 0.57567 | AQ128: 125.2566488 | AR128: 0.57591 | AS128: 125.2612697 | AT128: 0.57377 | AU128: 125.1509562 | AV128: 0 | AW128: 125.2524996 | AX128: 0.76637 | AY128: 125.2588747 | AZ128: 0.57278 | BA128: 125.2003884 | BB128: 0.76097 | BC128: 125.2011129 | BD128: 0 | BE128: 125.0118812 | BF128: 0.75698 | BG128: 125.0678686 | BH128: 0 | BI128: 124.9256017 | BJ128: 0.75715 | BK128: 124.9968834 | BL128: 0.75756 | BM128: 125.1412128 | BN128: 0.75688 | BO128: 124.9541182 | BP128: 0.75711 | BQ128: 125.121674 | BR128: 0.7576 | BS128: 125.121521 | BT128: 0.75769 | BU128: 124.9909531 | BV128: 0.75852 | BW128: 124.8255263 | BX128: 0.606 | BY128: 124.6746925 | BZ128: 0.61257 | CA128: 125.0161691 | CB128: 0.59059 | CC128: 124.9282831 | CD128: 0.59621 | CE128: 124.9729689 | CF128: 0.59144 | CG128: 85.00000027 | CH128: 0.0023534 | CI128: 124.9524933 | CJ128: 0.70422
C129: pS1[3] | D129: z50 for NMFS survey selectivity (females, pre-1982) | E129: 1 | F129: ARITHMETIC | G129: 56.29254643 | H129: 2.8555 | I129: 81.25385753 | J129: 2.7703 | K129: 60.54102133 | L129: 2.9542 | M129: 42.02223715 | N129: 0 | O129: 57.88039459 | P129: 3.0071 | Q129: 57.88039459 | R129: 0 | S129: 56.29254643 | T129: 0 | U129: 76.61157834 | V129: 3.0762 | W129: 58.45414792 | X129: 3.0271 | Y129: 57.66749222 | Z129: 0 | AA129: 87.07789346 | AB129: 3.9379 | AC129: 87.72322084 | AD129: 4.1925 | AE129: 85.34161311 | AF129: 3.5784 | AG129: 57.88039459 | AH129: 0 | AI129: 87.32657061 | AJ129: 3.6259 | AK129: 86.90407188 | AL129: 3.4442 | AM129: 59.80407762 | AN129: 2.3622 | AO129: 99.99999994 | AP129: 0.00097535 | AQ129: 99.99999994 | AR129: 0.00104 | AS129: 99.99999994 | AT129: 0.0010327 | AU129: 57.88039459 | AV129: 0 | AW129: 100 | AX129: 2.0729e-05 | AY129: 99.99999994 | AZ129: 0.00099969 | BA129: 76.56552635 | BB129: 2.069 | BC129: 99.99999448 | BD129: 0 | BE129: 99.99999997 | BF129: 0.00055684 | BG129: 99.99999997 | BH129: 0 | BI129: 57.88039459 | BJ129: 0 | BK129: 99.99999997 | BL129: 0.00052031 | BM129: 99.99999997 | BN129: 0.00054959 | BO129: 72.28950102 | BP129: 1.6761 | BQ129: 99.99999998 | BR129: 0.00040606 | BS129: 99.99999998 | BT129: 0.00041415 | BU129: 57.88039459 | BV129: 0 | BW129: 99.99999998 | BX129: 0.0003959 | BY129: 99.99999999 | BZ129: 0.00015835 | CA129: 99.99999998 | CB129: 0.0002882 | CC129: 99.99999998 | CD129: 0.00028713 | CE129: 99.99999998 | CF129: 0.00028805 | CG129: 91.80636836 | CH129: 1.9058 | CI129: 99.99999999 | CJ129: 0.00010502
C130: pS1[4] | D130: z50 for NMFS survey selectivity (females, 1982+) | E130: 1 | F130: ARITHMETIC | G130: -29.13471512 | H130: 26.96 | I130: 68.73900212 | J130: 3513.5 | K130: -14.33215234 | L130: 20.46 | M130: -49.01484985 | N130: 0 | O130: -20.05724807 | P130: 22.193 | Q130: -22.67673319 | R130: 22.912 | S130: -29.13471512 | T130: 0 | U130: -24.41125924 | V130: 25.478 | W130: -16.56550729 | X130: 20.863 | Y130: -12.20452088 | Z130: 0 | AA130: -49.99999918 | AB130: 0.0088999 | AC130: -49.99999906 | AD130: 0.010233 | AE130: -49.99999711 | AF130: 0.031533 | AG130: -42.95136568 | AH130: 0 | AI130: -49.99999805 | AJ130: 0.021262 | AK130: -49.99999288 | AL130: 0.077538 | AM130: -27.2551193 | AN130: 25.044 | AO130: -49.99999976 | AP130: 0.00259 | AQ130: -49.99999974 | AR130: 0.002863 | AS130: -49.9999997 | AT130: 0.0032239 | AU130: 26.99833317 | AV130: 0 | AW130: -49.99999971 | AX130: 0.0034865 | AY130: -49.99999969 | AZ130: 0.0033514 | BA130: -49.99999957 | BB130: 0.0046788 | BC130: -45.71509347 | BD130: 0 | BE130: -49.82300703 | BF130: 2703.1 | BG130: -34.76094202 | BH130: 0 | BI130: -16.55412661 | BJ130: 241340 | BK130: -49.09876497 | BL130: 13798 | BM130: 26.05980491 | BN130: 11686 | BO130: 26.89125031 | BP130: 1058.4 | BQ130: -45.71245866 | BR130: 63736 | BS130: -49.82034118 | BT130: 2736.1 | BU130: -32.89003239 | BV130: 226010 | BW130: -44.64142024 | BX130: 78049 | BY130: 27.25265295 | BZ130: 7.7209 | CA130: 16.23003939 | CB130: 9.3878 | CC130: 7.236588342 | CD130: 11.219 | CE130: 8.786306056 | CF130: 7.9914 | CG130: 68.99999999 | CH130: 6.7558e-05 | CI130: 32.56018355 | CJ130: 6.7838
C131: pS1[5] | D131: z50 for TCF retention (pre-1991) | E131: 1 | F131: ARITHMETIC | G131: 137.9857703 | H131: 0.41573 | I131: 85.00001069 | J131: 0.092508 | K131: 138.4276679 | L131: 0.34159 | M131: 137.9960263 | N131: 0 | O131: 137.9026063 | P131: 0.42951 | Q131: 137.9010114 | R131: 0.42939 | S131: 138.1585269 | T131: 0.42977 | U131: 138.2461273 | V131: 0.43553 | W131: 137.7244515 | X131: 0.42486 | Y131: 137.7552011 | Z131: 0 | AA131: 138.3076255 | AB131: 0.41564 | AC131: 138.3095255 | AD131: 0.41483 | AE131: 138.0737226 | AF131: 0.41078 | AG131: 137.5679165 | AH131: 0 | AI131: 138.1764505 | AJ131: 0.39634 | AK131: 137.7678941 | AL131: 0.47316 | AM131: 137.3693138 | AN131: 0.40924 | AO131: 138.1776401 | AP131: 0.38067 | AQ131: 138.1729339 | AR131: 0.38003 | AS131: 137.6421462 | AT131: 0.4227 | AU131: 137.0626563 | AV131: 0 | AW131: 138.0523092 | AX131: 0.36783 | AY131: 137.5063539 | AZ131: 0.3713 | BA131: 137.0940886 | BB131: 0.3855 | BC131: 137.5864386 | BD131: 0 | BE131: 137.5874192 | BF131: 0.34454 | BG131: 137.6808777 | BH131: 0 | BI131: 135.5147034 | BJ131: 0.56555 | BK131: 137.5190358 | BL131: 0.34386 | BM131: 136.7525079 | BN131: 0.41591 | BO131: 135.6907709 | BP131: 0.55389 | BQ131: 137.3064069 | BR131: 0.34089 | BS131: 137.3003517 | BT131: 0.34116 | BU131: 134.7462 | BV131: 0.63372 | BW131: 137.4565768 | BX131: 0.33138 | BY131: 137.2951111 | BZ131: 0.31849 | CA131: 136.4919678 | CB131: 0.41782 | CC131: 136.4555663 | CD131: 0.42616 | CE131: 136.4841636 | CF131: 0.42043 | CG131: 85.00000008 | CH131: 0.00068047 | CI131: 133.2696649 | CJ131: 0.68875
C132: pS1[6] | D132: z50 for TCF retention (1991-1996) | E132: 1 | F132: ARITHMETIC | G132: 137.4976606 | H132: 0.24893 | I132: 128.1944721 | J132: 1.5917 | K132: 137.8710619 | L132: 0.19462 | M132: 137.4867539 | N132: 0 | O132: 137.4525337 | P132: 0.25309 | Q132: 137.4487197 | R132: 0.2534 | S132: 137.639599 | T132: 0.2438 | U132: 137.5975371 | V132: 0.24328 | W132: 137.502789 | X132: 0.24959 | Y132: 137.5009622 | Z132: 0 | AA132: 137.7103093 | AB132: 0.24293 | AC132: 137.7168008 | AD132: 0.24324 | AE132: 137.5582824 | AF132: 0.24495 | AG132: 137.5765051 | AH132: 0 | AI132: 137.747538 | AJ132: 0.24593 | AK132: 137.6338042 | AL132: 0.24121 | AM132: 137.6213387 | AN132: 0.24653 | AO132: 137.8230306 | AP132: 0.25897 | AQ132: 137.8224387 | AR132: 0.25884 | AS132: 137.5822265 | AT132: 0.23906 | AU132: 137.5778476 | AV132: 0 | AW132: 137.8323686 | AX132: 0.26167 | AY132: 137.6125335 | AZ132: 0.24007 | BA132: 137.6252369 | BB132: 0.24201 | BC132: 137.8341614 | BD132: 0 | BE132: 137.8356013 | BF132: 0.26357 | BG132: 137.8720294 | BH132: 0 | BI132: 137.6208939 | BJ132: 0.24718 | BK132: 137.8491299 | BL132: 0.26757 | BM132: 137.5968103 | BN132: 0.24332 | BO132: 137.6391992 | BP132: 0.24816 | BQ132: 137.8416605 | BR132: 0.263 | BS132: 137.8407522 | BT132: 0.26277 | BU132: 137.6273911 | BV132: 0.25031 | BW132: 138.5484794 | BX132: 0.38876 | BY132: 138.9959405 | BZ132: 0.39414 | CA132: 138.4337258 | CB132: 0.36279 | CC132: 138.4241475 | CD132: 0.36376 | CE132: 138.4233484 | CF132: 0.36235 | CG132: 85.00000015 | CH132: 0.0013146 | CI132: 138.3224842 | CJ132: 0.45365
C133: pS1[7] | D133: DUMMY VALUE | E133: 1 | F133: ARITHMETIC | G133: 4.883938112 | H133: 0 | I133: 4.883938112 | J133: 0 | K133: 4.883938112 | L133: 0 | M133: 4.883938112 | N133: 0 | O133: 4.883938112 | P133: 0 | Q133: 4.883938112 | R133: 0 | S133: 4.883938112 | T133: 0 | U133: 4.883938112 | V133: 0 | W133: 4.883938112 | X133: 0 | Y133: 4.883938112 | Z133: 0 | AA133: 4.883938112 | AB133: 0 | AC133: 4.883938112 | AD133: 0 | AE133: 4.883938112 | AF133: 0 | AG133: 4.883938112 | AH133: 0 | AI133: 4.883938112 | AJ133: 0 | AK133: 4.883938112 | AL133: 0 | AM133: 4.883938112 | AN133: 0 | AO133: 4.883938112 | AP133: 0 | AQ133: 4.883938112 | AR133: 0 | AS133: 4.883938112 | AT133: 0 | AU133: 4.883938112 | AV133: 0 | AW133: 4.883938112 | AX133: 0 | AY133: 4.883938112 | AZ133: 0 | BA133: 4.883938112 | BB133: 0 | BC133: 4.883938112 | BD133: 0 | BE133: 4.883938112 | BF133: 0 | BG133: 4.883938112 | BH133: 0 | BI133: 4.883938112 | BJ133: 0 | BK133: 4.883938112 | BL133: 0 | BM133: 4.883938112 | BN133: 0 | BO133: 4.883938112 | BP133: 0 | BQ133: 4.883938112 | BR133: 0 | BS133: 4.883938112 | BT133: 0 | BU133: 4.883938112 | BV133: 0 | BW133: 4.883938112 | BX133: 0 | BY133: 4.5 | BZ133: 0 | CA133: 4.5 | CB133: 0 | CC133: 4.5 | CD133: 0 | CE133: 4.5 | CF133: 0 | CG133: 4.5 | CH133: 0 | CI133: 4.5 | CJ133: 0
C134: pS1[8] | D134: ln(z50) for TCF selectivity (males) | E134: 1 | F134: ARITHMETIC | G134: 4.865089327 | H134: 0.0084097 | I134: 4.875608579 | J134: 0.028003 | K134: 4.870035448 | L134: 0.0071636 | M134: 4.863701798 | N134: 0 | O134: 4.913495866 | P134: 0.012551 | Q134: 4.913697168 | R134: 0.012547 | S134: 4.866018375 | T134: 0.008848 | U134: 4.871911321 | V134: 0.0082758 | W134: 4.918511338 | X134: 0.014126 | Y134: 4.917506327 | Z134: 0 | AA134: 4.873917091 | AB134: 0.0071885 | AC134: 4.874244592 | AD134: 0.0072325 | AE134: 4.925858818 | AF134: 0.01248 | AG134: 4.916138347 | AH134: 0 | AI134: 4.874551519 | AJ134: 0.0072386 | AK134: 4.946325699 | AL134: 0.028754 | AM134: 4.922940092 | AN134: 0.01696 | AO134: 4.878834669 | AP134: 0.0070112 | AQ134: 4.878844881 | AR134: 0.0070092 | AS134: 4.954484507 | AT134: 0.023622 | AU134: 4.951843594 | AV134: 0 | AW134: 4.878412231 | AX134: 0.0070892 | AY134: 4.958475392 | AZ134: 0.0080113 | BA134: 4.955653656 | BB134: 0.0082195 | BC134: 4.859508793 | BD134: 0 | BE134: 4.859962769 | BF134: 0.0071874 | BG134: 4.866440368 | BH134: 0 | BI134: 4.940104247 | BJ134: 0.0090912 | BK134: 4.859077674 | BL134: 0.0072255 | BM134: 4.944856592 | BN134: 0.0086216 | BO134: 4.942318645 | BP134: 0.0091117 | BQ134: 4.86370218 | BR134: 0.006416 | BS134: 4.863847707 | BT134: 0.0064134 | BU134: 4.941673406 | BV134: 0.0077509 | BW134: 4.856086181 | BX134: 0.0053724 | BY134: 4.854719721 | BZ134: 0.0054133 | CA134: 4.986979973 | CB134: 0.0061733 | CC134: 4.981147685 | CD134: 0.0061904 | CE134: 4.986260537 | CF134: 0.0063515 | CG134: 4.803156908 | CH134: 0.016725 | CI134: 4.997031059 | CJ134: 0.0074666
C135: pS1[9] | D135: z50 for TCF selectivity (females) | E135: 1 | F135: ARITHMETIC | G135: 96.58065112 | H135: 2.6224 | I135: 91.98669874 | J135: 6.8035 | K135: 97.87965111 | L135: 1.2438 | M135: 96.45667676 | N135: 0 | O135: 96.60922885 | P135: 2.6281 | Q135: 96.61500072 | R135: 2.6309 | S135: 96.29407555 | T135: 2.4835 | U135: 96.93001927 | V135: 2.7022 | W135: 96.62843988 | X135: 2.6359 | Y135: 96.62152935 | Z135: 0 | AA135: 97.37998015 | AB135: 2.7092 | AC135: 97.41862248 | AD135: 2.7232 | AE135: 97.27993149 | AF135: 2.7049 | AG135: 96.938104 | AH135: 0 | AI135: 97.38152917 | AJ135: 2.7115 | AK135: 97.1929377 | AL135: 2.7064 | AM135: 96.93828463 | AN135: 2.6284 | AO135: 94.69180685 | AP135: 2.0515 | AQ135: 94.70592266 | AR135: 2.0547 | AS135: 94.64048768 | AT135: 2.0514 | AU135: 94.11277625 | AV135: 0 | AW135: 94.697343 | AX135: 2.0517 | AY135: 94.65298001 | AZ135: 2.0555 | BA135: 94.3064345 | BB135: 1.9701 | BC135: 94.49958095 | BD135: 0 | BE135: 94.51020424 | BF135: 1.9918 | BG135: 94.48796328 | BH135: 0 | BI135: 93.90830739 | BJ135: 1.9263 | BK135: 94.49999821 | BL135: 1.9928 | BM135: 94.47417303 | BN135: 1.998 | BO135: 94.03077317 | BP135: 1.9222 | BQ135: 94.79210234 | BR135: 2.0094 | BS135: 94.79997811 | BT135: 2.0121 | BU135: 94.24660976 | BV135: 1.9546 | BW135: 95.00013672 | BX135: 2.0862 | BY135: 94.88110775 | BZ135: 1.9038 | CA135: 94.76425526 | CB135: 2.0115 | CC135: 94.74910378 | CD135: 2.0037 | CE135: 94.85028397 | CF135: 2.0239 | CG135: 80.00000016 | CH135: 0.0013736 | CI135: 97.2666528 | CJ135: 1.0477
C136: pS2[1] | D136: z95-z50 for NMFS survey selectivity (males, pre-1982) | E136: 1 | F136: ARITHMETIC | G136: 23.49577508 | H136: 3.492 | I136: 3.655034296 | J136: 8.0888 | K136: 26.26166116 | L136: 4.4885 | M136: 19.5134761 | N136: 0 | O136: 24.04166012 | P136: 3.6368 | Q136: 24.04166012 | R136: 0 | S136: 29.78946371 | T136: 3.6628 | U136: 86.65996046 | V136: 7.1722 | W136: 24.55383087 | X136: 3.7678 | Y136: 24.55383087 | Z136: 0 | AA136: 79.68778512 | AB136: 5.7099 | AC136: 80.36219262 | AD136: 5.9196 | AE136: 79.35067852 | AF136: 5.7298 | AG136: 24.04166012 | AH136: 0 | AI136: 79.36848195 | AJ136: 5.5538 | AK136: 76.55020886 | AL136: 5.3505 | AM136: 24.55383087 | AN136: 0 | AO136: 69.94057984 | AP136: 3.6159 | AQ136: 70.26160788 | AR136: 3.6427 | AS136: 70.49329632 | AT136: 3.7062 | AU136: 24.04166012 | AV136: 0 | AW136: 69.91020693 | AX136: 3.6124 | AY136: 69.39348443 | AZ136: 3.6054 | BA136: 24.55383087 | BB136: 0 | BC136: 75.6833159 | BD136: 0 | BE136: 75.87214612 | BF136: 3.8507 | BG136: 75.25068892 | BH136: 0 | BI136: 24.04166012 | BJ136: 0 | BK136: 74.99100545 | BL136: 3.7742 | BM136: 76.56076234 | BN136: 3.9179 | BO136: 24.55383087 | BP136: 0 | BQ136: 67.08900523 | BR136: 3.0064 | BS136: 67.27926055 | BT136: 3.0194 | BU136: 24.04166012 | BV136: 0 | BW136: 66.7897692 | BX136: 2.9921 | BY136: 57.90038163 | BZ136: 2.7062 | CA136: 59.62467399 | CB136: 2.9083 | CC136: 68.24585144 | CD136: 3.4912 | CE136: 72.41740611 | CF136: 3.5913 | CG136: 31.21499836 | CH136: 3.3031 | CI136: 69.01505868 | CJ136: 3.7708
C137: pS2[10] | D137: ascending slope for SCF selectivity (males, pre-1997) | E137: 1 | F137: ARITHMETIC | G137: 0.3738258374 | H137: 0.12926 | I137: 0.4883432898 | J137: 0.45893 | K137: 0.3553190834 | L137: 0.066806 | M137: 0.3698264703 | N137: 0 | O137: 0.3752411895 | P137: 0.13382 | Q137: 0.3765554049 | R137: 0.13439 | S137: 0.3254432795 | T137: 0.11125 | U137: 0.3172906864 | V137: 0.10436 | W137: 0.3673414904 | X137: 0.1319 | Y137: 0.3659476758 | Z137: 0 | AA137: 0.3044016212 | AB137: 0.098839 | AC137: 0.3017450443 | AD137: 0.09791 | AE137: 0.3069508037 | AF137: 0.10129 | AG137: 0.3386461667 | AH137: 0 | AI137: 0.3039234261 | AJ137: 0.10002 | AK137: 0.2372090857 | AL137: 0.078455 | AM137: 0.3340051318 | AN137: 0.11296 | AO137: 0.2512977835 | AP137: 0.085843 | AQ137: 0.2507490452 | AR137: 0.085516 | AS137: 0.2178515635 | AT137: 0.087797 | AU137: 0.2313779166 | AV137: 0 | AW137: 0.2520865113 | AX137: 0.086818 | AY137: 0.2244221112 | AZ137: 0.087395 | BA137: 0.2374633438 | BB137: 0.09405 | BC137: 0.3080979219 | BD137: 0 | BE137: 0.3066853948 | BF137: 0.11034 | BG137: 0.2601447569 | BH137: 0 | BI137: 0.3808841726 | BJ137: 0.154 | BK137: 0.3036711629 | BL137: 0.10993 | BM137: 0.2907423406 | BN137: 0.11869 | BO137: 0.3629081221 | BP137: 0.14923 | BQ137: 0.2661559616 | BR137: 0.090741 | BS137: 0.2653622713 | BT137: 0.090407 | BU137: 0.2991295656 | BV137: 0.1322 | BW137: 0.2696372309 | BX137: 0.09482 | BY137: 0.3534255875 | BZ137: 0.09437 | CA137: 0.2346977055 | CB137: 0.055112 | CC137: 0.1229158924 | CD137: 0.019407 | CE137: 0.1245681214 | CF137: 0.020205 | CG137: 0.3698957238 | CH137: 0.1593 | CI137: 0.123960785 | CJ137: 0.010728
C138: pS2[11] | D138: ascending slope for SCF selectivity (males, 1997-2004) | E138: 1 | F138: ARITHMETIC | G138: 0.2083697646 | H138: 0.063355 | I138: 0.1000031204 | J138: 0.0019728 | K138: 0.2231243485 | L138: 0.03648 | M138: 0.2088945136 | N138: 0 | O138: 0.2368325899 | P138: 0.075484 | Q138: 0.2369822978 | R138: 0.075693 | S138: 0.1939584133 | T138: 0.059215 | U138: 0.1941481923 | V138: 0.057817 | W138: 0.2339769326 | X138: 0.074387 | Y138: 0.2343892843 | Z138: 0 | AA138: 0.1775955457 | AB138: 0.044893 | AC138: 0.1770051017 | AD138: 0.044684 | AE138: 0.2010071863 | AF138: 0.051651 | AG138: 0.2069514688 | AH138: 0 | AI138: 0.173641358 | AJ138: 0.04413 | AK138: 0.1978576164 | AL138: 0.05162 | AM138: 0.2046676537 | AN138: 0.05425 | AO138: 0.1683389192 | AP138: 0.043856 | AQ138: 0.1681493422 | AR138: 0.043809 | AS138: 0.1994646235 | AT138: 0.052462 | AU138: 0.207679031 | AV138: 0 | AW138: 0.1654505938 | AX138: 0.041672 | AY138: 0.1974329898 | AZ138: 0.052027 | BA138: 0.2028114246 | BB138: 0.054496 | BC138: 0.1802156117 | BD138: 0 | BE138: 0.1795920788 | BF138: 0.046553 | BG138: 0.2038270167 | BH138: 0 | BI138: 0.2180595268 | BJ138: 0.059187 | BK138: 0.1745587609 | BL138: 0.04569 | BM138: 0.2047830763 | BN138: 0.053707 | BO138: 0.2131490955 | BP138: 0.0571 | BQ138: 0.1805126249 | BR138: 0.041647 | BS138: 0.1804696875 | BT138: 0.041657 | BU138: 0.2065251957 | BV138: 0.050284 | BW138: 0.1788129998 | BX138: 0.039204 | BY138: 0.1834767419 | BZ138: 0.037666 | CA138: 0.2042727278 | CB138: 0.044438 | CC138: 0.150562287 | CD138: 0.024933 | CE138: 0.1450104081 | CF138: 0.022827 | CG138: 0.1000005102 | CH138: 0.00032265 | CI138: 0.1364720444 | CJ138: 0.0098128
C139: pS2[12] | D139: ascending slope for SCF selectivity (males, 2005+) | E139: 1 | F139: ARITHMETIC | G139: 0.1748516494 | H139: 0.014765 | I139: 0.1675649985 | J139: 0.15965 | K139: 0.1726597222 | L139: 0.0079002 | M139: 0.1747843019 | N139: 0 | O139: 0.1761793029 | P139: 0.015281 | Q139: 0.1761780321 | R139: 0.015306 | S139: 0.1698882704 | T139: 0.014268 | U139: 0.1678841583 | V139: 0.01342 | W139: 0.1751443824 | X139: 0.015144 | Y139: 0.1753219377 | Z139: 0 | AA139: 0.1636151184 | AB139: 0.0112 | AC139: 0.163591572 | AD139: 0.011177 | AE139: 0.1643543068 | AF139: 0.011423 | AG139: 0.1656317226 | AH139: 0 | AI139: 0.1628840892 | AJ139: 0.011225 | AK139: 0.1623725359 | AL139: 0.011404 | AM139: 0.1651310926 | AN139: 0.011796 | AO139: 0.1616600709 | AP139: 0.011161 | AQ139: 0.1616601756 | AR139: 0.011165 | AS139: 0.1618305788 | AT139: 0.011403 | AU139: 0.1627175787 | AV139: 0 | AW139: 0.1612914911 | AX139: 0.011217 | AY139: 0.1615635387 | AZ139: 0.011373 | BA139: 0.1622496478 | BB139: 0.011659 | BC139: 0.1646505749 | BD139: 0 | BE139: 0.1645384301 | BF139: 0.011444 | BG139: 0.1644825675 | BH139: 0 | BI139: 0.1684680933 | BJ139: 0.012323 | BK139: 0.1638475366 | BL139: 0.011455 | BM139: 0.1646891011 | BN139: 0.011721 | BO139: 0.1672515933 | BP139: 0.012174 | BQ139: 0.1666604828 | BR139: 0.010535 | BS139: 0.1666625384 | BT139: 0.010536 | BU139: 0.166494619 | BV139: 0.010899 | BW139: 0.1659816298 | BX139: 0.010436 | BY139: 0.1695118461 | BZ139: 0.010159 | CA139: 0.1698405881 | CB139: 0.010193 | CC139: 0.1670009733 | CD139: 0.010303 | CE139: 0.1656692715 | CF139: 0.010372 | CG139: 0.1336285893 | CH139: 0.040879 | CI139: 0.1705151781 | CJ139: 0.0059402
C140: pS2[13] | D140: slope for SCF selectivity (females, pre-1997) | E140: 1 | F140: ARITHMETIC | G140: 0.2200988856 | H140: 0.12757 | I140: 0.4999939265 | J140: 0.0040742 | K140: 0.2137531233 | L140: 0.035288 | M140: 0.2222390653 | N140: 0 | O140: 0.2237935601 | P140: 0.12397 | Q140: 0.2238147998 | R140: 0.12471 | S140: 0.2219221463 | T140: 0.11208 | U140: 0.224764409 | V140: 0.1211 | W140: 0.2254485918 | X140: 0.12192 | Y140: 0.2252754153 | Z140: 0 | AA140: 0.2217333171 | AB140: 0.11815 | AC140: 0.2225550518 | AD140: 0.11738 | AE140: 0.2267990317 | AF140: 0.1197 | AG140: 0.2276070571 | AH140: 0 | AI140: 0.224047738 | AJ140: 0.11737 | AK140: 0.217465338 | AL140: 0.10899 | AM140: 0.2285459427 | AN140: 0.12013 | AO140: 0.2761858815 | AP140: 0.21678 | AQ140: 0.2757594446 | AR140: 0.21469 | AS140: 0.2612606783 | AT140: 0.18443 | AU140: 0.270584329 | AV140: 0 | AW140: 0.2768079084 | AX140: 0.21529 | AY140: 0.2638365834 | AZ140: 0.18228 | BA140: 0.2633627721 | BB140: 0.19068 | BC140: 0.2749159748 | BD140: 0 | BE140: 0.2747100799 | BF140: 0.2092 | BG140: 0.259835699 | BH140: 0 | BI140: 0.2822000653 | BJ140: 0.26253 | BK140: 0.2760183779 | BL140: 0.20658 | BM140: 0.264468339 | BN140: 0.18403 | BO140: 0.2728542534 | BP140: 0.21653 | BQ140: 0.2610847694 | BR140: 0.17883 | BS140: 0.2610995292 | BT140: 0.17849 | BU140: 0.2573983782 | BV140: 0.1751 | BW140: 0.3662674677 | BX140: 0.40477 | BY140: 0.4999983637 | BZ140: 0.0010977 | CA140: 0.4999989258 | CB140: 0.00072099 | CC140: 0.1888421143 | CD140: 0.09748 | CE140: 0.2000337475 | CF140: 0.10319 | CG140: 0.05000008631 | CH140: 5.7901e-05 | CI140: 0.2615981186 | CJ140: 0.044668
C141: pS2[14] | D141: slope for SCF selectivity (females, 1997-2004) | E141: 1 | F141: ARITHMETIC | G141: 0.2637720704 | H141: 0.12914 | I141: 0.4831063294 | J141: 2.7966 | K141: 0.2550558133 | L141: 0.038524 | M141: 0.2648607779 | N141: 0 | O141: 0.2654716708 | P141: 0.12894 | Q141: 0.2653571785 | R141: 0.12911 | S141: 0.2678544639 | T141: 0.12427 | U141: 0.2599875618 | V141: 0.12483 | W141: 0.2651257891 | X141: 0.1283 | Y141: 0.2654584549 | Z141: 0 | AA141: 0.2540506162 | AB141: 0.12185 | AC141: 0.2538257246 | AD141: 0.12169 | AE141: 0.2587329111 | AF141: 0.12384 | AG141: 0.2620597774 | AH141: 0 | AI141: 0.252875697 | AJ141: 0.1213 | AK141: 0.2628027454 | AL141: 0.12651 | AM141: 0.2619794869 | AN141: 0.12539 | AO141: 0.2667042734 | AP141: 0.13877 | AQ141: 0.2667626728 | AR141: 0.13885 | AS141: 0.2708094699 | AT141: 0.14106 | AU141: 0.2741355757 | AV141: 0 | AW141: 0.2659556749 | AX141: 0.13818 | AY141: 0.2708006619 | AZ141: 0.14063 | BA141: 0.2716174114 | BB141: 0.14111 | BC141: 0.2719328426 | BD141: 0 | BE141: 0.2718084624 | BF141: 0.14344 | BG141: 0.2742943689 | BH141: 0 | BI141: 0.2777934926 | BJ141: 0.14953 | BK141: 0.2707937424 | BL141: 0.14266 | BM141: 0.273866214 | BN141: 0.14483 | BO141: 0.2760188022 | BP141: 0.14706 | BQ141: 0.2744723994 | BR141: 0.13874 | BS141: 0.274482793 | BT141: 0.1388 | BU141: 0.2781557996 | BV141: 0.14138 | BW141: 0.2517484153 | BX141: 0.11254 | BY141: 0.2704048791 | BZ141: 0.10795 | CA141: 0.2919242343 | CB141: 0.12041 | CC141: 0.4108813826 | CD141: 0.26008 | CE141: 0.3974227839 | CF141: 0.24635 | CG141: 0.05000015 | CH141: 0.00010062 | CI141: 0.2883293112 | CJ141: 0.041222
C142: pS2[15] | D142: slope for SCF selectivity (females, 2005+) | E142: 1 | F142: ARITHMETIC | G142: 0.1555147811 | H142: 0.049411 | I142: 0.1246860105 | J142: 0.31573 | K142: 0.1841237473 | L142: 0.018167 | M142: 0.1546729358 | N142: 0 | O142: 0.1580962416 | P142: 0.049897 | Q142: 0.1580332988 | R142: 0.049972 | S142: 0.1557648799 | T142: 0.046626 | U142: 0.1469994599 | V142: 0.046162 | W142: 0.1563614977 | X142: 0.049306 | Y142: 0.1568093744 | Z142: 0 | AA142: 0.1310231117 | AB142: 0.040456 | AC142: 0.1305497038 | AD142: 0.040239 | AE142: 0.1363015747 | AF142: 0.042266 | AG142: 0.1433992124 | AH142: 0 | AI142: 0.1292539287 | AJ142: 0.039867 | AK142: 0.1610702643 | AL142: 0.050958 | AM142: 0.142235098 | AN142: 0.044176 | AO142: 0.1538672378 | AP142: 0.052527 | AQ142: 0.1540711653 | AR142: 0.052575 | AS142: 0.1710822546 | AT142: 0.0577 | AU142: 0.1815366828 | AV142: 0 | AW142: 0.1534353507 | AX142: 0.052426 | AY142: 0.1673442081 | AZ142: 0.056679 | BA142: 0.1745581099 | BB142: 0.057795 | BC142: 0.1597062919 | BD142: 0 | BE142: 0.1592831459 | BF142: 0.053562 | BG142: 0.1687783983 | BH142: 0 | BI142: 0.182378004 | BJ142: 0.060467 | BK142: 0.1568041703 | BL142: 0.053086 | BM142: 0.1713383328 | BN142: 0.057137 | BO142: 0.1783565765 | BP142: 0.058815 | BQ142: 0.1606745984 | BR142: 0.052632 | BS142: 0.1608341348 | BT142: 0.052683 | BU142: 0.1832609396 | BV142: 0.059392 | BW142: 0.07448047623 | BX142: 0.0060479 | BY142: 0.08215411904 | BZ142: 0.011806 | CA142: 0.0807649472 | CB142: 0.0054267 | CC142: 0.08969085583 | CD142: 0.014831 | CE142: 0.09181792258 | CF142: 0.015516 | CG142: 0.2734266733 | CH142: 0.39312 | CI142: 0.1403794668 | CJ142: 0.013837
C143: pS2[16] | D143: slope for GF.AllGear selectivity (males, pre-1987) | E143: 1 | F143: ARITHMETIC | G143: 0.1041365751 | H143: 0.0095802 | I143: 0.0931887065 | J143: 0.0097625 | K143: 0.09672299043 | L143: 0.0069986 | M143: 0.1128418429 | N143: 0 | O143: 0.1052822412 | P143: 0.0099427 | Q143: 0.1045852111 | R143: 0.0097306 | S143: 0.1090805349 | T143: 0.010192 | U143: 0.09378502504 | V143: 0.0087107 | W143: 0.103993827 | X143: 0.0098267 | Y143: 0.1064541907 | Z143: 0 | AA143: 0.07943715518 | AB143: 0.008327 | AC143: 0.07998778791 | AD143: 0.008567 | AE143: 0.07921251088 | AF143: 0.0087834 | AG143: 0.09033119458 | AH143: 0 | AI143: 0.07936261473 | AJ143: 0.0084675 | AK143: 0.0765270544 | AL143: 0.0087935 | AM143: 0.09119634181 | AN143: 0.0096134 | AO143: 0.08660220988 | AP143: 0.0088397 | AQ143: 0.08716248225 | AR143: 0.0089117 | AS143: 0.08876716377 | AT143: 0.0091866 | AU143: 0.1054878148 | AV143: 0 | AW143: 0.08648337124 | AX143: 0.0088725 | AY143: 0.08692252243 | AZ143: 0.0090362 | BA143: 0.09753847585 | BB143: 0.0098258 | BC143: 0.08765364968 | BD143: 0 | BE143: 0.08767724755 | BF143: 0.008454 | BG143: 0.08712475535 | BH143: 0 | BI143: 0.1015030511 | BJ143: 0.0099578 | BK143: 0.08681035985 | BL143: 0.0083898 | BM143: 0.08799226389 | BN143: 0.0087105 | BO143: 0.09658703127 | BP143: 0.0092915 | BQ143: 0.0737898406 | BR143: 0.0071403 | BS143: 0.07382452211 | BT143: 0.0071661 | BU143: 0.08674292102 | BV143: 0.0085985 | BW143: 0.07368774517 | BX143: 0.0070335 | BY143: 0.06289634562 | BZ143: 0.0053767 | CA143: 0.06146352003 | CB143: 0.0056749 | CC143: 0.06696547211 | CD143: 0.006934 | CE143: 0.06739260481 | CF143: 0.0072807 | CG143: 0.0590878257 | CH143: 0.008266 | CI143: 0.06129103583 | CJ143: 0.0054548
C144: pS2[17] | D144: slope for GF.AllGear selectivity (males, 1987-1996) | E144: 1 | F144: ARITHMETIC | G144: 0.05694549502 | H144: 0.011947 | I144: 0.07039142294 | J144: 0.0076968 | K144: 0.07101051876 | L144: 0.010984 | M144: 0.06105758514 | N144: 0 | O144: 0.06135408687 | P144: 0.015106 | Q144: 0.06139262967 | R144: 0.015088 | S144: 0.08471266387 | T144: 0.021002 | U144: 0.04770067234 | V144: 0.0097075 | W144: 0.06320965173 | X144: 0.016004 | Y144: 0.06324930896 | Z144: 0 | AA144: 0.03539964215 | AB144: 0.0047463 | AC144: 0.03564944541 | AD144: 0.004768 | AE144: 0.03298272263 | AF144: 0.0049195 | AG144: 0.03794377889 | AH144: 0 | AI144: 0.03557609383 | AJ144: 0.0048608 | AK144: 0.03231963598 | AL144: 0.0050069 | AM144: 0.03836036372 | AN144: 0.0061723 | AO144: 0.04259763322 | AP144: 0.0053003 | AQ144: 0.04271158734 | AR144: 0.0053376 | AS144: 0.0415883202 | AT144: 0.0057669 | AU144: 0.04691950062 | AV144: 0 | AW144: 0.04268237861 | AX144: 0.0054362 | AY144: 0.04092224858 | AZ144: 0.0057165 | BA144: 0.04492031313 | BB144: 0.0067386 | BC144: 0.04801955194 | BD144: 0 | BE144: 0.04804624866 | BF144: 0.0046318 | BG144: 0.04773646321 | BH144: 0 | BI144: 0.04997605053 | BJ144: 0.0056532 | BK144: 0.04817570569 | BL144: 0.0046716 | BM144: 0.04686996532 | BN144: 0.0049152 | BO144: 0.04937640875 | BP144: 0.0053445 | BQ144: 0.04345941312 | BR144: 0.0037346 | BS144: 0.04345090909 | BT144: 0.0037412 | BU144: 0.04345835047 | BV144: 0.004316 | BW144: 0.04233748168 | BX144: 0.0036784 | BY144: 0.0391541956 | BZ144: 0.0031966 | CA144: 0.0354846837 | CB144: 0.0016916 | CC144: 0.03590249053 | CD144: 0.0016874 | CE144: 0.03537897676 | CF144: 0.0015756 | CG144: 0.06453448292 | CH144: 0.0041981 | CI144: 0.03678037324 | CJ144: 0.0014279
C145: pS2[18] | D145: slope for GF.AllGear selectivity (males, 1997+) | E145: 1 | F145: ARITHMETIC | G145: 0.07402646823 | H145: 0.0041167 | I145: 0.102721584 | J145: 0.0086201 | K145: 0.07582258765 | L145: 0.0033512 | M145: 0.07404704736 | N145: 0 | O145: 0.07521475533 | P145: 0.0043012 | Q145: 0.07523990666 | R145: 0.0043151 | S145: 0.07401608674 | T145: 0.0042045 | U145: 0.06867015617 | V145: 0.0036796 | W145: 0.0748840884 | X145: 0.0042505 | Y145: 0.07489366988 | Z145: 0 | AA145: 0.0577573083 | AB145: 0.0024464 | AC145: 0.05767433963 | AD145: 0.0024354 | AE145: 0.05703776702 | AF145: 0.0024671 | AG145: 0.05919563891 | AH145: 0 | AI145: 0.05762186991 | AJ145: 0.0024479 | AK145: 0.05690956782 | AL145: 0.0024445 | AM145: 0.05926700739 | AN145: 0.0026763 | AO145: 0.05672909484 | AP145: 0.0024676 | AQ145: 0.05665241155 | AR145: 0.0024693 | AS145: 0.05627272356 | AT145: 0.0024985 | AU145: 0.05765317878 | AV145: 0 | AW145: 0.05667329565 | AX145: 0.002486 | AY145: 0.05610765558 | AZ145: 0.0024832 | BA145: 0.05766869721 | BB145: 0.0026503 | BC145: 0.06093950922 | BD145: 0 | BE145: 0.0608605796 | BF145: 0.0025914 | BG145: 0.06102785913 | BH145: 0 | BI145: 0.06255861716 | BJ145: 0.002911 | BK145: 0.06086600702 | BL145: 0.002592 | BM145: 0.05995447227 | BN145: 0.0026161 | BO145: 0.06254554111 | BP145: 0.0028255 | BQ145: 0.05968509723 | BR145: 0.0021964 | BS145: 0.0596334005 | BT145: 0.0021963 | BU145: 0.05945437641 | BV145: 0.002319 | BW145: 0.05928622586 | BX145: 0.0021891 | BY145: 0.06052831365 | BZ145: 0.0021286 | CA145: 0.05750557619 | CB145: 0.0021108 | CC145: 0.0586345853 | CD145: 0.0021065 | CE145: 0.05740688224 | CF145: 0.0020161 | CG145: 0.06624466684 | CH145: 0.0026019 | CI145: 0.05722607862 | CJ145: 0.0016988
C146: pS2[19] | D146: slope for GF.AllGear selectivity (females, pre-1987) | E146: 1 | F146: ARITHMETIC | G146: 0.1370896461 | H146: 0.022 | I146: 0.1057664497 | J146: 0.015893 | K146: 0.1186527185 | L146: 0.015235 | M146: 0.1461535665 | N146: 0 | O146: 0.1363425909 | P146: 0.022534 | Q146: 0.1353636895 | R146: 0.022329 | S146: 0.1165574314 | T146: 0.018229 | U146: 0.1288431985 | V146: 0.02118 | W146: 0.1334832296 | X146: 0.022262 | Y146: 0.1367263934 | Z146: 0 | AA146: 0.1441708067 | AB146: 0.02304 | AC146: 0.1445820682 | AD146: 0.02152 | AE146: 0.143633775 | AF146: 0.022941 | AG146: 0.1448862677 | AH146: 0 | AI146: 0.143605674 | AJ146: 0.021475 | AK146: 0.1412111905 | AL146: 0.023067 | AM146: 0.1456077992 | AN146: 0.021528 | AO146: 0.1500246023 | AP146: 0.021904 | AQ146: 0.1504717677 | AR146: 0.022067 | AS146: 0.1492010991 | AT146: 0.021817 | AU146: 0.1542691385 | AV146: 0 | AW146: 0.1485392019 | AX146: 0.021804 | AY146: 0.1475689594 | AZ146: 0.021654 | BA146: 0.1515089154 | BB146: 0.02228 | BC146: 0.1599627969 | BD146: 0 | BE146: 0.1596792259 | BF146: 0.021601 | BG146: 0.1591302471 | BH146: 0 | BI146: 0.1609172219 | BJ146: 0.021657 | BK146: 0.1586852034 | BL146: 0.02152 | BM146: 0.1587022366 | BN146: 0.021528 | BO146: 0.1604931618 | BP146: 0.021623 | BQ146: 0.1472650959 | BR146: 0.021256 | BS146: 0.14740275 | BT146: 0.021355 | BU146: 0.1541888858 | BV146: 0.021375 | BW146: 0.146969752 | BX146: 0.020908 | BY146: 0.1226712934 | BZ146: 0.017722 | CA146: 0.1217589796 | CB146: 0.017964 | CC146: 0.1230916818 | CD146: 0.018348 | CE146: 0.1267728374 | CF146: 0.018486 | CG146: 0.03987773104 | CH146: 0.0051706 | CI146: 0.1128656263 | CJ146: 0.013434
C147: pS2[2] | D147: z95-z50 for NMFS survey selectivity (males, 1982+) | E147: 1 | F147: ARITHMETIC | G147: 75.07284042 | H147: 10.254 | I147: 0.7953789809 | J147: 480.4 | K147: 74.48674327 | L147: 11.152 | M147: 72.79025165 | N147: 0 | O147: 72.85238053 | P147: 10.035 | Q147: 72.54265022 | R147: 10.029 | S147: 99.99999997 | T147: 0.00025926 | U147: 95.13317979 | V147: 15.442 | W147: 74.43543682 | X147: 10.306 | Y147: 74.35676168 | Z147: 0 | AA147: 99.99999997 | AB147: 0.00031014 | AC147: 99.99999997 | AD147: 0.00030126 | AE147: 99.99999997 | AF147: 0.00031226 | AG147: 99.99999993 | AH147: 0 | AI147: 99.99999997 | AJ147: 0.00031053 | AK147: 99.99999997 | AL147: 0.00029135 | AM147: 99.99999908 | AN147: 0.0031549 | AO147: 99.9999999 | AP147: 0.00096699 | AQ147: 99.99999991 | AR147: 0.0009303 | AS147: 99.99999993 | AT147: 0.000651 | AU147: 97.49222824 | AV147: 0 | AW147: 99.99999965 | AX147: 0.0024094 | AY147: 99.99999994 | AZ147: 0.00058524 | BA147: 99.99999725 | BB147: 0.027517 | BC147: 76.40813561 | BD147: 0 | BE147: 76.66405548 | BF147: 5.9257 | BG147: 76.38354411 | BH147: 0 | BI147: 66.78101325 | BJ147: 5.6987 | BK147: 76.27523644 | BL147: 5.8997 | BM147: 78.8566618 | BN147: 6.549 | BO147: 68.90418435 | BP147: 5.496 | BQ147: 88.35171596 | BR147: 5.3635 | BS147: 88.43495502 | BT147: 5.375 | BU147: 87.54031834 | BV147: 5.7769 | BW147: 88.93465837 | BX147: 4.1035 | BY147: 76.99371558 | BZ147: 4.1684 | CA147: 85.91280353 | CB147: 5.2699 | CC147: 85.8385918 | CD147: 5.2562 | CE147: 99.99999926 | CF147: 0.0073897 | CG147: 28.07347032 | CH147: 1.8721 | CI147: 92.86399457 | CJ147: 5.8494
C148: pS2[20] | D148: slope for GF.AllGear selectivity (females, 1987-1996) | E148: 1 | F148: ARITHMETIC | G148: 0.1850055201 | H148: 0.038081 | I148: 0.1009223357 | J148: 0.012743 | K148: 0.183164839 | L148: 0.028433 | M148: 0.1858330681 | N148: 0 | O148: 0.1878257936 | P148: 0.037964 | Q148: 0.1882532783 | R148: 0.037999 | S148: 0.1771055198 | T148: 0.036852 | U148: 0.1833393557 | V148: 0.038011 | W148: 0.1886641031 | X148: 0.037917 | Y148: 0.1875899891 | Z148: 0 | AA148: 0.1805151316 | AB148: 0.038505 | AC148: 0.1799380039 | AD148: 0.03838 | AE148: 0.1836587881 | AF148: 0.038585 | AG148: 0.1817793289 | AH148: 0 | AI148: 0.1810786942 | AJ148: 0.038295 | AK148: 0.1848140729 | AL148: 0.038461 | AM148: 0.1814415162 | AN148: 0.038186 | AO148: 0.1707576715 | AP148: 0.037446 | AQ148: 0.1706755297 | AR148: 0.037405 | AS148: 0.1759839033 | AT148: 0.037598 | AU148: 0.1756502704 | AV148: 0 | AW148: 0.1707662836 | AX148: 0.037363 | AY148: 0.175673223 | AZ148: 0.03747 | BA148: 0.1750091188 | BB148: 0.037452 | BC148: 0.1359819704 | BD148: 0 | BE148: 0.1362293072 | BF148: 0.029792 | BG148: 0.1384786103 | BH148: 0 | BI148: 0.1426048923 | BJ148: 0.031257 | BK148: 0.1385964137 | BL148: 0.029945 | BM148: 0.1511430437 | BN148: 0.032374 | BO148: 0.1454246308 | BP148: 0.030967 | BQ148: 0.1095998749 | BR148: 0.035175 | BS148: 0.1097467018 | BT148: 0.035251 | BU148: 0.1153440561 | BV148: 0.038791 | BW148: 0.1178514186 | BX148: 0.035138 | BY148: 0.05481122258 | BZ148: 0.012779 | CA148: 0.04940105847 | CB148: 0.0086231 | CC148: 0.03988586715 | CD148: 0.0062967 | CE148: 0.04262161915 | CF148: 0.0064195 | CG148: 0.06375812593 | CH148: 0.0085078 | CI148: 0.04308487884 | CJ148: 0.0051793
C149: pS2[21] | D149: slope for GF.AllGear selectivity (females, 1997+) | E149: 1 | F149: ARITHMETIC | G149: 0.07228541104 | H149: 0.0055433 | I149: 0.1316859489 | J149: 0.013145 | K149: 0.06885675151 | L149: 0.0040091 | M149: 0.07035879488 | N149: 0 | O149: 0.07371566925 | P149: 0.0056504 | Q149: 0.07360473892 | R149: 0.0056511 | S149: 0.07585264638 | T149: 0.0051294 | U149: 0.07065040371 | V149: 0.0053447 | W149: 0.07328971988 | X149: 0.0055834 | Y149: 0.07356501118 | Z149: 0 | AA149: 0.06434937157 | AB149: 0.0046977 | AC149: 0.06393813621 | AD149: 0.0046429 | AE149: 0.0646294147 | AF149: 0.0047283 | AG149: 0.06621800566 | AH149: 0 | AI149: 0.06392745196 | AJ149: 0.0046548 | AK149: 0.06439767572 | AL149: 0.0047401 | AM149: 0.06658620748 | AN149: 0.0048527 | AO149: 0.05593164017 | AP149: 0.0041904 | AQ149: 0.05582834656 | AR149: 0.00418 | AS149: 0.05605494564 | AT149: 0.0041913 | AU149: 0.05606859981 | AV149: 0 | AW149: 0.05599732476 | AX149: 0.0042034 | AY149: 0.05605331484 | AZ149: 0.0041933 | BA149: 0.05756655961 | BB149: 0.0042824 | BC149: 0.06204415566 | BD149: 0 | BE149: 0.06185993644 | BF149: 0.0046565 | BG149: 0.06232397276 | BH149: 0 | BI149: 0.06355055593 | BJ149: 0.0048936 | BK149: 0.06175661008 | BL149: 0.0046597 | BM149: 0.06179439289 | BN149: 0.0046768 | BO149: 0.06402463513 | BP149: 0.0048922 | BQ149: 0.0624024705 | BR149: 0.0045248 | BS149: 0.06229729665 | BT149: 0.0045168 | BU149: 0.06162277297 | BV149: 0.0044073 | BW149: 0.06242441831 | BX149: 0.004537 | BY149: 0.07539472174 | BZ149: 0.0051903 | CA149: 0.07239588246 | CB149: 0.0051056 | CC149: 0.06605247995 | CD149: 0.0044354 | CE149: 0.0662460869 | CF149: 0.0043567 | CG149: 0.08162910276 | CH149: 0.0080043 | CI149: 0.06682726414 | CJ149: 0.0035278
C150: pS2[22] | D150: ln(z95-z50) for RKF selectivity (males, pre-1997) | E150: 1 | F150: ARITHMETIC | G150: 3.077374947 | H150: 0.16223 | I150: 2.666807765 | J150: 1.9456 | K150: 3.260367638 | L150: 0.064085 | M150: 3.076158122 | N150: 0 | O150: 3.113492301 | P150: 0.064372 | Q150: 3.112960691 | R150: 0.064339 | S150: 3.093782651 | T150: 0.16296 | U150: 3.063687299 | V150: 0.15563 | W150: 3.109889374 | X150: 0.064944 | Y150: 3.11119073 | Z150: 0 | AA150: 3.041993135 | AB150: 0.14442 | AC150: 3.041751858 | AD150: 0.14424 | AE150: 3.051922313 | AF150: 0.061692 | AG150: 3.084001094 | AH150: 0 | AI150: 3.045273685 | AJ150: 0.14451 | AK150: 3.031361356 | AL150: 0.06221 | AM150: 3.072766878 | AN150: 0.065465 | AO150: 3.11660209 | AP150: 0.14483 | AQ150: 3.116168535 | AR150: 0.14485 | AS150: 3.088984097 | AT150: 0.061891 | AU150: 3.112408739 | AV150: 0 | AW150: 3.117360825 | AX150: 0.14519 | AY150: 3.093095157 | AZ150: 0.062093 | BA150: 3.108107521 | BB150: 0.062363 | BC150: 3.132027569 | BD150: 0 | BE150: 3.13228159 | BF150: 0.15726 | BG150: 3.274716048 | BH150: 0 | BI150: 3.171325608 | BJ150: 0.064041 | BK150: 3.135506041 | BL150: 0.15793 | BM150: 3.165407026 | BN150: 0.063603 | BO150: 3.171844051 | BP150: 0.064193 | BQ150: 3.096615448 | BR150: 0.1496 | BS150: 3.096577459 | BT150: 0.14955 | BU150: 3.154089283 | BV150: 0.060347 | BW150: 2.994388994 | BX150: 0.15614 | BY150: 3.022623278 | BZ150: 0.15878 | CA150: 3.202489364 | CB150: 0.059204 | CC150: 3.213512512 | CD150: 0.059817 | CE150: 3.204325015 | CF150: 0.059995 | CG150: 3.533798889 | CH150: 1.1697 | CI150: 3.230073821 | CJ150: 0.027793
C151: pS2[23] | D151: ln(z95-z50) for RKF selectivity (males, 1997-2004) | E151: 1 | F151: ARITHMETIC | G151: 3.551664331 | H151: 0.085402 | I151: 3.241068315 | J151: 0.66187 | K151: 3.569629459 | L151: 0.042173 | M151: 3.556482336 | N151: 0 | O151: 3.546854118 | P151: 0.091331 | Q151: 3.546809774 | R151: 0.091416 | S151: 3.548863978 | T151: 0.085776 | U151: 3.531947133 | V151: 0.083086 | W151: 3.547753767 | X151: 0.091368 | Y151: 3.548294077 | Z151: 0 | AA151: 3.494377955 | AB151: 0.18273 | AC151: 3.496986451 | AD151: 0.1817 | AE151: 3.429862203 | AF151: 0.19424 | AG151: 3.427600265 | AH151: 0 | AI151: 3.49885918 | AJ151: 0.076142 | AK151: 3.449324572 | AL151: 0.191 | AM151: 3.432478191 | AN151: 0.20469 | AO151: 3.510282583 | AP151: 0.07684 | AQ151: 3.510641407 | AR151: 0.076873 | AS151: 3.451551779 | AT151: 0.20535 | AU151: 3.452202363 | AV151: 0 | AW151: 3.513189983 | AX151: 0.077063 | AY151: 3.454500138 | AZ151: 0.20487 | BA151: 3.450183116 | BB151: 0.21486 | BC151: 3.496822932 | BD151: 0 | BE151: 3.496813677 | BF151: 0.2031 | BG151: 3.372580677 | BH151: 0 | BI151: 3.406950627 | BJ151: 0.24311 | BK151: 3.498642305 | BL151: 0.20347 | BM151: 3.424174167 | BN151: 0.22621 | BO151: 3.407848914 | BP151: 0.23926 | BQ151: 3.401841654 | BR151: 0.19947 | BS151: 3.4026546 | BT151: 0.19947 | BU151: 3.322080575 | BV151: 0.22921 | BW151: 3.218253664 | BX151: 0.2009 | BY151: 3.205602007 | BZ151: 0.19028 | CA151: 3.2557936 | CB151: 0.21057 | CC151: 3.242667445 | CD151: 0.21428 | CE151: 3.2597801 | CF151: 0.21055 | CG151: 3.438476248 | CH151: 0.86435 | CI151: 3.331396074 | CJ151: 0.087115
C152: pS2[24] | D152: ln(z95-z50) for RKF selectivity (males, 2005+) | E152: 1 | F152: ARITHMETIC | G152: 3.487433691 | H152: 0.043971 | I152: 3.115868979 | J152: 0.2466 | K152: 3.519637948 | L152: 0.02207 | M152: 3.491671234 | N152: 0 | O152: 3.535396043 | P152: 0.046518 | Q152: 3.535793584 | R152: 0.046512 | S152: 3.474218195 | T152: 0.04392 | U152: 3.456660757 | V152: 0.042793 | W152: 3.531674603 | X152: 0.046479 | Y152: 3.531744673 | Z152: 0 | AA152: 3.430049025 | AB152: 0.038942 | AC152: 3.428144792 | AD152: 0.039085 | AE152: 3.435719123 | AF152: 0.10905 | AG152: 3.43849565 | AH152: 0 | AI152: 3.427601032 | AJ152: 0.038645 | AK152: 3.441770909 | AL152: 0.10722 | AM152: 3.44210847 | AN152: 0.11701 | AO152: 3.425587785 | AP152: 0.03865 | AQ152: 3.425833194 | AR152: 0.038661 | AS152: 3.456885068 | AT152: 0.040872 | AU152: 3.465169087 | AV152: 0 | AW152: 3.427576575 | AX152: 0.03875 | AY152: 3.452011021 | AZ152: 0.040821 | BA152: 3.463805782 | BB152: 0.11264 | BC152: 3.4714379 | BD152: 0 | BE152: 3.470937664 | BF152: 0.039786 | BG152: 3.426135321 | BH152: 0 | BI152: 3.442429706 | BJ152: 0.12792 | BK152: 3.470073867 | BL152: 0.039807 | BM152: 3.459738518 | BN152: 0.1156 | BO152: 3.446250025 | BP152: 0.1247 | BQ152: 3.441562583 | BR152: 0.10386 | BS152: 3.442044197 | BT152: 0.10385 | BU152: 3.312025706 | BV152: 0.11768 | BW152: 3.44570737 | BX152: 0.03593 | BY152: 3.432061827 | BZ152: 0.035133 | CA152: 3.323482192 | CB152: 0.10124 | CC152: 3.311778032 | CD152: 0.10281 | CE152: 3.330719715 | CF152: 0.1015 | CG152: 2.500003088 | CH152: 0.0037824 | CI152: 3.347197528 | CJ152: 0.043691
C153: pS2[25] | D153: ln(z95-z50) for RKF selectivity (males, pre-1997) | E153: 1 | F153: ARITHMETIC | G153: 2.78522433 | H153: 0.68382 | I153: 2.500006009 | J153: 0.0073593 | K153: 2.69803607 | L153: 0.070294 | M153: 2.792526271 | N153: 0 | O153: 2.75949278 | P153: 0.58715 | Q153: 2.760368148 | R153: 0.58789 | S153: 2.804724382 | T153: 0.90977 | U153: 2.776900288 | V153: 0.62744 | W153: 2.759336476 | X153: 0.58463 | Y153: 2.757186635 | Z153: 0 | AA153: 2.777234129 | AB153: 0.60602 | AC153: 2.778015023 | AD153: 0.60496 | AE153: 2.759419493 | AF153: 0.56542 | AG153: 2.758770842 | AH153: 0 | AI153: 2.777141459 | AJ153: 0.60221 | AK153: 2.76018575 | AL153: 0.56628 | AM153: 2.753666937 | AN153: 0.56958 | AO153: 2.754254273 | AP153: 0.64644 | AQ153: 2.754714054 | AR153: 0.64624 | AS153: 2.71924794 | AT153: 0.60259 | AU153: 2.714152421 | AV153: 0 | AW153: 2.753738585 | AX153: 0.64567 | AY153: 2.719622535 | AZ153: 0.60165 | BA153: 2.70121345 | BB153: 0.60048 | BC153: 2.747748658 | BD153: 0 | BE153: 2.748609753 | BF153: 0.65962 | BG153: 2.714242179 | BH153: 0 | BI153: 2.701314118 | BJ153: 0.62017 | BK153: 2.746312216 | BL153: 0.65569 | BM153: 2.708276886 | BN153: 0.60817 | BO153: 2.693998361 | BP153: 0.61064 | BQ153: 2.742749802 | BR153: 0.63323 | BS153: 2.743294235 | BT153: 0.63339 | BU153: 2.70561333 | BV153: 0.60461 | BW153: 2.500008757 | BX153: 0.010723 | BY153: 2.544454876 | BZ153: 0.42088 | CA153: 2.724993566 | CB153: 0.37287 | CC153: 2.696401392 | CD153: 0.38607 | CE153: 2.701961016 | CF153: 0.38182 | CG153: 3.999999678 | CH153: 0.00039391 | CI153: 2.772990329 | CJ153: 0.070226
C154: pS2[26] | D154: ln(z95-z50) for RKF selectivity (males, 1997-2004) | E154: 1 | F154: ARITHMETIC | G154: 2.849052073 | H154: 0.90333 | I154: 2.50001395 | J154: 0.017085 | K154: 2.887934116 | L154: 0.11026 | M154: 2.841886866 | N154: 0 | O154: 2.922985583 | P154: 0.96121 | Q154: 2.923918541 | R154: 0.9627 | S154: 2.792031552 | T154: 0.86945 | U154: 2.865431666 | V154: 0.88112 | W154: 2.92430446 | X154: 0.95739 | Y154: 2.922045952 | Z154: 0 | AA154: 2.88250767 | AB154: 0.87141 | AC154: 2.884629888 | AD154: 0.86988 | AE154: 2.930481468 | AF154: 0.92813 | AG154: 2.92814753 | AH154: 0 | AI154: 2.886143876 | AJ154: 0.86991 | AK154: 2.932126219 | AL154: 0.92931 | AM154: 2.924347713 | AN154: 0.93742 | AO154: 2.831713789 | AP154: 0.97757 | AQ154: 2.832432799 | AR154: 0.97794 | AS154: 2.895581503 | AT154: 1.0175 | AU154: 2.89623357 | AV154: 0 | AW154: 2.831398092 | AX154: 0.97835 | AY154: 2.896202521 | AZ154: 1.0163 | BA154: 2.881479927 | BB154: 1.0224 | BC154: 2.814543951 | BD154: 0 | BE154: 2.813502818 | BF154: 0.97552 | BG154: 2.869657933 | BH154: 0 | BI154: 2.867840778 | BJ154: 1.0345 | BK154: 2.817106175 | BL154: 0.97595 | BM154: 2.877122786 | BN154: 1.0182 | BO154: 2.865797453 | BP154: 1.0272 | BQ154: 2.818168614 | BR154: 0.96138 | BS154: 2.818652088 | BT154: 0.96176 | BU154: 2.864229778 | BV154: 1.0027 | BW154: 3.454800162 | BX154: 0.13343 | BY154: 3.378798452 | BZ154: 0.15108 | CA154: 3.516778328 | CB154: 0.3238 | CC154: 3.553871222 | CD154: 0.31253 | CE154: 3.553996805 | CF154: 0.30866 | CG154: 3.999999671 | CH154: 0.00040331 | CI154: 2.790087817 | CJ154: 0.096274
C155: pS2[27] | D155: ln(z95-z50) for RKF selectivity (males, 2005+) | E155: 1 | F155: ARITHMETIC | G155: 2.991081935 | H155: 0.22044 | I155: 2.500005987 | J155: 0.0073329 | K155: 2.994062457 | L155: 0.034007 | M155: 2.999210985 | N155: 0 | O155: 2.987063584 | P155: 0.21913 | Q155: 2.987472863 | R155: 0.21926 | S155: 2.98102396 | T155: 0.21811 | U155: 2.975965527 | V155: 0.21872 | W155: 2.985114818 | X155: 0.21893 | Y155: 2.984498589 | Z155: 0 | AA155: 2.965536574 | AB155: 0.21661 | AC155: 2.964213337 | AD155: 0.21679 | AE155: 2.964206429 | AF155: 0.21597 | AG155: 2.974451866 | AH155: 0 | AI155: 2.965281339 | AJ155: 0.2167 | AK155: 2.964302156 | AL155: 0.21638 | AM155: 2.972097362 | AN155: 0.21592 | AO155: 3.061579597 | AP155: 0.2181 | AQ155: 3.060980662 | AR155: 0.21808 | AS155: 3.058819893 | AT155: 0.21709 | AU155: 3.077545178 | AV155: 0 | AW155: 3.060925757 | AX155: 0.21797 | AY155: 3.058318135 | AZ155: 0.21702 | BA155: 3.066808208 | BB155: 0.21601 | BC155: 3.073022681 | BD155: 0 | BE155: 3.072460701 | BF155: 0.21866 | BG155: 3.070361921 | BH155: 0 | BI155: 3.08733891 | BJ155: 0.21791 | BK155: 3.072718095 | BL155: 0.21871 | BM155: 3.06899576 | BN155: 0.21737 | BO155: 3.081988799 | BP155: 0.21678 | BQ155: 3.055327517 | BR155: 0.21541 | BS155: 3.05502588 | BT155: 0.21543 | BU155: 3.066162292 | BV155: 0.2151 | BW155: 3.216572327 | BX155: 0.10255 | BY155: 3.137352857 | BZ155: 0.12174 | CA155: 3.181709878 | CB155: 0.3931 | CC155: 3.166936016 | CD155: 0.40579 | CE155: 3.111147841 | CF155: 0.3993 | CG155: 3.151030518 | CH155: 0.65321 | CI155: 2.927854209 | CJ155: 0.048583
C156: pS2[28] | D156: slope for TCF retention (2005-2009) | E156: 1 | F156: ARITHMETIC | G156: 0.8940565828 | H156: 0.72501 | I156: 0.5138000857 | J156: 1.0748 | K156: 0.929488993 | L156: 0.61275 | M156: 0.8968573798 | N156: 0 | O156: 0.8385387208 | P156: 0.56125 | Q156: 0.8392861827 | R156: 0.56318 | S156: 0.8431827451 | T156: 0.56927 | U156: 0.8355346704 | V156: 0.55257 | W156: 0.8274249659 | X156: 0.5331 | Y156: 0.8272716414 | Z156: 0 | AA156: 0.8375943497 | AB156: 0.53346 | AC156: 0.8354311735 | AD156: 0.52754 | AE156: 0.7827126683 | AF156: 0.40752 | AG156: 0.8471416932 | AH156: 0 | AI156: 0.8352059553 | AJ156: 0.5269 | AK156: 0.7658612927 | AL156: 0.3742 | AM156: 0.7523246887 | AN156: 0.3444 | AO156: 0.7968038266 | AP156: 0.43766 | AQ156: 0.7969111897 | AR156: 0.43793 | AS156: 0.7449332872 | AT156: 0.33801 | AU156: 0.8028489594 | AV156: 0 | AW156: 0.8009911167 | AX156: 0.44712 | AY156: 0.738025398 | AZ156: 0.32589 | BA156: 0.7756657019 | BB156: 0.39852 | BC156: 0.9229356141 | BD156: 0 | BE156: 0.9192522903 | BF156: 0.79292 | BG156: 0.8800775199 | BH156: 0 | BI156: 0.9486484625 | BJ156: 0.91807 | BK156: 0.9156155852 | BL156: 0.77958 | BM156: 0.8036182631 | BN156: 0.46316 | BO156: 0.9097865821 | BP156: 0.76987 | BQ156: 1.096930839 | BR156: 1.6884 | BS156: 1.095479083 | BT156: 1.6776 | BU156: 1.170270959 | BV156: 2.3826 | BW156: 0.5981600161 | BX156: 0.11384 | BY156: 0.611055056 | BZ156: 0.11696 | CA156: 0.6177517959 | CB156: 0.11676 | CC156: 0.6146750063 | CD156: 0.11653 | CE156: 0.6257374177 | CF156: 0.11914 | CG156: 1.999997322 | CH156: 0.0035928 | CI156: 0.6677137272 | CJ156: 0.15524
C157: pS2[29] | D157: slope for TCF retention (2013-2015) | E157: 1 | F157: ARITHMETIC | G157: 0.5764726115 | H157: 0.12608 | I157: 0.7646399454 | J157: 1.883 | K157: 0.5766553818 | L157: 0.089506 | M157: 0.5792473406 | N157: 0 | O157: 0.5720954567 | P157: 0.12378 | Q157: 0.5722311861 | R157: 0.12383 | S157: 0.5748974418 | T157: 0.12724 | U157: 0.5677332243 | V157: 0.12328 | W157: 0.5724047257 | X157: 0.12453 | Y157: 0.572475025 | Z157: 0 | AA157: 0.5484123137 | AB157: 0.10531 | AC157: 0.5478096122 | AD157: 0.10516 | AE157: 0.5480239689 | AF157: 0.10508 | AG157: 0.5670599202 | AH157: 0 | AI157: 0.5471827395 | AJ157: 0.10513 | AK157: 0.5447428718 | AL157: 0.10434 | AM157: 0.5644185671 | AN157: 0.1222 | AO157: 0.5465023083 | AP157: 0.10542 | AQ157: 0.5464877015 | AR157: 0.10544 | AS157: 0.5477371848 | AT157: 0.10545 | AU157: 0.5644555523 | AV157: 0 | AW157: 0.5465766941 | AX157: 0.1155 | AY157: 0.5460723953 | AZ157: 0.1051 | BA157: 0.5559946126 | BB157: 0.11835 | BC157: 0.5608628712 | BD157: 0 | BE157: 0.579715141 | BF157: 0.12709 | BG157: 0.5748335914 | BH157: 0 | BI157: 0.5953633846 | BJ157: 0.1341 | BK157: 0.5803388536 | BL157: 0.1276 | BM157: 0.5650486005 | BN157: 0.12099 | BO157: 0.5901648371 | BP157: 0.13177 | BQ157: 0.565411901 | BR157: 0.12106 | BS157: 0.5653759665 | BT157: 0.12106 | BU157: 0.5844030908 | BV157: 0.12929 | BW157: 0.6102190674 | BX157: 0.12689 | BY157: 0.6190065488 | BZ157: 0.134 | CA157: 0.5729239631 | CB157: 0.11252 | CC157: 0.5855082857 | CD157: 0.11756 | CE157: 0.5786563751 | CF157: 0.11462 | CG157: 1.999984927 | CH157: 0.020222 | CI157: 0.5900167399 | CJ157: 0.15398
C158: pS2[3] | D158: z95-z50 for NMFS survey selectivity (females, pre-1982) | E158: 1 | F158: ARITHMETIC | G158: 39.98151992 | H158: 5.8712 | I158: 4.021594854 | J158: 13.794 | K158: 40.94964578 | L158: 5.3667 | M158: 0.1120554713 | N158: 0 | O158: 43.74710684 | P158: 6.4267 | Q158: 43.74710684 | R158: 0 | S158: 39.98151992 | T158: 0 | U158: 59.81413872 | V158: 6.253 | W158: 43.44444359 | X158: 6.2518 | Y158: 43.44444359 | Z158: 0 | AA158: 73.60058487 | AB158: 7.9474 | AC158: 75.35878719 | AD158: 8.1986 | AE158: 70.33926449 | AF158: 7.2669 | AG158: 43.74710684 | AH158: 0 | AI158: 73.81192635 | AJ158: 7.6657 | AK158: 70.64991944 | AL158: 7.2254 | AM158: 43.44444359 | AN158: 0 | AO158: 69.44868215 | AP158: 4.2246 | AQ158: 69.75234832 | AR158: 4.2595 | AS158: 69.86149766 | AT158: 4.2804 | AU158: 43.74710684 | AV158: 0 | AW158: 69.17286138 | AX158: 4.1895 | AY158: 69.24505133 | AZ158: 4.2028 | BA158: 43.44444359 | BB158: 0 | BC158: 69.42986798 | BD158: 0 | BE158: 69.62705649 | BF158: 3.8358 | BG158: 69.53456944 | BH158: 0 | BI158: 43.74710684 | BJ158: 0 | BK158: 69.0264193 | BL158: 3.7714 | BM158: 69.56821415 | BN158: 3.834 | BO158: 43.44444359 | BP158: 0 | BQ158: 70.24434511 | BR158: 3.9721 | BS158: 70.50919883 | BT158: 4.0014 | BU158: 43.74710684 | BV158: 0 | BW158: 69.23866499 | BX158: 3.8528 | BY158: 66.42802003 | BZ158: 3.1168 | CA158: 68.78843693 | CB158: 4.2538 | CC158: 67.63765257 | CD158: 4.0309 | CE158: 66.0273604 | CF158: 3.63 | CG158: 35.07768842 | CH158: 2.9945 | CI158: 54.34186473 | CJ158: 2.9576
